Workbook

Sheet 作成手順 (hidden)
B2: ●共通の注意事項
B3: ・各帳票は、一般送配電事業者が管轄するエリア毎に本表を作成する。
B4: ・設備がないまたは契約が無い部分については「空白」とすること（「０」と表記しないこと）。
B5: ・記載対象でないシート（記載対象がないシートも含む）は、帳票表示切替シートにてシートの表示／非表示を切り替えると作成が容易となる。
B6: ・青セル部分のうち対象箇所について入力する。（青セル部分以外は、他帳票からのリンク又は自動計算により入力対象外。）
B7: ・エクセル上での入力は小数点第一位(小数点第２位を切り捨て）までとする。（最終の届出書については弊機関でＰＤＦ化を実施し、その際に整数表記に変更する。）
B11: 手順 | C11: ●配電事業者における基本的な作成手順 | D11: ●各作成手順における注意事項
B13: ① | C13: 供給計画届出書様式の「表紙」シートに住所・事業者名・代表者名・事業者コード等を記載 | D13: ・ ・ ・ | E13: 事業者名については、事業者リスト一覧から検索し選択すること。なお、事業者名がない場合は、最新の事業者リスト一覧を広域機関HPよりダウンロードし、「表紙」シートの「事業者リスト一覧最新化」ボタンを押下し、事業者リスト一覧を最新化すること。 「保存」ボタンは、ファイル名称を自動付与するためのボタンであり、自動作成されるファイル名称は変更しないこと。 「保存」ボタンは、手順の途中の仕掛保存で使用することも可能。
B14: ② | C14: 補正（ｋW）指定１、補正（ｋW）指定２、補正（ｋＷｈ）について、必要項目を入力 | E14: 受電・送電取引帳票を入力した場合は、補正（ｋW）指定１シートにて「補正（ｋＷ）指定１”へ”転記」を実行すること。
B15: ③ | C15: 【供給力の契約がある場合（調達先未定の場合は不要）】 入力支援シートの「受電取引帳票」に発電事業者等から受電する分を契約に基づいて記載し、「帳票作成」ボタンを押下 | D15: ・ ・ ・ ・ | E15: 相手先の事業者については、事業者リスト一覧から検索し選択すること。なお、事業者がない場合は、最新の事業者リスト一覧を広域機関HPよりダウンロードし、「表紙」シートの「事業者リスト一覧最新化」ボタンを押下し、事業者リスト一覧を最新化すること。 「販売電力」については、供給電力等の記載断面における安定的な供給電力の範囲内で計上すること。 他の事業者から調達し、小売電気事業者等に転売する予定のある事業者は、受電取引帳票についても記載すること。 シート内の記載が完了したら、シート内上部の「帳票作成」ボタンを押下し、⑥以降に進む。
B16: ④ | C16: 【供給力の契約がある場合（調達先未定の場合は不要）】 入力支援シートの「送電取引帳票」に小売電気事業者等に販売する分を契約に基づいて記載し、「帳票作成」ボタンを押下 | D16: ・ ・ ・ ・ | E16: 相手先の事業者については、事業者リスト一覧から検索し選択すること。なお、事業者がない場合は、最新の事業者リスト一覧を広域機関HPよりダウンロードし、「表紙」シートの「事業者リスト一覧最新化」ボタンを押下し、事業者リスト一覧を最新化すること。 「販売電力」については、供給電力等の記載断面における安定的な供給電力の範囲内で計上すること。 他の事業者から調達し、小売電気事業者等に転売する予定のある事業者は、受電取引帳票についても記載すること。 シート内の記載が完了したら、シート内上部の「帳票作成」ボタンを押下し、⑥以降に進む。
B17: ⑤ | C17: 様式第３２第８表（送電・受電）および様式第３６表（送電・受電）について、記載内容を確認する。特に右端の備考欄も記載されていることを確認する
B18: ⑧ | C18: 様式第３２第６の１表、２表を記載
B19: ⑨ | C19: 様式第３３表、第３７表を記載
B20: ⑩ | C20: 様式第３８表を記載。
B21: ⑪ | C21: 【需給調整市場への参加要件を満たす電源等を保有する場合】 様式第３３の３ 第１表・第２表について、保有電源欄に当該設備の出力変動幅等と、H列にその最大値を記載 （様式第３３の３ 第２表から先に作成する。） | D21: ・ ・ | E21: 発電設備等の可能出力と最低出力の差分について補修による減少分を考慮した月平均値を記載すること。 なお、自端制御において周波数偏差にもとづく出力変化をする場合は、10秒以内に供出可能な電力の最大値を出力変動幅等として記載すること。
B22: ⑫ | C22: 【需給調整市場への参加要件を満たす非電気事業者の電源等を調達している場合】 様式第３３の３ 第１表・第２表について、調達分欄にその契約最大値と、H列にその最大値を記載 （様式第３３の３ 第２表から先に作成する。） | D22: ・ ・ | E22: 電気事業者（発電事業者等）からの調達分は記載不要。 ネガワット・ポジワットをアグリゲーションする場合は、種類等の欄を「その他」とすること。
B23: ⑬ | C23: 【容量市場で発動指令電源として契約した契約容量の全量または一部を安定的な供給力として見込んでいる場合】 様式第３２第１表・第３表の発動指令電源供給力（再掲）欄に、その供給電力を記載する。 | D23: ・ | E23: 発動指令電源として契約した契約容量の全量を計上するのではなく、様式第３２第１表・第３表において安定的に見込める供給力として記載した供給電力の内、発動指令電源の契約分を計上している場合に、その量を記載する。
B24: ⑭ | C24: 「チェックシート」にて、×がないことを確認。また、△項目について確認内容を記載 （×項目があっても、正当な理由がある場合はそれを記載すること）
B25: ⑮ | C25: 「表紙」シート右上部の「保存」ボタンを押下してファイルを保存し、電子メールにより供給計画案を提出する。なお、非電気事業者内訳表（非電気事業者から調達がある場合、1年度目の調達分を記載する表）も作成している場合は、併せて提出する。 供給計画案 提出先 初回提出時はメール件名の先頭に【提出_ ＋（※供計用 事業者コード_＋貴社名】と記載頂くようお願いします。 ※供計用 事業者コード＝表紙シートのＡＢ18セル メール件名の例：【提出_Ｄ○○○_貴社名】○○○○○・・・・・○○ | D25: ・ ・ | E25: 「保存」ボタンは、ファイル名称を自動付与するためのボタンであり、自動作成されるファイル名称は変更しないこと。 「保存」ボタンは、手順の途中の仕掛保存で使用することも可能。
C28: お問い合わせ先：
C29: ○初回お問い合わせ時はメール件名の先頭に【問合せ_ ＋（※供計用 事業者コード）＋_貴社名】と記載頂くようお願いします。 ※供計用 事業者コード＝表紙シートのＡＢ18セル
C30: メール件名の例：【問合せ_Ｄ○○○_貴社名】○○○○○・・・・・○○

Sheet チェックシート (hidden)
B1: 提出前に、下記チェックシートにて「×」がないことを確認すること。また、「△」については確認内容について記載すること。
B2: （「×」項目でも正当な理由がある場合はその内容を記載すること。例：前年度には事業を開始していない等、その旨を記載）
B3: なお、不整合箇所の詳細については、各帳票シートの印刷範囲外の右側に記載あり。
B5: シート名 | C5: 確認項目 | D5: チェック | E5: カテゴリ | F5: 内容 | G5: △or×の確認内容を記載
B6: 表紙 | C6: 表紙の記載 | D6: =表紙!$AC$26 -> × | F6: =IF(D6="×","住所・代表者名・供計用事業者コード・事業者コード・メールアドレスを記入ください。変更供計の場合は、変更の内容も記載ください。","") -> 住所・代表者名・供計用事業者コード・事業者コード・メールアドレスを記入ください。変更供計の場合は、変更の内容も記載ください。
B7: 受電取引帳票 | C7: 備考欄に種別が選択されているか | D7: =受電取引帳票!AZ12 -> ○ | F7: =IF(D7="×","備考欄にプルダウンより種別を選択してください。","") -> 
B8: 送電取引帳票 | C8: 備考欄に種別が選択されているか | D8: =送電取引帳票!AZ12 -> ○ | F8: =IF(D8="×","備考欄にプルダウンより種別を選択してください。","") -> 
B18: ●更新履歴
C19: 日付 | E19: バージョン | F19: 更新内容

Sheet 事業者リスト一覧
B1: 電力広域的運営推進機関
B2: 計画年度選択 | D2: 発電事業者 | G2: 一般送配電事業者 | J2: 小売電気事業者 | M2: 配電事業者 | P2: 特定卸供給事業者 | S2: 送電事業者 | V2: 特定送配電事業者 | Y2: 登録特定送配電事業者
B3: 2025
D4: H001 | E4: 北海道電力株式会社 | G4: I01 | H4: 北海道電力ネットワーク株式会社 | J4: K001 | K4: 北海道電力株式会社 | M4: D001 | P4: A001 | Q4: 株式会社エナリス | S4: S01 | T4: 電源開発送変電ネットワーク株式会社 | V4: TT01 | W4: 欠番 | Y4: TR01 | Z4: Ｄａｉｇａｓエナジー株式会社
B5: ライセンス区分 | D5: H002 | E5: 東北電力株式会社 | G5: I02 | H5: 東北電力ネットワーク株式会社 | J5: K002 | K5: 東北電力株式会社 | M5: D002 | P5: A002 | Q5: 株式会社タクマエナジー | S5: S02 | T5: 北海道北部風力送電株式会社 | V5: TT02 | W5: 欠番 | Y5: TR02 | Z5: ＪＦＥスチール株式会社
D6: H003 | E6: 東京電力ホールディングス株式会社 | G6: I03 | H6: 東京電力パワーグリッド株式会社 | J6: K003 | K6: 東京電力エナジーパートナー株式会社 | M6: D003 | P6: A003 | Q6: 欠番 | S6: S03 | T6: 福島送電株式会社 | V6: TT03 | W6: 欠番 | Y6: TR03 | Z6: 住友共同電力株式会社
B7: 一般送配電事業者 | D7: H004 | E7: 株式会社ＪＥＲＡ | G7: I04 | H7: 中部電力パワーグリッド株式会社 | J7: K004 | K7: 中部電力ミライズ株式会社 | M7: D004 | P7: A004 | Q7: オリックス株式会社 | S7: S04 | V7: TT04 | W7: 日本ファシリティ・ソリューション株式会社 | Y7: TR04 | Z7: 東日本旅客鉄道株式会社
B8: 配電事業者 | D8: H005 | E8: 東京電力パワーグリッド株式会社 | G8: I05 | H8: 北陸電力送配電株式会社 | J8: K005 | K8: 北陸電力株式会社 | M8: D005 | P8: A005 | Q8: パシフィックパワー株式会社 | S8: S05 | V8: TT05 | W8: 欠番 | Y8: TR05 | Z8: 六本木エネルギーサービス株式会社
B9: 発電事業者 | D9: H006 | E9: 中部電力株式会社 | G9: I06 | H9: 関西電力送配電株式会社 | J9: K006 | K9: 関西電力株式会社 | M9: D006 | P9: A006 | Q9: アズビル株式会社 | S9: S06 | V9: TT06 | W9: 欠番 | Y9: TR06 | Z9: 株式会社ＪＮＣパワー
B10: 特定卸供給事業者 | D10: H007 | E10: 北陸電力株式会社 | G10: I07 | H10: 中国電力ネットワーク株式会社 | J10: K007 | K10: 中国電力株式会社 | M10: D007 | P10: A007 | Q10: 東北電力株式会社 | S10: S07 | V10: TT07 | W10: 欠番 | Y10: TR07 | Z10: 王子製紙株式会社
B11: 小売電気事業者 | D11: H008 | E11: 関西電力株式会社 | G11: I08 | H11: 四国電力送配電株式会社 | J11: K008 | K11: 四国電力株式会社 | M11: D008 | P11: A008 | Q11: 大阪瓦斯株式会社 | S11: S08 | V11: TT08 | W11: 欠番 | Y11: TR08 | Z11: 株式会社グリーンサークル
B12: 登録特定送配電事業者 | D12: H009 | E12: 中国電力株式会社 | G12: I09 | H12: 九州電力送配電株式会社 | J12: K009 | K12: 九州電力株式会社 | M12: D009 | P12: A009 | Q12: 欠番 | S12: S09 | V12: TT09 | W12: 利久株式会社 | Y12: TR09 | Z12: 欠番
B13: 送電事業者 | D13: H010 | E13: 四国電力株式会社 | G13: I10 | H13: 沖縄電力株式会社 | J13: K010 | K13: 沖縄電力株式会社 | M13: D010 | P13: A010 | Q13: Ｇｏａｌ Ｃｏｎｎｅｃｔ株式会社 | S13: S10 | V13: TT10 | W13: 欠番 | Y13: TR10 | Z13: 欠番
B14: 特定送配電事業者 | D14: H011 | E14: 九州電力株式会社 | J14: K011 | K14: 欠番 | M14: D011 | P14: A011 | Q14: 株式会社グローバルエンジニアリング | S14: S11 | V14: TT11 | W14: 欠番 | Y14: TR11 | Z14: 株式会社フォレストパワー
B15: その他事業者 | D15: H012 | E15: 沖縄電力株式会社 | G15: その他事業者 | J15: K012 | K15: イーレックス株式会社 | M15: D012 | P15: A012 | Q15: 欠番 | S15: S12 | V15: TT12 | W15: ヤクデン商事株式会社 | Y15: TR12 | Z15: 宮崎パワーライン株式会社
D16: H013 | E16: 電源開発株式会社 | J16: K013 | K16: リエスパワー株式会社 | M16: D013 | P16: A013 | Q16: 九州電力株式会社 | S16: S13 | V16: TT13 | W16: 株式会社祥和コーポレーション | Y16: TR13 | Z16: 欠番
B17: エリア | D17: H014 | E17: 日本原子力発電株式会社 | G17: ST01 | H17: 風力 | J17: K014 | K17: エバーグリーン・リテイリング株式会社 | M17: D014 | P17: A014 | Q17: 電源開発株式会社 | S17: S14 | V17: TT14 | W17: 欠番 | Y17: TR14 | Z17: 丸紅株式会社
D18: H015 | E18: 日本テクノ株式会社 | G18: ST02 | H18: 太陽光（全量買取） | J18: K015 | K18: 欠番 | M18: D015 | P18: A015 | Q18: テス・エンジニアリング株式会社 | S18: S15 | V18: TT15 | W18: 欠番 | Y18: TR15 | Z18: イーレックス株式会社
B19: 北海道 | D19: H016 | E19: ＳＯＬＡＲ ＥＮＥＲＧＹ 真壁合同会社 | G19: ST03 | H19: 太陽光（余剰買取） | J19: K016 | K19: エバーグリーン・マーケティング株式会社 | M19: D016 | P19: A016 | Q19: アーバンエナジー株式会社 | S19: S16 | V19: TT16 | W19: 株式会社シーエナジー | Y19: TR16 | Z19: 一般社団法人東松島みらいとし機構
B20: 東北 | D20: H017 | E20: 大牟田リサイクル発電株式会社 | G20: ST04 | H20: 日本卸電力取引所（約定分） | J20: K017 | K20: 株式会社ＳＥウイングズ | M20: D017 | P20: A017 | Q20: ＭＣリテールエナジー株式会社 | S20: S17 | V20: TT17 | W20: 欠番 | Y20: TR17 | Z20: 森の電力株式会社
B21: 東京 | D21: H018 | E21: サミット明星パワー株式会社 | G21: ST05 | H21: 非電気事業者 | J21: K018 | K21: 株式会社イーセル | M21: D018 | P21: A018 | Q21: エネルエックス・ジャパン株式会社 | S21: S18 | V21: TT18 | W21: 欠番 | Y21: TR18 | Z21: 欠番
B22: 中部 | D22: H019 | E22: 欠番 | G22: ST06 | H22: 非電気事業者（10万kW以下事業者） | J22: K019 | K22: 株式会社エネット | M22: D019 | P22: A019 | Q22: 株式会社ＵＰＤＡＴＥＲ | S22: S19 | V22: TT19 | W22: 欠番 | Y22: TR19 | Z22: ジェーシーパワーサプライ株式会社
B23: 北陸 | D23: H020 | E23: 西つがる風力発電株式会社 | G23: ST07 | J23: K020 | K23: 欠番 | M23: D020 | P23: A020 | Q23: 東邦ガス株式会社 | S23: S20 | V23: TT20 | W23: 欠番 | Y23: TR20 | Z23: そうまＩグリッド合同会社
B24: 関西 | D24: H021 | E24: まほろば風力発電株式会社 | G24: ST08 | J24: K021 | K24: 須賀川瓦斯株式会社 | M24: D021 | P24: A021 | Q24: カスタマイズドエナジーソリューションズジャパン株式会社 | S24: S21 | V24: TT21 | W24: 欠番 | Y24: TR21 | Z24: 三井不動産ＴＧスマートエナジー株式会社
B25: 中国 | D25: H022 | E25: エイブルエナジー合同会社 | G25: ST09 | J25: K022 | K25: 出光興産株式会社 | M25: D022 | P25: A022 | Q25: 東京電力エナジーパートナー株式会社 | S25: S22 | V25: TT22 | Y25: TR22 | Z25: ＭＣＰＤ株式会社
B26: 四国 | D26: H023 | E26: 欠番 | G26: ST10 | J26: K023 | K26: 株式会社オプテージ | M26: D023 | P26: A023 | Q26: 北陸電力株式会社 | S26: S23 | V26: TT23 | Y26: TR23 | Z26: ひおき地域エネルギー株式会社
B27: 九州 | D27: H024 | E27: 株式会社ＩＨＩ原動機 | J27: K024 | K27: エネサーブ株式会社 | M27: D024 | P27: A024 | Q27: 三菱重工業株式会社 | S27: S24 | V27: TT24 | Y27: TR24 | Z27: パナソニックホームズ株式会社
B28: 沖縄 | D28: H025 | E28: 株式会社新中袖発電所 | J28: K025 | K28: 株式会社エネワンでんき | M28: D025 | P28: A025 | Q28: 北海道電力株式会社 | S28: S25 | V28: TT25 | Y28: TR25 | Z28: 株式会社タクマエナジー
D29: H026 | E29: 株式会社那須南エコファーム | J29: K026 | K29: ミツウロコグリーンエネルギー株式会社 | M29: D026 | P29: A026 | Q29: 四国電力株式会社 | S29: S26 | V29: TT26 | Y29: TR26 | Z29: デジタルグリッド株式会社
B30: チェック用 | D30: H027 | E30: 株式会社ＡＣエナジー | J30: K027 | K30: 株式会社リエネ | M30: D027 | P30: A027 | Q30: 中部電力ミライズ株式会社 | S30: S27 | V30: TT27 | Y30: TR27 | Z30: 欠番
D31: H028 | E31: 株式会社イースクエア | J31: K028 | K31: ネクストパワーやまと株式会社 | M31: D028 | P31: A028 | Q31: 東京瓦斯株式会社 | S31: S28 | V31: TT28 | Y31: TR28 | Z31: 虎ノ門エネルギーネットワーク株式会社
B32: 1 | D32: H029 | E32: 合同会社ノーバル・ソーラー | J32: K029 | K32: 日本テクノ株式会社 | M32: D029 | P32: A029 | Q32: 株式会社工営エナジー | S32: S29 | V32: TT29 | Y32: TR29 | Z32: 旭化成水力テクノサービス株式会社
D33: H030 | E33: 住友共同電力株式会社 | J33: K030 | K33: 中央電力エナジー株式会社 | M33: D030 | P33: A030 | Q33: ＮＴＴアノードエナジー株式会社 | S33: S30 | V33: TT30 | Y33: TR30 | Z33: 株式会社ウッドエナジー
B34: 提出区分 | D34: H031 | E34: 六本木エネルギーサービス株式会社 | J34: K031 | K34: 株式会社Ｌｏｏｏｐ | M34: D031 | P34: A031 | Q34: 欠番 | S34: S31 | V34: TT31 | Y34: TR31 | Z34: 真庭バイオエネルギー株式会社
B35: 新規 | D35: H032 | E35: 東日本旅客鉄道株式会社 | J35: K032 | K35: 欠番 | M35: D032 | P35: A032 | Q35: 東京電力ホールディングス株式会社 | S35: S32 | V35: TT32 | Y35: TR32 | Z35: 葛尾創生電力株式会社
B36: 変更1 | D36: H033 | E36: 鴨川みらいソーラー合同会社 | J36: K033 | K36: 欠番 | M36: D033 | P36: A033 | Q36: カナデビア株式会社 | S36: S33 | V36: TT33 | Y36: TR33 | Z36: 株式会社Ｌｏｏｏｐ
B37: 変更2 | D37: H034 | E37: 東北自然エネルギー株式会社 | J37: K034 | K37: 静岡ガス＆パワー株式会社 | M37: D034 | P37: A034 | Q37: 中国電力株式会社 | S37: S34 | V37: TT34 | Y37: TR34 | Z37: 株式会社ＦＰＳ
B38: 変更3 | D38: H035 | E38: 川崎市役所 | J38: K035 | K38: 荏原環境プラント株式会社 | M38: D035 | P38: A035 | Q38: デジタルグリッド株式会社 | S38: S35 | V38: TT35 | Y38: TR35 | Z38: 関西電力株式会社
B39: 変更4 | D39: H036 | E39: ＢＳＲＡ Ａｌｐｈａ１ 合同会社 | J39: K036 | K39: 東京エコサービス株式会社 | M39: D036 | P39: A036 | Q39: 伊藤忠商事株式会社 | S39: S36 | V39: TT36 | Y39: TR36 | Z39: 広島ガス株式会社
B40: 変更5 | D40: H037 | E40: 五井コーストエナジー株式会社 | J40: K037 | K40: ダイヤモンドパワー株式会社 | M40: D037 | P40: A037 | Q40: Ｇｒｅｅｎｅｓｔ Ｅｎｅｒｇｙ株式会社 | S40: S37 | V40: TT37 | Y40: TR37 | Z40: ウーブン・バイ・トヨタ株式会社
B41: 変更6 | D41: H038 | E41: 秋田県 | J41: K038 | K41: 欠番 | M41: D038 | P41: A038 | Q41: リニューアブル・ジャパン株式会社 | S41: S38 | V41: TT38 | Y41: TR38 | Z41: ＥＮＥＯＳ Ｐｏｗｅｒ株式会社
B42: 変更7 | D42: H039 | E42: 東埼玉資源環境組合 | J42: K039 | K42: 欠番 | M42: D039 | P42: A039 | Q42: Ｑ．ＥＮＥＳＴでんき株式会社 | S42: S39 | V42: TT39 | Y42: TR39 | Z42: 浦添分散型エネルギー株式会社
D43: H040 | E43: 頴娃風力発電株式会社 | J43: K040 | K43: 欠番 | M43: D040 | P43: A040 | Q43: カワサキグリーンエナジー株式会社 | S43: S40 | V43: TT40 | Y43: TR40 | Z43: 株式会社エヌディエス
B44: 種別 | D44: H041 | E44: パシフィコ・エナジー山形合同会社 | J44: K041 | K44: 株式会社新出光 | M44: D041 | P44: A041 | Q44: ＨＳＥ株式会社 | S44: S41 | V44: TT41 | Y44: TR41 | Z44: 三井不動産ＴＥＰＣＯエナジー株式会社
D45: H042 | E45: 三菱製紙株式会社 | J45: K042 | K45: セントラル石油瓦斯株式会社 | M45: D042 | P45: A042 | Q45: 株式会社再生可能エネルギー推進機構 | S45: S42 | V45: TT42 | Y45: TR42 | Z45: 相鉄クリーンエナジー株式会社
B46: 常時バックアップ | D46: H043 | E46: 欠番 | J46: K043 | K46: にちほクラウド電力株式会社 | M46: D043 | P46: A043 | Q46: ダイヤモンドパワー株式会社 | S46: S43 | V46: TT43 | Y46: TR43 | Z46: 大熊るるるん電力株式会社
B47: 水力 | D47: H044 | E47: 欠番 | J47: K044 | K47: 一般財団法人泉佐野電力 | M47: D044 | P47: A044 | Q47: イーレックス株式会社 | S47: S44 | V47: TT44 | Y47: TR44
B48: 火力 | D48: H045 | E48: 株式会社フジックス | J48: K045 | K48: コスモエネルギーソリューションズ株式会社 | M48: D045 | P48: A045 | Q48: 株式会社シムックスイニシアティブ | S48: S45 | V48: TT45 | Y48: TR45
B49: 原子力 | D49: H046 | E49: Ｄａｉｇａｓ大分みらいソーラー株式会社 | J49: K046 | K49: 株式会社グリーンサークル | M49: D046 | P49: A046 | Q49: 東芝エネルギーシステムズ株式会社 | S49: S46 | V49: TT46 | Y49: TR46
B50: 風力 | D50: H047 | E50: 京葉ガスエナジーソリューション株式会社 | J50: K047 | K50: 欠番 | M50: D047 | P50: A047 | Q50: ElectroRoute Japan株式会社 | S50: S47 | V50: TT47 | Y50: TR47
B51: 太陽光（全量） | D51: H048 | E51: 株式会社グリーンエナジー津 | J51: K048 | K51: 欠番 | M51: D048 | P51: A048 | Q51: 豊田通商株式会社 | S51: S48 | V51: TT48 | Y51: TR48
B52: 太陽光（余剰） | D52: H049 | E52: パシフィコ・エナジー細江合同会社 | J52: K049 | K52: 北海道瓦斯株式会社 | M52: D049 | P52: A049 | Q52: ENEOSリニューアブル・エナジー・ソリューションズ株式会社 | S52: S49 | V52: TT49 | Y52: TR49
B53: 地熱 | D53: H050 | E53: 九州おひさま発電株式会社 | J53: K050 | K53: アルカナエナジー株式会社 | M53: D050 | P53: A050 | Q53: ＵＮＩＶＥＲＧＹ株式会社 | S53: S50 | V53: TT50 | Y53: TR50
B54: バイオマス | D54: H051 | E54: 富山県企業局 | J54: K051 | K54: 株式会社エナジーバンクパートナーズ | M54: D051 | P54: A051 | Q54: 株式会社まち未来製作所 | S54: S51 | V54: TT51 | Y54: TR51
B55: 廃棄物 | D55: H052 | E55: 欠番 | J55: K052 | K55: 新エネルギー開発株式会社 | M55: D052 | P55: A052 | Q55: エナジープールジャパン株式会社 | S55: S52 | V55: TT52 | Y55: TR52
B56: その他（電源種別混同等） | D56: H053 | E56: 株式会社高田屋 | J56: K053 | K56: 伊藤忠エネクス株式会社 | M56: D053 | P56: A053 | Q56: Ｅ－Ｆｌｏｗ合同会社 | S56: S53 | V56: TT53 | Y56: TR53
B57: ネガワット | D57: H054 | E57: 住友大阪セメント株式会社 | J57: K054 | K57: 欠番 | M57: D054 | P57: A054 | Q57: ＧｒｉｄＢｅｙｏｎｄ合同会社 | S57: S54 | V57: TT54 | Y57: TR54
B58: 蓄電池 | D58: H055 | E58: 京都府電気事業 | J58: K055 | K58: 株式会社Ｖ－Ｐｏｗｅｒ | M58: D055 | P58: A055 | Q58: 丸紅新電力株式会社 | S58: S55 | V58: TT55 | Y58: TR55
B59: 水素 | D59: H056 | E59: 株式会社アサヒコーポレーション | J59: K056 | K59: 大和エネルギー株式会社 | M59: D056 | P59: A056 | Q59: ＲＥ１００電力株式会社 | S59: S56 | V59: TT56 | Y59: TR56
B60: アンモニア | D60: H057 | E60: パシフィコ・エナジー美作武蔵合同会社 | J60: K057 | K60: 欠番 | M60: D057 | P60: A057 | Q60: Ｖａｌｈａｌｌ合同会社 | S60: S57 | V60: TT57 | Y60: TR57
D61: H058 | E61: パシフィコ・エナジー久米南合同会社 | J61: K058 | K61: 大阪瓦斯株式会社 | M61: D058 | P61: A058 | Q61: 株式会社ユーラスグリーンエナジー | S61: S58 | V61: TT58 | Y61: TR58
B62: 桁数設定 | D62: H059 | E62: サミット美浜パワー株式会社 | J62: K059 | K62: エフビットコミュニケーションズ株式会社 | M62: D059 | P62: A059 | Q62: ハイパワー合同会社 | S62: S59 | V62: TT59 | Y62: TR59
B63: 1 | D63: H060 | E63: 金沢エナジー株式会社 | J63: K060 | K63: 欠番 | M63: D060 | P63: A060 | Q63: 株式会社Ｓｈｉｚｅｎ Ｃｏｎｎｅｃｔ | S63: S60 | V63: TT60 | Y63: TR60
D64: H061 | E64: 鹿児島メガソーラー発電株式会社 | J64: K061 | K64: 真庭バイオエネルギー株式会社 | M64: D061 | P64: A061 | Q64: 株式会社サンヴィレッジ | S64: S61 | V64: TT61 | Y64: TR61
B65: 桁数設定（新エネ供給力） | D65: H062 | E65: 出光興産株式会社 | J65: K062 | K65: 三井物産株式会社 | M65: D062 | P65: A062 | Q65: しろくま電力株式会社 | S65: S62 | V65: TT62 | Y65: TR62
B66: 1 | D66: H063 | E66: ＭＩＲＡＲＴＨホールディングス株式会社 | J66: K063 | K66: オリックス株式会社 | M66: D063 | P66: A063 | Q66: ミツウロコグリーンエネルギー株式会社 | S66: S63 | V66: TT63 | Y66: TR63
D67: H064 | E67: 株式会社レスター | J67: K064 | K67: 株式会社エネサンス関東 | M67: D064 | P67: A064 | Q67: 欠番 | S67: S64 | V67: TT64 | Y67: TR64
D68: H065 | E68: サミット小名浜エスパワー株式会社 | J68: K065 | K68: 株式会社ＵＰＤＡＴＥＲ | M68: D065 | P68: A065 | Q68: オムロンソーシアルソリューションズ株式会社 | S68: S65 | V68: TT65 | Y68: TR65
D69: H066 | E69: 徳島県企業局 | J69: K066 | K69: シン・エナジー株式会社 | M69: D066 | P69: A066 | Q69: Ｓｅｃｏｎｄ Ｆｏｕｎｄａｔｉｏｎ Ｊａｐａｎ合同会社 | S69: S66 | V69: TT66 | Y69: TR66
D70: H067 | E70: 欠番 | J70: K067 | K70: 株式会社サニックス | M70: D067 | P70: A067 | Q70: 日鉄エンジニアリング株式会社 | S70: S67 | V70: TT67 | Y70: TR67
D71: H068 | E71: 高知県公営企業局 | J71: K068 | K71: 株式会社コンシェルジュ | M71: D068 | P71: A068 | Q71: 京セラ株式会社 | S71: S68 | V71: TT68 | Y71: TR68
D72: H069 | E72: 王子マテリア株式会社 | J72: K069 | K72: 欠番 | M72: D069 | P72: A069 | Q72: 出光興産株式会社 | S72: S69 | V72: TT69 | Y72: TR69
D73: H070 | E73: 沖縄新エネ開発株式会社 | J73: K070 | K73: 株式会社アイ・グリッド・ソリューションズ | M73: D070 | P73: A070 | Q73: オムロンフィールドエンジニアリング株式会社 | S73: S70 | V73: TT70 | Y73: TR70
D74: H071 | E74: 株式会社福岡クリーンエナジー | J74: K071 | K74: サミットエナジー株式会社 | M74: D071 | P74: A071 | Q74: 株式会社大崎クリエーション | S74: S71 | V74: TT71 | Y74: TR71
D75: H072 | E75: 株式会社関電工 | J75: K072 | K75: リコージャパン株式会社 | M75: D072 | P75: A072 | Q75: 株式会社ＩＱｇ | S75: S72 | V75: TT72 | Y75: TR72
D76: H073 | E76: 丸住製紙株式会社 | J76: K073 | K76: 株式会社エネルギア・ソリューション・アンド・サービス | M76: D073 | P76: A073 | Q76: ＥＮＥＯＳ Ｐｏｗｅｒ株式会社 | S76: S73 | V76: TT73 | Y76: TR73
D77: H074 | E77: 長野県企業局 | J77: K074 | K77: 東京ガス株式会社 | M77: D074 | P77: A074 | Q77: ａｕエネルギー＆ライフ株式会社 | S77: S74 | V77: TT74 | Y77: TR74
D78: H075 | E78: 白馬ウインドファーム株式会社 | J78: K075 | K78: テス・エンジニアリング株式会社 | M78: D075 | P78: A075 | Q78: 株式会社ＪＥＲＡ Ｃｒｏｓｓ | S78: S75 | V78: TT75 | Y78: TR75
D79: H076 | E79: 白滝山ウインドファーム株式会社 | J79: K076 | K79: 青梅ガス株式会社 | M79: D076 | P79: A076 | Q79: 株式会社パワーエックス | S79: S76 | V79: TT76 | Y79: TR76
D80: H077 | E80: 合同会社バイテック・漁火館滝沢市メガソーラー | J80: K077 | K80: 株式会社イーネットワークシステムズ | M80: D077 | P80: A077 | Q80: ＮＥｘＴーｅ Ｓｏｌｕｔｉｏｎｓ株式会社 | S80: S77 | V80: TT77 | Y80: TR77
D81: H078 | E81: 鈴川エネルギーセンター株式会社 | J81: K078 | K81: 株式会社エネアーク関東 | M81: D078 | P81: A078 | Q81: 株式会社Ｓｕｓｔｅｃｈ | S81: S78 | V81: TT78 | Y81: TR78
D82: H079 | E82: カナデビア株式会社 | J82: K079 | K82: 株式会社東急パワーサプライ | M82: D079 | P82: A079 | Q82: 株式会社Ｑｖｏｕ | S82: S79 | V82: TT79 | Y82: TR79
D83: H080 | E83: 江津ウィンドパワー株式会社 | J83: K080 | K83: 王子・伊藤忠エネクス電力販売株式会社 | M83: D080 | P83: A080 | Q83: ゼロワットパワー株式会社 | S83: S80 | V83: TT80 | Y83: TR80
D84: H081 | E84: 株式会社野田バイオパワーＪＰ | J84: K081 | K84: 伊藤忠商事株式会社 | M84: D081 | P84: A081 | Q84: 株式会社ヒュージモリ商事 | S84: S81 | V84: TT81 | Y84: TR81
D85: H082 | E85: 株式会社南九 | J85: K082 | K85: 株式会社エコスタイル | M85: D082 | P85: A082 | Q85: 株式会社東急パワーサプライ | S85: S82 | V85: TT82 | Y85: TR82
D86: H083 | E86: 株式会社ＳＪソーラーつくば | J86: K083 | K86: 入間ガス株式会社 | M86: D083 | P86: A083 | Q86: エンジー・エナジー・マーケティング・ジャパン株式会社 | S86: S83 | V86: TT83 | Y86: TR83
D87: H084 | E87: 中国木材株式会社 | J87: K084 | K87: テプコカスタマーサービス株式会社 | M87: D084 | P87: A084 | Q87: 株式会社グリーンパワー大東 | S87: S84 | V87: TT84 | Y87: TR84
D88: H085 | E88: 北越コーポレーション株式会社 | J88: K085 | K88: 株式会社とんでんホールディングス | M88: D085 | P88: A085 | Q88: 株式会社Ｌｏｏｏｐ | S88: S85 | V88: TT85 | Y88: TR85
D89: H086 | E89: ほくでんエコエナジー株式会社 | J89: K086 | K89: 日鉄エンジニアリング株式会社 | M89: D086 | P89: A086 | Q89: Ｏｐｅｎ Ｑｕａｎｔ株式会社 | S89: S86 | V89: TT86 | Y89: TR86
D90: H087 | E90: 欠番 | J90: K087 | K90: ａｕエネルギー＆ライフ株式会社 | M90: D087 | P90: A087 | Q90: 株式会社ＦＰＳ | S90: S87 | V90: TT87 | Y90: TR87
D91: H088 | E91: 大分県企業局 | J91: K088 | K91: 欠番 | M91: D088 | P91: A088 | Q91: 株式会社アイ・グリッド・ソリューションズ | S91: S88 | V91: TT88 | Y91: TR88
D92: H089 | E92: 多可町安田郷メガソーラ―発電合同会社 | J92: K089 | K92: イワタニ関東株式会社 | M92: D089 | P92: A089 | Q92: エフィシエント株式会社 | S92: S89 | V92: TT89 | Y92: TR89
D93: H090 | E93: 長崎ソーラーエナジー合同会社 | J93: K090 | K93: イワタニ首都圏株式会社 | M93: D090 | P93: A090 | Q93: 株式会社クリーンエナジーコネクト | S93: S90 | V93: TT90 | Y93: TR90
D94: H091 | E94: ＪＦＥソーラーパワー株式会社 | J94: K091 | K94: サーラｅエナジー株式会社 | M94: D091 | P94: A091 | Q94: 東京センチュリー株式会社 | S94: S91 | V94: TT91 | Y94: TR91
D95: H092 | E95: 株式会社カネカ | J95: K092 | K95: 株式会社地球クラブ | M95: D092 | P95: A092 | Q95: エクセルギー・パワー・システムズ株式会社 | S95: S92 | V95: TT92 | Y95: TR92
D96: H093 | E96: 親和開発株式会社 | J96: K093 | K96: 株式会社エコア | M96: D093 | P96: A093 | S96: S93 | V96: TT93 | Y96: TR93
D97: H094 | E97: 株式会社エナリス | J97: K094 | K97: 西部瓦斯株式会社 | M97: D094 | P97: A094 | S97: S94 | V97: TT94 | Y97: TR94
D98: H095 | E98: ＪＦＥスチール株式会社 | J98: K095 | K98: 東邦ガス株式会社 | M98: D095 | P98: A095 | S98: S95 | V98: TT95 | Y98: TR95
D99: H096 | E99: 酒田共同火力発電株式会社 | J99: K096 | K99: シナネン株式会社 | M99: D096 | P99: A096 | S99: S96 | V99: TT96 | Y99: TR96
D100: H097 | E100: 岩手県企業局 | J100: K097 | K100: 欠番 | M100: D097 | P100: A097 | S100: S97 | V100: TT97 | Y100: TR97
D101: H098 | E101: 新潟県企業局 | J101: K098 | K101: カワサキグリーンエナジー株式会社 | M101: D098 | P101: A098 | S101: S98 | V101: TT98 | Y101: TR98
D102: H099 | E102: 仙台市 | J102: K099 | K102: 大一ガス株式会社 | M102: D099 | P102: A099 | S102: S99 | V102: TT99 | Y102: TR99
D103: H100 | E103: 愛媛県公営企業管理局 | J103: K100 | K103: 株式会社リミックスポイント | M103: D100 | P103: A100 | S103: S100 | V103: TT100 | Y103: TR100
D104: H101 | E104: 株式会社グリーンパワー浜田 | J104: K101 | K104: 大阪いずみ市民生活協同組合 | M104: D101 | P104: A101
D105: H102 | E105: 三菱重工業株式会社 | J105: K102 | K105: 株式会社中海テレビ放送 | M105: D102 | P105: A102
D106: H103 | E106: 欠番 | J106: K103 | K106: パシフィックパワー株式会社 | M106: D103 | P106: A103
D107: H104 | E107: ユナイテッドリニューアブルエナジー株式会社 | J107: K104 | K107: 欠番 | M107: D104 | P107: A104
D108: H105 | E108: 合同会社茂原ソーラーパーク | J108: K105 | K108: 欠番 | M108: D105 | P108: A105
D109: H106 | E109: 欠番 | J109: K106 | K109: 欠番 | M109: D106 | P109: A106
D110: H107 | E110: 紋別バイオマス発電株式会社 | J110: K107 | K110: 欠番 | M110: D107 | P110: A107
D111: H108 | E111: 市原グリーン電力株式会社 | J111: K108 | K111: 株式会社ジェイコムウエスト | M111: D108 | P111: A108
D112: H109 | E112: プロロジス・グリーン有限会社 | J112: K109 | K112: 欠番 | M112: D109 | P112: A109
D113: H110 | E113: 欠番 | J113: K110 | K113: 欠番 | M113: D110 | P113: A110
D114: H111 | E114: 合同会社新潟島見ソーラーパーク | J114: K111 | K114: 欠番 | M114: D111 | P114: A111
D115: H112 | E115: 戸畑共同火力株式会社 | J115: K112 | K115: 欠番 | M115: D112 | P115: A112
D116: H113 | E116: 日本軽金属株式会社 | J116: K113 | K116: 株式会社ジェイコム埼玉・東日本 | M116: D113 | P116: A113
D117: H114 | E117: 欠番 | J117: K114 | K117: 株式会社ジェイコム札幌 | M117: D114 | P117: A114
D118: H115 | E118: 川崎バイオマス発電株式会社 | J118: K115 | K118: 株式会社ジェイコム湘南・神奈川 | M118: D115 | P118: A115
D119: H116 | E119: 常磐共同火力株式会社 | J119: K116 | K119: 欠番 | M119: D116 | P119: A116
D120: H117 | E120: 合同会社DMM.com | J120: K117 | K120: 株式会社ジェイコム千葉 | M120: D117 | P120: A117
D121: H118 | E121: 堺市 | J121: K118 | K121: 欠番 | M121: D118 | P121: A118
D122: H119 | E122: 大阪瓦斯株式会社 | J122: K119 | K122: 欠番 | M122: D119 | P122: A119
D123: H120 | E123: 株式会社ヨンコーソーラー | J123: K120 | K123: 株式会社ジェイコム東京 | M123: D120 | P123: A120
D124: H121 | E124: 相馬共同火力発電株式会社 | J124: K121 | K124: 欠番 | M124: D121 | P124: A121
D125: H122 | E125: 福岡都市圏南部環境事業組合 | J125: K122 | K125: 欠番 | M125: D122 | P125: A122
D126: H123 | E126: 株式会社チョープロ | J126: K123 | K126: 欠番 | M126: D123 | P126: A123
D127: H124 | E127: エネ・シードひびき株式会社 | J127: K124 | K127: 欠番 | M127: D124 | P127: A124
D128: H125 | E128: 欠番 | J128: K125 | K128: 欠番 | M128: D125 | P128: A125
D129: H126 | E129: ＥＮＥＯＳ株式会社 | J129: K126 | K129: 欠番 | M129: D126 | P129: A126
D130: H127 | E130: 大分共同火力株式会社 | J130: K127 | K130: 欠番 | M130: D127 | P130: A127
D131: H128 | E131: 欠番 | J131: K128 | K131: 欠番 | M131: D128 | P131: A128
D132: H129 | E132: 御船ホールディングス株式会社 | J132: K129 | K132: 土浦ケーブルテレビ株式会社 | M132: D129 | P132: A129
D133: H130 | E133: 幌延風力発電株式会社 | J133: K130 | K133: 鹿児島電力株式会社 | M133: D130 | P133: A130
D134: H131 | E134: 三交不動産株式会社 | J134: K131 | K134: 太陽ガス株式会社 | M134: D131 | P134: A131
D135: H132 | E135: 東京発電株式会社 | J135: K132 | K135: アーバンエナジー株式会社 | M135: D132 | P135: A132
D136: H133 | E136: 株式会社エフビット横須賀パワー | J136: K133 | K136: パワーネクスト株式会社 | M136: D133 | P136: A133
D137: H134 | E137: 有限責任事業組合テックエナジー | J137: K134 | K137: 合同会社北上新電力 | M137: D134 | P137: A134
D138: H135 | E138: 王子グリーンエナジー日南株式会社 | J138: K135 | K138: 欠番 | M138: D135 | P138: A135
D139: H136 | E139: 王子グリーンエナジー江別株式会社 | J139: K136 | K139: 株式会社タクマエナジー | M139: D136 | P139: A136
D140: H137 | E140: サミット酒田パワー株式会社 | J140: K137 | K140: 株式会社スマートテック | M140: D137 | P140: A137
D141: H138 | E141: 株式会社神戸物産 | J141: K138 | K141: 水戸電力株式会社 | M141: D138 | P141: A138
D142: H139 | E142: 合同会社グリーンパワー富津 | J142: K139 | K142: 欠番 | M142: D139 | P142: A139
D143: H140 | E143: 合同会社大月ウィンドパワー | J143: K140 | K143: 丸紅新電力株式会社 | M143: D140 | P143: A140
D144: H141 | E144: 三崎ウィンド・パワー株式会社 | J144: K141 | K144: 欠番 | M144: D141 | P144: A141
D145: H142 | E145: ジャパンメガソーラー合同会社 | J145: K142 | K145: 欠番 | M145: D142 | P145: A142
D146: H143 | E146: 山梨県企業局 | J146: K143 | K146: 奈良電力株式会社 | M146: D143 | P146: A143
D147: H144 | E147: 黒部川電力株式会社 | J147: K144 | K147: カナデビア株式会社 | M147: D144 | P147: A144
D148: H145 | E148: ＪＮＣ株式会社 | J148: K145 | K148: 大東ガス株式会社 | M148: D145 | P148: A145
D149: H146 | E149: 株式会社エコパワーＪＰ | J149: K146 | K149: パナソニックオペレーショナルエクセレンス株式会社 | M149: D146 | P149: A146
D150: H147 | E150: 王子製紙株式会社 | J150: K147 | K150: アストモスエネルギー株式会社 | M150: D147 | P150: A147
D151: H148 | E151: 株式会社共栄エナジー | J151: K148 | K151: 株式会社関電エネルギーソリューション | M151: D148 | P151: A148
D152: H149 | E152: 神奈川電力株式会社 | J152: K149 | K152: マッコーリーエナジージャパン株式会社 | M152: D149 | P152: A149
D153: H150 | E153: ユーエスパワー株式会社 | J153: K150 | K153: ＭＣリテールエナジー株式会社 | M153: D150 | P153: A150
D154: H151 | E154: 合同会社ＢＨ志生木 | J154: K151 | K154: 株式会社北九州パワー | M154: D151 | P154: A151
D155: H152 | E155: 株式会社サニックスエナジー | J155: K152 | K155: 武州瓦斯株式会社 | M155: D152 | P155: A152
D156: H153 | E156: 株式会社レゾナック | J156: K153 | K156: リニューアブル・ジャパン株式会社 | M156: D153 | P156: A153
D157: H154 | E157: 山口県企業局 | J157: K154 | K157: 大垣ガス株式会社 | M157: D154 | P157: A154
D158: H155 | E158: サミットウインドパワー株式会社 | J158: K155 | K158: 株式会社藤田商店 | M158: D155 | P158: A155
D159: H156 | E159: グリーンパワーつがる合同会社 | J159: K156 | K159: 株式会社ケーブルネット下関 | M159: D156 | P159: A156
D160: H157 | E160: 北海道パワーエンジニアリング株式会社 | J160: K157 | K160: 株式会社ジェイコム九州 | M160: D157 | P160: A157
D161: H158 | E161: 男鹿風力発電株式会社 | J161: K158 | K161: 欠番 | M161: D158 | P161: A158
D162: H159 | E162: 市原パワー株式会社 | J162: K159 | K162: 株式会社グローバルエンジニアリング | M162: D159 | P162: A159
D163: H160 | E163: 泉北天然ガス発電株式会社 | J163: K160 | K163: 九州エナジー株式会社 | M163: D160 | P163: A160
D164: H161 | E164: 鳥取県 | J164: K161 | K164: 株式会社トヨタエナジーソリューションズ | M164: D161 | P164: A161
D165: H162 | E165: 富山地区広域圏事務組合 | J165: K162 | K165: 欠番 | M165: D162 | P165: A162
D166: H163 | E166: 株式会社シーテック | J166: K163 | K166: 株式会社エナリス・パワー・マーケティング | M166: D163 | P166: A163
D167: H164 | E167: 株式会社シグマパワー有明 | J167: K164 | K167: 歌舞伎エナジー株式会社 | M167: D164 | P167: A164
D168: H165 | E168: コスモエコパワー株式会社 | J168: K165 | K168: みやまスマートエネルギー株式会社 | M168: D165 | P168: A165
D169: H166 | E169: 神奈川県企業庁 | J169: K166 | K169: エフィシエント株式会社 | M169: D166 | P169: A166
D170: H167 | E170: コスモ石油株式会社 | J170: K167 | K170: 株式会社生活クラブエナジー | M170: D167 | P170: A167
D171: H168 | E171: 北陸パワーステーション株式会社 | J171: K168 | K171: 生活協同組合コープこうべ | M171: D168 | P171: A168
D172: H169 | E172: 九電みらいエナジー株式会社 | J172: K169 | K172: 株式会社シーエナジー | M172: D169 | P172: A169
D173: H170 | E173: 静岡ガス＆パワー株式会社 | J173: K170 | K173: 角栄ガス株式会社 | M173: D170 | P173: A170
D174: H171 | E174: 島根県企業局 | J174: K171 | K174: 京葉瓦斯株式会社 | M174: D171 | P174: A171
D175: H172 | E175: 熊本県企業局 | J175: K172 | K175: ＴＯＰＰＡＮホールディングス株式会社 | M175: D172 | P175: A172
D176: H173 | E176: 欠番 | J176: K173 | K176: 伊勢崎ガス株式会社 | M176: D173 | P176: A173
D177: H174 | E177: 欠番 | J177: K174 | K177: キヤノンマーケティングジャパン株式会社 | M177: D174 | P177: A174
D178: H175 | E178: 株式会社淡路貴船太陽光発電所 | J178: K175 | K178: 株式会社とっとり市民電力 | M178: D175 | P178: A175
D179: H176 | E179: 株式会社トーエネック | J179: K176 | K179: 欠番 | M179: D176 | P179: A176
D180: H177 | E180: 山形県企業局 | J180: K177 | K180: 佐野瓦斯株式会社 | M180: D177 | P180: A177
D181: H178 | E181: 欠番 | J181: K178 | K181: 桐生瓦斯株式会社 | M181: D178 | P181: A178
D182: H179 | E182: 株式会社青山高原ウインドファーム | J182: K179 | K182: 森の電力株式会社 | M182: D179 | P182: A179
D183: H180 | E183: 楢葉新電力合同会社 | J183: K180 | K183: 大和ハウス工業株式会社 | M183: D180 | P183: A180
D184: H181 | E184: 合同会社大津ソーラー | J184: K181 | K184: 欠番 | M184: D181 | P184: A181
D185: H182 | E185: 鷲尾岳風力発電株式会社 | J185: K182 | K185: ＨＴＢエナジー株式会社 | M185: D182 | P185: A182
D186: H183 | E186: 大阪広域環境施設組合 | J186: K183 | K186: 株式会社アシストワンエナジー | M186: D183 | P186: A183
D187: H184 | E187: 欠番 | J187: K184 | K187: 欠番 | M187: D184 | P187: A184
D188: H185 | E188: 東京二十三区清掃一部事務組合 | J188: K185 | K188: 株式会社フソウ・エナジー | M188: D185 | P188: A185
D189: H186 | E189: 日本太陽光発電２０１３合同会社 | J189: K186 | K189: 株式会社日本エコシステム | M189: D186 | P189: A186
D190: H187 | E190: 日本太陽光発電２０１４合同会社 | J190: K187 | K190: 湘南電力株式会社 | M190: D187 | P190: A187
D191: H188 | E191: 合同会社クリスタル・クリア・ソーラー | J191: K188 | K191: 大東建託パートナーズ株式会社 | M191: D188 | P191: A188
D192: H189 | E192: 欠番 | J192: K189 | K192: Ｊａｐａｎ電力株式会社 | M192: D189 | P192: A189
D193: H190 | E193: 石狩バイオエナジー合同会社 | J193: K190 | K193: 電源開発株式会社 | M193: D190 | P193: A190
D194: H191 | E194: 日本再生可能エネルギー株式会社 | J194: K191 | K194: 鈴与商事株式会社 | M194: D191 | P194: A191
D195: H192 | E195: 株式会社広川明神山風力発電所 | J195: K192 | K195: 欠番 | M195: D192 | P195: A192
D196: H193 | E196: 株式会社葉山風力発電所 | J196: K193 | K196: 欠番 | M196: D193 | P196: A193
D197: H194 | E197: 肥前風力発電株式会社 | J197: K194 | K197: ワタミエナジー株式会社 | M197: D194 | P197: A194
D198: H195 | E198: エルエムサンパワー株式会社 | J198: K195 | K198: 株式会社パルシステム電力 | M198: D195 | P198: A195
D199: H196 | E199: 日本海発電株式会社 | J199: K196 | K199: ＳＢパワー株式会社 | M199: D196 | P199: A196
D200: H197 | E200: シグマパワージャネックス株式会社 | J200: K197 | K200: ＮＦパワーサービス株式会社 | M200: D197 | P200: A197
... 1803 more rows

Sheet シート保護解除事業者リスト (hidden)
A1: ●一般送配電事業者+旧一般電気事業者 | E1: ●シート保護設定
A2: 供計用事業者コード | B2: 事業者名 | C2: 区分 | E2: フォーマット | G2: 一般送配電事業者用 | I2: 一般送配電事業者用はシート保護解除版のみ作成
A3: 対象なし | B3: 対象なし | C3: ― | E3: NO | F3: シート一覧 | G3: シート表示/非表示 | H3: シートの保護 | R3: ●シート保護設定パターン
I4: セルの書式設定 | J4: 列の書式設定 | K4: 行の書式設定 | L4: 列の挿入 | M4: 行の挿入 | N4: 列の削除 | O4: 行の削除 | P4: 設定パターン （オブジェクトの編集DrawingObjectsについてはすべて編集可=False） | R4: セルの書式設定 | S4: 列の書式設定 | T4: 行の書式設定 | U4: 列の挿入 | V4: 行の挿入 | W4: 列の削除 | X4: 行の削除
G6: xlSheetVisible | H6: Protect | I6: AllowFormattingCells | J6: AllowFormattingColumns | K6: AllowFormattingRows | L6: AllowInsertingColumns | M6: AllowInsertingRows | N6: AllowDeletingColumns | O6: AllowDeletingRows | R6: AllowFormattingCells | S6: AllowFormattingColumns | T6: AllowFormattingRows | U6: AllowInsertingColumns | V6: AllowInsertingRows | W6: AllowDeletingColumns | X6: AllowDeletingRows
E8: 1 | F8: 作成手順 | G8: － | P8: =IF(ISERROR(VLOOKUP(I8&J8&K8&L8&M8&N8&O8,$Y$8:$Z$15,2,FALSE)),"",VLOOKUP(I8&J8&K8&L8&M8&N8&O8,$Y$8:$Z$15,2,FALSE)) ->  | R8: False | S8: False | T8: False | U8: False | V8: False | W8: False | X8: False | Y8: =R8&S8&T8&U8&V8&W8&X8 -> FalseFalseFalseFalseFalseFalseFalse | Z8: 全て不可
E9: 2 | F9: チェックシート | G9: － | P9: =IF(ISERROR(VLOOKUP(I9&J9&K9&L9&M9&N9&O9,$Y$8:$Z$15,2,FALSE)),"",VLOOKUP(I9&J9&K9&L9&M9&N9&O9,$Y$8:$Z$15,2,FALSE)) ->  | R9: True | S9: False | T9: False | U9: False | V9: False | W9: False | X9: False | Y9: TrueFalseFalseFalseFalseFalseFalse | Z9: 行高さ、列幅変更不可
E10: 3 | F10: 事業者リスト一覧 | G10: xlSheetVisible | H10: True | I10: True | J10: False | K10: False | L10: False | M10: False | N10: False | O10: False | P10: 行高さ、列幅変更不可 | R10: True | S10: False | T10: False | U10: False | V10: True | W10: False | X10: True | Y10: TrueFalseFalseFalseTrueFalseTrue | Z10: 行挿入、削除可
E11: 4 | F11: シート保護解除事業者リスト | G11: xlSheetHidden | H11: True | I11: True | J11: True | K11: True | L11: True | M11: True | N11: True | O11: True | P11: 全て可 | R11: True | S11: False | T11: True | U11: False | V11: False | W11: False | X11: False | Y11: TrueFalseTrueFalseFalseFalseFalse | Z11: 行書式設定可
E12: 5 | F12: 帳票表示切替 | G12: xlSheetVisible | H12: True | I12: False | J12: False | K12: False | L12: False | M12: False | N12: False | O12: False | P12: 全て不可 | R12: True | S12: False | T12: True | U12: False | V12: True | W12: False | X12: True | Y12: TrueFalseTrueFalseTrueFalseTrue | Z12: 行挿入、削除可、書式設定可
E13: 6 | F13: エリア表示切替 | G13: xlSheetVisible | H13: True | I13: False | J13: False | K13: False | L13: False | M13: False | N13: False | O13: False | P13: 全て不可 | R13: True | S13: True | T13: True | U13: False | V13: False | W13: False | X13: False | Y13: TrueTrueTrueFalseFalseFalseFalse | Z13: 行、列書式設定可
E14: 7 | F14: 入力支援シート→ | G14: xlSheetVisible | H14: True | I14: False | J14: False | K14: False | L14: False | M14: False | N14: False | O14: False | P14: 全て不可 | R14: True | S14: True | T14: True | U14: False | V14: True | W14: False | X14: True | Y14: TrueTrueTrueFalseTrueFalseTrue | Z14: 行挿入、削除可、行列書式設定可
E15: 8 | F15: ①風力 | G15: xlSheetVisible | H15: True | I15: True | J15: False | K15: False | L15: False | M15: False | N15: False | O15: False | P15: =IF(ISERROR(VLOOKUP(I15&J15&K15&L15&M15&N15&O15,$Y$8:$Z$15,2,FALSE)),"",VLOOKUP(I15&J15&K15&L15&M15&N15&O15,$Y$8:$Z$15,2,FALSE)) -> 行高さ、列幅変更不可 | R15: True | S15: True | T15: True | U15: True | V15: True | W15: True | X15: True | Y15: TrueTrueTrueTrueTrueTrueTrue | Z15: 全て可
E16: 9 | F16: ②太陽光（全量） | G16: xlSheetVisible | H16: True | I16: True | J16: False | K16: False | L16: False | M16: False | N16: False | O16: False | P16: 行高さ、列幅変更不可
E17: 10 | F17: ③太陽光（余剰） | G17: xlSheetVisible | H17: True | I17: True | J17: False | K17: False | L17: False | M17: False | N17: False | O17: False | P17: 行高さ、列幅変更不可
E18: 11 | F18: 風力 | G18: － | H18: True | I18: True | J18: False | K18: False | L18: False | M18: False | N18: False | O18: False | P18: 行高さ、列幅変更不可
E19: 12 | F19: 太陽光（全量） | G19: － | H19: True | I19: True | J19: False | K19: False | L19: False | M19: False | N19: False | O19: False | P19: 行高さ、列幅変更不可
E20: 13 | F20: 太陽光（余剰） | G20: － | H20: True | I20: True | J20: False | K20: False | L20: False | M20: False | N20: False | O20: False | P20: 行高さ、列幅変更不可
E21: 14 | F21: 水力保有電源 | G21: xlSheetHidden | H21: True | I21: True | J21: False | K21: False | L21: False | M21: False | N21: False | O21: False | P21: 行高さ、列幅変更不可
E22: 15 | F22: 自流式 | G22: －
E23: 16 | F23: 揚水 | G23: －
E24: 17 | F24: 調整係数 | G24: －
E25: 18 | F25: 火力保有電源 | G25: xlSheetHidden | H25: True | I25: True | J25: False | K25: False | L25: False | M25: False | N25: False | O25: False | P25: =IF(ISERROR(VLOOKUP(I25&J25&K25&L25&M25&N25&O25,$Y$8:$Z$15,2,FALSE)),"",VLOOKUP(I25&J25&K25&L25&M25&N25&O25,$Y$8:$Z$15,2,FALSE)) -> 行高さ、列幅変更不可
E26: 19 | F26: 原子力保有電源 | G26: xlSheetHidden | H26: True | I26: True | J26: False | K26: False | L26: False | M26: False | N26: False | O26: False | P26: =IF(ISERROR(VLOOKUP(I26&J26&K26&L26&M26&N26&O26,$Y$8:$Z$15,2,FALSE)),"",VLOOKUP(I26&J26&K26&L26&M26&N26&O26,$Y$8:$Z$15,2,FALSE)) -> 行高さ、列幅変更不可
E27: 20 | F27: 新エネルギー等保有電源 | G27: xlSheetHidden | H27: True | I27: True | J27: False | K27: False | L27: False | M27: False | N27: False | O27: False | P27: 行高さ、列幅変更不可
E28: 21 | F28: 蓄電池 | G28: －
E29: 22 | F29: 調整力 | G29: －
E30: 23 | F30: 保有電源 | G30: xlSheetHidden | H30: True | I30: True | J30: False | K30: False | L30: False | M30: False | N30: False | O30: False | P30: 行高さ、列幅変更不可
E31: 24 | F31: 保有電源電力量 | G31: xlSheetHidden | H31: True | I31: True | J31: False | K31: False | L31: False | M31: False | N31: False | O31: False | P31: 行高さ、列幅変更不可
E32: 25 | F32: 受電取引帳票 | G32: xlSheetVisible | H32: False | I32: False | J32: False | K32: False | L32: False | M32: False | N32: False | O32: False | P32: =IF(ISERROR(VLOOKUP(I32&J32&K32&L32&M32&N32&O32,$Y$8:$Z$15,2,FALSE)),"",VLOOKUP(I32&J32&K32&L32&M32&N32&O32,$Y$8:$Z$15,2,FALSE)) -> 全て不可
E33: 26 | F33: 送電取引帳票 | G33: xlSheetVisible | H33: False | I33: False | J33: False | K33: False | L33: False | M33: False | N33: False | O33: False | P33: =IF(ISERROR(VLOOKUP(I33&J33&K33&L33&M33&N33&O33,$Y$8:$Z$15,2,FALSE)),"",VLOOKUP(I33&J33&K33&L33&M33&N33&O33,$Y$8:$Z$15,2,FALSE)) -> 全て不可
E34: 27 | F34: 自者間取引帳票 | G34: xlSheetHidden | H34: True | I34: False | J34: False | K34: False | L34: False | M34: False | N34: False | O34: False | P34: =IF(ISERROR(VLOOKUP(I34&J34&K34&L34&M34&N34&O34,$Y$8:$Z$15,2,FALSE)),"",VLOOKUP(I34&J34&K34&L34&M34&N34&O34,$Y$8:$Z$15,2,FALSE)) -> 全て不可
E35: 28 | F35: 補正シート→ | G35: xlSheetVisible | H35: True | I35: True | J35: False | K35: False | L35: False | M35: False | N35: False | O35: False | P35: =IF(ISERROR(VLOOKUP(I35&J35&K35&L35&M35&N35&O35,$Y$8:$Z$15,2,FALSE)),"",VLOOKUP(I35&J35&K35&L35&M35&N35&O35,$Y$8:$Z$15,2,FALSE)) -> 行高さ、列幅変更不可
E36: 29 | F36: 補正（ｋW）指定１ | G36: xlSheetVisible | H36: True | I36: True | J36: False | K36: False | L36: False | M36: False | N36: False | O36: False | P36: 行高さ、列幅変更不可
E37: 30 | F37: 補正（ｋW）指定２ | G37: xlSheetVisible | H37: True | I37: True | J37: False | K37: False | L37: False | M37: False | N37: False | O37: False | P37: 行高さ、列幅変更不可
E38: 31 | F38: 補正（ｋWｈ） | G38: xlSheetVisible | H38: True | I38: True | J38: False | K38: False | L38: False | M38: False | N38: False | O38: False | P38: 行高さ、列幅変更不可
E39: 32 | F39: 補正（太陽光）指定１ | G39: xlSheetVisible | H39: True | I39: True | J39: False | K39: False | L39: False | M39: False | N39: False | O39: False | P39: 行高さ、列幅変更不可
E40: 33 | F40: 補正（太陽光）指定２ | G40: xlSheetVisible | H40: True | I40: True | J40: False | K40: False | L40: False | M40: False | N40: False | O40: False | P40: 行高さ、列幅変更不可
E41: 34 | F41: 補正（風力）指定１ | G41: xlSheetVisible | H41: True | I41: True | J41: False | K41: False | L41: False | M41: False | N41: False | O41: False | P41: 行高さ、列幅変更不可
E42: 35 | F42: 補正（風力）指定２ | G42: xlSheetVisible | H42: True | I42: True | J42: False | K42: False | L42: False | M42: False | N42: False | O42: False | P42: 行高さ、列幅変更不可
E43: 36 | F43: 時間帯別供給力（１５ｈ） | G43: － | P43: =IF(ISERROR(VLOOKUP(I43&J43&K43&L43&M43&N43&O43,$Y$8:$Z$15,2,FALSE)),"",VLOOKUP(I43&J43&K43&L43&M43&N43&O43,$Y$8:$Z$15,2,FALSE)) -> 
E44: 37 | F44: 厳気象対応供給力 | G44: xlSheetVisible | H44: True | I44: True | J44: False | K44: False | L44: False | M44: True | N44: False | O44: False | P44: 行挿入可能
E45: 38 | F45: 供給計画届出書様式→ | G45: xlSheetVisible | H45: True | I45: False | J45: False | K45: False | L45: False | M45: False | N45: False | O45: False | P45: 全て不可
E46: 39 | F46: 表紙 | G46: xlSheetVisible | H46: True | I46: True | J46: False | K46: False | L46: False | M46: False | N46: False | O46: False | P46: 行高さ、列幅変更不可
E47: 40 | F47: 別紙（変更供計用） | G47: xlSheetHidden | H47: False | I47: True | J47: False | K47: False | L47: False | M47: False | N47: False | O47: False | P47: 行高さ、列幅変更不可
E48: 41 | F48: 目次 | G48: xlSheetVisible | H48: True | I48: False | J48: False | K48: False | L48: False | M48: False | N48: False | O48: False | P48: 全て不可
E49: 42 | F49: 様式第32第1表（指定１） | G49: xlSheetVisible | H49: False | I49: True | J49: False | K49: False | L49: False | M49: False | N49: False | O49: False | P49: 行高さ、列幅変更不可
E50: 43 | F50: 様式第32第1表（指定２） | G50: xlSheetVisible | H50: False | I50: True | J50: False | K50: False | L50: False | M50: False | N50: False | O50: False | P50: 行高さ、列幅変更不可
E51: 44 | F51: 様式第32第2表 | G51: xlSheetVisible | H51: False | I51: True | J51: False | K51: False | L51: False | M51: False | N51: False | O51: False | P51: 行高さ、列幅変更不可
E52: 45 | F52: 様式第32第3表（指定） | G52: xlSheetVisible | H52: False | I52: True | J52: False | K52: False | L52: False | M52: False | N52: False | O52: False | P52: 行高さ、列幅変更不可
E53: 46 | F53: 様式第32第3表（指定） (2年度目) | G53: xlSheetVisible | H53: False | I53: True | J53: False | K53: False | L53: False | M53: False | N53: False | O53: False | P53: 行高さ、列幅変更不可
E54: 47 | F54: 様式第32第4表 | G54: xlSheetVisible | H54: False | I54: True | J54: False | K54: False | L54: False | M54: False | N54: False | O54: False | P54: 行高さ、列幅変更不可
E55: 48 | F55: 様式第32第5表（水力） | G55: xlSheetHidden | H55: True | I55: True | J55: False | K55: False | L55: False | M55: False | N55: False | O55: False | P55: 行高さ、列幅変更不可
E56: 49 | F56: 様式第32第5表（火力） | G56: xlSheetHidden | H56: True | I56: True | J56: False | K56: False | L56: False | M56: False | N56: False | O56: False | P56: 行高さ、列幅変更不可
E57: 50 | F57: 様式第32第5表（原子力） | G57: xlSheetHidden | H57: True | I57: True | J57: False | K57: False | L57: False | M57: False | N57: False | O57: False | P57: 行高さ、列幅変更不可
E58: 51 | F58: 様式第32第5表（新エネ） | G58: xlSheetHidden | H58: True | I58: True | J58: False | K58: False | L58: False | M58: False | N58: False | O58: False | P58: 行高さ、列幅変更不可
E59: 52 | F59: 様式第32第6の1表 | G59: xlSheetVisible | H59: False | I59: True | J59: False | K59: False | L59: False | M59: False | N59: False | O59: False | P59: 行高さ、列幅変更不可
E60: 53 | F60: 様式第32第6の2表 | G60: xlSheetVisible | H60: False | I60: True | J60: False | K60: False | L60: False | M60: False | N60: False | O60: False | P60: 行高さ、列幅変更不可
E61: 54 | F61: 様式第32第6の3表 | G61: xlSheetVisible | H61: False | I61: True | J61: False | K61: False | L61: False | M61: False | N61: False | O61: False | P61: 行高さ、列幅変更不可
E62: 55 | F62: 様式第32第7表（水力） | G62: xlSheetHidden | H62: True | I62: True | J62: False | K62: False | L62: False | M62: True | N62: False | O62: True | P62: 行挿入、削除可
E63: 56 | F63: 様式第32第7表（火力） | G63: xlSheetHidden | H63: True | I63: True | J63: False | K63: False | L63: False | M63: True | N63: False | O63: True | P63: 行挿入、削除可
E64: 57 | F64: 様式第32第7表（原子力） | G64: xlSheetHidden | H64: True | I64: True | J64: False | K64: False | L64: False | M64: True | N64: False | O64: True | P64: 行挿入、削除可
E65: 58 | F65: 様式第32第7表（新エネ） | G65: xlSheetHidden | H65: True | I65: True | J65: False | K65: False | L65: False | M65: True | N65: False | O65: True | P65: 行挿入、削除可
E66: 59 | F66: 様式第32第8表（指定１）_受電 | G66: xlSheetVisible | H66: False | I66: True | J66: False | K66: False | L66: False | M66: False | N66: False | O66: False | P66: 行高さ、列幅変更不可
E67: 60 | F67: 様式第32第8表（指定１）_送電 | G67: xlSheetVisible | H67: False | I67: True | J67: False | K67: False | L67: False | M67: False | N67: False | O67: False | P67: 行高さ、列幅変更不可
E68: 61 | F68: 様式第32第8表（指定２）_受電 | G68: xlSheetVisible | H68: False | I68: True | J68: False | K68: False | L68: False | M68: False | N68: False | O68: False | P68: 行高さ、列幅変更不可
E69: 62 | F69: 様式第32第8表（指定２）_送電 | G69: xlSheetVisible | H69: False | I69: True | J69: False | K69: False | L69: False | M69: False | N69: False | O69: False | P69: 行高さ、列幅変更不可
E70: 63 | F70: 添付書類 | G70: xlSheetVisible | H70: False | I70: False | J70: False | K70: False | L70: False | M70: False | N70: False | O70: False | P70: 全て不可
E71: 64 | F71: 様式第33表（指定１） | G71: xlSheetVisible | H71: False | I71: True | J71: False | K71: False | L71: False | M71: False | N71: False | O71: False | P71: 行高さ、列幅変更不可
E72: 65 | F72: 様式第33表（指定２） | G72: xlSheetVisible | H72: False | I72: True | J72: False | K72: False | L72: False | M72: False | N72: False | O72: False | P72: 行高さ、列幅変更不可
E73: 66 | F73: 様式第33の2（指定１） | G73: xlSheetVisible | H73: False | I73: True | J73: False | K73: False | L73: False | M73: False | N73: False | O73: False | P73: 行高さ、列幅変更不可
E74: 67 | F74: 様式第33の2（指定２） | G74: xlSheetVisible | H74: False | I74: True | J74: False | K74: False | L74: False | M74: False | N74: False | O74: False | P74: 行高さ、列幅変更不可
E75: 68 | F75: 様式第33の3第1表（指定１） | G75: xlSheetVisible | H75: False | I75: True | J75: False | K75: False | L75: False | M75: False | N75: False | O75: False | P75: 行高さ、列幅変更不可
E76: 69 | F76: 様式第33の3第1表（指定２） | G76: xlSheetVisible | H76: False | I76: True | J76: False | K76: False | L76: False | M76: False | N76: False | O76: False | P76: 行高さ、列幅変更不可
E77: 70 | F77: 様式第33の3第2表 | G77: xlSheetVisible | H77: False | I77: True | J77: False | K77: False | L77: False | M77: False | N77: False | O77: False | P77: 行高さ、列幅変更不可
E78: 71 | F78: 様式第33の3第2表 (2年度目) | G78: xlSheetVisible | H78: False | I78: True | J78: False | K78: False | L78: False | M78: False | N78: False | O78: False | P78: 行高さ、列幅変更不可
E79: 72 | F79: 様式第34第1表 | G79: xlSheetHidden | H79: True | I79: True | J79: False | K79: False | L79: False | M79: False | N79: False | O79: False | P79: 行高さ、列幅変更不可
E80: 73 | F80: 様式第34第1表 (2年度目) | G80: xlSheetHidden | H80: True | I80: True | J80: False | K80: False | L80: False | M80: False | N80: False | O80: False | P80: 行高さ、列幅変更不可
E81: 74 | F81: 様式第34第2表 | G81: xlSheetHidden | H81: True | I81: True | J81: False | K81: False | L81: False | M81: False | N81: False | O81: False | P81: 行高さ、列幅変更不可
E82: 75 | F82: 様式第34第2表 (2年度目) | G82: xlSheetHidden | H82: True | I82: True | J82: False | K82: False | L82: False | M82: False | N82: False | O82: False | P82: 行高さ、列幅変更不可
E83: 76 | F83: 様式第34第3表 | G83: xlSheetHidden | H83: True | I83: True | J83: False | K83: False | L83: False | M83: False | N83: False | O83: False | P83: =IF(ISERROR(VLOOKUP(I83&J83&K83&L83&M83&N83&O83,$Y$8:$Z$15,2,FALSE)),"",VLOOKUP(I83&J83&K83&L83&M83&N83&O83,$Y$8:$Z$15,2,FALSE)) -> 行高さ、列幅変更不可
E84: 77 | F84: 様式第34第3表 (2年度目) | G84: xlSheetHidden | H84: True | I84: True | J84: False | K84: False | L84: False | M84: False | N84: False | O84: False | P84: =IF(ISERROR(VLOOKUP(I84&J84&K84&L84&M84&N84&O84,$Y$8:$Z$15,2,FALSE)),"",VLOOKUP(I84&J84&K84&L84&M84&N84&O84,$Y$8:$Z$15,2,FALSE)) -> 行高さ、列幅変更不可
E85: 78 | F85: 様式第34第4表 | G85: xlSheetHidden | H85: True | I85: True | J85: False | K85: False | L85: False | M85: False | N85: False | O85: False | P85: 行高さ、列幅変更不可
E86: 79 | F86: 様式第34第4表 (2年度目) | G86: xlSheetHidden | H86: True | I86: True | J86: False | K86: False | L86: False | M86: False | N86: False | O86: False | P86: 行高さ、列幅変更不可
E87: 80 | F87: 様式第35第1表 | G87: xlSheetHidden | H87: True | I87: True | J87: False | K87: False | L87: False | M87: False | N87: False | O87: False | P87: 行高さ、列幅変更不可
E88: 81 | F88: 様式第35第2表 | G88: xlSheetHidden | H88: True | I88: True | J88: False | K88: False | L88: False | M88: False | N88: False | O88: False | P88: 行高さ、列幅変更不可
E89: 82 | F89: 様式第35第3表 | G89: xlSheetHidden | H89: True | I89: True | J89: False | K89: False | L89: False | M89: False | N89: False | O89: False | P89: 行高さ、列幅変更不可
E90: 83 | F90: 様式第36表（指定）_受電 | G90: xlSheetVisible | H90: False | I90: True | J90: False | K90: False | L90: False | M90: False | N90: False | O90: False | P90: 行高さ、列幅変更不可
E91: 84 | F91: 様式第36表（指定）_受電 (2年度目) | G91: xlSheetVisible | H91: False | I91: True | J91: False | K91: False | L91: False | M91: False | N91: False | O91: False | P91: 行高さ、列幅変更不可
E92: 85 | F92: 様式第36表（指定）_送電 | G92: xlSheetVisible | H92: False | I92: True | J92: False | K92: False | L92: False | M92: False | N92: False | O92: False | P92: 行高さ、列幅変更不可
E93: 86 | F93: 様式第36表（指定）_送電 (2年度目) | G93: xlSheetVisible | H93: False | I93: True | J93: False | K93: False | L93: False | M93: False | N93: False | O93: False | P93: 行高さ、列幅変更不可
E94: 87 | F94: 様式第37表 | G94: xlSheetVisible | H94: False | I94: True | J94: False | K94: False | L94: False | M94: False | N94: False | O94: False | P94: 行高さ、列幅変更不可
E95: 88 | F95: 様式第38表（電力系統の状況） | G95: xlSheetVisible | H95: False | I95: False | J95: False | K95: False | L95: False | M95: False | N95: False | O95: False | P95: 全て不可
E96: 89 | F96: 様式第38表（電力潮流の状況） | G96: xlSheetVisible | H96: False | I96: False | J96: False | K96: False | L96: False | M96: False | N96: False | O96: False | P96: 全て不可
E97: 90 | F97: 様式第38の2表（指定１） | G97: xlSheetVisible | H97: False | I97: True | J97: False | K97: False | L97: False | M97: True | N97: False | O97: True | P97: 行挿入、削除可
E98: 91 | F98: 様式第38の2表（指定２） | G98: xlSheetVisible | H98: False | I98: True | J98: False | K98: False | L98: False | M98: True | N98: False | O98: True | P98: 行挿入、削除可
E99: 92 | F99: 見え消し版用表紙（変更供計用） | G99: xlSheetHidden | H99: True | I99: False | J99: False | K99: False | L99: False | M99: False | N99: False | O99: False | P99: 全て不可

Sheet 帳票表示切替
G1: 供給計画の各様式及びエリアの記載状況確認表
G2: （○印が入っている箇所が記載のある表） | AT2: 届出書 | AV2: 発 | AW2: 卸 | AX2: 小 | AY2: 登 | AZ2: 送 | BA2: 一 | BB2: 配 | BF2: 発 | BG2: 卸 | BH2: 小 | BI2: 登 | BJ2: 送 | BK2: 一 | BL2: 配
B3: 表示切替フラグ | C3: 1 | E3: 1 | F3: 1 | G3: 1 | H3: 1 | I3: 1 | J3: 1 | O3: 1 | P3: 1 | Q3: 1 | V3: 1 | W3: 1 | X3: 1 | Y3: 1 | Z3: 1 | AA3: 1 | AB3: 1 | AC3: 1 | AD3: 1 | AE3: 1 | AF3: 1 | AG3: 1 | AH3: 1 | AT3: ① | AU3: 表紙 | AV3: ◎ | AW3: ◎ | AX3: ◎ | AY3: ◎ | AZ3: ◎ | BA3: ◎ | BB3: ◎ | BD3: ㊶ | BE3: 様式第35第1表 | BF3: ○
C4: ① | D4: ② | E4: ③ | F4: ④ | G4: ⑤ | H4: ⑥ | I4: ⑦ | J4: ⑧ | K4: ⑨ | L4: ⑩ | M4: ⑪ | N4: ⑫ | O4: ⑬ | P4: ⑭ | Q4: ⑮ | R4: ⑯ | S4: ⑰ | T4: ⑱ | U4: ⑲ | V4: ⑳ | W4: ㉑ | X4: ㉒ | Y4: ㉓ | Z4: ㉔ | AA4: ㉕ | AB4: ㉖ | AC4: ㉗ | AD4: ㉘ | AE4: ㉙ | AF4: ㉚ | AG4: ㉛ | AH4: ㉜ | AI4: ㉝ | AJ4: ㉞ | AK4: ㉟ | AL4: ㊱ | AM4: ㊲ | AN4: ㊳ | AO4: ㊴ | AP4: ㊵ | AT4: ② | AU4: 別紙（変更供計用） | AV4: △ | AW4: △ | AX4: △ | AY4: △ | AZ4: △ | BA4: △ | BB4: △ | BD4: ㊷ | BE4: 様式第35第2表 | BF4: ○
B5: 共通 | C5: =表紙!AC27 ->  | D5: ='別紙（変更供計用）'!AP16 ->  | O5: =様式第32第6の1表!Q7 ->  | P5: =様式第32第6の2表!S7 ->  | Q5: =様式第32第6の3表!K7 ->  | Z5: =IF(COUNTIF(AB5:AJ15,"○")+COUNTIF(C19:O29,"○")>0,"○","") -> ○ | AT5: ③ | AU5: 様式第32第1表（指定１） | AV5: ◎ | AW5: ◎ | AX5: ◎ | AY5: ◎ | BA5: ◎ | BB5: ◎ | BD5: ㊸ | BE5: 様式第35第3表 | BF5: ○
B6: 北海道 | E6: ='様式第32第1表（指定１）'!AL9 ->  | F6: ='様式第32第1表（指定２）'!AL9 ->  | G6: =様式第32第2表!AL9 ->  | H6: ='様式第32第3表（指定）'!AN9 ->  | I6: ='様式第32第3表（指定） (2年度目)'!AN9 ->  | J6: =様式第32第4表!AT9 ->  | V6: ='様式第32第8表（指定１）_受電'!Z9 ->  | W6: ='様式第32第8表（指定１）_送電'!Z9 ->  | X6: ='様式第32第8表（指定２）_受電'!Z9 ->  | Y6: ='様式第32第8表（指定２）_送電'!Z9 ->  | AA6: ='様式第33表（指定１）'!W20 ->  | AB6: ='様式第33表（指定２）'!W20 ->  | AC6: ='様式第33の2（指定１）'!T9 ->  | AD6: ='様式第33の2（指定２）'!T9 ->  | AE6: ='様式第33の3第1表（指定１）'!AB11 ->  | AF6: ='様式第33の3第1表（指定２）'!AB11 ->  | AG6: =様式第33の3第2表!AB11 ->  | AH6: ='様式第33の3第2表 (2年度目)'!AB11 ->  | AT6: ④ | AU6: 様式第32第1表（指定２） | AV6: ○ | AW6: ○ | AX6: ○ | AY6: ○ | BA6: ○ | BB6: ○ | BD6: ㊹ | BE6: 様式第36表（指定）_受電 | BF6: ○ | BG6: ○ | BH6: ○ | BI6: ○ | BK6: ○ | BL6: ○
B7: 東北 | E7: ='様式第32第1表（指定１）'!AL10 ->  | F7: ='様式第32第1表（指定２）'!AL10 ->  | G7: =様式第32第2表!AL10 ->  | H7: ='様式第32第3表（指定）'!AN10 ->  | I7: ='様式第32第3表（指定） (2年度目)'!AN10 ->  | J7: =様式第32第4表!AT10 ->  | V7: ='様式第32第8表（指定１）_受電'!Z10 ->  | W7: ='様式第32第8表（指定１）_送電'!Z10 ->  | X7: ='様式第32第8表（指定２）_受電'!Z10 ->  | Y7: ='様式第32第8表（指定２）_送電'!Z10 ->  | AA7: ='様式第33表（指定１）'!W21 ->  | AB7: ='様式第33表（指定２）'!W21 ->  | AC7: ='様式第33の2（指定１）'!T10 ->  | AD7: ='様式第33の2（指定２）'!T10 ->  | AE7: ='様式第33の3第1表（指定１）'!AB12 ->  | AF7: ='様式第33の3第1表（指定２）'!AB12 ->  | AG7: =様式第33の3第2表!AB12 ->  | AH7: ='様式第33の3第2表 (2年度目)'!AB12 ->  | AT7: ⑤ | AU7: 様式第32第2表 | AV7: ◎ | AW7: ◎ | AX7: ◎ | AY7: ◎ | BA7: ◎ | BB7: ◎ | BD7: ㊺ | BE7: 様式第36表（指定）_受電 (2年度目) | BF7: ○ | BG7: ○ | BH7: ○ | BI7: ○ | BK7: ○ | BL7: ○
B8: 東京 | E8: ='様式第32第1表（指定１）'!AL11 ->  | G8: =様式第32第2表!AL11 ->  | H8: ='様式第32第3表（指定）'!AN11 ->  | I8: ='様式第32第3表（指定） (2年度目)'!AN11 ->  | J8: =様式第32第4表!AT11 ->  | V8: ='様式第32第8表（指定１）_受電'!Z11 ->  | W8: ='様式第32第8表（指定１）_送電'!Z11 ->  | AA8: ='様式第33表（指定１）'!W22 ->  | AC8: ='様式第33の2（指定１）'!T11 ->  | AE8: ='様式第33の3第1表（指定１）'!AB13 ->  | AG8: =様式第33の3第2表!AB13 ->  | AH8: ='様式第33の3第2表 (2年度目)'!AB13 ->  | AT8: ⑥ | AU8: 様式第32第3表（指定） | AV8: ◎ | AW8: ◎ | AX8: ◎ | AY8: ◎ | BA8: ◎ | BB8: ◎ | BD8: ㊻ | BE8: 様式第36表（指定）_送電 | BF8: ○ | BG8: ○ | BH8: ○ | BI8: ○ | BK8: ○ | BL8: ○
B9: 中部 | E9: ='様式第32第1表（指定１）'!AL12 ->  | G9: =様式第32第2表!AL12 ->  | H9: ='様式第32第3表（指定）'!AN12 ->  | I9: ='様式第32第3表（指定） (2年度目)'!AN12 ->  | J9: =様式第32第4表!AT12 ->  | V9: ='様式第32第8表（指定１）_受電'!Z12 ->  | W9: ='様式第32第8表（指定１）_送電'!Z12 ->  | AA9: ='様式第33表（指定１）'!W23 ->  | AC9: ='様式第33の2（指定１）'!T12 ->  | AE9: ='様式第33の3第1表（指定１）'!AB14 ->  | AG9: =様式第33の3第2表!AB14 ->  | AH9: ='様式第33の3第2表 (2年度目)'!AB14 ->  | AT9: ⑦ | AU9: 様式第32第3表（指定） (2年度目) | AV9: ◎ | AW9: ◎ | AX9: ◎ | AY9: ◎ | BA9: ◎ | BB9: ◎ | BD9: ㊼ | BE9: 様式第36表（指定）_送電 (2年度目) | BF9: ○ | BG9: ○ | BH9: ○ | BI9: ○ | BK9: ○ | BL9: ○
B10: 北陸 | E10: ='様式第32第1表（指定１）'!AL13 ->  | F10: ='様式第32第1表（指定２）'!AL13 ->  | G10: =様式第32第2表!AL13 ->  | H10: ='様式第32第3表（指定）'!AN13 ->  | I10: ='様式第32第3表（指定） (2年度目)'!AN13 ->  | J10: =様式第32第4表!AT13 ->  | V10: ='様式第32第8表（指定１）_受電'!Z13 ->  | W10: ='様式第32第8表（指定１）_送電'!Z13 ->  | X10: ='様式第32第8表（指定２）_受電'!Z13 ->  | Y10: ='様式第32第8表（指定２）_送電'!Z13 ->  | AA10: ='様式第33表（指定１）'!W24 ->  | AB10: ='様式第33表（指定２）'!W24 ->  | AC10: ='様式第33の2（指定１）'!T13 ->  | AD10: ='様式第33の2（指定２）'!T13 ->  | AE10: ='様式第33の3第1表（指定１）'!AB15 ->  | AF10: ='様式第33の3第1表（指定２）'!AB15 ->  | AG10: =様式第33の3第2表!AB15 ->  | AH10: ='様式第33の3第2表 (2年度目)'!AB15 ->  | AT10: ⑧ | AU10: 様式第32第4表 | AV10: ◎ | AW10: ◎ | AX10: ◎ | AY10: ◎ | BA10: ◎ | BB10: ◎ | BD10: ㊽ | BE10: 様式第37表 | BK10: ◎ | BL10: ◎
B11: 関西 | E11: ='様式第32第1表（指定１）'!AL14 ->  | G11: =様式第32第2表!AL14 ->  | H11: ='様式第32第3表（指定）'!AN14 ->  | I11: ='様式第32第3表（指定） (2年度目)'!AN14 ->  | J11: =様式第32第4表!AT14 ->  | V11: ='様式第32第8表（指定１）_受電'!Z14 ->  | W11: ='様式第32第8表（指定１）_送電'!Z14 ->  | AA11: ='様式第33表（指定１）'!W25 ->  | AC11: ='様式第33の2（指定１）'!T14 ->  | AE11: ='様式第33の3第1表（指定１）'!AB16 ->  | AG11: =様式第33の3第2表!AB16 ->  | AH11: ='様式第33の3第2表 (2年度目)'!AB16 ->  | AT11: ⑨ | AU11: 様式第32第5表（水力） | AV11: ○ | BD11: ㊾ | BE11: 様式第38表（電力系統の状況） | BI11: ◎ | BJ11: ◎ | BK11: ◎ | BL11: ◎
B12: 中国 | E12: ='様式第32第1表（指定１）'!AL15 ->  | G12: =様式第32第2表!AL15 ->  | H12: ='様式第32第3表（指定）'!AN15 ->  | I12: ='様式第32第3表（指定） (2年度目)'!AN15 ->  | J12: =様式第32第4表!AT15 ->  | V12: ='様式第32第8表（指定１）_受電'!Z15 ->  | W12: ='様式第32第8表（指定１）_送電'!Z15 ->  | AA12: ='様式第33表（指定１）'!W26 ->  | AC12: ='様式第33の2（指定１）'!T15 ->  | AE12: ='様式第33の3第1表（指定１）'!AB17 ->  | AG12: =様式第33の3第2表!AB17 ->  | AH12: ='様式第33の3第2表 (2年度目)'!AB17 ->  | AT12: ⑩ | AU12: 様式第32第5表（火力） | AV12: ○ | BD12: ㊿ | BE12: 様式第38表（電力潮流の状況） | BK12: ◎
B13: 四国 | E13: ='様式第32第1表（指定１）'!AL16 ->  | G13: =様式第32第2表!AL16 ->  | H13: ='様式第32第3表（指定）'!AN16 ->  | I13: ='様式第32第3表（指定） (2年度目)'!AN16 ->  | J13: =様式第32第4表!AT16 ->  | V13: ='様式第32第8表（指定１）_受電'!Z16 ->  | W13: ='様式第32第8表（指定１）_送電'!Z16 ->  | AA13: ='様式第33表（指定１）'!W27 ->  | AC13: ='様式第33の2（指定１）'!T16 ->  | AE13: ='様式第33の3第1表（指定１）'!AB18 ->  | AG13: =様式第33の3第2表!AB18 ->  | AH13: ='様式第33の3第2表 (2年度目)'!AB18 ->  | AT13: ⑪ | AU13: 様式第32第5表（原子力） | AV13: ○ | BD13: 51 | BE13: 様式第38の2表（指定１） | BK13: ◎
B14: 九州 | E14: ='様式第32第1表（指定１）'!AL17 ->  | G14: =様式第32第2表!AL17 ->  | H14: ='様式第32第3表（指定）'!AN17 ->  | I14: ='様式第32第3表（指定） (2年度目)'!AN17 ->  | J14: =様式第32第4表!AT17 ->  | V14: ='様式第32第8表（指定１）_受電'!Z17 ->  | W14: ='様式第32第8表（指定１）_送電'!Z17 ->  | AA14: ='様式第33表（指定１）'!W28 ->  | AC14: ='様式第33の2（指定１）'!T17 ->  | AE14: ='様式第33の3第1表（指定１）'!AB19 ->  | AG14: =様式第33の3第2表!AB19 ->  | AH14: ='様式第33の3第2表 (2年度目)'!AB19 ->  | AT14: ⑫ | AU14: 様式第32第5表（新エネ） | AV14: ○ | BD14: 52 | BE14: 様式第38の2表（指定２） | BK14: ◎
B15: 沖縄 | E15: ='様式第32第1表（指定１）'!AL18 ->  | G15: =様式第32第2表!AL18 ->  | H15: ='様式第32第3表（指定）'!AN18 ->  | I15: ='様式第32第3表（指定） (2年度目)'!AN18 ->  | J15: =様式第32第4表!AT18 ->  | V15: ='様式第32第8表（指定１）_受電'!Z18 ->  | W15: ='様式第32第8表（指定１）_送電'!Z18 ->  | AA15: ='様式第33表（指定１）'!W29 ->  | AC15: ='様式第33の2（指定１）'!T18 ->  | AE15: ='様式第33の3第1表（指定１）'!AB20 ->  | AG15: =様式第33の3第2表!AB20 ->  | AH15: ='様式第33の3第2表 (2年度目)'!AB20 ->  | AT15: ⑬ | AU15: 様式第32第6の1表 | AY15: ○ | AZ15: ○ | BA15: ○ | BB15: ○ | BD15: 53 | BE15: 見え消し版用表紙（変更供計用） | BF15: △ | BG15: △ | BH15: △ | BI15: △ | BJ15: △ | BK15: △ | BL15: △
AT16: ⑭ | AU16: 様式第32第6の2表 | AY16: ○ | AZ16: ○ | BA16: ○ | BB16: ○ | BD16: 別紙
B17: 表示切替フラグ | F17: 1 | G17: 1 | H17: 1 | I17: 1 | J17: 1 | K17: 1 | L17: 1 | M17: 1 | N17: 1 | Q17: 1 | AF17: 1 | AG17: 1 | AT17: ⑮ | AU17: 様式第32第6の3表 | AZ17: ○ | BA17: ○ | BD17: 1 | BE17: 厳気象対応供給力 | BF17: ○ | BK17: ○
C18: ㊶ | D18: ㊷ | E18: ㊸ | F18: ㊹ | G18: ㊺ | H18: ㊻ | I18: ㊼ | J18: ㊽ | K18: ㊾ | L18: ㊿ | M18: 51 | N18: 52 | O18: 53 | Q18: 1 | S18: ⑴ | T18: ⑵ | U18: ⑶ | V18: ⑷ | W18: ⑸ | X18: ⑹ | Y18: ⑺ | Z18: ⑻ | AA18: ⑼ | AB18: ⑽ | AC18: ⑾ | AD18: ⑿ | AE18: ⒀ | AF18: ⒁ | AG18: ⒂ | AH18: ⒃ | AT18: ⑯ | AU18: 様式第32第7表（水力） | AV18: ○ | BD18: 入力支援シート
B19: 共通 | C19: =様式第35第1表!M11 ->  | D19: =様式第35第2表!U12 ->  | E19: =様式第35第3表!S6 ->  | J19: =様式第37表!W3 ->  | K19: =IF(AND(表紙!W20<>"小売電気事業者",表紙!W20<>"発電事業者",表紙!W20<>"特定卸供給事業者"),"○","") -> ○ | L19: =IF(表紙!W20="一般送配電事業者","○","") -> ○ | M19: ='様式第38の2表（指定１）'!M6 ->  | N19: ='様式第38の2表（指定２）'!M6 ->  | O19: =IF(表紙!AB24<>"新規","○","") ->  | AH19: =自者間取引帳票!AT541 ->  | AT19: ⑰ | AU19: 様式第32第7表（火力） | AV19: ○ | BD19: ⑴ | BE19: 風力 | BF19: ○ | BG19: ○ | BH19: ○ | BI19: ○
B20: 北海道 | F20: ='様式第36表（指定）_受電'!AE9 ->  | G20: ='様式第36表（指定）_受電 (2年度目)'!AE9 ->  | H20: ='様式第36表（指定）_送電'!AE9 ->  | I20: ='様式第36表（指定）_送電 (2年度目)'!AE9 ->  | Q20: =厳気象対応供給力!D72 ->  | AF20: =受電取引帳票!BB30 ->  | AG20: =送電取引帳票!BB30 ->  | AT20: ⑱ | AU20: 様式第32第7表（原子力） | AV20: ○ | BD20: ⑵ | BE20: 太陽光（全量） | BF20: ○ | BG20: ○ | BH20: ○ | BI20: ○
B21: 東北 | F21: ='様式第36表（指定）_受電'!AE10 ->  | G21: ='様式第36表（指定）_受電 (2年度目)'!AE10 ->  | H21: ='様式第36表（指定）_送電'!AE10 ->  | I21: ='様式第36表（指定）_送電 (2年度目)'!AE10 ->  | Q21: =厳気象対応供給力!D73 ->  | AF21: =受電取引帳票!BB31 ->  | AG21: =送電取引帳票!BB31 ->  | AT21: ⑲ | AU21: 様式第32第7表（新エネ） | AV21: ○ | BD21: ⑶ | BE21: 太陽光（余剰） | BF21: ○ | BG21: ○ | BH21: ○ | BI21: ○
B22: 東京 | F22: ='様式第36表（指定）_受電'!AE11 ->  | G22: ='様式第36表（指定）_受電 (2年度目)'!AE11 ->  | H22: ='様式第36表（指定）_送電'!AE11 ->  | I22: ='様式第36表（指定）_送電 (2年度目)'!AE11 ->  | Q22: =厳気象対応供給力!D74 ->  | AF22: =受電取引帳票!BB32 ->  | AG22: =送電取引帳票!BB32 ->  | AT22: ⑳ | AU22: 様式第32第8表（指定１）_受電 | AV22: ○ | AW22: ○ | AX22: ○ | AY22: ○ | BA22: ○ | BB22: ○ | BD22: ⑷ | BE22: 水力保有電源 | BF22: ○
B23: 中部 | F23: ='様式第36表（指定）_受電'!AE12 ->  | G23: ='様式第36表（指定）_受電 (2年度目)'!AE12 ->  | H23: ='様式第36表（指定）_送電'!AE12 ->  | I23: ='様式第36表（指定）_送電 (2年度目)'!AE12 ->  | Q23: =厳気象対応供給力!D75 ->  | AF23: =受電取引帳票!BB33 ->  | AG23: =送電取引帳票!BB33 ->  | AT23: ㉑ | AU23: 様式第32第8表（指定１）_送電 | AV23: ○ | AW23: ○ | AX23: ○ | AY23: ○ | BA23: ○ | BB23: ○ | BD23: ⑸ | BE23: 自流式 | BF23: ○
B24: 北陸 | F24: ='様式第36表（指定）_受電'!AE13 ->  | G24: ='様式第36表（指定）_受電 (2年度目)'!AE13 ->  | H24: ='様式第36表（指定）_送電'!AE13 ->  | I24: ='様式第36表（指定）_送電 (2年度目)'!AE13 ->  | Q24: =厳気象対応供給力!D76 ->  | AF24: =受電取引帳票!BB34 ->  | AG24: =送電取引帳票!BB34 ->  | AT24: ㉒ | AU24: 様式第32第8表（指定２）_受電 | AV24: ○ | AW24: ○ | AX24: ○ | AY24: ○ | BA24: ○ | BB24: ○ | BD24: ⑹ | BE24: 揚水 | BF24: ○
B25: 関西 | F25: ='様式第36表（指定）_受電'!AE14 ->  | G25: ='様式第36表（指定）_受電 (2年度目)'!AE14 ->  | H25: ='様式第36表（指定）_送電'!AE14 ->  | I25: ='様式第36表（指定）_送電 (2年度目)'!AE14 ->  | Q25: =厳気象対応供給力!D77 ->  | AF25: =受電取引帳票!BB35 ->  | AG25: =送電取引帳票!BB35 ->  | AT25: ㉓ | AU25: 様式第32第8表（指定２）_送電 | AV25: ○ | AW25: ○ | AX25: ○ | AY25: ○ | BA25: ○ | BB25: ○ | BD25: ⑺ | BE25: 火力保有電源 | BF25: ○
B26: 中国 | F26: ='様式第36表（指定）_受電'!AE15 ->  | G26: ='様式第36表（指定）_受電 (2年度目)'!AE15 ->  | H26: ='様式第36表（指定）_送電'!AE15 ->  | I26: ='様式第36表（指定）_送電 (2年度目)'!AE15 ->  | Q26: =厳気象対応供給力!D78 ->  | AF26: =受電取引帳票!BB36 ->  | AG26: =送電取引帳票!BB36 ->  | AT26: ㉔ | AU26: 添付書類 | AV26: － | AW26: － | AX26: － | AY26: － | AZ26: － | BA26: － | BB26: － | BD26: ⑻ | BE26: 原子力保有電源 | BF26: ○
B27: 四国 | F27: ='様式第36表（指定）_受電'!AE16 ->  | G27: ='様式第36表（指定）_受電 (2年度目)'!AE16 ->  | H27: ='様式第36表（指定）_送電'!AE16 ->  | I27: ='様式第36表（指定）_送電 (2年度目)'!AE16 ->  | Q27: =厳気象対応供給力!D79 ->  | AF27: =受電取引帳票!BB37 ->  | AG27: =送電取引帳票!BB37 ->  | AT27: ㉕ | AU27: 様式第33表（指定１） | BA27: ◎ | BB27: ◎ | BD27: ⑼ | BE27: 新エネルギー等保有電源 | BF27: ○
B28: 九州 | F28: ='様式第36表（指定）_受電'!AE17 ->  | G28: ='様式第36表（指定）_受電 (2年度目)'!AE17 ->  | H28: ='様式第36表（指定）_送電'!AE17 ->  | I28: ='様式第36表（指定）_送電 (2年度目)'!AE17 ->  | Q28: =厳気象対応供給力!D80 ->  | AF28: =受電取引帳票!BB38 ->  | AG28: =送電取引帳票!BB38 ->  | AT28: ㉖ | AU28: 様式第33表（指定２） | BA28: ○ | BB28: ○ | BD28: ⑽ | BE28: 蓄電池 | BF28: ○
B29: 沖縄 | F29: ='様式第36表（指定）_受電'!AE18 ->  | G29: ='様式第36表（指定）_受電 (2年度目)'!AE18 ->  | H29: ='様式第36表（指定）_送電'!AE18 ->  | I29: ='様式第36表（指定）_送電 (2年度目)'!AE18 ->  | Q29: =厳気象対応供給力!D81 ->  | AF29: =受電取引帳票!BB39 ->  | AG29: =送電取引帳票!BB39 ->  | AT29: ㉗ | AU29: 様式第33の2（指定１） | BA29: ○ | BB29: ○ | BD29: ⑾ | BE29: 調整力 | BF29: ○
AT30: ㉘ | AU30: 様式第33の2（指定２） | BA30: ○ | BB30: ○ | BD30: ⑿ | BE30: 保有電源 | BG30: ○ | BH30: ○ | BI30: ○
AT31: ㉙ | AU31: 様式第33の3第1表（指定１） | AV31: ○ | AW31: ○ | AX31: ○ | AY31: ○ | BA31: ○ | BB31: ○ | BD31: ⒀ | BE31: 保有電源電力量 | BF31: ○ | BG31: ○ | BH31: ○ | BI31: ○
AT32: ㉚ | AU32: 様式第33の3第1表（指定２） | AV32: ○ | AW32: ○ | AX32: ○ | AY32: ○ | BA32: ○ | BB32: ○ | BD32: ⒁ | BE32: 受電取引帳票 | BF32: ○ | BG32: ○ | BH32: ○ | BI32: ○ | BK32: ○ | BL32: ○
AT33: ㉛ | AU33: 様式第33の3第2表 | AV33: ○ | AW33: ○ | AX33: ○ | AY33: ○ | BA33: ○ | BB33: ○ | BD33: ⒂ | BE33: 送電取引帳票 | BF33: ○ | BG33: ○ | BH33: ○ | BI33: ○ | BK33: ○ | BL33: ○
AT34: ㉜ | AU34: 様式第33の3第2表 (2年度目) | AV34: ○ | AW34: ○ | AX34: ○ | AY34: ○ | BA34: ○ | BB34: ○ | BD34: ⒃ | BE34: 自者間取引帳票 | BH34: ○
AT35: ㉝ | AU35: 様式第34第1表 | AV35: ○ | BD35: 凡例
AT36: ㉞ | AU36: 様式第34第1表 (2年度目) | AV36: ○ | BD36: ◎：記載必須 ○：場合により記載必要
AT37: ㉟ | AU37: 様式第34第2表 | AV37: ○ | BD37: △：変更供計時に記載必須 空白：記載不要
AT38: ㊱ | AU38: 様式第34第2表 (2年度目) | AV38: ○ | BD38: 発：発電事業者 卸：特定卸供給事業者 小：小売電気事業者
AT39: ㊲ | AU39: 様式第34第3表 | AV39: ○ | BD39: 登：登録特定送配電事業者 送：特定送配電事業者、送電事業者
AT40: ㊳ | AU40: 様式第34第3表 (2年度目) | AV40: ○ | BD40: 一：一般送配電事業者 配：配電事業者
AT41: ㊴ | AU41: 様式第34第4表 | AV41: ○
AT42: ㊵ | AU42: 様式第34第4表 (2年度目) | AV42: ○

Sheet エリア表示切替
H2: エリア表示切替対象帳票
C3: 表示切替フラグ | H3: 供給計画 | I3: 様式第32第1表（指定１） | J3: 入力支援 シート | K3: 風力
B4: 北海道 | C4: 1 | I4: 様式第32第1表（指定２） | K4: 太陽光（全量）
B5: 東北 | C5: 1 | I5: 様式第32第2表 | K5: 太陽光（余剰）
B6: 東京 | C6: 1 | I6: 様式第32第3表（指定） | K6: 保有電源
B7: 中部 | C7: 1 | I7: 様式第32第3表（指定） (2年度目) | K7: 保有電源電力量
B8: 北陸 | C8: 1 | I8: 様式第32第4表
B9: 関西 | C9: 1 | I9: 様式第32第8表（指定１）_受電
B10: 中国 | C10: 1 | I10: 様式第32第8表（指定１）_送電
B11: 四国 | C11: 1 | I11: 様式第32第8表（指定２）_受電
B12: 九州 | C12: 1 | I12: 様式第32第8表（指定２）_送電
B13: 沖縄 | C13: 1 | I13: 様式第33表（指定１）
I14: 様式第33表（指定２）
I15: 様式第33の3第1表（指定１）
I16: 様式第33の3第1表（指定２）
I17: 様式第33の3第2表
I18: 様式第33の3第2表 (2年度目)
I19: 様式第34第1表
I20: 様式第34第1表 (2年度目)
I21: 様式第34第2表
I22: 様式第34第2表 (2年度目)
I23: 様式第34第3表
I24: 様式第34第3表 (2年度目)
I25: 様式第34第4表
I26: 様式第34第4表 (2年度目)
I27: 様式第36表（指定）_受電
I28: 様式第36表（指定）_受電 (2年度目)
I29: 様式第36表（指定）_送電
I30: 様式第36表（指定）_送電 (2年度目)

Sheet 補正シート→

Sheet 補正（ｋW）指定１
A2: 供給区域 | D2: エリア | E2: =IF(C2="北海道",1,IF(C2="東北",2,IF(C2="東京",3,IF(C2="中部",4,IF(C2="北陸",5,IF(C2="関西",6,IF(C2="中国",7,IF(C2="四国",8,IF(C2="九州",9,IF(C2="沖縄",10,IF(C2="","","正しいエリア名を入力してください"))))))))))) -> 
F3: 入力箇所 | I3: リンク箇所 | L3: 自動計算 | N3: 記載要領 | O3: 各項目については、至近２ヶ年分は各月で、第３～１０年度分は最大発生月分を記載すること。
O4: 一般送配電事業者（補正）欄には、一般送配電事業者供給力補正項目に入力することで自動的に転記される。
A5: 補正前供給力 | AM5: 【ＭＷ】
A6: 項目 | E6: =DATE(事業者リスト一覧!$B$3,1,1) -> 2025-01-01 | F6: =DATE(#REF!,1,1) ->  | G6: =DATE(#REF!,1,1) ->  | H6: =DATE(#REF!,1,1) ->  | I6: =DATE(#REF!,1,1) ->  | J6: =DATE(#REF!,1,1) ->  | K6: =DATE(#REF!,1,1) ->  | L6: =DATE(#REF!,1,1) ->  | M6: =DATE(#REF!,1,1) ->  | N6: =DATE(#REF!,1,1) ->  | O6: =DATE(#REF!,1,1) ->  | P6: =DATE(#REF!,1,1) ->  | Q6: =E6+366 -> 2026-01-02 | R6: =DATE(#REF!,1,1) ->  | S6: =DATE(#REF!,1,1) ->  | T6: =DATE(#REF!,1,1) ->  | U6: =DATE(#REF!,1,1) ->  | V6: =DATE(#REF!,1,1) ->  | W6: =DATE(#REF!,1,1) ->  | X6: =DATE(#REF!,1,1) ->  | Y6: =DATE(#REF!,1,1) ->  | Z6: =DATE(#REF!,1,1) ->  | AA6: =DATE(#REF!,1,1) ->  | AB6: =DATE(#REF!,1,1) ->  | AC6: =E6-365 -> 2024-01-02 | AD6: =E6 -> 2025-01-01 | AE6: =Q6 -> 2026-01-02 | AF6: =AE6+366 -> 2027-01-03 | AG6: =AF6+366 -> 2028-01-04 | AH6: 2029-01-04 | AI6: 2030-01-05 | AJ6: 2031-01-06 | AK6: 2032-01-07 | AL6: 2033-01-07 | AM6: 2034-01-08
E7: 4月 | F7: 5月 | G7: 6月 | H7: 7月 | I7: 8月 | J7: 9月 | K7: 10月 | L7: 11月 | M7: 12月 | N7: 1月 | O7: 2月 | P7: 3月 | Q7: 4月 | R7: 5月 | S7: 6月 | T7: 7月 | U7: 8月 | V7: 9月 | W7: 10月 | X7: 11月 | Y7: 12月 | Z7: 1月 | AA7: 2月 | AB7: 3月 | AC7: 実績
A8: 供給力 | B8: 保有 電力 | C8: 水力発電所（送電端） | AD8: =IF(I8="","",I8) ->  | AE8: =IF(U8="","",U8) -> 
C9: 火力発電所（送電端） | AD9: =IF(I9="","",I9) ->  | AE9: =IF(U9="","",U9) -> 
C10: 原子力発電所（送電端） | AD10: =IF(I10="","",I10) ->  | AE10: =IF(U10="","",U10) -> 
C11: 新エネルギー等発電所等（送電端） | AD11: =IF(I11="","",I11) ->  | AE11: =IF(U11="","",U11) -> 
C12: 合計（送電端） | E12: =IF(COUNT(E8:E11)=0,"",SUM(E8:E11)) ->  | F12: =IF(COUNT(F8:F11)=0,"",SUM(F8:F11)) ->  | Q12: =IF(COUNT(Q8:Q11)=0,"",SUM(Q8:Q11)) ->  | AG12: =IF(COUNT(AG8:AG11)=0,"",SUM(AG8:AG11)) -> 
B13: 調達分 | C13: 発電事業者 | AD13: =IF(I13="","",I13) ->  | AE13: =IF(U13="","",U13) -> 
C14: 特定卸供給事業者 | AD14: =IF(I14="","",I14) ->  | AE14: =IF(U14="","",U14) -> 
C15: 一般送配電事業者
C16: 配電事業者
C17: 小売電気事業者
C18: その他 | D18: 取引所 | AE18: =IF(U18="","",U18) -> 
D19: その他
B20: 調達先未定
B21: （上段：取引所、下段：その他）
B22: 【送配電】合計（送電端） | E22: =IF(COUNT(E12:E21)=0,"",SUM(E12:E21)) ->  | F22: =IF(COUNT(F12:F21)=0,"",SUM(F12:F21)) ->  | AC22: =IF(COUNT(AC12:AC21)=0,"",SUM(AC12:AC21)) ->  | AD22: =IF(COUNT(AD12:AD21)=0,"",SUM(AD12:AD21)) ->  | AE22: =IF(COUNT(AE12:AE21)=0,"",SUM(AE12:AE21)) ->  | AF22: =IF(COUNT(AF12:AF21)=0,"",SUM(AF12:AF21)) ->  | AG22: =IF(COUNT(AG12:AG21)=0,"",SUM(AG12:AG21)) -> 
B23: 発動指令電源供給力（再掲） | AD23: =IF(I23="","",I23) ->  | AE23: =IF(U23="","",U23) -> 
B24: 【ｴﾘｱ】合計（送電端） | E24: =IF(AND(COUNT(E12,E19,E83)=0,COUNTIF(受電取引帳票!$F:$F,"TR*")+COUNTIF(送電取引帳票!$F:$F,"TR*")=0),"",SUM(E12,E19,E83,SUMIFS(受電取引帳票!L:L,受電取引帳票!$F:$F,"TR*",受電取引帳票!$K:$K,"調達電力（MW）"),-SUMIFS(送電取引帳票!L:L,送電取引帳票!$F:$F,"TR*",送電取引帳票!$K:$K,"販売電力（MW）"))) ->  | F24: =IF(AND(COUNT(F12,F19,F83)=0,COUNTIF(受電取引帳票!$F:$F,"TR*")+COUNTIF(送電取引帳票!$F:$F,"TR*")=0),"",SUM(F12,F19,F83,SUMIFS(受電取引帳票!M:M,受電取引帳票!$F:$F,"TR*",受電取引帳票!$K:$K,"調達電力（MW）"),-SUMIFS(送電取引帳票!M:M,送電取引帳票!$F:$F,"TR*",送電取引帳票!$K:$K,"販売電力（MW）"))) ->  | G24: =IF(AND(COUNT(G12,G19,G83)=0,COUNTIF(受電取引帳票!$F:$F,"TR*")+COUNTIF(送電取引帳票!$F:$F,"TR*")=0),"",SUM(G12,G19,G83,SUMIFS(受電取引帳票!N:N,受電取引帳票!$F:$F,"TR*",受電取引帳票!$K:$K,"調達電力（MW）"),-SUMIFS(送電取引帳票!N:N,送電取引帳票!$F:$F,"TR*",送電取引帳票!$K:$K,"販売電力（MW）"))) ->  | H24: =IF(AND(COUNT(H12,H19,H83)=0,COUNTIF(受電取引帳票!$F:$F,"TR*")+COUNTIF(送電取引帳票!$F:$F,"TR*")=0),"",SUM(H12,H19,H83,SUMIFS(受電取引帳票!O:O,受電取引帳票!$F:$F,"TR*",受電取引帳票!$K:$K,"調達電力（MW）"),-SUMIFS(送電取引帳票!O:O,送電取引帳票!$F:$F,"TR*",送電取引帳票!$K:$K,"販売電力（MW）"))) ->  | I24: =IF(AND(COUNT(I12,I19,I83)=0,COUNTIF(受電取引帳票!$F:$F,"TR*")+COUNTIF(送電取引帳票!$F:$F,"TR*")=0),"",SUM(I12,I19,I83,SUMIFS(受電取引帳票!P:P,受電取引帳票!$F:$F,"TR*",受電取引帳票!$K:$K,"調達電力（MW）"),-SUMIFS(送電取引帳票!P:P,送電取引帳票!$F:$F,"TR*",送電取引帳票!$K:$K,"販売電力（MW）"))) ->  | J24: =IF(AND(COUNT(J12,J19,J83)=0,COUNTIF(受電取引帳票!$F:$F,"TR*")+COUNTIF(送電取引帳票!$F:$F,"TR*")=0),"",SUM(J12,J19,J83,SUMIFS(受電取引帳票!Q:Q,受電取引帳票!$F:$F,"TR*",受電取引帳票!$K:$K,"調達電力（MW）"),-SUMIFS(送電取引帳票!Q:Q,送電取引帳票!$F:$F,"TR*",送電取引帳票!$K:$K,"販売電力（MW）"))) ->  | K24: =IF(AND(COUNT(K12,K19,K83)=0,COUNTIF(受電取引帳票!$F:$F,"TR*")+COUNTIF(送電取引帳票!$F:$F,"TR*")=0),"",SUM(K12,K19,K83,SUMIFS(受電取引帳票!R:R,受電取引帳票!$F:$F,"TR*",受電取引帳票!$K:$K,"調達電力（MW）"),-SUMIFS(送電取引帳票!R:R,送電取引帳票!$F:$F,"TR*",送電取引帳票!$K:$K,"販売電力（MW）"))) ->  | L24: =IF(AND(COUNT(L12,L19,L83)=0,COUNTIF(受電取引帳票!$F:$F,"TR*")+COUNTIF(送電取引帳票!$F:$F,"TR*")=0),"",SUM(L12,L19,L83,SUMIFS(受電取引帳票!S:S,受電取引帳票!$F:$F,"TR*",受電取引帳票!$K:$K,"調達電力（MW）"),-SUMIFS(送電取引帳票!S:S,送電取引帳票!$F:$F,"TR*",送電取引帳票!$K:$K,"販売電力（MW）"))) ->  | M24: =IF(AND(COUNT(M12,M19,M83)=0,COUNTIF(受電取引帳票!$F:$F,"TR*")+COUNTIF(送電取引帳票!$F:$F,"TR*")=0),"",SUM(M12,M19,M83,SUMIFS(受電取引帳票!T:T,受電取引帳票!$F:$F,"TR*",受電取引帳票!$K:$K,"調達電力（MW）"),-SUMIFS(送電取引帳票!T:T,送電取引帳票!$F:$F,"TR*",送電取引帳票!$K:$K,"販売電力（MW）"))) ->  | N24: =IF(AND(COUNT(N12,N19,N83)=0,COUNTIF(受電取引帳票!$F:$F,"TR*")+COUNTIF(送電取引帳票!$F:$F,"TR*")=0),"",SUM(N12,N19,N83,SUMIFS(受電取引帳票!U:U,受電取引帳票!$F:$F,"TR*",受電取引帳票!$K:$K,"調達電力（MW）"),-SUMIFS(送電取引帳票!U:U,送電取引帳票!$F:$F,"TR*",送電取引帳票!$K:$K,"販売電力（MW）"))) ->  | O24: =IF(AND(COUNT(O12,O19,O83)=0,COUNTIF(受電取引帳票!$F:$F,"TR*")+COUNTIF(送電取引帳票!$F:$F,"TR*")=0),"",SUM(O12,O19,O83,SUMIFS(受電取引帳票!V:V,受電取引帳票!$F:$F,"TR*",受電取引帳票!$K:$K,"調達電力（MW）"),-SUMIFS(送電取引帳票!V:V,送電取引帳票!$F:$F,"TR*",送電取引帳票!$K:$K,"販売電力（MW）"))) ->  | P24: =IF(AND(COUNT(P12,P19,P83)=0,COUNTIF(受電取引帳票!$F:$F,"TR*")+COUNTIF(送電取引帳票!$F:$F,"TR*")=0),"",SUM(P12,P19,P83,SUMIFS(受電取引帳票!W:W,受電取引帳票!$F:$F,"TR*",受電取引帳票!$K:$K,"調達電力（MW）"),-SUMIFS(送電取引帳票!W:W,送電取引帳票!$F:$F,"TR*",送電取引帳票!$K:$K,"販売電力（MW）"))) ->  | Q24: =IF(AND(COUNT(Q12,Q19,Q83)=0,COUNTIF(受電取引帳票!$F:$F,"TR*")+COUNTIF(送電取引帳票!$F:$F,"TR*")=0),"",SUM(Q12,Q19,Q83,SUMIFS(受電取引帳票!X:X,受電取引帳票!$F:$F,"TR*",受電取引帳票!$K:$K,"調達電力（MW）"),-SUMIFS(送電取引帳票!X:X,送電取引帳票!$F:$F,"TR*",送電取引帳票!$K:$K,"販売電力（MW）"))) ->  | R24: =IF(AND(COUNT(R12,R19,R83)=0,COUNTIF(受電取引帳票!$F:$F,"TR*")+COUNTIF(送電取引帳票!$F:$F,"TR*")=0),"",SUM(R12,R19,R83,SUMIFS(受電取引帳票!Y:Y,受電取引帳票!$F:$F,"TR*",受電取引帳票!$K:$K,"調達電力（MW）"),-SUMIFS(送電取引帳票!Y:Y,送電取引帳票!$F:$F,"TR*",送電取引帳票!$K:$K,"販売電力（MW）"))) ->  | S24: =IF(AND(COUNT(S12,S19,S83)=0,COUNTIF(受電取引帳票!$F:$F,"TR*")+COUNTIF(送電取引帳票!$F:$F,"TR*")=0),"",SUM(S12,S19,S83,SUMIFS(受電取引帳票!Z:Z,受電取引帳票!$F:$F,"TR*",受電取引帳票!$K:$K,"調達電力（MW）"),-SUMIFS(送電取引帳票!Z:Z,送電取引帳票!$F:$F,"TR*",送電取引帳票!$K:$K,"販売電力（MW）"))) ->  | T24: =IF(AND(COUNT(T12,T19,T83)=0,COUNTIF(受電取引帳票!$F:$F,"TR*")+COUNTIF(送電取引帳票!$F:$F,"TR*")=0),"",SUM(T12,T19,T83,SUMIFS(受電取引帳票!AA:AA,受電取引帳票!$F:$F,"TR*",受電取引帳票!$K:$K,"調達電力（MW）"),-SUMIFS(送電取引帳票!AA:AA,送電取引帳票!$F:$F,"TR*",送電取引帳票!$K:$K,"販売電力（MW）"))) ->  | U24: =IF(AND(COUNT(U12,U19,U83)=0,COUNTIF(受電取引帳票!$F:$F,"TR*")+COUNTIF(送電取引帳票!$F:$F,"TR*")=0),"",SUM(U12,U19,U83,SUMIFS(受電取引帳票!AB:AB,受電取引帳票!$F:$F,"TR*",受電取引帳票!$K:$K,"調達電力（MW）"),-SUMIFS(送電取引帳票!AB:AB,送電取引帳票!$F:$F,"TR*",送電取引帳票!$K:$K,"販売電力（MW）"))) ->  | V24: =IF(AND(COUNT(V12,V19,V83)=0,COUNTIF(受電取引帳票!$F:$F,"TR*")+COUNTIF(送電取引帳票!$F:$F,"TR*")=0),"",SUM(V12,V19,V83,SUMIFS(受電取引帳票!AC:AC,受電取引帳票!$F:$F,"TR*",受電取引帳票!$K:$K,"調達電力（MW）"),-SUMIFS(送電取引帳票!AC:AC,送電取引帳票!$F:$F,"TR*",送電取引帳票!$K:$K,"販売電力（MW）"))) ->  | W24: =IF(AND(COUNT(W12,W19,W83)=0,COUNTIF(受電取引帳票!$F:$F,"TR*")+COUNTIF(送電取引帳票!$F:$F,"TR*")=0),"",SUM(W12,W19,W83,SUMIFS(受電取引帳票!AD:AD,受電取引帳票!$F:$F,"TR*",受電取引帳票!$K:$K,"調達電力（MW）"),-SUMIFS(送電取引帳票!AD:AD,送電取引帳票!$F:$F,"TR*",送電取引帳票!$K:$K,"販売電力（MW）"))) ->  | X24: =IF(AND(COUNT(X12,X19,X83)=0,COUNTIF(受電取引帳票!$F:$F,"TR*")+COUNTIF(送電取引帳票!$F:$F,"TR*")=0),"",SUM(X12,X19,X83,SUMIFS(受電取引帳票!AE:AE,受電取引帳票!$F:$F,"TR*",受電取引帳票!$K:$K,"調達電力（MW）"),-SUMIFS(送電取引帳票!AE:AE,送電取引帳票!$F:$F,"TR*",送電取引帳票!$K:$K,"販売電力（MW）"))) ->  | Y24: =IF(AND(COUNT(Y12,Y19,Y83)=0,COUNTIF(受電取引帳票!$F:$F,"TR*")+COUNTIF(送電取引帳票!$F:$F,"TR*")=0),"",SUM(Y12,Y19,Y83,SUMIFS(受電取引帳票!AF:AF,受電取引帳票!$F:$F,"TR*",受電取引帳票!$K:$K,"調達電力（MW）"),-SUMIFS(送電取引帳票!AF:AF,送電取引帳票!$F:$F,"TR*",送電取引帳票!$K:$K,"販売電力（MW）"))) ->  | Z24: =IF(AND(COUNT(Z12,Z19,Z83)=0,COUNTIF(受電取引帳票!$F:$F,"TR*")+COUNTIF(送電取引帳票!$F:$F,"TR*")=0),"",SUM(Z12,Z19,Z83,SUMIFS(受電取引帳票!AG:AG,受電取引帳票!$F:$F,"TR*",受電取引帳票!$K:$K,"調達電力（MW）"),-SUMIFS(送電取引帳票!AG:AG,送電取引帳票!$F:$F,"TR*",送電取引帳票!$K:$K,"販売電力（MW）"))) ->  | AA24: =IF(AND(COUNT(AA12,AA19,AA83)=0,COUNTIF(受電取引帳票!$F:$F,"TR*")+COUNTIF(送電取引帳票!$F:$F,"TR*")=0),"",SUM(AA12,AA19,AA83,SUMIFS(受電取引帳票!AH:AH,受電取引帳票!$F:$F,"TR*",受電取引帳票!$K:$K,"調達電力（MW）"),-SUMIFS(送電取引帳票!AH:AH,送電取引帳票!$F:$F,"TR*",送電取引帳票!$K:$K,"販売電力（MW）"))) ->  | AB24: =IF(AND(COUNT(AB12,AB19,AB83)=0,COUNTIF(受電取引帳票!$F:$F,"TR*")+COUNTIF(送電取引帳票!$F:$F,"TR*")=0),"",SUM(AB12,AB19,AB83,SUMIFS(受電取引帳票!AI:AI,受電取引帳票!$F:$F,"TR*",受電取引帳票!$K:$K,"調達電力（MW）"),-SUMIFS(送電取引帳票!AI:AI,送電取引帳票!$F:$F,"TR*",送電取引帳票!$K:$K,"販売電力（MW）"))) ->  | AC24: =IF(COUNT(AC12,AC19,AC83)=0,"",SUM(AC12,AC19,AC83)) ->  | AD24: =IF(AND(COUNT(AD12,AD19,AD83)=0,COUNTIF(受電取引帳票!$F:$F,"TR*")+COUNTIF(送電取引帳票!$F:$F,"TR*")=0),"",SUM(AD12,AD19,AD83,SUMIFS(受電取引帳票!AL:AL,受電取引帳票!$F:$F,"TR*",受電取引帳票!$K:$K,"調達電力（MW）"),-SUMIFS(送電取引帳票!AL:AL,送電取引帳票!$F:$F,"TR*",送電取引帳票!$K:$K,"販売電力（MW）"))) ->  | AE24: =IF(AND(COUNT(AE12,AE19,AE83)=0,COUNTIF(受電取引帳票!$F:$F,"TR*")+COUNTIF(送電取引帳票!$F:$F,"TR*")=0),"",SUM(AE12,AE19,AE83,SUMIFS(受電取引帳票!AM:AM,受電取引帳票!$F:$F,"TR*",受電取引帳票!$K:$K,"調達電力（MW）"),-SUMIFS(送電取引帳票!AM:AM,送電取引帳票!$F:$F,"TR*",送電取引帳票!$K:$K,"販売電力（MW）"))) ->  | AF24: =IF(AND(COUNT(AF12,AF19,AF83)=0,COUNTIF(受電取引帳票!$F:$F,"TR*")+COUNTIF(送電取引帳票!$F:$F,"TR*")=0),"",SUM(AF12,AF19,AF83,SUMIFS(受電取引帳票!AN:AN,受電取引帳票!$F:$F,"TR*",受電取引帳票!$K:$K,"調達電力（MW）"),-SUMIFS(送電取引帳票!AN:AN,送電取引帳票!$F:$F,"TR*",送電取引帳票!$K:$K,"販売電力（MW）"))) ->  | AG24: =IF(AND(COUNT(AG12,AG19,AG83)=0,COUNTIF(受電取引帳票!$F:$F,"TR*")+COUNTIF(送電取引帳票!$F:$F,"TR*")=0),"",SUM(AG12,AG19,AG83,SUMIFS(受電取引帳票!AO:AO,受電取引帳票!$F:$F,"TR*",受電取引帳票!$K:$K,"調達電力（MW）"),-SUMIFS(送電取引帳票!AO:AO,送電取引帳票!$F:$F,"TR*",送電取引帳票!$K:$K,"販売電力（MW）"))) ->  | AH24: =IF(AND(COUNT(AH12,AH19,AH83)=0,COUNTIF(受電取引帳票!$F:$F,"TR*")+COUNTIF(送電取引帳票!$F:$F,"TR*")=0),"",SUM(AH12,AH19,AH83,SUMIFS(受電取引帳票!AP:AP,受電取引帳票!$F:$F,"TR*",受電取引帳票!$K:$K,"調達電力（MW）"),-SUMIFS(送電取引帳票!AP:AP,送電取引帳票!$F:$F,"TR*",送電取引帳票!$K:$K,"販売電力（MW）"))) ->  | AI24: =IF(AND(COUNT(AI12,AI19,AI83)=0,COUNTIF(受電取引帳票!$F:$F,"TR*")+COUNTIF(送電取引帳票!$F:$F,"TR*")=0),"",SUM(AI12,AI19,AI83,SUMIFS(受電取引帳票!AQ:AQ,受電取引帳票!$F:$F,"TR*",受電取引帳票!$K:$K,"調達電力（MW）"),-SUMIFS(送電取引帳票!AQ:AQ,送電取引帳票!$F:$F,"TR*",送電取引帳票!$K:$K,"販売電力（MW）"))) ->  | AJ24: =IF(AND(COUNT(AJ12,AJ19,AJ83)=0,COUNTIF(受電取引帳票!$F:$F,"TR*")+COUNTIF(送電取引帳票!$F:$F,"TR*")=0),"",SUM(AJ12,AJ19,AJ83,SUMIFS(受電取引帳票!AR:AR,受電取引帳票!$F:$F,"TR*",受電取引帳票!$K:$K,"調達電力（MW）"),-SUMIFS(送電取引帳票!AR:AR,送電取引帳票!$F:$F,"TR*",送電取引帳票!$K:$K,"販売電力（MW）"))) ->  | AK24: =IF(AND(COUNT(AK12,AK19,AK83)=0,COUNTIF(受電取引帳票!$F:$F,"TR*")+COUNTIF(送電取引帳票!$F:$F,"TR*")=0),"",SUM(AK12,AK19,AK83,SUMIFS(受電取引帳票!AS:AS,受電取引帳票!$F:$F,"TR*",受電取引帳票!$K:$K,"調達電力（MW）"),-SUMIFS(送電取引帳票!AS:AS,送電取引帳票!$F:$F,"TR*",送電取引帳票!$K:$K,"販売電力（MW）"))) ->  | AL24: =IF(AND(COUNT(AL12,AL19,AL83)=0,COUNTIF(受電取引帳票!$F:$F,"TR*")+COUNTIF(送電取引帳票!$F:$F,"TR*")=0),"",SUM(AL12,AL19,AL83,SUMIFS(受電取引帳票!AT:AT,受電取引帳票!$F:$F,"TR*",受電取引帳票!$K:$K,"調達電力（MW）"),-SUMIFS(送電取引帳票!AT:AT,送電取引帳票!$F:$F,"TR*",送電取引帳票!$K:$K,"販売電力（MW）"))) ->  | AM24: =IF(AND(COUNT(AM12,AM19,AM83)=0,COUNTIF(受電取引帳票!$F:$F,"TR*")+COUNTIF(送電取引帳票!$F:$F,"TR*")=0),"",SUM(AM12,AM19,AM83,SUMIFS(受電取引帳票!AU:AU,受電取引帳票!$F:$F,"TR*",受電取引帳票!$K:$K,"調達電力（MW）"),-SUMIFS(送電取引帳票!AU:AU,送電取引帳票!$F:$F,"TR*",送電取引帳票!$K:$K,"販売電力（MW）"))) -> 
A25: 需要電力（送電端） | D25: エリア全体 | I25: =IF($E$2="","",IF(COUNT(CHOOSE($E$2,'様式第33表（指定１）'!H14,'様式第33表（指定１）'!H44,'様式第33表（指定１）'!H74,'様式第33表（指定１）'!H104,'様式第33表（指定１）'!H134,'様式第33表（指定１）'!H164,'様式第33表（指定１）'!H194,'様式第33表（指定１）'!H224,'様式第33表（指定１）'!H254,'様式第33表（指定１）'!H284))=0,"",CHOOSE($E$2,'様式第33表（指定１）'!H14,'様式第33表（指定１）'!H44,'様式第33表（指定１）'!H74,'様式第33表（指定１）'!H104,'様式第33表（指定１）'!H134,'様式第33表（指定１）'!H164,'様式第33表（指定１）'!H194,'様式第33表（指定１）'!H224,'様式第33表（指定１）'!H254,'様式第33表（指定１）'!H284))) ->  | U25: =IF($E$2="","",IF(COUNT(CHOOSE($E$2,'様式第33表（指定１）'!I14,'様式第33表（指定１）'!I44,'様式第33表（指定１）'!I74,'様式第33表（指定１）'!I104,'様式第33表（指定１）'!I134,'様式第33表（指定１）'!I164,'様式第33表（指定１）'!I194,'様式第33表（指定１）'!I224,'様式第33表（指定１）'!I254,'様式第33表（指定１）'!I284))=0,"",CHOOSE($E$2,'様式第33表（指定１）'!I14,'様式第33表（指定１）'!I44,'様式第33表（指定１）'!I74,'様式第33表（指定１）'!I104,'様式第33表（指定１）'!I134,'様式第33表（指定１）'!I164,'様式第33表（指定１）'!I194,'様式第33表（指定１）'!I224,'様式第33表（指定１）'!I254,'様式第33表（指定１）'!I284))) ->  | AE25: =IF(U25="","",U25) ->  | AF25: =IF($E$2="","",IF(COUNT(CHOOSE($E$2,'様式第33表（指定１）'!J14,'様式第33表（指定１）'!J44,'様式第33表（指定１）'!J74,'様式第33表（指定１）'!J104,'様式第33表（指定１）'!J134,'様式第33表（指定１）'!J164,'様式第33表（指定１）'!J194,'様式第33表（指定１）'!J224,'様式第33表（指定１）'!J254,'様式第33表（指定１）'!J284))=0,"",CHOOSE($E$2,'様式第33表（指定１）'!J14,'様式第33表（指定１）'!J44,'様式第33表（指定１）'!J74,'様式第33表（指定１）'!J104,'様式第33表（指定１）'!J134,'様式第33表（指定１）'!J164,'様式第33表（指定１）'!J194,'様式第33表（指定１）'!J224,'様式第33表（指定１）'!J254,'様式第33表（指定１）'!J284))) ->  | AG25: =IF($E$2="","",IF(COUNT(CHOOSE($E$2,'様式第33表（指定１）'!K14,'様式第33表（指定１）'!K44,'様式第33表（指定１）'!K74,'様式第33表（指定１）'!K104,'様式第33表（指定１）'!K134,'様式第33表（指定１）'!K164,'様式第33表（指定１）'!K194,'様式第33表（指定１）'!K224,'様式第33表（指定１）'!K254,'様式第33表（指定１）'!K284))=0,"",CHOOSE($E$2,'様式第33表（指定１）'!K14,'様式第33表（指定１）'!K44,'様式第33表（指定１）'!K74,'様式第33表（指定１）'!K104,'様式第33表（指定１）'!K134,'様式第33表（指定１）'!K164,'様式第33表（指定１）'!K194,'様式第33表（指定１）'!K224,'様式第33表（指定１）'!K254,'様式第33表（指定１）'!K284))) ->  | AH25: =IF($E$2="","",IF(COUNT(CHOOSE($E$2,'様式第33表（指定１）'!L14,'様式第33表（指定１）'!L44,'様式第33表（指定１）'!L74,'様式第33表（指定１）'!L104,'様式第33表（指定１）'!L134,'様式第33表（指定１）'!L164,'様式第33表（指定１）'!L194,'様式第33表（指定１）'!L224,'様式第33表（指定１）'!L254,'様式第33表（指定１）'!L284))=0,"",CHOOSE($E$2,'様式第33表（指定１）'!L14,'様式第33表（指定１）'!L44,'様式第33表（指定１）'!L74,'様式第33表（指定１）'!L104,'様式第33表（指定１）'!L134,'様式第33表（指定１）'!L164,'様式第33表（指定１）'!L194,'様式第33表（指定１）'!L224,'様式第33表（指定１）'!L254,'様式第33表（指定１）'!L284))) ->  | AI25: =IF($E$2="","",IF(COUNT(CHOOSE($E$2,'様式第33表（指定１）'!M14,'様式第33表（指定１）'!M44,'様式第33表（指定１）'!M74,'様式第33表（指定１）'!M104,'様式第33表（指定１）'!M134,'様式第33表（指定１）'!M164,'様式第33表（指定１）'!M194,'様式第33表（指定１）'!M224,'様式第33表（指定１）'!M254,'様式第33表（指定１）'!M284))=0,"",CHOOSE($E$2,'様式第33表（指定１）'!M14,'様式第33表（指定１）'!M44,'様式第33表（指定１）'!M74,'様式第33表（指定１）'!M104,'様式第33表（指定１）'!M134,'様式第33表（指定１）'!M164,'様式第33表（指定１）'!M194,'様式第33表（指定１）'!M224,'様式第33表（指定１）'!M254,'様式第33表（指定１）'!M284))) ->  | AJ25: =IF($E$2="","",IF(COUNT(CHOOSE($E$2,'様式第33表（指定１）'!N14,'様式第33表（指定１）'!N44,'様式第33表（指定１）'!N74,'様式第33表（指定１）'!N104,'様式第33表（指定１）'!N134,'様式第33表（指定１）'!N164,'様式第33表（指定１）'!N194,'様式第33表（指定１）'!N224,'様式第33表（指定１）'!N254,'様式第33表（指定１）'!N284))=0,"",CHOOSE($E$2,'様式第33表（指定１）'!N14,'様式第33表（指定１）'!N44,'様式第33表（指定１）'!N74,'様式第33表（指定１）'!N104,'様式第33表（指定１）'!N134,'様式第33表（指定１）'!N164,'様式第33表（指定１）'!N194,'様式第33表（指定１）'!N224,'様式第33表（指定１）'!N254,'様式第33表（指定１）'!N284))) ->  | AK25: =IF($E$2="","",IF(COUNT(CHOOSE($E$2,'様式第33表（指定１）'!O14,'様式第33表（指定１）'!O44,'様式第33表（指定１）'!O74,'様式第33表（指定１）'!O104,'様式第33表（指定１）'!O134,'様式第33表（指定１）'!O164,'様式第33表（指定１）'!O194,'様式第33表（指定１）'!O224,'様式第33表（指定１）'!O254,'様式第33表（指定１）'!O284))=0,"",CHOOSE($E$2,'様式第33表（指定１）'!O14,'様式第33表（指定１）'!O44,'様式第33表（指定１）'!O74,'様式第33表（指定１）'!O104,'様式第33表（指定１）'!O134,'様式第33表（指定１）'!O164,'様式第33表（指定１）'!O194,'様式第33表（指定１）'!O224,'様式第33表（指定１）'!O254,'様式第33表（指定１）'!O284))) ->  | AL25: =IF($E$2="","",IF(COUNT(CHOOSE($E$2,'様式第33表（指定１）'!P14,'様式第33表（指定１）'!P44,'様式第33表（指定１）'!P74,'様式第33表（指定１）'!P104,'様式第33表（指定１）'!P134,'様式第33表（指定１）'!P164,'様式第33表（指定１）'!P194,'様式第33表（指定１）'!P224,'様式第33表（指定１）'!P254,'様式第33表（指定１）'!P284))=0,"",CHOOSE($E$2,'様式第33表（指定１）'!P14,'様式第33表（指定１）'!P44,'様式第33表（指定１）'!P74,'様式第33表（指定１）'!P104,'様式第33表（指定１）'!P134,'様式第33表（指定１）'!P164,'様式第33表（指定１）'!P194,'様式第33表（指定１）'!P224,'様式第33表（指定１）'!P254,'様式第33表（指定１）'!P284))) ->  | AM25: =IF($E$2="","",IF(COUNT(CHOOSE($E$2,'様式第33表（指定１）'!Q14,'様式第33表（指定１）'!Q44,'様式第33表（指定１）'!Q74,'様式第33表（指定１）'!Q104,'様式第33表（指定１）'!Q134,'様式第33表（指定１）'!Q164,'様式第33表（指定１）'!Q194,'様式第33表（指定１）'!Q224,'様式第33表（指定１）'!Q254,'様式第33表（指定１）'!Q284))=0,"",CHOOSE($E$2,'様式第33表（指定１）'!Q14,'様式第33表（指定１）'!Q44,'様式第33表（指定１）'!Q74,'様式第33表（指定１）'!Q104,'様式第33表（指定１）'!Q134,'様式第33表（指定１）'!Q164,'様式第33表（指定１）'!Q194,'様式第33表（指定１）'!Q224,'様式第33表（指定１）'!Q254,'様式第33表（指定１）'!Q284))) -> 
D26: （内訳）本土分 | E26: =IF(E25="","",E25-E27) ->  | F26: =IF(F25="","",F25-F27) ->  | AF26: =IF(AF25="","",AF25-AF27) -> 
D27: （内訳）離島分
A28: ひっ迫時需要抑制電力 （送電端） | D28: 小売電気事業者
D29: 一般送配電事業者
A30: 供給予備力送電端 | E30: =IF(E24="","",IF(E25="","",E24-E25)) ->  | F30: =IF(F24="","",IF(F25="","",F24-F25)) ->  | G30: =IF(G24="","",IF(G25="","",G24-G25)) ->  | Q30: =IF(Q24="","",IF(Q25="","",Q24-Q25)) ->  | AC30: =IF(AC24="","",IF(AC25="","",AC24-AC25)) ->  | AD30: =IF(I30="","",I30) -> 
A31: 下段：ひっ迫時需要抑制電力反映時 | E31: =IF(E24="","",IF(E25="","",E24-(E25-SUM(E28:E29)))) ->  | F31: =IF(F24="","",IF(F25="","",F24-(F25-SUM(F28:F29)))) ->  | Q31: =IF(Q24="","",IF(Q25="","",Q24-(Q25-SUM(Q28:Q29)))) ->  | AC31: =IF(AC24="","",IF(AC25="","",AC24-(AC25-SUM(AC28:AC29)))) -> 
A32: 供給予備率（％） | E32: =IF(E30="","",E30/E25*100) ->  | F32: =IF(F30="","",F30/F25*100) ->  | Q32: =IF(Q30="","",Q30/Q25*100) ->  | AC32: =IF(AC30="","",AC30/AC25*100) -> 
A33: 下段：ひっ迫時需要抑制電力反映時 | E33: =IF(E31="","",E31/(E25)*100) ->  | F33: =IF(F31="","",F31/(F25)*100) ->  | AC33: =IF(AC31="","",AC31/(AC25)*100) ->  | AD33: =IF(I33="","",I33) -> 
A34: 調整力確保量
A35: 調整力（％） | E35: =IF(E26="","",IF(E34="","",E34/E26*100)) ->  | F35: =IF(F26="","",IF(F34="","",F34/F26*100)) ->  | AC35: =IF(AC26="","",IF(AC34="","",AC34/AC26*100)) -> 
A36: 年度末電源構成 | B36: 水力発電所 | AC36: =IF(COUNT(AC37:AC38)=0,"",SUM(AC37:AC38)) ->  | AD36: =IF(COUNT(AD37:AD38)=0,"",SUM(AD37:AD38)) ->  | AE36: =IF(AE37="",IF(AE38="","",SUM(AE37:AE38)),SUM(AE37:AE38)) ->  | AH36: =IF(COUNT(AH37:AH38)=0,"",SUM(AH37:AH38)) ->  | AI36: =IF(AI37="",IF(AI38="","",SUM(AI37:AI38)),SUM(AI37:AI38)) ->  | AM36: =IF(COUNT(AM37:AM38)=0,"",SUM(AM37:AM38)) -> 
D37: 一般
D38: 揚水
B39: 火力発電所 | AC39: =IF(COUNT(AC40:AC46)=0,"",SUM(AC40:AC46)) ->  | AD39: =IF(COUNT(AD40:AD46)=0,"",SUM(AD40:AD46)) ->  | AH39: =IF(COUNT(AH40:AH46)=0,"",SUM(AH40:AH46)) ->  | AM39: =IF(COUNT(AM40:AM46)=0,"",SUM(AM40:AM46)) -> 
D40: 石炭
D41: ＬＮＧ
D42: 石油
D43: ＬＰＧ
D44: その他ガス
D45: 瀝青質混合物
D46: その他火力
B47: 原子力発電所
B48: 新エネルギー等発電所等 | AC48: =IF(COUNT(AC49:AC56)=0,"",SUM(AC49:AC56)) ->  | AD48: =IF(COUNT(AD49:AD56)=0,"",SUM(AD49:AD56)) ->  | AH48: =IF(COUNT(AH49:AH56)=0,"",SUM(AH49:AH56)) ->  | AM48: =IF(COUNT(AM49:AM56)=0,"",SUM(AM49:AM56)) -> 
D49: 風力
D50: 太陽光
D51: 地熱
D52: バイオマス
D53: 廃棄物
D54: 蓄電池
D55: 水素
D56: アンモニア
B57: その他
B58: 合計 | AC58: =IF(COUNT(AC36,AC39,AC47,AC48,AC57)=0,"",SUM(AC36,AC39,AC47,AC48,AC57)) ->  | AD58: =IF(COUNT(AD36,AD39,AD47,AD48,AD57)=0,"",SUM(AD36,AD39,AD47,AD48,AD57)) ->  | AH58: =IF(COUNT(AH36,AH39,AH47,AH48,AH57)=0,"",SUM(AH36,AH39,AH47,AH48,AH57)) ->  | AM58: =IF(COUNT(AM36,AM39,AM47,AM48,AM57)=0,"",SUM(AM36,AM39,AM47,AM48,AM57)) -> 
E60: 記載要領 | F60: ・各事業者の保有電源欄は、保有電源-合計（送電端）欄の合計値、非電気調達分は整合性一覧より非電気事業者との取引分（送受電分）の合計
F61: ・登録特定送配電送受電補正は、整合性一覧の受電シートより、登録特定送配電から発電･小売･特定卸受電分、発電･小売･特定事業者から登録特定送配電が受電する合計をそれぞれ入力する。
F62: ・ダブルカウント（突合せ確認）分は、突合せ確認漏れ等の修正として使用すること
F63: ・その他補正については、供給計画内容の誤り（供給力の二重計上や誤記等）の修正として使用すること。
A64: エリア供給力算定 | F64: ・広域機関補正欄、均平化潮流欄は、広域機関提供値を入力する。なお、均平化潮流は受電をプラス、送電をマイナスで入力する。 | AM64: 【ＭＷ】
A65: =A6 -> 項目 | E65: =E6 -> 2025-01-01 | Q65: =Q6 -> 2026-01-02 | AC65: =AC6 -> 2024-01-02 | AD65: 2025-01-01 | AE65: 2026-01-02 | AF65: 2027-01-03 | AG65: 2028-01-04 | AH65: 2029-01-04 | AI65: 2030-01-05 | AJ65: 2031-01-06 | AK65: 2032-01-07 | AL65: 2033-01-07 | AM65: 2034-01-08
E66: =E7 -> 4月 | F66: =F7 -> 5月 | G66: 6月 | H66: 7月 | I66: 8月 | J66: 9月 | K66: 10月 | L66: 11月 | M66: 12月 | N66: 1月 | O66: 2月 | P66: 3月 | Q66: =Q7 -> 4月 | R66: =R7 -> 5月 | S66: 6月 | T66: 7月 | U66: 8月 | V66: 9月 | W66: 10月 | X66: 11月 | Y66: 12月 | Z66: 1月 | AA66: 2月 | AB66: 3月 | AC66: 実績
A67: 発電事業者 | D67: 保有電源 | AD67: =IF(I67="","",I67) ->  | AE67: =IF(U67="","",U67) -> 
D68: 非電気調達
A69: 小売電気事業者 | D69: 保有電源
D70: 非電気調達
A71: 特定卸供給事業者 | D71: 保有電源
D72: 非電気調達
A73: 補正 | B73: 登録特定送配電 送受電補正 | D73: 発電･小売･特定卸受電分
D74: 登録特定受電分
D75: 差 | E75: =IF(COUNT(E73:E74)=0,"",SUM(E73)-SUM(E74)) ->  | F75: =IF(COUNT(F73:F74)=0,"",SUM(F73)-SUM(F74)) ->  | AF75: =IF(COUNT(AF73:AF74)=0,"",SUM(AF73)-SUM(AF74)) -> 
B76: ダブルカウント（突合せ確認）分 （内訳： ）
B77: 補修調整分
B78: 系統運用電力補正
B79: 離島補正
B80: その他補正 （補正内容： ）
B81: 広域機関補正
B82: 均平化潮流
B83: 合計 | E83: =IF((COUNT(E67:E72)+COUNT(E75:E82))=0,"",SUM(E67:E72,E75:E82)) ->  | AF83: =IF((COUNT(AF67:AF72)+COUNT(AF75:AF82))=0,"",SUM(AF67:AF72,AF75:AF82)) -> 

Sheet 補正（ｋW）指定２
A2: 供給区域 | C2: =IF('補正（ｋW）指定１'!$C$2="","",'補正（ｋW）指定１'!$C$2) ->  | D2: エリア | E2: =IF(C2="北海道",1,IF(C2="東北",2,IF(C2="北陸",5,IF(C2="","","作成不要")))) -> 
F3: 入力箇所 | I3: リンク箇所 | L3: 自動計算 | AD3: 入力箇所 | AG3: リンク箇所 | AJ3: 自動計算
A5: 補正前供給力 | AM5: 【ＭＷ】
A6: 項目 | E6: ='補正（ｋW）指定１'!E6 -> 2025-01-01 | Q6: ='補正（ｋW）指定１'!Q6 -> 2026-01-02 | AC6: ='補正（ｋW）指定１'!AC6 -> 2024-01-02 | AD6: ='補正（ｋW）指定１'!AD6:AD7 -> 2025-01-01 | AE6: ='補正（ｋW）指定１'!AE6:AE7 -> 2026-01-02 | AF6: ='補正（ｋW）指定１'!AF6:AF7 -> 2027-01-03 | AG6: ='補正（ｋW）指定１'!AG6:AG7 -> 2028-01-04 | AH6: ='補正（ｋW）指定１'!AH6:AH7 -> 2029-01-04 | AI6: ='補正（ｋW）指定１'!AI6:AI7 -> 2030-01-05 | AJ6: ='補正（ｋW）指定１'!AJ6:AJ7 -> 2031-01-06 | AK6: ='補正（ｋW）指定１'!AK6:AK7 -> 2032-01-07 | AL6: ='補正（ｋW）指定１'!AL6:AL7 -> 2033-01-07 | AM6: ='補正（ｋW）指定１'!AM6:AM7 -> 2034-01-08
E7: 4月 | F7: 5月 | G7: 6月 | H7: 7月 | I7: 8月 | J7: 9月 | K7: 10月 | L7: 11月 | M7: 12月 | N7: 1月 | O7: 2月 | P7: 3月 | Q7: 4月 | R7: 5月 | S7: 6月 | T7: 7月 | U7: 8月 | V7: 9月 | W7: 10月 | X7: 11月 | Y7: 12月 | Z7: 1月 | AA7: 2月 | AB7: 3月 | AC7: 実績
A8: 供給力 | B8: 保有 電力 | C8: 水力発電所（送電端） | AD8: =IF('補正（ｋW）指定１'!$N8="","",IF($E$2="作成不要","",'補正（ｋW）指定１'!$N8)) ->  | AE8: =IF('補正（ｋW）指定１'!$Z8="","",IF($E$2="作成不要","",'補正（ｋW）指定１'!$Z8)) -> 
C9: 火力発電所（送電端） | AD9: =IF('補正（ｋW）指定１'!$N9="","",IF($E$2="作成不要","",'補正（ｋW）指定１'!$N9)) ->  | AE9: =IF('補正（ｋW）指定１'!$Z9="","",IF($E$2="作成不要","",'補正（ｋW）指定１'!$Z9)) -> 
C10: 原子力発電所（送電端） | AD10: =IF('補正（ｋW）指定１'!$N10="","",IF($E$2="作成不要","",'補正（ｋW）指定１'!$N10)) ->  | AE10: =IF('補正（ｋW）指定１'!$Z10="","",IF($E$2="作成不要","",'補正（ｋW）指定１'!$Z10)) -> 
C11: 新エネルギー等発電所等（送電端） | AD11: =IF('補正（ｋW）指定１'!$N11="","",IF($E$2="作成不要","",'補正（ｋW）指定１'!$N11)) ->  | AE11: =IF('補正（ｋW）指定１'!$Z11="","",IF($E$2="作成不要","",'補正（ｋW）指定１'!$Z11)) -> 
C12: 合計（送電端） | AC12: =IF(COUNT(AC8:AC11)=0,"",SUM(AC8:AC11)) ->  | AD12: =IF('補正（ｋW）指定１'!$N12="","",IF($E$2="作成不要","",'補正（ｋW）指定１'!$N12)) ->  | AE12: =IF('補正（ｋW）指定１'!$Z12="","",IF($E$2="作成不要","",'補正（ｋW）指定１'!$Z12)) ->  | AF12: =IF(COUNT(AF8:AF11)=0,"",SUM(AF8:AF11)) -> 
B13: 調達分 | C13: 発電事業者 | AD13: =IF('補正（ｋW）指定１'!$N13="","",IF($E$2="作成不要","",'補正（ｋW）指定１'!$N13)) ->  | AE13: =IF('補正（ｋW）指定１'!$Z13="","",IF($E$2="作成不要","",'補正（ｋW）指定１'!$Z13)) -> 
C14: 特定卸供給事業者 | AD14: =IF('補正（ｋW）指定１'!$N14="","",IF($E$2="作成不要","",'補正（ｋW）指定１'!$N14)) ->  | AE14: =IF('補正（ｋW）指定１'!$Z14="","",IF($E$2="作成不要","",'補正（ｋW）指定１'!$Z14)) -> 
C15: 一般送配電事業者 | AD15: =IF('補正（ｋW）指定１'!$N15="","",IF($E$2="作成不要","",'補正（ｋW）指定１'!$N15)) ->  | AE15: =IF('補正（ｋW）指定１'!$Z15="","",IF($E$2="作成不要","",'補正（ｋW）指定１'!$Z15)) -> 
C16: 配電事業者 | AD16: =IF('補正（ｋW）指定１'!$N16="","",IF($E$2="作成不要","",'補正（ｋW）指定１'!$N16)) ->  | AE16: =IF('補正（ｋW）指定１'!$Z16="","",IF($E$2="作成不要","",'補正（ｋW）指定１'!$Z16)) -> 
C17: 小売電気事業者 | AD17: =IF('補正（ｋW）指定１'!$N17="","",IF($E$2="作成不要","",'補正（ｋW）指定１'!$N17)) ->  | AE17: =IF('補正（ｋW）指定１'!$Z17="","",IF($E$2="作成不要","",'補正（ｋW）指定１'!$Z17)) -> 
C18: その他 | D18: 取引所 | AD18: =IF('補正（ｋW）指定１'!$N18="","",IF($E$2="作成不要","",'補正（ｋW）指定１'!$N18)) ->  | AE18: =IF('補正（ｋW）指定１'!$Z18="","",IF($E$2="作成不要","",'補正（ｋW）指定１'!$Z18)) -> 
D19: その他 | AD19: =IF('補正（ｋW）指定１'!$N19="","",IF($E$2="作成不要","",'補正（ｋW）指定１'!$N19)) ->  | AE19: =IF('補正（ｋW）指定１'!$Z19="","",IF($E$2="作成不要","",'補正（ｋW）指定１'!$Z19)) -> 
B20: 調達先未定 | AD20: =IF('補正（ｋW）指定１'!$N20="","",IF($E$2="作成不要","",'補正（ｋW）指定１'!$N20)) ->  | AE20: =IF('補正（ｋW）指定１'!$Z20="","",IF($E$2="作成不要","",'補正（ｋW）指定１'!$Z20)) -> 
B21: （上段：取引所、下段：その他） | AD21: =IF('補正（ｋW）指定１'!$N21="","",IF($E$2="作成不要","",'補正（ｋW）指定１'!$N21)) ->  | AE21: =IF('補正（ｋW）指定１'!$Z21="","",IF($E$2="作成不要","",'補正（ｋW）指定１'!$Z21)) -> 
B22: 【送配電】合計（送電端） | AC22: =IF(COUNT(AC12:AC21)=0,"",SUM(AC12:AC21)) ->  | AD22: =IF('補正（ｋW）指定１'!$N22="","",IF($E$2="作成不要","",'補正（ｋW）指定１'!$N22)) ->  | AE22: =IF('補正（ｋW）指定１'!$Z22="","",IF($E$2="作成不要","",'補正（ｋW）指定１'!$Z22)) -> 
B23: 発動指令電源供給力（再掲） | AD23: =IF('補正（ｋW）指定１'!$N23="","",IF($E$2="作成不要","",'補正（ｋW）指定１'!$N23)) ->  | AE23: =IF('補正（ｋW）指定１'!$Z23="","",IF($E$2="作成不要","",'補正（ｋW）指定１'!$Z23)) -> 
B24: 【ｴﾘｱ】合計（送電端） | AC24: =IF(COUNT(AC12:AC19,AC78)=0,"",SUM(AC12:AC19,AC78)) ->  | AD24: =IF('補正（ｋW）指定１'!$N24="","",IF($E$2="作成不要","",'補正（ｋW）指定１'!$N24)) ->  | AE24: =IF('補正（ｋW）指定１'!$Z24="","",IF($E$2="作成不要","",'補正（ｋW）指定１'!$Z24)) ->  | AF24: =IF(COUNT(AF12:AF19,AF78)=0,"",SUM(AF12:AF19,AF78)) -> 
A25: 需要電力（送電端） | D25: エリア全体 | AD25: =IF('補正（ｋW）指定１'!$N25="","",IF($E$2="作成不要","",'補正（ｋW）指定１'!$N25)) ->  | AE25: =IF('補正（ｋW）指定１'!$Z25="","",IF($E$2="作成不要","",'補正（ｋW）指定１'!$Z25)) ->  | AF25: =IF($E$2="","",IF($E$2="作成不要","",IF(COUNT(CHOOSE($E$2,'様式第33表（指定２）'!J14,'様式第33表（指定２）'!J44,"","",'様式第33表（指定２）'!J134))=0,"",CHOOSE($E$2,'様式第33表（指定２）'!J14,'様式第33表（指定２）'!J44,"","",'様式第33表（指定２）'!J134)))) ->  | AG25: =IF($E$2="","",IF($E$2="作成不要","",IF(COUNT(CHOOSE($E$2,'様式第33表（指定２）'!K14,'様式第33表（指定２）'!K44,"","",'様式第33表（指定２）'!K134))=0,"",CHOOSE($E$2,'様式第33表（指定２）'!K14,'様式第33表（指定２）'!K44,"","",'様式第33表（指定２）'!K134)))) ->  | AH25: =IF($E$2="","",IF($E$2="作成不要","",IF(COUNT(CHOOSE($E$2,'様式第33表（指定２）'!L14,'様式第33表（指定２）'!L44,"","",'様式第33表（指定２）'!L134))=0,"",CHOOSE($E$2,'様式第33表（指定２）'!L14,'様式第33表（指定２）'!L44,"","",'様式第33表（指定２）'!L134)))) ->  | AI25: =IF($E$2="","",IF($E$2="作成不要","",IF(COUNT(CHOOSE($E$2,'様式第33表（指定２）'!M14,'様式第33表（指定２）'!M44,"","",'様式第33表（指定２）'!M134))=0,"",CHOOSE($E$2,'様式第33表（指定２）'!M14,'様式第33表（指定２）'!M44,"","",'様式第33表（指定２）'!M134)))) ->  | AJ25: =IF($E$2="","",IF($E$2="作成不要","",IF(COUNT(CHOOSE($E$2,'様式第33表（指定２）'!N14,'様式第33表（指定２）'!N44,"","",'様式第33表（指定２）'!N134))=0,"",CHOOSE($E$2,'様式第33表（指定２）'!N14,'様式第33表（指定２）'!N44,"","",'様式第33表（指定２）'!N134)))) ->  | AK25: =IF($E$2="","",IF($E$2="作成不要","",IF(COUNT(CHOOSE($E$2,'様式第33表（指定２）'!O14,'様式第33表（指定２）'!O44,"","",'様式第33表（指定２）'!O134))=0,"",CHOOSE($E$2,'様式第33表（指定２）'!O14,'様式第33表（指定２）'!O44,"","",'様式第33表（指定２）'!O134)))) ->  | AL25: =IF($E$2="","",IF($E$2="作成不要","",IF(COUNT(CHOOSE($E$2,'様式第33表（指定２）'!P14,'様式第33表（指定２）'!P44,"","",'様式第33表（指定２）'!P134))=0,"",CHOOSE($E$2,'様式第33表（指定２）'!P14,'様式第33表（指定２）'!P44,"","",'様式第33表（指定２）'!P134)))) ->  | AM25: =IF($E$2="","",IF($E$2="作成不要","",IF(COUNT(CHOOSE($E$2,'様式第33表（指定２）'!Q14,'様式第33表（指定２）'!Q44,"","",'様式第33表（指定２）'!Q134))=0,"",CHOOSE($E$2,'様式第33表（指定２）'!Q14,'様式第33表（指定２）'!Q44,"","",'様式第33表（指定２）'!Q134)))) -> 
D26: （内訳）本土分 | AC26: =IF(AC25="","",AC25-AC27) ->  | AD26: =IF('補正（ｋW）指定１'!$N26="","",IF($E$2="作成不要","",'補正（ｋW）指定１'!$N26)) ->  | AE26: =IF('補正（ｋW）指定１'!$Z26="","",IF($E$2="作成不要","",'補正（ｋW）指定１'!$Z26)) ->  | AF26: =IF(AF25="","",AF25-AF27) -> 
D27: （内訳）離島分 | AD27: =IF('補正（ｋW）指定１'!$N27="","",IF($E$2="作成不要","",'補正（ｋW）指定１'!$N27)) ->  | AE27: =IF('補正（ｋW）指定１'!$Z27="","",IF($E$2="作成不要","",'補正（ｋW）指定１'!$Z27)) -> 
A28: ひっ迫時需要抑制電力 （送電端） | D28: 小売電気事業者 | AD28: =IF('補正（ｋW）指定１'!$N28="","",IF($E$2="作成不要","",'補正（ｋW）指定１'!$N28)) ->  | AE28: =IF('補正（ｋW）指定１'!$Z28="","",IF($E$2="作成不要","",'補正（ｋW）指定１'!$Z28)) -> 
D29: 一般送配電事業者 | AD29: =IF('補正（ｋW）指定１'!$N29="","",IF($E$2="作成不要","",'補正（ｋW）指定１'!$N29)) ->  | AE29: =IF('補正（ｋW）指定１'!$Z29="","",IF($E$2="作成不要","",'補正（ｋW）指定１'!$Z29)) -> 
A30: 供給予備力送電端 | AC30: =IF(AC24="","",IF(AC25="","",AC24-AC25)) ->  | AD30: =IF('補正（ｋW）指定１'!$N30="","",IF($E$2="作成不要","",'補正（ｋW）指定１'!$N30)) ->  | AE30: =IF('補正（ｋW）指定１'!$Z30="","",IF($E$2="作成不要","",'補正（ｋW）指定１'!$Z30)) ->  | AF30: =IF(AF24="","",IF(AF25="","",AF24-AF25)) -> 
A31: 下段：ひっ迫時需要抑制電力反映時 | AC31: =IF(AC24="","",IF(AC25="","",AC24-(AC25-SUM(AC28:AC29)))) ->  | AD31: =IF('補正（ｋW）指定１'!$N31="","",IF($E$2="作成不要","",'補正（ｋW）指定１'!$N31)) ->  | AE31: =IF('補正（ｋW）指定１'!$Z31="","",IF($E$2="作成不要","",'補正（ｋW）指定１'!$Z31)) ->  | AF31: =IF(AF24="","",IF(AF25="","",AF24-(AF25-SUM(AF28:AF29)))) -> 
A32: 供給予備率（％） | AC32: =IF(AC30="","",AC30/AC25*100) ->  | AD32: =IF('補正（ｋW）指定１'!$N32="","",IF($E$2="作成不要","",'補正（ｋW）指定１'!$N32)) ->  | AE32: =IF('補正（ｋW）指定１'!$Z32="","",IF($E$2="作成不要","",'補正（ｋW）指定１'!$Z32)) ->  | AF32: =IF(AF30="","",AF30/AF25*100) -> 
A33: 下段：ひっ迫時需要抑制電力反映時 | AC33: =IF(AC31="","",AC31/(AC25)*100) ->  | AD33: =IF('補正（ｋW）指定１'!$N33="","",IF($E$2="作成不要","",'補正（ｋW）指定１'!$N33)) ->  | AE33: =IF('補正（ｋW）指定１'!$Z33="","",IF($E$2="作成不要","",'補正（ｋW）指定１'!$Z33)) ->  | AF33: =IF(AF31="","",AF31/(AF25)*100) ->  | AG33: =IF(AG31="","",AG31/(AG25)*100) -> 
A34: 調整力確保量 | AD34: =IF('補正（ｋW）指定１'!$N34="","",IF($E$2="作成不要","",'補正（ｋW）指定１'!$N34)) ->  | AE34: =IF('補正（ｋW）指定１'!$Z34="","",IF($E$2="作成不要","",'補正（ｋW）指定１'!$Z34)) -> 
A35: 調整力（％） | AC35: =IF(AC25="","",IF(AC34="","",AC34/AC25*100)) ->  | AD35: =IF('補正（ｋW）指定１'!$N35="","",IF($E$2="作成不要","",'補正（ｋW）指定１'!$N35)) ->  | AE35: =IF('補正（ｋW）指定１'!$Z35="","",IF($E$2="作成不要","",'補正（ｋW）指定１'!$Z35)) -> 
A36: 年度末電源構成 | B36: 水力発電所 | AC36: =IF('補正（ｋW）指定１'!AC36="","",IF($E$2="作成不要","",'補正（ｋW）指定１'!AC36)) ->  | AD36: =IF('補正（ｋW）指定１'!AD36="","",IF($E$2="作成不要","",'補正（ｋW）指定１'!AD36)) ->  | AE36: =IF(AE37="",IF(AE38="","",SUM(AE37:AE38)),SUM(AE37:AE38)) ->  | AH36: =IF('補正（ｋW）指定１'!AH36="","",IF($E$2="作成不要","",'補正（ｋW）指定１'!AH36)) ->  | AI36: =IF(AI37="",IF(AI38="","",SUM(AI37:AI38)),SUM(AI37:AI38)) ->  | AM36: =IF('補正（ｋW）指定１'!AM36="","",IF($E$2="作成不要","",'補正（ｋW）指定１'!AM36)) -> 
D37: 一般 | AC37: =IF('補正（ｋW）指定１'!AC37="","",IF($E$2="作成不要","",'補正（ｋW）指定１'!AC37)) ->  | AD37: =IF('補正（ｋW）指定１'!AD37="","",IF($E$2="作成不要","",'補正（ｋW）指定１'!AD37)) ->  | AH37: =IF('補正（ｋW）指定１'!AH37="","",IF($E$2="作成不要","",'補正（ｋW）指定１'!AH37)) ->  | AM37: =IF('補正（ｋW）指定１'!AM37="","",IF($E$2="作成不要","",'補正（ｋW）指定１'!AM37)) -> 
D38: 揚水 | AC38: =IF('補正（ｋW）指定１'!AC38="","",IF($E$2="作成不要","",'補正（ｋW）指定１'!AC38)) ->  | AD38: =IF('補正（ｋW）指定１'!AD38="","",IF($E$2="作成不要","",'補正（ｋW）指定１'!AD38)) ->  | AH38: =IF('補正（ｋW）指定１'!AH38="","",IF($E$2="作成不要","",'補正（ｋW）指定１'!AH38)) ->  | AM38: =IF('補正（ｋW）指定１'!AM38="","",IF($E$2="作成不要","",'補正（ｋW）指定１'!AM38)) -> 
B39: 火力発電所 | AC39: =IF('補正（ｋW）指定１'!AC39="","",IF($E$2="作成不要","",'補正（ｋW）指定１'!AC39)) ->  | AD39: =IF('補正（ｋW）指定１'!AD39="","",IF($E$2="作成不要","",'補正（ｋW）指定１'!AD39)) ->  | AH39: =IF('補正（ｋW）指定１'!AH39="","",IF($E$2="作成不要","",'補正（ｋW）指定１'!AH39)) ->  | AM39: =IF('補正（ｋW）指定１'!AM39="","",IF($E$2="作成不要","",'補正（ｋW）指定１'!AM39)) -> 
D40: 石炭 | AC40: =IF('補正（ｋW）指定１'!AC40="","",IF($E$2="作成不要","",'補正（ｋW）指定１'!AC40)) ->  | AD40: =IF('補正（ｋW）指定１'!AD40="","",IF($E$2="作成不要","",'補正（ｋW）指定１'!AD40)) ->  | AH40: =IF('補正（ｋW）指定１'!AH40="","",IF($E$2="作成不要","",'補正（ｋW）指定１'!AH40)) ->  | AM40: =IF('補正（ｋW）指定１'!AM40="","",IF($E$2="作成不要","",'補正（ｋW）指定１'!AM40)) -> 
D41: ＬＮＧ | AC41: =IF('補正（ｋW）指定１'!AC41="","",IF($E$2="作成不要","",'補正（ｋW）指定１'!AC41)) ->  | AD41: =IF('補正（ｋW）指定１'!AD41="","",IF($E$2="作成不要","",'補正（ｋW）指定１'!AD41)) ->  | AH41: =IF('補正（ｋW）指定１'!AH41="","",IF($E$2="作成不要","",'補正（ｋW）指定１'!AH41)) ->  | AM41: =IF('補正（ｋW）指定１'!AM41="","",IF($E$2="作成不要","",'補正（ｋW）指定１'!AM41)) -> 
D42: 石油 | AC42: =IF('補正（ｋW）指定１'!AC42="","",IF($E$2="作成不要","",'補正（ｋW）指定１'!AC42)) ->  | AD42: =IF('補正（ｋW）指定１'!AD42="","",IF($E$2="作成不要","",'補正（ｋW）指定１'!AD42)) ->  | AH42: =IF('補正（ｋW）指定１'!AH42="","",IF($E$2="作成不要","",'補正（ｋW）指定１'!AH42)) ->  | AM42: =IF('補正（ｋW）指定１'!AM42="","",IF($E$2="作成不要","",'補正（ｋW）指定１'!AM42)) -> 
D43: ＬＰＧ | AC43: =IF('補正（ｋW）指定１'!AC43="","",IF($E$2="作成不要","",'補正（ｋW）指定１'!AC43)) ->  | AD43: =IF('補正（ｋW）指定１'!AD43="","",IF($E$2="作成不要","",'補正（ｋW）指定１'!AD43)) ->  | AH43: =IF('補正（ｋW）指定１'!AH43="","",IF($E$2="作成不要","",'補正（ｋW）指定１'!AH43)) ->  | AM43: =IF('補正（ｋW）指定１'!AM43="","",IF($E$2="作成不要","",'補正（ｋW）指定１'!AM43)) -> 
D44: その他ガス | AC44: =IF('補正（ｋW）指定１'!AC44="","",IF($E$2="作成不要","",'補正（ｋW）指定１'!AC44)) ->  | AD44: =IF('補正（ｋW）指定１'!AD44="","",IF($E$2="作成不要","",'補正（ｋW）指定１'!AD44)) ->  | AH44: =IF('補正（ｋW）指定１'!AH44="","",IF($E$2="作成不要","",'補正（ｋW）指定１'!AH44)) ->  | AM44: =IF('補正（ｋW）指定１'!AM44="","",IF($E$2="作成不要","",'補正（ｋW）指定１'!AM44)) -> 
D45: 瀝青質混合物 | AC45: =IF('補正（ｋW）指定１'!AC45="","",IF($E$2="作成不要","",'補正（ｋW）指定１'!AC45)) ->  | AD45: =IF('補正（ｋW）指定１'!AD45="","",IF($E$2="作成不要","",'補正（ｋW）指定１'!AD45)) ->  | AH45: =IF('補正（ｋW）指定１'!AH45="","",IF($E$2="作成不要","",'補正（ｋW）指定１'!AH45)) ->  | AM45: =IF('補正（ｋW）指定１'!AM45="","",IF($E$2="作成不要","",'補正（ｋW）指定１'!AM45)) -> 
D46: その他火力 | AC46: =IF('補正（ｋW）指定１'!AC46="","",IF($E$2="作成不要","",'補正（ｋW）指定１'!AC46)) ->  | AD46: =IF('補正（ｋW）指定１'!AD46="","",IF($E$2="作成不要","",'補正（ｋW）指定１'!AD46)) ->  | AH46: =IF('補正（ｋW）指定１'!AH46="","",IF($E$2="作成不要","",'補正（ｋW）指定１'!AH46)) ->  | AM46: =IF('補正（ｋW）指定１'!AM46="","",IF($E$2="作成不要","",'補正（ｋW）指定１'!AM46)) -> 
B47: 原子力発電所 | AC47: =IF('補正（ｋW）指定１'!AC47="","",IF($E$2="作成不要","",'補正（ｋW）指定１'!AC47)) ->  | AD47: =IF('補正（ｋW）指定１'!AD47="","",IF($E$2="作成不要","",'補正（ｋW）指定１'!AD47)) ->  | AH47: =IF('補正（ｋW）指定１'!AH47="","",IF($E$2="作成不要","",'補正（ｋW）指定１'!AH47)) ->  | AM47: =IF('補正（ｋW）指定１'!AM47="","",IF($E$2="作成不要","",'補正（ｋW）指定１'!AM47)) -> 
B48: 新エネルギー等発電所等 | AC48: =IF('補正（ｋW）指定１'!AC48="","",IF($E$2="作成不要","",'補正（ｋW）指定１'!AC48)) ->  | AD48: =IF('補正（ｋW）指定１'!AD48="","",IF($E$2="作成不要","",'補正（ｋW）指定１'!AD48)) ->  | AH48: =IF('補正（ｋW）指定１'!AH48="","",IF($E$2="作成不要","",'補正（ｋW）指定１'!AH48)) ->  | AM48: =IF('補正（ｋW）指定１'!AM48="","",IF($E$2="作成不要","",'補正（ｋW）指定１'!AM48)) -> 
D49: 風力 | AC49: =IF('補正（ｋW）指定１'!AC49="","",IF($E$2="作成不要","",'補正（ｋW）指定１'!AC49)) ->  | AD49: =IF('補正（ｋW）指定１'!AD49="","",IF($E$2="作成不要","",'補正（ｋW）指定１'!AD49)) ->  | AH49: =IF('補正（ｋW）指定１'!AH49="","",IF($E$2="作成不要","",'補正（ｋW）指定１'!AH49)) ->  | AM49: =IF('補正（ｋW）指定１'!AM49="","",IF($E$2="作成不要","",'補正（ｋW）指定１'!AM49)) -> 
D50: 太陽光 | AC50: =IF('補正（ｋW）指定１'!AC50="","",IF($E$2="作成不要","",'補正（ｋW）指定１'!AC50)) ->  | AD50: =IF('補正（ｋW）指定１'!AD50="","",IF($E$2="作成不要","",'補正（ｋW）指定１'!AD50)) ->  | AH50: =IF('補正（ｋW）指定１'!AH50="","",IF($E$2="作成不要","",'補正（ｋW）指定１'!AH50)) ->  | AM50: =IF('補正（ｋW）指定１'!AM50="","",IF($E$2="作成不要","",'補正（ｋW）指定１'!AM50)) -> 
D51: 地熱 | AC51: =IF('補正（ｋW）指定１'!AC51="","",IF($E$2="作成不要","",'補正（ｋW）指定１'!AC51)) ->  | AD51: =IF('補正（ｋW）指定１'!AD51="","",IF($E$2="作成不要","",'補正（ｋW）指定１'!AD51)) ->  | AH51: =IF('補正（ｋW）指定１'!AH51="","",IF($E$2="作成不要","",'補正（ｋW）指定１'!AH51)) ->  | AM51: =IF('補正（ｋW）指定１'!AM51="","",IF($E$2="作成不要","",'補正（ｋW）指定１'!AM51)) -> 
D52: バイオマス | AC52: =IF('補正（ｋW）指定１'!AC52="","",IF($E$2="作成不要","",'補正（ｋW）指定１'!AC52)) ->  | AD52: =IF('補正（ｋW）指定１'!AD52="","",IF($E$2="作成不要","",'補正（ｋW）指定１'!AD52)) ->  | AH52: =IF('補正（ｋW）指定１'!AH52="","",IF($E$2="作成不要","",'補正（ｋW）指定１'!AH52)) ->  | AM52: =IF('補正（ｋW）指定１'!AM52="","",IF($E$2="作成不要","",'補正（ｋW）指定１'!AM52)) -> 
D53: 廃棄物 | AC53: =IF('補正（ｋW）指定１'!AC53="","",IF($E$2="作成不要","",'補正（ｋW）指定１'!AC53)) ->  | AD53: =IF('補正（ｋW）指定１'!AD53="","",IF($E$2="作成不要","",'補正（ｋW）指定１'!AD53)) ->  | AH53: =IF('補正（ｋW）指定１'!AH53="","",IF($E$2="作成不要","",'補正（ｋW）指定１'!AH53)) ->  | AM53: =IF('補正（ｋW）指定１'!AM53="","",IF($E$2="作成不要","",'補正（ｋW）指定１'!AM53)) -> 
D54: 蓄電池 | AC54: =IF('補正（ｋW）指定１'!AC54="","",IF($E$2="作成不要","",'補正（ｋW）指定１'!AC54)) ->  | AD54: =IF('補正（ｋW）指定１'!AD54="","",IF($E$2="作成不要","",'補正（ｋW）指定１'!AD54)) ->  | AH54: =IF('補正（ｋW）指定１'!AH54="","",IF($E$2="作成不要","",'補正（ｋW）指定１'!AH54)) ->  | AM54: =IF('補正（ｋW）指定１'!AM54="","",IF($E$2="作成不要","",'補正（ｋW）指定１'!AM54)) -> 
D55: 水素 | AC55: =IF('補正（ｋW）指定１'!AC55="","",IF($E$2="作成不要","",'補正（ｋW）指定１'!AC55)) ->  | AD55: =IF('補正（ｋW）指定１'!AD55="","",IF($E$2="作成不要","",'補正（ｋW）指定１'!AD55)) ->  | AH55: =IF('補正（ｋW）指定１'!AH55="","",IF($E$2="作成不要","",'補正（ｋW）指定１'!AH55)) ->  | AM55: =IF('補正（ｋW）指定１'!AM55="","",IF($E$2="作成不要","",'補正（ｋW）指定１'!AM55)) -> 
D56: アンモニア | AC56: =IF('補正（ｋW）指定１'!AC56="","",IF($E$2="作成不要","",'補正（ｋW）指定１'!AC56)) ->  | AD56: =IF('補正（ｋW）指定１'!AD56="","",IF($E$2="作成不要","",'補正（ｋW）指定１'!AD56)) ->  | AH56: =IF('補正（ｋW）指定１'!AH56="","",IF($E$2="作成不要","",'補正（ｋW）指定１'!AH56)) ->  | AM56: =IF('補正（ｋW）指定１'!AM56="","",IF($E$2="作成不要","",'補正（ｋW）指定１'!AM56)) -> 
B57: その他 | AC57: =IF('補正（ｋW）指定１'!AC57="","",IF($E$2="作成不要","",'補正（ｋW）指定１'!AC57)) ->  | AD57: =IF('補正（ｋW）指定１'!AD57="","",IF($E$2="作成不要","",'補正（ｋW）指定１'!AD57)) ->  | AH57: =IF('補正（ｋW）指定１'!AH57="","",IF($E$2="作成不要","",'補正（ｋW）指定１'!AH57)) ->  | AM57: =IF('補正（ｋW）指定１'!AM57="","",IF($E$2="作成不要","",'補正（ｋW）指定１'!AM57)) -> 
B58: 合計 | AC58: =IF('補正（ｋW）指定１'!AC58="","",IF($E$2="作成不要","",'補正（ｋW）指定１'!AC58)) ->  | AD58: =IF('補正（ｋW）指定１'!AD58="","",IF($E$2="作成不要","",'補正（ｋW）指定１'!AD58)) ->  | AH58: =IF('補正（ｋW）指定１'!AH58="","",IF($E$2="作成不要","",'補正（ｋW）指定１'!AH58)) ->  | AM58: =IF('補正（ｋW）指定１'!AM58="","",IF($E$2="作成不要","",'補正（ｋW）指定１'!AM58)) -> 
AC60: 記載要領 | AD60: ・各事業者の保有電源＋調達分は、保有電源-合計（送電端）欄の合計値と整合性一覧より取引分（送受電分）の合計、余力は調達先未定欄の合計
AD61: ・常時BUは、小売送電分（発電の場合もある）はプラス、小売受電分をマイナスで表示（送配電からみると小売送電分は供給電力からマイナスされており、小売送電分が受電分を上回ることで供給電力が増加したこととなるため）
AD62: ・ダブルカウント（突合せ確認）分は、突合せ確認漏れ等の修正として使用すること
AD63: ・その他補正については、供給計画内容の誤り（供給力の二重計上や誤記等）の修正として使用すること。
A64: エリア供給力算定 | AD64: ・広域機関補正欄は、広域機関提供値を入力する。 | AM64: 【ＭＷ】
A65: =A6 -> 項目 | E65: =E6 -> 2025-01-01 | Q65: =Q6 -> 2026-01-02 | AC65: =AC6 -> 2024-01-02 | AD65: 2025-01-01 | AE65: 2026-01-02 | AF65: 2027-01-03 | AG65: 2028-01-04 | AH65: 2029-01-04 | AI65: 2030-01-05 | AJ65: 2031-01-06 | AK65: 2032-01-07 | AL65: 2033-01-07 | AM65: 2034-01-08
E66: =E7 -> 4月 | F66: =F7 -> 5月 | G66: 6月 | H66: 7月 | I66: 8月 | J66: 9月 | K66: 10月 | L66: 11月 | M66: 12月 | N66: 1月 | O66: 2月 | P66: 3月 | Q66: =Q7 -> 4月 | R66: =R7 -> 5月 | S66: 6月 | T66: 7月 | U66: 8月 | V66: 9月 | W66: 10月 | X66: 11月 | Y66: 12月 | Z66: 1月 | AA66: 2月 | AB66: 3月 | AC66: 実績
A67: 発電事業者 | D67: 余力
A68: 小売電気事業者 | D68: 保有電源＋調達分
A69: 特定卸供給事業者 | D69: 余力
A70: 補正 | B70: 常時ＢＵ | D70: 小売送電分
D71: 小売受電分
D72: 差 | AF72: =IF(COUNT(AF70:AF71)=0,"",SUM(AF70)-SUM(AF71)) ->  | AG72: =IF(COUNT(AG70:AG71)=0,"",SUM(AG70)-SUM(AG71)) -> 
B73: ダブルカウント（突合せ確認）分 （内訳： ）
B74: 補修調整分
B75: 離島補正
B76: その他補正 （補正内容： ）
B77: 広域機関補正
B78: 合計 | AC78: =IF((COUNT(AC67:AC69)+COUNT(AC72:AC77))=0,"",SUM(AC67:AC69,AC72:AC77)) ->  | AF78: =IF((COUNT(AF67:AF69)+COUNT(AF72:AF77))=0,"",SUM(AF67:AF69,AF72:AF77)) -> 

Sheet 補正（ｋWｈ）
A2: 供給区域 | C2: =IF('補正（ｋW）指定１'!$C$2="","",'補正（ｋW）指定１'!$C$2) ->  | D2: エリア | E2: =IF(C2="北海道",1,IF(C2="東北",2,IF(C2="東京",3,IF(C2="中部",4,IF(C2="北陸",5,IF(C2="関西",6,IF(C2="中国",7,IF(C2="四国",8,IF(C2="九州",9,IF(C2="沖縄",10,IF(C2="","","正しいエリア名を入力してください"))))))))))) -> 
F3: 入力箇所 | I3: リンク箇所 | L3: 自動計算
A5: 補正前供給力 | AC5: 【GWh】
A6: 項目 | E6: ='補正（ｋW）指定１'!E6 -> 2025-01-01 | S6: ='補正（ｋW）指定１'!AC6 -> 2024-01-02 | T6: =E6 -> 2025-01-01 | U6: ='補正（ｋW）指定１'!AE6:AE7 -> 2026-01-02 | V6: ='補正（ｋW）指定１'!AF6:AF7 -> 2027-01-03 | W6: ='補正（ｋW）指定１'!AG6:AG7 -> 2028-01-04 | X6: ='補正（ｋW）指定１'!AH6:AH7 -> 2029-01-04 | Y6: ='補正（ｋW）指定１'!AI6:AI7 -> 2030-01-05 | Z6: ='補正（ｋW）指定１'!AJ6:AJ7 -> 2031-01-06 | AA6: ='補正（ｋW）指定１'!AK6:AK7 -> 2032-01-07 | AB6: ='補正（ｋW）指定１'!AL6:AL7 -> 2033-01-07 | AC6: ='補正（ｋW）指定１'!AM6:AM7 -> 2034-01-08
E7: 4月 | F7: 5月 | G7: 6月 | H7: 7月 | I7: 8月 | J7: 9月 | K7: 上期 | L7: 10月 | M7: 11月 | N7: 12月 | O7: 1月 | P7: 2月 | Q7: 3月 | R7: 下期 | S7: 実績
A8: 供給電力量 | B8: 保有 電力 | C8: 水力発電所（送電端） | K8: =IF(COUNT(E8:J8)=0,"",SUM(E8:J8)) ->  | R8: =IF(COUNT(L8:Q8)=0,"",SUM(L8:Q8)) ->  | T8: =IF(COUNT(E8:R8,"")=0,"",SUM(E8:J8,L8:Q8)) -> 
C9: 火力発電所（送電端） | K9: =IF(COUNT(E9:J9)=0,"",SUM(E9:J9)) ->  | R9: =IF(COUNT(L9:Q9)=0,"",SUM(L9:Q9)) ->  | T9: =IF(COUNT(E9:R9,"")=0,"",SUM(E9:J9,L9:Q9)) -> 
C10: 原子力発電所（送電端） | K10: =IF(COUNT(E10:J10)=0,"",SUM(E10:J10)) ->  | R10: =IF(COUNT(L10:Q10)=0,"",SUM(L10:Q10)) ->  | T10: =IF(COUNT(E10:R10,"")=0,"",SUM(E10:J10,L10:Q10)) -> 
C11: 新エネルギー等発電所等（送電端） | K11: =IF(COUNT(E11:J11)=0,"",SUM(E11:J11)) ->  | R11: =IF(COUNT(L11:Q11)=0,"",SUM(L11:Q11)) ->  | T11: =IF(COUNT(E11:R11,"")=0,"",SUM(E11:J11,L11:Q11)) -> 
C12: 合計（送電端） | E12: =IF(COUNT(E8:E11)=0,"",SUM(E8:E11)) -> 
B13: 調達分 | C13: 発電事業者 | K13: =IF(COUNT(E13:J13)=0,"",SUM(E13:J13)) ->  | R13: =IF(COUNT(L13:Q13)=0,"",SUM(L13:Q13)) ->  | T13: =IF(COUNT(E13:R13,"")=0,"",SUM(E13:J13,L13:Q13)) -> 
C14: 特定卸供給事業者 | R14: =IF(COUNT(L14:Q14)=0,"",SUM(L14:Q14)) -> 
C15: 一般送配電事業者 | R15: =IF(COUNT(L15:Q15)=0,"",SUM(L15:Q15)) -> 
C16: 配電事業者
C17: 小売電気事業者
C18: その他 | D18: 取引所
D19: その他
B20: 調達先未定 | K20: =IF(COUNT(E20:J20)=0,"",SUM(E20:J20)) -> 
B21: （上段：取引所、下段：その他） | K21: =IF(COUNT(E21:J21)=0,"",SUM(E21:J21)) -> 
B22: 揚水式発電所の揚水用動力 | K22: =IF(COUNT(E22:J22)=0,"",SUM(E22:J22)) -> 
B23: 蓄電用の電気工作物の蓄電電力量 | K23: =IF(COUNT(E23:J23)=0,"",SUM(E23:J23)) ->  | R23: =IF(COUNT(L23:Q23)=0,"",SUM(L23:Q23)) ->  | T23: =IF(COUNT(E23:R23,"")=0,"",SUM(E23:J23,L23:Q23)) -> 
B24: 【送配電】合計（送電端） | E24: =IF(COUNT(E12:E23)=0,"",SUM(E12:E23)) ->  | F24: =IF(COUNT(F12:F23)=0,"",SUM(F12:F23)) -> 
B25: 【ｴﾘｱ】合計（送電端） | E25: =IF(AND(COUNT(E12,E19,E22:E23,E81)=0,COUNTIF(受電取引帳票!$F28:$F1200,"TR*")+COUNTIF(送電取引帳票!$F28:$F1200,"TR*")=0),"",SUM(E12,E19,E22:E23,E81,SUMIFS(受電取引帳票!L30:L1202,受電取引帳票!$F28:$F1200,"TR*",受電取引帳票!$K30:$K1202,"月間調達電力量（GWh）"),-SUMIFS(送電取引帳票!L30:L1202,送電取引帳票!$F28:$F1200,"TR*",送電取引帳票!$K30:$K1202,"月間販売電力量（GWh）"))) ->  | F25: =IF(AND(COUNT(F12,F19,F22:F23,F81)=0,COUNTIF(受電取引帳票!$F28:$F1200,"TR*")+COUNTIF(送電取引帳票!$F28:$F1200,"TR*")=0),"",SUM(F12,F19,F22:F23,F81,SUMIFS(受電取引帳票!M30:M1202,受電取引帳票!$F28:$F1200,"TR*",受電取引帳票!$K30:$K1202,"月間調達電力量（GWh）"),-SUMIFS(送電取引帳票!M30:M1202,送電取引帳票!$F28:$F1200,"TR*",送電取引帳票!$K30:$K1202,"月間販売電力量（GWh）"))) ->  | G25: =IF(AND(COUNT(G12,G19,G22:G23,G81)=0,COUNTIF(受電取引帳票!$F28:$F1200,"TR*")+COUNTIF(送電取引帳票!$F28:$F1200,"TR*")=0),"",SUM(G12,G19,G22:G23,G81,SUMIFS(受電取引帳票!N30:N1202,受電取引帳票!$F28:$F1200,"TR*",受電取引帳票!$K30:$K1202,"月間調達電力量（GWh）"),-SUMIFS(送電取引帳票!N30:N1202,送電取引帳票!$F28:$F1200,"TR*",送電取引帳票!$K30:$K1202,"月間販売電力量（GWh）"))) ->  | H25: =IF(AND(COUNT(H12,H19,H22:H23,H81)=0,COUNTIF(受電取引帳票!$F28:$F1200,"TR*")+COUNTIF(送電取引帳票!$F28:$F1200,"TR*")=0),"",SUM(H12,H19,H22:H23,H81,SUMIFS(受電取引帳票!O30:O1202,受電取引帳票!$F28:$F1200,"TR*",受電取引帳票!$K30:$K1202,"月間調達電力量（GWh）"),-SUMIFS(送電取引帳票!O30:O1202,送電取引帳票!$F28:$F1200,"TR*",送電取引帳票!$K30:$K1202,"月間販売電力量（GWh）"))) ->  | I25: =IF(AND(COUNT(I12,I19,I22:I23,I81)=0,COUNTIF(受電取引帳票!$F28:$F1200,"TR*")+COUNTIF(送電取引帳票!$F28:$F1200,"TR*")=0),"",SUM(I12,I19,I22:I23,I81,SUMIFS(受電取引帳票!P30:P1202,受電取引帳票!$F28:$F1200,"TR*",受電取引帳票!$K30:$K1202,"月間調達電力量（GWh）"),-SUMIFS(送電取引帳票!P30:P1202,送電取引帳票!$F28:$F1200,"TR*",送電取引帳票!$K30:$K1202,"月間販売電力量（GWh）"))) ->  | J25: =IF(AND(COUNT(J12,J19,J22:J23,J81)=0,COUNTIF(受電取引帳票!$F28:$F1200,"TR*")+COUNTIF(送電取引帳票!$F28:$F1200,"TR*")=0),"",SUM(J12,J19,J22:J23,J81,SUMIFS(受電取引帳票!Q30:Q1202,受電取引帳票!$F28:$F1200,"TR*",受電取引帳票!$K30:$K1202,"月間調達電力量（GWh）"),-SUMIFS(送電取引帳票!Q30:Q1202,送電取引帳票!$F28:$F1200,"TR*",送電取引帳票!$K30:$K1202,"月間販売電力量（GWh）"))) ->  | K25: =IF(COUNT(E25:J25)=0,"",SUM(E25:J25)) ->  | L25: =IF(AND(COUNT(L12,L19,L22:L23,L81)=0,COUNTIF(受電取引帳票!$F28:$F1200,"TR*")+COUNTIF(送電取引帳票!$F28:$F1200,"TR*")=0),"",SUM(L12,L19,L22:L23,L81,SUMIFS(受電取引帳票!R30:R1202,受電取引帳票!$F28:$F1200,"TR*",受電取引帳票!$K30:$K1202,"月間調達電力量（GWh）"),-SUMIFS(送電取引帳票!R30:R1202,送電取引帳票!$F28:$F1200,"TR*",送電取引帳票!$K30:$K1202,"月間販売電力量（GWh）"))) ->  | M25: =IF(AND(COUNT(M12,M19,M22:M23,M81)=0,COUNTIF(受電取引帳票!$F28:$F1200,"TR*")+COUNTIF(送電取引帳票!$F28:$F1200,"TR*")=0),"",SUM(M12,M19,M22:M23,M81,SUMIFS(受電取引帳票!S30:S1202,受電取引帳票!$F28:$F1200,"TR*",受電取引帳票!$K30:$K1202,"月間調達電力量（GWh）"),-SUMIFS(送電取引帳票!S30:S1202,送電取引帳票!$F28:$F1200,"TR*",送電取引帳票!$K30:$K1202,"月間販売電力量（GWh）"))) ->  | N25: =IF(AND(COUNT(N12,N19,N22:N23,N81)=0,COUNTIF(受電取引帳票!$F28:$F1200,"TR*")+COUNTIF(送電取引帳票!$F28:$F1200,"TR*")=0),"",SUM(N12,N19,N22:N23,N81,SUMIFS(受電取引帳票!T30:T1202,受電取引帳票!$F28:$F1200,"TR*",受電取引帳票!$K30:$K1202,"月間調達電力量（GWh）"),-SUMIFS(送電取引帳票!T30:T1202,送電取引帳票!$F28:$F1200,"TR*",送電取引帳票!$K30:$K1202,"月間販売電力量（GWh）"))) ->  | O25: =IF(AND(COUNT(O12,O19,O22:O23,O81)=0,COUNTIF(受電取引帳票!$F28:$F1200,"TR*")+COUNTIF(送電取引帳票!$F28:$F1200,"TR*")=0),"",SUM(O12,O19,O22:O23,O81,SUMIFS(受電取引帳票!U30:U1202,受電取引帳票!$F28:$F1200,"TR*",受電取引帳票!$K30:$K1202,"月間調達電力量（GWh）"),-SUMIFS(送電取引帳票!U30:U1202,送電取引帳票!$F28:$F1200,"TR*",送電取引帳票!$K30:$K1202,"月間販売電力量（GWh）"))) ->  | P25: =IF(AND(COUNT(P12,P19,P22:P23,P81)=0,COUNTIF(受電取引帳票!$F28:$F1200,"TR*")+COUNTIF(送電取引帳票!$F28:$F1200,"TR*")=0),"",SUM(P12,P19,P22:P23,P81,SUMIFS(受電取引帳票!V30:V1202,受電取引帳票!$F28:$F1200,"TR*",受電取引帳票!$K30:$K1202,"月間調達電力量（GWh）"),-SUMIFS(送電取引帳票!V30:V1202,送電取引帳票!$F28:$F1200,"TR*",送電取引帳票!$K30:$K1202,"月間販売電力量（GWh）"))) ->  | Q25: =IF(AND(COUNT(Q12,Q19,Q22:Q23,Q81)=0,COUNTIF(受電取引帳票!$F28:$F1200,"TR*")+COUNTIF(送電取引帳票!$F28:$F1200,"TR*")=0),"",SUM(Q12,Q19,Q22:Q23,Q81,SUMIFS(受電取引帳票!W30:W1202,受電取引帳票!$F28:$F1200,"TR*",受電取引帳票!$K30:$K1202,"月間調達電力量（GWh）"),-SUMIFS(送電取引帳票!W30:W1202,送電取引帳票!$F28:$F1200,"TR*",送電取引帳票!$K30:$K1202,"月間販売電力量（GWh）"))) ->  | R25: =IF(COUNT(L25:Q25)=0,"",SUM(L25:Q25)) ->  | S25: =IF(COUNT(S12,S19,S22:S23,S81)=0,"",SUM(S12,S19,S22:S23,S81)) ->  | T25: =IF(AND(COUNT(T12,T19,T22:T23,T81)=0,COUNTIF(受電取引帳票!$F28:$F1200,"TR*")+COUNTIF(送電取引帳票!$F28:$F1200,"TR*")=0),"",SUM(T12,T19,T22:T23,T81,SUMIFS(受電取引帳票!AL30:AL1202,受電取引帳票!$F28:$F1200,"TR*",受電取引帳票!$K30:$K1202,"月間調達電力量（GWh）"),-SUMIFS(送電取引帳票!AL30:AL1202,送電取引帳票!$F28:$F1200,"TR*",送電取引帳票!$K30:$K1202,"月間販売電力量（GWh）"))) ->  | U25: =IF(AND(COUNT(U12,U19,U22:U23,U81)=0,COUNTIF(受電取引帳票!$F28:$F1200,"TR*")+COUNTIF(送電取引帳票!$F28:$F1200,"TR*")=0),"",SUM(U12,U19,U22:U23,U81,SUMIFS(受電取引帳票!AM30:AM1202,受電取引帳票!$F28:$F1200,"TR*",受電取引帳票!$K30:$K1202,"月間調達電力量（GWh）"),-SUMIFS(送電取引帳票!AM30:AM1202,送電取引帳票!$F28:$F1200,"TR*",送電取引帳票!$K30:$K1202,"月間販売電力量（GWh）"))) ->  | V25: =IF(AND(COUNT(V12,V19,V22:V23,V81)=0,COUNTIF(受電取引帳票!$F28:$F1200,"TR*")+COUNTIF(送電取引帳票!$F28:$F1200,"TR*")=0),"",SUM(V12,V19,V22:V23,V81,SUMIFS(受電取引帳票!AN30:AN1202,受電取引帳票!$F28:$F1200,"TR*",受電取引帳票!$K30:$K1202,"月間調達電力量（GWh）"),-SUMIFS(送電取引帳票!AN30:AN1202,送電取引帳票!$F28:$F1200,"TR*",送電取引帳票!$K30:$K1202,"月間販売電力量（GWh）"))) ->  | W25: =IF(AND(COUNT(W12,W19,W22:W23,W81)=0,COUNTIF(受電取引帳票!$F28:$F1200,"TR*")+COUNTIF(送電取引帳票!$F28:$F1200,"TR*")=0),"",SUM(W12,W19,W22:W23,W81,SUMIFS(受電取引帳票!AO30:AO1202,受電取引帳票!$F28:$F1200,"TR*",受電取引帳票!$K30:$K1202,"月間調達電力量（GWh）"),-SUMIFS(送電取引帳票!AO30:AO1202,送電取引帳票!$F28:$F1200,"TR*",送電取引帳票!$K30:$K1202,"月間販売電力量（GWh）"))) ->  | X25: =IF(AND(COUNT(X12,X19,X22:X23,X81)=0,COUNTIF(受電取引帳票!$F28:$F1200,"TR*")+COUNTIF(送電取引帳票!$F28:$F1200,"TR*")=0),"",SUM(X12,X19,X22:X23,X81,SUMIFS(受電取引帳票!AP30:AP1202,受電取引帳票!$F28:$F1200,"TR*",受電取引帳票!$K30:$K1202,"月間調達電力量（GWh）"),-SUMIFS(送電取引帳票!AP30:AP1202,送電取引帳票!$F28:$F1200,"TR*",送電取引帳票!$K30:$K1202,"月間販売電力量（GWh）"))) ->  | Y25: =IF(AND(COUNT(Y12,Y19,Y22:Y23,Y81)=0,COUNTIF(受電取引帳票!$F28:$F1200,"TR*")+COUNTIF(送電取引帳票!$F28:$F1200,"TR*")=0),"",SUM(Y12,Y19,Y22:Y23,Y81,SUMIFS(受電取引帳票!AQ30:AQ1202,受電取引帳票!$F28:$F1200,"TR*",受電取引帳票!$K30:$K1202,"月間調達電力量（GWh）"),-SUMIFS(送電取引帳票!AQ30:AQ1202,送電取引帳票!$F28:$F1200,"TR*",送電取引帳票!$K30:$K1202,"月間販売電力量（GWh）"))) ->  | Z25: =IF(AND(COUNT(Z12,Z19,Z22:Z23,Z81)=0,COUNTIF(受電取引帳票!$F28:$F1200,"TR*")+COUNTIF(送電取引帳票!$F28:$F1200,"TR*")=0),"",SUM(Z12,Z19,Z22:Z23,Z81,SUMIFS(受電取引帳票!AR30:AR1202,受電取引帳票!$F28:$F1200,"TR*",受電取引帳票!$K30:$K1202,"月間調達電力量（GWh）"),-SUMIFS(送電取引帳票!AR30:AR1202,送電取引帳票!$F28:$F1200,"TR*",送電取引帳票!$K30:$K1202,"月間販売電力量（GWh）"))) ->  | AA25: =IF(AND(COUNT(AA12,AA19,AA22:AA23,AA81)=0,COUNTIF(受電取引帳票!$F28:$F1200,"TR*")+COUNTIF(送電取引帳票!$F28:$F1200,"TR*")=0),"",SUM(AA12,AA19,AA22:AA23,AA81,SUMIFS(受電取引帳票!AS30:AS1202,受電取引帳票!$F28:$F1200,"TR*",受電取引帳票!$K30:$K1202,"月間調達電力量（GWh）"),-SUMIFS(送電取引帳票!AS30:AS1202,送電取引帳票!$F28:$F1200,"TR*",送電取引帳票!$K30:$K1202,"月間販売電力量（GWh）"))) ->  | AB25: =IF(AND(COUNT(AB12,AB19,AB22:AB23,AB81)=0,COUNTIF(受電取引帳票!$F28:$F1200,"TR*")+COUNTIF(送電取引帳票!$F28:$F1200,"TR*")=0),"",SUM(AB12,AB19,AB22:AB23,AB81,SUMIFS(受電取引帳票!AT30:AT1202,受電取引帳票!$F28:$F1200,"TR*",受電取引帳票!$K30:$K1202,"月間調達電力量（GWh）"),-SUMIFS(送電取引帳票!AT30:AT1202,送電取引帳票!$F28:$F1200,"TR*",送電取引帳票!$K30:$K1202,"月間販売電力量（GWh）"))) ->  | AC25: =IF(AND(COUNT(AC12,AC19,AC22:AC23,AC81)=0,COUNTIF(受電取引帳票!$F28:$F1200,"TR*")+COUNTIF(送電取引帳票!$F28:$F1200,"TR*")=0),"",SUM(AC12,AC19,AC22:AC23,AC81,SUMIFS(受電取引帳票!AU30:AU1202,受電取引帳票!$F28:$F1200,"TR*",受電取引帳票!$K30:$K1202,"月間調達電力量（GWh）"),-SUMIFS(送電取引帳票!AU30:AU1202,送電取引帳票!$F28:$F1200,"TR*",送電取引帳票!$K30:$K1202,"月間販売電力量（GWh）"))) -> 
A26: 需要電力量（送電端） | D26: エリア全体 | K26: =IF(COUNT(E26:J26)=0,"",SUM(E26:J26)) ->  | R26: =IF(COUNT(L26:Q26)=0,"",SUM(L26:Q26)) ->  | T26: =IF($E$2="","",IF(COUNT(CHOOSE($E$2,'様式第33表（指定１）'!H13,'様式第33表（指定１）'!H43,'様式第33表（指定１）'!H73,'様式第33表（指定１）'!H103,'様式第33表（指定１）'!H133,'様式第33表（指定１）'!H163,'様式第33表（指定１）'!H193,'様式第33表（指定１）'!H223,'様式第33表（指定１）'!H253,'様式第33表（指定１）'!H283))=0,"",CHOOSE($E$2,'様式第33表（指定１）'!H13,'様式第33表（指定１）'!H43,'様式第33表（指定１）'!H73,'様式第33表（指定１）'!H103,'様式第33表（指定１）'!H133,'様式第33表（指定１）'!H163,'様式第33表（指定１）'!H193,'様式第33表（指定１）'!H223,'様式第33表（指定１）'!H253,'様式第33表（指定１）'!H283))) ->  | U26: =IF($E$2="","",IF(COUNT(CHOOSE($E$2,'様式第33表（指定１）'!I13,'様式第33表（指定１）'!I43,'様式第33表（指定１）'!I73,'様式第33表（指定１）'!I103,'様式第33表（指定１）'!I133,'様式第33表（指定１）'!I163,'様式第33表（指定１）'!I193,'様式第33表（指定１）'!I223,'様式第33表（指定１）'!I253,'様式第33表（指定１）'!I283))=0,"",CHOOSE($E$2,'様式第33表（指定１）'!I13,'様式第33表（指定１）'!I43,'様式第33表（指定１）'!I73,'様式第33表（指定１）'!I103,'様式第33表（指定１）'!I133,'様式第33表（指定１）'!I163,'様式第33表（指定１）'!I193,'様式第33表（指定１）'!I223,'様式第33表（指定１）'!I253,'様式第33表（指定１）'!I283))) ->  | V26: =IF($E$2="","",IF(COUNT(CHOOSE($E$2,'様式第33表（指定１）'!J13,'様式第33表（指定１）'!J43,'様式第33表（指定１）'!J73,'様式第33表（指定１）'!J103,'様式第33表（指定１）'!J133,'様式第33表（指定１）'!J163,'様式第33表（指定１）'!J193,'様式第33表（指定１）'!J223,'様式第33表（指定１）'!J253,'様式第33表（指定１）'!J283))=0,"",CHOOSE($E$2,'様式第33表（指定１）'!J13,'様式第33表（指定１）'!J43,'様式第33表（指定１）'!J73,'様式第33表（指定１）'!J103,'様式第33表（指定１）'!J133,'様式第33表（指定１）'!J163,'様式第33表（指定１）'!J193,'様式第33表（指定１）'!J223,'様式第33表（指定１）'!J253,'様式第33表（指定１）'!J283))) ->  | W26: =IF($E$2="","",IF(COUNT(CHOOSE($E$2,'様式第33表（指定１）'!K13,'様式第33表（指定１）'!K43,'様式第33表（指定１）'!K73,'様式第33表（指定１）'!K103,'様式第33表（指定１）'!K133,'様式第33表（指定１）'!K163,'様式第33表（指定１）'!K193,'様式第33表（指定１）'!K223,'様式第33表（指定１）'!K253,'様式第33表（指定１）'!K283))=0,"",CHOOSE($E$2,'様式第33表（指定１）'!K13,'様式第33表（指定１）'!K43,'様式第33表（指定１）'!K73,'様式第33表（指定１）'!K103,'様式第33表（指定１）'!K133,'様式第33表（指定１）'!K163,'様式第33表（指定１）'!K193,'様式第33表（指定１）'!K223,'様式第33表（指定１）'!K253,'様式第33表（指定１）'!K283))) ->  | X26: =IF($E$2="","",IF(COUNT(CHOOSE($E$2,'様式第33表（指定１）'!L13,'様式第33表（指定１）'!L43,'様式第33表（指定１）'!L73,'様式第33表（指定１）'!L103,'様式第33表（指定１）'!L133,'様式第33表（指定１）'!L163,'様式第33表（指定１）'!L193,'様式第33表（指定１）'!L223,'様式第33表（指定１）'!L253,'様式第33表（指定１）'!L283))=0,"",CHOOSE($E$2,'様式第33表（指定１）'!L13,'様式第33表（指定１）'!L43,'様式第33表（指定１）'!L73,'様式第33表（指定１）'!L103,'様式第33表（指定１）'!L133,'様式第33表（指定１）'!L163,'様式第33表（指定１）'!L193,'様式第33表（指定１）'!L223,'様式第33表（指定１）'!L253,'様式第33表（指定１）'!L283))) ->  | Y26: =IF($E$2="","",IF(COUNT(CHOOSE($E$2,'様式第33表（指定１）'!M13,'様式第33表（指定１）'!M43,'様式第33表（指定１）'!M73,'様式第33表（指定１）'!M103,'様式第33表（指定１）'!M133,'様式第33表（指定１）'!M163,'様式第33表（指定１）'!M193,'様式第33表（指定１）'!M223,'様式第33表（指定１）'!M253,'様式第33表（指定１）'!M283))=0,"",CHOOSE($E$2,'様式第33表（指定１）'!M13,'様式第33表（指定１）'!M43,'様式第33表（指定１）'!M73,'様式第33表（指定１）'!M103,'様式第33表（指定１）'!M133,'様式第33表（指定１）'!M163,'様式第33表（指定１）'!M193,'様式第33表（指定１）'!M223,'様式第33表（指定１）'!M253,'様式第33表（指定１）'!M283))) ->  | Z26: =IF($E$2="","",IF(COUNT(CHOOSE($E$2,'様式第33表（指定１）'!N13,'様式第33表（指定１）'!N43,'様式第33表（指定１）'!N73,'様式第33表（指定１）'!N103,'様式第33表（指定１）'!N133,'様式第33表（指定１）'!N163,'様式第33表（指定１）'!N193,'様式第33表（指定１）'!N223,'様式第33表（指定１）'!N253,'様式第33表（指定１）'!N283))=0,"",CHOOSE($E$2,'様式第33表（指定１）'!N13,'様式第33表（指定１）'!N43,'様式第33表（指定１）'!N73,'様式第33表（指定１）'!N103,'様式第33表（指定１）'!N133,'様式第33表（指定１）'!N163,'様式第33表（指定１）'!N193,'様式第33表（指定１）'!N223,'様式第33表（指定１）'!N253,'様式第33表（指定１）'!N283))) ->  | AA26: =IF($E$2="","",IF(COUNT(CHOOSE($E$2,'様式第33表（指定１）'!O13,'様式第33表（指定１）'!O43,'様式第33表（指定１）'!O73,'様式第33表（指定１）'!O103,'様式第33表（指定１）'!O133,'様式第33表（指定１）'!O163,'様式第33表（指定１）'!O193,'様式第33表（指定１）'!O223,'様式第33表（指定１）'!O253,'様式第33表（指定１）'!O283))=0,"",CHOOSE($E$2,'様式第33表（指定１）'!O13,'様式第33表（指定１）'!O43,'様式第33表（指定１）'!O73,'様式第33表（指定１）'!O103,'様式第33表（指定１）'!O133,'様式第33表（指定１）'!O163,'様式第33表（指定１）'!O193,'様式第33表（指定１）'!O223,'様式第33表（指定１）'!O253,'様式第33表（指定１）'!O283))) ->  | AB26: =IF($E$2="","",IF(COUNT(CHOOSE($E$2,'様式第33表（指定１）'!P13,'様式第33表（指定１）'!P43,'様式第33表（指定１）'!P73,'様式第33表（指定１）'!P103,'様式第33表（指定１）'!P133,'様式第33表（指定１）'!P163,'様式第33表（指定１）'!P193,'様式第33表（指定１）'!P223,'様式第33表（指定１）'!P253,'様式第33表（指定１）'!P283))=0,"",CHOOSE($E$2,'様式第33表（指定１）'!P13,'様式第33表（指定１）'!P43,'様式第33表（指定１）'!P73,'様式第33表（指定１）'!P103,'様式第33表（指定１）'!P133,'様式第33表（指定１）'!P163,'様式第33表（指定１）'!P193,'様式第33表（指定１）'!P223,'様式第33表（指定１）'!P253,'様式第33表（指定１）'!P283))) ->  | AC26: =IF($E$2="","",IF(COUNT(CHOOSE($E$2,'様式第33表（指定１）'!Q13,'様式第33表（指定１）'!Q43,'様式第33表（指定１）'!Q73,'様式第33表（指定１）'!Q103,'様式第33表（指定１）'!Q133,'様式第33表（指定１）'!Q163,'様式第33表（指定１）'!Q193,'様式第33表（指定１）'!Q223,'様式第33表（指定１）'!Q253,'様式第33表（指定１）'!Q283))=0,"",CHOOSE($E$2,'様式第33表（指定１）'!Q13,'様式第33表（指定１）'!Q43,'様式第33表（指定１）'!Q73,'様式第33表（指定１）'!Q103,'様式第33表（指定１）'!Q133,'様式第33表（指定１）'!Q163,'様式第33表（指定１）'!Q193,'様式第33表（指定１）'!Q223,'様式第33表（指定１）'!Q253,'様式第33表（指定１）'!Q283))) -> 
D27: （内訳）本土分 | E27: =IF(E26="","",E26-E28) ->  | K27: =IF(COUNT(E27:J27)=0,"",SUM(E27:J27)) ->  | L27: =IF(L26="","",L26-L28) ->  | R27: =IF(COUNT(L27:Q27)=0,"",SUM(L27:Q27)) ->  | T27: =IF(T28="","",T26-T28) ->  | U27: =IF(U28="","",U26-U28) -> 
D28: （内訳）離島分 | K28: =IF(COUNT(E28:J28)=0,"",SUM(E28:J28)) ->  | R28: =IF(COUNT(L28:Q28)=0,"",SUM(L28:Q28)) ->  | T28: =IF(COUNT(E28:R28)=0,"",SUM(E28:J28,L28:Q28)) -> 
A29: 送電端電力量 | B29: 水力発電所 | S29: =IF(COUNT(S30:S31)=0,"",SUM(S30:S31)) ->  | T29: =IF(COUNT(T30:T31)=0,"",SUM(T30:T31)) ->  | U29: =IF(U30="",IF(U31="","",SUM(U30:U31)),SUM(U30:U31)) ->  | X29: =IF(COUNT(X30:X31)=0,"",SUM(X30:X31)) ->  | Y29: =IF(Y30="",IF(Y31="","",SUM(Y30:Y31)),SUM(Y30:Y31)) ->  | AC29: =IF(COUNT(AC30:AC31)=0,"",SUM(AC30:AC31)) -> 
D30: 一般
D31: 揚水
B32: 火力発電所 | S32: =IF(COUNT(S33:S39)=0,"",SUM(S33:S39)) ->  | T32: =IF(COUNT(T33:T39)=0,"",SUM(T33:T39)) ->  | X32: =IF(COUNT(X33:X39)=0,"",SUM(X33:X39)) ->  | AC32: =IF(COUNT(AC33:AC39)=0,"",SUM(AC33:AC39)) -> 
D33: 石炭
D34: ＬＮＧ
D35: 石油
D36: ＬＰＧ
D37: その他ガス
D38: 瀝青質混合物
D39: その他火力
B40: 原子力発電所
B41: 新エネルギー等発電所等 | S41: =IF(COUNT(S42:S49)=0,"",SUM(S42:S49)) ->  | T41: =IF(COUNT(T42:T49)=0,"",SUM(T42:T49)) ->  | X41: =IF(COUNT(X42:X49)=0,"",SUM(X42:X49)) ->  | AC41: =IF(COUNT(AC42:AC49)=0,"",SUM(AC42:AC49)) -> 
D42: 風力
D43: 太陽光
D44: 地熱
D45: バイオマス
D46: 廃棄物
D47: 蓄電池
D48: 水素
D49: アンモニア
B50: その他
B51: 合計 | S51: =IF(COUNT(S29,S32,S40,S41,S50)=0,"",SUM(S29,S32,S40,S41,S50)) ->  | T51: =IF(COUNT(T29,T32,T40,T41,T50)=0,"",SUM(T29,T32,T40,T41,T50)) ->  | X51: =IF(COUNT(X29,X32,X40,X41,X50)=0,"",SUM(X29,X32,X40,X41,X50)) ->  | AC51: =IF(COUNT(AC29,AC32,AC40,AC41,AC50)=0,"",SUM(AC29,AC32,AC40,AC41,AC50)) -> 
E54: 記載要領 | F54: ・各事業者の保有電源欄は、保有電源-合計（送電端）欄の合計値、非電気調達分は整合性一覧より非電気事業者との取引分（送受電分）の合計
F55: ・登録特定送配電送受電補正は、整合性一覧の受電シートより、登録特定送配電から発電･小売･特定卸受電分、発電･小売･特定事業者から登録特定送配電が受電する合計をそれぞれ入力する。
F56: ・ダブルカウント（突合せ確認）分は、突合せ確認漏れ等の修正として使用すること
F57: ・その他補正については、供給計画内容の誤り（供給力の二重計上や誤記等）の修正として使用すること。
A58: エリア供給電力量算定 | F58: ・広域機関補正欄は、広域機関提供値を入力する。 | AC58: 【GWh】
A59: =A6 -> 項目 | E59: =E6 -> 2025-01-01 | S59: =S6 -> 2024-01-02 | T59: 2025-01-01 | U59: 2026-01-02 | V59: 2027-01-03 | W59: 2028-01-04 | X59: 2029-01-04 | Y59: 2030-01-05 | Z59: 2031-01-06 | AA59: 2032-01-07 | AB59: 2033-01-07 | AC59: 2034-01-08
E60: 4月 | F60: 5月 | G60: 6月 | H60: 7月 | I60: 8月 | J60: 9月 | K60: 上期 | L60: 10月 | M60: 11月 | N60: 12月 | O60: 1月 | P60: 2月 | Q60: 3月 | R60: 下期 | S60: 実績
A61: 発電事業者 | D61: 保有電源 | K61: =IF(COUNT(E61:J61)=0,"",SUM(E61:J61)) ->  | R61: =IF(COUNT(L61:Q61)=0,"",SUM(L61:Q61)) ->  | T61: =IF(COUNT(E61:R61,"")=0,"",SUM(E61:J61,L61:Q61)) -> 
D62: 非電気調達
D63: 揚水用動力量
D64: 蓄電電力量
A65: 小売電気事業者 | D65: 保有電源
D66: 非電気調達
D67: 揚水用動力量
D68: 蓄電電力量
A69: 特定卸供給事業者 | D69: 保有電源
D70: 非電気調達
D71: 揚水用動力量
D72: 蓄電電力量
A73: 補正 | B73: 登録特定送配電 送受電補正 | D73: 発電･小売･特定卸受電分
D74: 登録特定受電分
D75: 差 | E75: =IF(COUNT(E73:E74)=0,"",SUM(E73)-SUM(E74)) ->  | U75: =IF(COUNT(U73:U74)=0,"",SUM(U73)-SUM(U74)) ->  | V75: =IF(COUNT(V73:V74)=0,"",SUM(V73)-SUM(V74)) -> 
B76: ダブルカウント（突合せ確認）分 （内訳： ）
B77: 系統運用電力補正
B78: 離島補正
B79: その他補正 （補正内容： ）
B80: 広域機関補正
B81: 合計 | E81: =IF((COUNT(E61:E72)+COUNT(E75:E80))=0,"",SUM(E61:E72,E75:E80)) ->  | F81: =IF((COUNT(F61:F72)+COUNT(F75:F80))=0,"",SUM(F61:F72,F75:F80)) ->  | L81: =IF((COUNT(L61:L72)+COUNT(L75:L80))=0,"",SUM(L61:L72,L75:L80)) ->  | U81: =IF((COUNT(U61:U72)+COUNT(U75:U80))=0,"",SUM(U61:U72,U75:U80)) ->  | V81: =IF((COUNT(V61:V72)+COUNT(V75:V80))=0,"",SUM(V61:V72,V75:V80)) ->  | W81: =IF((COUNT(W61:W72)+COUNT(W75:W80))=0,"",SUM(W61:W72,W75:W80)) ->  | X81: =IF((COUNT(X61:X72)+COUNT(X75:X80))=0,"",SUM(X61:X72,X75:X80)) ->  | Y81: =IF((COUNT(Y61:Y72)+COUNT(Y75:Y80))=0,"",SUM(Y61:Y72,Y75:Y80)) ->  | Z81: =IF((COUNT(Z61:Z72)+COUNT(Z75:Z80))=0,"",SUM(Z61:Z72,Z75:Z80)) ->  | AA81: =IF((COUNT(AA61:AA72)+COUNT(AA75:AA80))=0,"",SUM(AA61:AA72,AA75:AA80)) ->  | AB81: =IF((COUNT(AB61:AB72)+COUNT(AB75:AB80))=0,"",SUM(AB61:AB72,AB75:AB80)) ->  | AC81: =IF((COUNT(AC61:AC72)+COUNT(AC75:AC80))=0,"",SUM(AC61:AC72,AC75:AC80)) -> 

Sheet 補正（太陽光）指定１
A1: 太陽光補正シート
N2: 記載要領
A3: 供給区域 | B3: =IF('補正（ｋW）指定１'!$C$2="","",'補正（ｋW）指定１'!$C$2) ->  | C3: エリア | D3: =IF(B3="北海道",1,IF(B3="東北",2,IF(B3="東京",3,IF(B3="中部",4,IF(B3="北陸",5,IF(B3="関西",6,IF(B3="中国",7,IF(B3="四国",8,IF(B3="九州",9,IF(B3="沖縄",10,IF(B3="","","正しいエリア名を入力してください"))))))))))) ->  | H3: 入力箇所 | J3: リンク箇所 | L3: 自動計算 | N3: ・エリア想定欄には、エリア全体（発電・小売分を含む）の設備量想定値を記載。尚、マクロ想定を行っていない項目は個別積み上げ値を記載。 | AS3: 調整係数（%)
N4: ・各電気事業者のエリア内保有分欄には、広域機関より提供する値を記載。 | AS4: =G7 -> 2025-01-01 | BH4: =AS4+366 -> 2026-01-02 | BW4: =BH4+365 -> 2027-01-02 | CA4: =BW4+365 -> 2028-01-02 | CE4: =CA4+365 -> 2029-01-01 | CI4: =CE4+366 -> 2030-01-02 | CM4: =CI4+366 -> 2031-01-03 | CQ4: =CM4+366 -> 2032-01-04 | CU4: =CQ4+366 -> 2033-01-04 | CY4: =CU4+366 -> 2034-01-05
N5: ・各電気事業者のエリア内非電気事業者からの調達分欄には、整合性結果一覧より集約した値を記載。 | AS5: 全量 | BH5: 全量 | BW5: 全量 | CA5: 全量 | CE5: 全量 | CI5: 全量 | CM5: 全量 | CQ5: 全量 | CU5: 全量 | CY5: 全量
A6: 受電取引帳票転記フォーマット | E6: 方式選択 | G6: Ⅰ：各月の設備量を反映 Ⅱ：当月と前月を比較し、少ない月の設備量を反映 | AU6: 4月 | AV6: 5月 | AW6: 6月 | AX6: 7月 | AY6: 8月 | AZ6: 9月 | BA6: 10月 | BB6: 11月 | BC6: 12月 | BD6: 1月 | BE6: 2月 | BF6: 3月 | BJ6: 4月 | BK6: 5月 | BL6: 6月 | BM6: 7月 | BN6: 8月 | BO6: 9月 | BP6: 10月 | BQ6: 11月 | BR6: 12月 | BS6: 1月 | BT6: 2月 | BU6: 3月 | BY6: 8月 | CC6: 8月 | CG6: 8月 | CK6: 8月 | CO6: 8月 | CS6: 8月 | CW6: 8月 | DA6: 8月
A7: 項目 | G7: ='補正（ｋW）指定１'!E6 -> 2025-01-01 | S7: ='補正（ｋW）指定１'!Q6 -> 2026-01-02 | AE7: 項目 | AF7: =G7 -> 2025-01-01 | AG7: =S7 -> 2026-01-02 | AH7: =S7+366 -> 2027-01-03 | AI7: =AH7+366 -> 2028-01-04 | AJ7: =AI7+366 -> 2029-01-04 | AK7: 2030-01-05 | AL7: 2031-01-06 | AM7: 2032-01-07 | AN7: 2033-01-07 | AO7: 2034-01-08 | AP7: 備考 （上中段：種別、下段：備考） | AS7: 1 | AT7: 北海道 | AU7: 1.641805785 | AV7: 4.360931166 | AW7: 6.527032271 | AX7: 8.063174621 | AY7: 9.071129921 | AZ7: 3.606336244 | BA7: 0.9762521049 | BB7: 0.62932143 | BC7: 0.4825831842 | BD7: 1.352636738 | BE7: 1.233402092 | BF7: 1.028232912 | BH7: 1 | BI7: 北海道 | BJ7: 1.339730295 | BK7: 4.349284387 | BL7: 6.399048994 | BM7: 8.132542795 | BN7: 8.435225593 | BO7: 3.424732428 | BP7: 0.8530909248 | BQ7: 0.4615039512 | BR7: 0.2983061816 | BS7: 1.215755893 | BT7: 1.401405096 | BU7: 1.117266588 | BW7: 1 | BX7: 北海道 | BY7: 3.5914743 | CA7: 1 | CB7: 北海道 | CC7: 4.963731986 | CE7: 1 | CF7: 北海道 | CG7: 4.785338452 | CI7: 1 | CJ7: 北海道 | CK7: 4.764387006 | CM7: 1 | CN7: 北海道 | CO7: 4.719329865 | CQ7: 1 | CR7: 北海道 | CS7: 4.692841236 | CU7: 1 | CV7: 北海道 | CW7: 4.545825326 | CY7: 1 | CZ7: 北海道 | DA7: 4.545825326
G8: 4月 | H8: 5月 | I8: 6月 | J8: 7月 | K8: 8月 | L8: 9月 | M8: 10月 | N8: 11月 | O8: 12月 | P8: 1月 | Q8: 2月 | R8: 3月 | S8: 4月 | T8: 5月 | U8: 6月 | V8: 7月 | W8: 8月 | X8: 9月 | Y8: 10月 | Z8: 11月 | AA8: 12月 | AB8: 1月 | AC8: 2月 | AD8: 3月 | AS8: 2 | AT8: 東北 | AU8: 2.825569279 | AV8: 15.84658105 | AW8: 20.1709348 | AX8: 20.25001404 | AY8: 24.98470211 | AZ8: 16.5867384 | BA8: 9.998059536 | BB8: 2.304286422 | BC8: 0.6546573139 | BD8: 4.431558544 | BE8: 1.851283017 | BF8: 2.320377805 | BH8: 2 | BI8: 東北 | BJ8: 2.167820976 | BK8: 14.82568907 | BL8: 19.59551985 | BM8: 19.42835177 | BN8: 23.45400265 | BO8: 15.59306797 | BP8: 9.674042256 | BQ8: 1.650582089 | BR8: 0.4418412247 | BS8: 3.507428417 | BT8: 1.952517426 | BU8: 1.795770857 | BW8: 2 | BX8: 東北 | BY8: 11.23350029 | CA8: 2 | CB8: 東北 | CC8: 10.69159859 | CE8: 2 | CF8: 東北 | CG8: 10.1273531 | CI8: 2 | CJ8: 東北 | CK8: 9.992029438 | CM8: 2 | CN8: 東北 | CO8: 9.648278292 | CQ8: 2 | CR8: 東北 | CS8: 9.895921536 | CU8: 2 | CV8: 東北 | CW8: 9.285534879 | CY8: 2 | CZ8: 東北 | DA8: 9.285534879
A9: 全量 | B9: 調達電力（MW） | G9: =IF(G66="","",ROUNDDOWN(G66,1)) ->  | AE9: 8月電力 | AF9: =IF(K9="","",K9) ->  | AG9: =IF(W9="","",W9) ->  | AH9: =IF(AH66="","",ROUNDDOWN(AH66,1)) ->  | AP9: 太陽光（全量） | AS9: 3 | AT9: 東京 | AU9: 1.434109425 | AV9: 9.858460355 | AW9: 16.54361118 | AX9: 22.10358793 | AY9: 23.46443136 | AZ9: 15.48090178 | BA9: 9.156907553 | BB9: 0.9255452635 | BC9: 0.3780698415 | BD9: 2.779477257 | BE9: 1.182380588 | BF9: 1.135055521 | BH9: 3 | BI9: 東京 | BJ9: 1.322845525 | BK9: 9.397091366 | BL9: 15.98199301 | BM9: 21.30684247 | BN9: 22.3640677 | BO9: 14.80262478 | BP9: 8.574523296 | BQ9: 0.7406921548 | BR9: 0.2851731918 | BS9: 2.246541579 | BT9: 1.215231275 | BU9: 0.9011351245 | BW9: 3 | BX9: 東京 | BY9: 9.871401455 | CA9: 3 | CB9: 東京 | CC9: 9.601275482 | CE9: 3 | CF9: 東京 | CG9: 9.446304276 | CI9: 3 | CJ9: 東京 | CK9: 9.263489039 | CM9: 3 | CN9: 東京 | CO9: 9.169102427 | CQ9: 3 | CR9: 東京 | CS9: 9.097873151 | CU9: 3 | CV9: 東京 | CW9: 8.8468342 | CY9: 3 | CZ9: 東京 | DA9: 8.8468342
AE10: 1月電力 | AF10: =IF(OR($D$3=1,$D$3=2,$D$3=5),'補正（太陽光）指定２'!AF10,"") ->  | AG10: =IF(OR($D$3=1,$D$3=2,$D$3=5),'補正（太陽光）指定２'!AG10,"") ->  | AH10: =IF(OR($D$3=1,$D$3=2,$D$3=5),'補正（太陽光）指定２'!AH10,"") ->  | AI10: =IF(OR($D$3=1,$D$3=2,$D$3=5),'補正（太陽光）指定２'!AI10,"") ->  | AJ10: =IF(OR($D$3=1,$D$3=2,$D$3=5),'補正（太陽光）指定２'!AJ10,"") ->  | AK10: =IF(OR($D$3=1,$D$3=2,$D$3=5),'補正（太陽光）指定２'!AK10,"") ->  | AL10: =IF(OR($D$3=1,$D$3=2,$D$3=5),'補正（太陽光）指定２'!AL10,"") ->  | AM10: =IF(OR($D$3=1,$D$3=2,$D$3=5),'補正（太陽光）指定２'!AM10,"") ->  | AN10: =IF(OR($D$3=1,$D$3=2,$D$3=5),'補正（太陽光）指定２'!AN10,"") ->  | AO10: =IF(OR($D$3=1,$D$3=2,$D$3=5),'補正（太陽光）指定２'!AO10,"") ->  | AP10: 太陽光（全量） | AS10: 4 | AT10: 中部 | AU10: 4.079913438 | AV10: 11.19008421 | AW10: 18.72590806 | AX10: 24.2926658 | AY10: 22.59754388 | AZ10: 16.01295907 | BA10: 7.700324975 | BB10: 0.4651934791 | BC10: 1.809133042 | BD10: 6.508151056 | BE10: 4.365344633 | BF10: 2.764170702 | BH10: 4 | BI10: 中部 | BJ10: 4.326593113 | BK10: 11.82311059 | BL10: 18.82890893 | BM10: 24.09689656 | BN10: 22.34528227 | BO10: 15.90166942 | BP10: 8.091410439 | BQ10: 0.6575305492 | BR10: 1.75014687 | BS10: 5.466997809 | BT10: 4.459395252 | BU10: 2.271068906 | BW10: 4 | BX10: 中部 | BY10: 11.74468209 | CA10: 4 | CB10: 中部 | CC10: 11.30319986 | CE10: 4 | CF10: 中部 | CG10: 11.05043115 | CI10: 4 | CJ10: 中部 | CK10: 11.01211715 | CM10: 4 | CN10: 中部 | CO10: 10.82479499 | CQ10: 4 | CR10: 中部 | CS10: 10.58903029 | CU10: 4 | CV10: 中部 | CW10: 10.65103965 | CY10: 4 | CZ10: 中部 | DA10: 10.65103965
B11: 月間調達電力量（GWh） | G11: =IF(G87="","",ROUNDDOWN(G87,1)) ->  | AE11: 年間電力量 | AF11: =IF(AF87="","",AF87) ->  | AG11: =IF(AG87="","",ROUNDDOWN(AG87,1)) ->  | AS11: 5 | AT11: 北陸 | AU11: 7.642802794 | AV11: 20.78350786 | AW11: 25.49305411 | AX11: 31.99603705 | AY11: 31.20500111 | AZ11: 22.17049303 | BA11: 12.26215506 | BB11: 0.8460596171 | BC11: 1.171425524 | BD11: 2.14000691 | BE11: 2.60960961 | BF11: 6.772391338 | BH11: 5 | BI11: 北陸 | BJ11: 10.30123641 | BK11: 24.66904604 | BL11: 25.00518993 | BM11: 31.33861019 | BN11: 30.98528469 | BO11: 21.76496591 | BP11: 11.40968804 | BQ11: 0.959661995 | BR11: 0.829111389 | BS11: 2.74892694 | BT11: 2.46679637 | BU11: 5.501165355 | BW11: 5 | BX11: 北陸 | BY11: 16.85018401 | CA11: 5 | CB11: 北陸 | CC11: 15.84639493 | CE11: 5 | CF11: 北陸 | CG11: 14.90963232 | CI11: 5 | CJ11: 北陸 | CK11: 15.19087157 | CM11: 5 | CN11: 北陸 | CO11: 15.35066466 | CQ11: 5 | CR11: 北陸 | CS11: 14.90636268 | CU11: 5 | CV11: 北陸 | CW11: 14.7114966 | CY11: 5 | CZ11: 北陸 | DA11: 14.7114966
AS12: 6 | AT12: 関西 | AU12: 4.939768725 | AV12: 12.51054741 | AW12: 19.4553279 | AX12: 25.75101222 | AY12: 25.00736475 | AZ12: 17.22867407 | BA12: 10.16886337 | BB12: 0.3906726484 | BC12: 1.957801543 | BD12: 3.001285685 | BE12: 4.972589029 | BF12: 3.40305782 | BH12: 6 | BI12: 関西 | BJ12: 5.494230148 | BK12: 13.57612093 | BL12: 19.35054604 | BM12: 25.63683862 | BN12: 24.95433715 | BO12: 17.30427967 | BP12: 9.883393163 | BQ12: 0.6150059813 | BR12: 1.611319945 | BS12: 3.10389257 | BT12: 4.60622154 | BU12: 3.017743778 | BW12: 6 | BX12: 関西 | BY12: 12.57075298 | CA12: 6 | CB12: 関西 | CC12: 11.60423959 | CE12: 6 | CF12: 関西 | CG12: 11.55337363 | CI12: 6 | CJ12: 関西 | CK12: 11.23965018 | CM12: 6 | CN12: 関西 | CO12: 10.95601382 | CQ12: 6 | CR12: 関西 | CS12: 10.98420803 | CU12: 6 | CV12: 関西 | CW12: 10.66720692 | CY12: 6 | CZ12: 関西 | DA12: 10.66720692
A13: 項目 | G13: =G7 -> 2025-01-01 | S13: =S7 -> 2026-01-02 | AE13: 項目 | AF13: =AF7 -> 2025-01-01 | AG13: =AG7 -> 2026-01-02 | AH13: =AH7 -> 2027-01-03 | AI13: =AI7 -> 2028-01-04 | AJ13: 2029-01-04 | AK13: 2030-01-05 | AL13: 2031-01-06 | AM13: 2032-01-07 | AN13: 2033-01-07 | AO13: 2034-01-08 | AP13: 備考 （上中段：種別、下段：備考） | AS13: 7 | AT13: 中国 | AU13: 4.77224379 | AV13: 13.89639687 | AW13: 18.89658519 | AX13: 28.5286854 | AY13: 27.4336043 | AZ13: 17.3711504 | BA13: 11.34321482 | BB13: 0.4608252512 | BC13: 1.911913194 | BD13: 3.593346894 | BE13: 3.689065457 | BF13: 3.434747971 | BH13: 7 | BI13: 中国 | BJ13: 6.188751651 | BK13: 15.8607896 | BL13: 18.98002246 | BM13: 28.09430857 | BN13: 27.21051373 | BO13: 17.30320609 | BP13: 11.35245901 | BQ13: 0.5951103911 | BR13: 1.656752618 | BS13: 3.614878002 | BT13: 3.687576441 | BU13: 2.927548847 | BW13: 7 | BX13: 中国 | BY13: 13.4493399 | CA13: 7 | CB13: 中国 | CC13: 12.78091226 | CE13: 7 | CF13: 中国 | CG13: 12.46463059 | CI13: 7 | CJ13: 中国 | CK13: 12.68358728 | CM13: 7 | CN13: 中国 | CO13: 11.89964348 | CQ13: 7 | CR13: 中国 | CS13: 11.97965743 | CU13: 7 | CV13: 中国 | CW13: 11.5693983 | CY13: 7 | CZ13: 中国 | DA13: 11.5693983
G14: =G8 -> 4月 | H14: =H8 -> 5月 | I14: 6月 | J14: 7月 | K14: 8月 | L14: 9月 | M14: 10月 | N14: 11月 | O14: 12月 | P14: 1月 | Q14: 2月 | R14: 3月 | S14: =S8 -> 4月 | T14: =T8 -> 5月 | U14: 6月 | V14: 7月 | W14: 8月 | X14: 9月 | Y14: 10月 | Z14: 11月 | AA14: 12月 | AB14: 1月 | AC14: 2月 | AD14: 3月 | AS14: 8 | AT14: 四国 | AU14: 7.830221579 | AV14: 18.9746127 | AW14: 22.10326583 | AX14: 30.61769473 | AY14: 31.12703922 | AZ14: 21.19236029 | BA14: 14.05472574 | BB14: 0.7314944143 | BC14: 2.276411882 | BD14: 4.706600337 | BE14: 5.478234767 | BF14: 5.239254233 | BH14: 8 | BI14: 四国 | BJ14: 8.059492535 | BK14: 18.38781061 | BL14: 21.49545278 | BM14: 30.01957905 | BN14: 30.2836978 | BO14: 20.81637608 | BP14: 13.0735786 | BQ14: 1.024204613 | BR14: 1.934886447 | BS14: 4.494924668 | BT14: 5.575082347 | BU14: 4.377262006 | BW14: 8 | BX14: 四国 | BY14: 15.82363883 | CA14: 8 | CB14: 四国 | CC14: 14.69072206 | CE14: 8 | CF14: 四国 | CG14: 13.90633247 | CI14: 8 | CJ14: 四国 | CK14: 13.66888614 | CM14: 8 | CN14: 四国 | CO14: 13.30732108 | CQ14: 8 | CR14: 四国 | CS14: 13.89125028 | CU14: 8 | CV14: 四国 | CW14: 13.64497999 | CY14: 8 | CZ14: 四国 | DA14: 13.64497999
A15: 余剰 | B15: 調達電力（MW） | G15: =IF(G67="","",ROUNDDOWN(G67,1)) ->  | AE15: 8月電力 | AF15: =IF(K15="","",K15) ->  | AG15: =IF(W15="","",W15) ->  | AH15: =IF(AH67="","",ROUNDDOWN(AH67,1)) ->  | AP15: 太陽光（余剰） | AS15: 9 | AT15: 九州 | AU15: 1.075651963 | AV15: 4.515723855 | AW15: 9.815201755 | AX15: 11.48071418 | AY15: 11.64438342 | AZ15: 9.849938259 | BA15: 6.043088418 | BB15: 0.2364640355 | BC15: 0.9615996186 | BD15: 1.64457012 | BE15: 1.318318415 | BF15: 0.7483061172 | BH15: 9 | BI15: 九州 | BJ15: 0.7503033213 | BK15: 4.664175523 | BL15: 9.395721942 | BM15: 10.83319015 | BN15: 10.63656123 | BO15: 9.101302067 | BP15: 5.575618247 | BQ15: 0.1916266646 | BR15: 0.8041009753 | BS15: 1.392852236 | BT15: 1.204602946 | BU15: 0.6594357098 | BW15: 9 | BX15: 九州 | BY15: 5.344472555 | CA15: 9 | CB15: 九州 | CC15: 4.765632572 | CE15: 9 | CF15: 九州 | CG15: 4.468473764 | CI15: 9 | CJ15: 九州 | CK15: 4.372485595 | CM15: 9 | CN15: 九州 | CO15: 4.217990648 | CQ15: 9 | CR15: 九州 | CS15: 4.248687738 | CU15: 9 | CV15: 九州 | CW15: 4.038791083 | CY15: 9 | CZ15: 九州 | DA15: 4.038791083
AE16: 1月電力 | AF16: =IF(OR($D$3=1,$D$3=2,$D$3=5),'補正（太陽光）指定２'!AF16,"") ->  | AG16: =IF(OR($D$3=1,$D$3=2,$D$3=5),'補正（太陽光）指定２'!AG16,"") ->  | AH16: =IF(OR($D$3=1,$D$3=2,$D$3=5),'補正（太陽光）指定２'!AH16,"") ->  | AI16: =IF(OR($D$3=1,$D$3=2,$D$3=5),'補正（太陽光）指定２'!AI16,"") ->  | AJ16: =IF(OR($D$3=1,$D$3=2,$D$3=5),'補正（太陽光）指定２'!AJ16,"") ->  | AK16: =IF(OR($D$3=1,$D$3=2,$D$3=5),'補正（太陽光）指定２'!AK16,"") ->  | AL16: =IF(OR($D$3=1,$D$3=2,$D$3=5),'補正（太陽光）指定２'!AL16,"") ->  | AM16: =IF(OR($D$3=1,$D$3=2,$D$3=5),'補正（太陽光）指定２'!AM16,"") ->  | AN16: =IF(OR($D$3=1,$D$3=2,$D$3=5),'補正（太陽光）指定２'!AN16,"") ->  | AO16: =IF(OR($D$3=1,$D$3=2,$D$3=5),'補正（太陽光）指定２'!AO16,"") ->  | AP16: 太陽光（余剰） | AS16: 10 | AT16: 沖縄 | AU16: 10.87939586 | AV16: 16.68585561 | AW16: 20.23243105 | AX16: 19.21783885 | AY16: 20.48153571 | AZ16: 19.96202045 | BA16: 16.6830861 | BB16: 10.65342359 | BC16: 5.427057915 | BD16: 4.706225435 | BE16: 5.757627356 | BF16: 8.053643695 | BH16: 10 | BI16: 沖縄 | BJ16: 10.75991615 | BK16: 16.3655257 | BL16: 19.99342225 | BM16: 18.94802071 | BN16: 19.94370186 | BO16: 19.63499733 | BP16: 16.73493383 | BQ16: 10.75022269 | BR16: 5.342356477 | BS16: 4.654589341 | BT16: 5.696677111 | BU16: 8.081786543 | BW16: 10 | BX16: 沖縄 | BY16: 16.80455215 | CA16: 10 | CB16: 沖縄 | CC16: 16.66047393 | CE16: 10 | CF16: 沖縄 | CG16: 16.52563767 | CI16: 10 | CJ16: 沖縄 | CK16: 16.3852961 | CM16: 10 | CN16: 沖縄 | CO16: 16.3099356 | CQ16: 10 | CR16: 沖縄 | CS16: 16.20138629 | CU16: 10 | CV16: 沖縄 | CW16: 16.23793701 | CY16: 10 | CZ16: 沖縄 | DA16: 16.23793701
B17: 月間調達電力量（GWh） | G17: =IF(G88="","",ROUNDDOWN(G88,1)) ->  | AE17: 年間電力量 | AF17: =IF(AF88="","",AF88) ->  | AG17: =IF(AG88="","",ROUNDDOWN(AG88,1)) ->  | AU17: 3 | AV17: 4 | AW17: 5 | AX17: 6 | AY17: 7 | AZ17: 8 | BA17: 9 | BB17: 10 | BC17: 11 | BD17: 12 | BE17: 13 | BF17: 14 | BJ17: 3 | BK17: 4 | BL17: 5 | BM17: 6 | BN17: 7 | BO17: 8 | BP17: 9 | BQ17: 10 | BR17: 11 | BS17: 12 | BT17: 13 | BU17: 14 | BY17: 3 | CC17: 3 | CG17: 3 | CK17: 3 | CO17: 3 | CS17: 3 | CW17: 3 | DA17: 3
AS19: 余剰 ※該当エリアの自家消費率分を減じた値 | BH19: 余剰 ※該当エリアの自家消費比率分を減じた値 | BW19: 余剰※ | CA19: 余剰※ | CE19: 余剰※ | CI19: 余剰※ | CM19: 余剰※ | CQ19: 余剰※ | CU19: 余剰※ | CY19: 余剰※
AU20: 4月 | AV20: 5月 | AW20: 6月 | AX20: 7月 | AY20: 8月 | AZ20: 9月 | BA20: 10月 | BB20: 11月 | BC20: 12月 | BD20: 1月 | BE20: 2月 | BF20: 3月 | BJ20: 4月 | BK20: 5月 | BL20: 6月 | BM20: 7月 | BN20: 8月 | BO20: 9月 | BP20: 10月 | BQ20: 11月 | BR20: 12月 | BS20: 1月 | BT20: 2月 | BU20: 3月 | BY20: 8月 | CC20: 8月 | CG20: 8月 | CK20: 8月 | CO20: 8月 | CS20: 8月 | CW20: 8月 | DA20: 8月
A21: 太陽光（指定１） | AO21: 【ＭＷ、ＧＷｈ】 | AS21: 1 | AT21: 北海道 | AU21: =IFERROR(AU7*(1-AU96),AU7) -> 1.641805785 | AV21: 4.360931166 | AW21: 6.527032271 | AX21: 8.063174621 | AY21: 9.071129921 | AZ21: 3.606336244 | BA21: 0.9762521049 | BB21: 0.62932143 | BC21: 0.4825831842 | BD21: 1.352636738 | BE21: 1.233402092 | BF21: 1.028232912 | BH21: 1 | BI21: 北海道 | BJ21: =IFERROR(BJ7*(1-AU96),BJ7) -> 1.339730295 | BK21: =IFERROR(BK7*(1-AV96),BK7) -> 4.349284387 | BL21: =IFERROR(BL7*(1-AW96),BL7) -> 6.399048994 | BM21: =IFERROR(BM7*(1-AX96),BM7) -> 8.132542795 | BN21: =IFERROR(BN7*(1-AY96),BN7) -> 8.435225593 | BO21: =IFERROR(BO7*(1-AZ96),BO7) -> 3.424732428 | BP21: =IFERROR(BP7*(1-BA96),BP7) -> 0.8530909248 | BQ21: =IFERROR(BQ7*(1-BB96),BQ7) -> 0.4615039512 | BR21: =IFERROR(BR7*(1-BC96),BR7) -> 0.2983061816 | BS21: =IFERROR(BS7*(1-BD96),BS7) -> 1.215755893 | BT21: =IFERROR(BT7*(1-BE96),BT7) -> 1.401405096 | BU21: =IFERROR(BU7*(1-BF96),BU7) -> 1.117266588 | BW21: 1 | BX21: 北海道 | BY21: =IFERROR(BY7*(1-AY96),BY7) -> 3.5914743 | CA21: 1 | CB21: 北海道 | CC21: =IFERROR(CC7*(1-AY96),CC7) -> 4.963731986 | CE21: 1 | CF21: 北海道 | CG21: =IFERROR(CG7*(1-AY96),CG7) -> 4.785338452 | CI21: 1 | CJ21: 北海道 | CK21: =IFERROR(CK7*(1-AY96),CK7) -> 4.764387006 | CM21: 1 | CN21: 北海道 | CO21: =IFERROR(CO7*(1-AY96),CO7) -> 4.719329865 | CQ21: 1 | CR21: 北海道 | CS21: =IFERROR(CS7*(1-AY96),CS7) -> 4.692841236 | CU21: 1 | CV21: 北海道 | CW21: =IFERROR(CW7*(1-AY96),CW7) -> 4.545825326 | CY21: 1 | CZ21: 北海道 | DA21: =IFERROR(DA7*(1-AY96),DA7) -> 4.545825326
A22: 項目 | G22: =G13 -> 2025-01-01 | S22: =S13 -> 2026-01-02 | AF22: =AF13 -> 2025-01-01 | AG22: =AG13 -> 2026-01-02 | AH22: =AH13 -> 2027-01-03 | AI22: =AI13 -> 2028-01-04 | AJ22: 2029-01-04 | AK22: 2030-01-05 | AL22: 2031-01-06 | AM22: 2032-01-07 | AN22: 2033-01-07 | AO22: 2034-01-08 | AS22: 2 | AT22: 東北 | AU22: =IFERROR(AU8*(1-AU97),AU8) -> 2.825569279 | AV22: 15.84658105 | AW22: 20.1709348 | AX22: 20.25001404 | AY22: 24.98470211 | AZ22: 16.5867384 | BA22: 9.998059536 | BB22: 2.304286422 | BC22: 0.6546573139 | BD22: 4.431558544 | BE22: 1.851283017 | BF22: 2.320377805 | BH22: 2 | BI22: 東北 | BJ22: 2.167820976 | BK22: 14.82568907 | BL22: 19.59551985 | BM22: 19.42835177 | BN22: 23.45400265 | BO22: 15.59306797 | BP22: 9.674042256 | BQ22: 1.650582089 | BR22: 0.4418412247 | BS22: 3.507428417 | BT22: 1.952517426 | BU22: 1.795770857 | BW22: 2 | BX22: 東北 | BY22: 11.23350029 | CA22: 2 | CB22: 東北 | CC22: 10.69159859 | CE22: 2 | CF22: 東北 | CG22: 10.1273531 | CI22: 2 | CJ22: 東北 | CK22: 9.992029438 | CM22: 2 | CN22: 東北 | CO22: 9.648278292 | CQ22: 2 | CR22: 東北 | CS22: 9.895921536 | CU22: 2 | CV22: 東北 | CW22: 9.285534879 | CY22: 2 | CZ22: 東北 | DA22: 9.285534879
G23: =G8 -> 4月 | H23: =H8 -> 5月 | I23: 6月 | J23: 7月 | K23: 8月 | L23: 9月 | M23: 10月 | N23: 11月 | O23: 12月 | P23: 1月 | Q23: 2月 | R23: 3月 | S23: =S8 -> 4月 | T23: =T8 -> 5月 | U23: 6月 | V23: 7月 | W23: 8月 | X23: 9月 | Y23: 10月 | Z23: 11月 | AA23: 12月 | AB23: 1月 | AC23: 2月 | AD23: 3月 | AS23: 3 | AT23: 東京 | AU23: =IFERROR(AU9*(1-AU98),AU9) -> 1.434109425 | AV23: 9.858460355 | AW23: 16.54361118 | AX23: 22.10358793 | AY23: 23.46443136 | AZ23: 15.48090178 | BA23: 9.156907553 | BB23: 0.9255452635 | BC23: 0.3780698415 | BD23: 2.779477257 | BE23: 1.182380588 | BF23: 1.135055521 | BH23: 3 | BI23: 東京 | BJ23: 1.322845525 | BK23: 9.397091366 | BL23: 15.98199301 | BM23: 21.30684247 | BN23: 22.3640677 | BO23: 14.80262478 | BP23: 8.574523296 | BQ23: 0.7406921548 | BR23: 0.2851731918 | BS23: 2.246541579 | BT23: 1.215231275 | BU23: 0.9011351245 | BW23: 3 | BX23: 東京 | BY23: 9.871401455 | CA23: 3 | CB23: 東京 | CC23: 9.601275482 | CE23: 3 | CF23: 東京 | CG23: 9.446304276 | CI23: 3 | CJ23: 東京 | CK23: 9.263489039 | CM23: 3 | CN23: 東京 | CO23: 9.169102427 | CQ23: 3 | CR23: 東京 | CS23: 9.097873151 | CU23: 3 | CV23: 東京 | CW23: 8.8468342 | CY23: 3 | CZ23: 東京 | DA23: 8.8468342
A24: 調整係数出力比率 | E24: 全量 | G24: =IF($D$3="","",VLOOKUP($D$3,$AS$7:$BF$16,AU$17,TRUE)) ->  | S24: =IF($D$3="","",VLOOKUP($D$3,$BH$7:$BU$16,BJ$17,TRUE)) ->  | AF24: =IF($D$3="","",K24) ->  | AG24: =IF($D$3="","",W24) ->  | AH24: =IF($D$3="","",VLOOKUP($D$3,$BW$7:$BY$16,BY$17,TRUE)) ->  | AI24: =IF($D$3="","",VLOOKUP($D$3,$CA$7:$CC$16,CC$17,TRUE)) ->  | AJ24: =IF($D$3="","",VLOOKUP($D$3,$CE$7:$CG$16,CG$17,TRUE)) ->  | AK24: =IF($D$3="","",VLOOKUP($D$3,$CI$7:$CK$16,CK$17,TRUE)) ->  | AL24: =IF($D$3="","",VLOOKUP($D$3,$CM$7:$CO$16,CO$17,TRUE)) ->  | AM24: =IF($D$3="","",VLOOKUP($D$3,$CQ$7:$CS$16,CS$17,TRUE)) ->  | AN24: =IF($D$3="","",VLOOKUP($D$3,$CU$7:$CW$16,CW$17,TRUE)) ->  | AO24: =IF($D$3="","",VLOOKUP($D$3,$CY$7:$DA$16,DA$17,TRUE)) ->  | AS24: 4 | AT24: 中部 | AU24: =IFERROR(AU10*(1-AU99),AU10) -> 4.079913438 | AV24: 11.19008421 | AW24: 18.72590806 | AX24: 24.2926658 | AY24: 22.59754388 | AZ24: 16.01295907 | BA24: 7.700324975 | BB24: 0.4651934791 | BC24: 1.809133042 | BD24: 6.508151056 | BE24: 4.365344633 | BF24: 2.764170702 | BH24: 4 | BI24: 中部 | BJ24: 4.326593113 | BK24: 11.82311059 | BL24: 18.82890893 | BM24: 24.09689656 | BN24: 22.34528227 | BO24: 15.90166942 | BP24: 8.091410439 | BQ24: 0.6575305492 | BR24: 1.75014687 | BS24: 5.466997809 | BT24: 4.459395252 | BU24: 2.271068906 | BW24: 4 | BX24: 中部 | BY24: 11.74468209 | CA24: 4 | CB24: 中部 | CC24: 11.30319986 | CE24: 4 | CF24: 中部 | CG24: 11.05043115 | CI24: 4 | CJ24: 中部 | CK24: 11.01211715 | CM24: 4 | CN24: 中部 | CO24: 10.82479499 | CQ24: 4 | CR24: 中部 | CS24: 10.58903029 | CU24: 4 | CV24: 中部 | CW24: 10.65103965 | CY24: 4 | CZ24: 中部 | DA24: 10.65103965
E25: 余剰 | G25: =IF($D$3="","",VLOOKUP($D$3,$AS$21:$BF$30,AU$31,TRUE)) ->  | H25: =IF($D$3="","",VLOOKUP($D$3,$AS$21:$BF$30,AV$31,TRUE)) ->  | S25: =IF($D$3="","",VLOOKUP($D$3,$BH$21:$BU$30,BJ$31,TRUE)) ->  | AF25: =IF($D$3="","",K25) ->  | AG25: =IF($D$3="","",W25) ->  | AH25: =IF($D$3="","",VLOOKUP($D$3,$BW$21:$BY$30,BY$31,TRUE)) ->  | AI25: =IF($D$3="","",VLOOKUP($D$3,$CA$21:$CC$30,CC$31,TRUE)) ->  | AJ25: =IF($D$3="","",VLOOKUP($D$3,$CE$21:$CG$30,CG$31,TRUE)) ->  | AK25: =IF($D$3="","",VLOOKUP($D$3,$CI$21:$CK$30,CK$31,TRUE)) ->  | AL25: =IF($D$3="","",VLOOKUP($D$3,$CM$21:$CO$30,CO$31,TRUE)) ->  | AM25: =IF($D$3="","",VLOOKUP($D$3,$CQ$21:$CS$30,CS$31,TRUE)) ->  | AN25: =IF($D$3="","",VLOOKUP($D$3,$CU$21:$CW$30,CW$31,TRUE)) ->  | AO25: =IF($D$3="","",VLOOKUP($D$3,$CY$21:$DA$30,DA$31,TRUE)) ->  | AS25: 5 | AT25: 北陸 | AU25: =IFERROR(AU11*(1-AU100),AU11) -> 7.642802794 | AV25: 20.78350786 | AW25: 25.49305411 | AX25: 31.99603705 | AY25: 31.20500111 | AZ25: 22.17049303 | BA25: 12.26215506 | BB25: 0.8460596171 | BC25: 1.171425524 | BD25: 2.14000691 | BE25: 2.60960961 | BF25: 6.772391338 | BH25: 5 | BI25: 北陸 | BJ25: 10.30123641 | BK25: 24.66904604 | BL25: 25.00518993 | BM25: 31.33861019 | BN25: 30.98528469 | BO25: 21.76496591 | BP25: 11.40968804 | BQ25: 0.959661995 | BR25: 0.829111389 | BS25: 2.74892694 | BT25: 2.46679637 | BU25: 5.501165355 | BW25: 5 | BX25: 北陸 | BY25: 16.85018401 | CA25: 5 | CB25: 北陸 | CC25: 15.84639493 | CE25: 5 | CF25: 北陸 | CG25: 14.90963232 | CI25: 5 | CJ25: 北陸 | CK25: 15.19087157 | CM25: 5 | CN25: 北陸 | CO25: 15.35066466 | CQ25: 5 | CR25: 北陸 | CS25: 14.90636268 | CU25: 5 | CV25: 北陸 | CW25: 14.7114966 | CY25: 5 | CZ25: 北陸 | DA25: 14.7114966
A26: ｋＷ | B26: エリア想定 | D26: 設備量 | E26: 合計 | G26: =IF(COUNT(G27:G28)=0,"",SUM(G27:G28)) ->  | H26: =IF(COUNT(H27:H28)=0,"",SUM(H27:H28)) ->  | AH26: =IF(COUNT(AH27:AH28)=0,"",SUM(AH27:AH28)) ->  | AI26: =IF(COUNT(AI27:AI28)=0,"",SUM(AI27:AI28)) ->  | AS26: 6 | AT26: 関西 | AU26: =IFERROR(AU12*(1-AU101),AU12) -> 4.939768725 | AV26: 12.51054741 | AW26: 19.4553279 | AX26: 25.75101222 | AY26: 25.00736475 | AZ26: 17.22867407 | BA26: 10.16886337 | BB26: 0.3906726484 | BC26: 1.957801543 | BD26: 3.001285685 | BE26: 4.972589029 | BF26: 3.40305782 | BH26: 6 | BI26: 関西 | BJ26: 5.494230148 | BK26: 13.57612093 | BL26: 19.35054604 | BM26: 25.63683862 | BN26: 24.95433715 | BO26: 17.30427967 | BP26: 9.883393163 | BQ26: 0.6150059813 | BR26: 1.611319945 | BS26: 3.10389257 | BT26: 4.60622154 | BU26: 3.017743778 | BW26: 6 | BX26: 関西 | BY26: 12.57075298 | CA26: 6 | CB26: 関西 | CC26: 11.60423959 | CE26: 6 | CF26: 関西 | CG26: 11.55337363 | CI26: 6 | CJ26: 関西 | CK26: 11.23965018 | CM26: 6 | CN26: 関西 | CO26: 10.95601382 | CQ26: 6 | CR26: 関西 | CS26: 10.98420803 | CU26: 6 | CV26: 関西 | CW26: 10.66720692 | CY26: 6 | CZ26: 関西 | DA26: 10.66720692
F27: 全量 | G27: =IF(D6="","",IF(D6="Ⅰ",'②太陽光（全量）'!H13,MIN('②太陽光（全量）'!S12,'②太陽光（全量）'!H13))) ->  | H27: =IF(D6="","",IF(D6="Ⅰ",'②太陽光（全量）'!I13,MIN('②太陽光（全量）'!H13,'②太陽光（全量）'!I13))) ->  | I27: =IF(D6="","",IF(D6="Ⅰ",'②太陽光（全量）'!J13,MIN('②太陽光（全量）'!I13,'②太陽光（全量）'!J13))) ->  | J27: =IF(D6="","",IF(D6="Ⅰ",'②太陽光（全量）'!K13,MIN('②太陽光（全量）'!J13,'②太陽光（全量）'!K13))) ->  | K27: =IF(D6="","",IF(D6="Ⅰ",'②太陽光（全量）'!L13,MIN('②太陽光（全量）'!K13,'②太陽光（全量）'!L13))) ->  | L27: =IF(D6="","",IF(D6="Ⅰ",'②太陽光（全量）'!M13,MIN('②太陽光（全量）'!L13,'②太陽光（全量）'!M13))) ->  | M27: =IF(D6="","",IF(D6="Ⅰ",'②太陽光（全量）'!N13,MIN('②太陽光（全量）'!M13,'②太陽光（全量）'!N13))) ->  | N27: =IF(D6="","",IF(D6="Ⅰ",'②太陽光（全量）'!O13,MIN('②太陽光（全量）'!N13,'②太陽光（全量）'!O13))) ->  | O27: =IF(D6="","",IF(D6="Ⅰ",'②太陽光（全量）'!P13,MIN('②太陽光（全量）'!O13,'②太陽光（全量）'!P13))) ->  | P27: =IF(D6="","",IF(D6="Ⅰ",'②太陽光（全量）'!Q13,MIN('②太陽光（全量）'!P13,'②太陽光（全量）'!Q13))) ->  | Q27: =IF(D6="","",IF(D6="Ⅰ",'②太陽光（全量）'!R13,MIN('②太陽光（全量）'!Q13,'②太陽光（全量）'!R13))) ->  | R27: =IF(D6="","",IF(D6="Ⅰ",'②太陽光（全量）'!S13,MIN('②太陽光（全量）'!R13,'②太陽光（全量）'!S13))) ->  | S27: =IF(D6="","",IF(D6="Ⅰ",'②太陽光（全量）'!H14,MIN('②太陽光（全量）'!S13,'②太陽光（全量）'!H14))) ->  | T27: =IF(D6="","",IF(D6="Ⅰ",'②太陽光（全量）'!I14,MIN('②太陽光（全量）'!H14,'②太陽光（全量）'!I14))) ->  | U27: =IF(D6="","",IF(D6="Ⅰ",'②太陽光（全量）'!J14,MIN('②太陽光（全量）'!I14,'②太陽光（全量）'!J14))) ->  | V27: =IF(D6="","",IF(D6="Ⅰ",'②太陽光（全量）'!K14,MIN('②太陽光（全量）'!J14,'②太陽光（全量）'!K14))) ->  | W27: =IF(D6="","",IF(D6="Ⅰ",'②太陽光（全量）'!L14,MIN('②太陽光（全量）'!K14,'②太陽光（全量）'!L14))) ->  | X27: =IF(D6="","",IF(D6="Ⅰ",'②太陽光（全量）'!M14,MIN('②太陽光（全量）'!L14,'②太陽光（全量）'!M14))) ->  | Y27: =IF(D6="","",IF(D6="Ⅰ",'②太陽光（全量）'!N14,MIN('②太陽光（全量）'!M14,'②太陽光（全量）'!N14))) ->  | Z27: =IF(D6="","",IF(D6="Ⅰ",'②太陽光（全量）'!O14,MIN('②太陽光（全量）'!N14,'②太陽光（全量）'!O14))) ->  | AA27: =IF(D6="","",IF(D6="Ⅰ",'②太陽光（全量）'!P14,MIN('②太陽光（全量）'!O14,'②太陽光（全量）'!P14))) ->  | AB27: =IF(D6="","",IF(D6="Ⅰ",'②太陽光（全量）'!Q14,MIN('②太陽光（全量）'!P14,'②太陽光（全量）'!Q14))) ->  | AC27: =IF(D6="","",IF(D6="Ⅰ",'②太陽光（全量）'!R14,MIN('②太陽光（全量）'!Q14,'②太陽光（全量）'!R14))) ->  | AD27: =IF(D6="","",IF(D6="Ⅰ",'②太陽光（全量）'!S14,MIN('②太陽光（全量）'!R14,'②太陽光（全量）'!S14))) ->  | AH27: =IF(D6="","",IF(D6="Ⅰ",'②太陽光（全量）'!L15,MIN('②太陽光（全量）'!K15,'②太陽光（全量）'!L15))) ->  | AI27: =IF(D6="","",IF(D6="Ⅰ",'②太陽光（全量）'!L16,MIN('②太陽光（全量）'!K16,'②太陽光（全量）'!L16))) ->  | AJ27: =IF(D6="","",IF(D6="Ⅰ",'②太陽光（全量）'!L17,MIN('②太陽光（全量）'!K17,'②太陽光（全量）'!L17))) ->  | AK27: =IF(D6="","",IF(D6="Ⅰ",'②太陽光（全量）'!L18,MIN('②太陽光（全量）'!K18,'②太陽光（全量）'!L18))) ->  | AL27: =IF(D6="","",IF(D6="Ⅰ",'②太陽光（全量）'!L19,MIN('②太陽光（全量）'!K19,'②太陽光（全量）'!L19))) ->  | AM27: =IF(D6="","",IF(D6="Ⅰ",'②太陽光（全量）'!L20,MIN('②太陽光（全量）'!K20,'②太陽光（全量）'!L20))) ->  | AN27: =IF(D6="","",IF(D6="Ⅰ",'②太陽光（全量）'!L21,MIN('②太陽光（全量）'!K21,'②太陽光（全量）'!L21))) ->  | AO27: =IF(D6="","",IF(D6="Ⅰ",'②太陽光（全量）'!L22,MIN('②太陽光（全量）'!K22,'②太陽光（全量）'!L22))) ->  | AS27: 7 | AT27: 中国 | AU27: =IFERROR(AU13*(1-AU102),AU13) -> 4.77224379 | AV27: 13.89639687 | AW27: 18.89658519 | AX27: 28.5286854 | AY27: 27.4336043 | AZ27: 17.3711504 | BA27: 11.34321482 | BB27: 0.4608252512 | BC27: 1.911913194 | BD27: 3.593346894 | BE27: 3.689065457 | BF27: 3.434747971 | BH27: 7 | BI27: 中国 | BJ27: 6.188751651 | BK27: 15.8607896 | BL27: 18.98002246 | BM27: 28.09430857 | BN27: 27.21051373 | BO27: 17.30320609 | BP27: 11.35245901 | BQ27: 0.5951103911 | BR27: 1.656752618 | BS27: 3.614878002 | BT27: 3.687576441 | BU27: 2.927548847 | BW27: 7 | BX27: 中国 | BY27: 13.4493399 | CA27: 7 | CB27: 中国 | CC27: 12.78091226 | CE27: 7 | CF27: 中国 | CG27: 12.46463059 | CI27: 7 | CJ27: 中国 | CK27: 12.68358728 | CM27: 7 | CN27: 中国 | CO27: 11.89964348 | CQ27: 7 | CR27: 中国 | CS27: 11.97965743 | CU27: 7 | CV27: 中国 | CW27: 11.5693983 | CY27: 7 | CZ27: 中国 | DA27: 11.5693983
F28: 余剰 | G28: =IF(D6="","",IF(D6="Ⅰ",'③太陽光（余剰）'!H13,MIN('③太陽光（余剰）'!S12,'③太陽光（余剰）'!H13))) ->  | H28: =IF(D6="","",IF(D6="Ⅰ",'③太陽光（余剰）'!I13,MIN('③太陽光（余剰）'!H13,'③太陽光（余剰）'!I13))) ->  | I28: =IF(D6="","",IF(D6="Ⅰ",'③太陽光（余剰）'!J13,MIN('③太陽光（余剰）'!I13,'③太陽光（余剰）'!J13))) ->  | J28: =IF(D6="","",IF(D6="Ⅰ",'③太陽光（余剰）'!K13,MIN('③太陽光（余剰）'!J13,'③太陽光（余剰）'!K13))) ->  | K28: =IF(D6="","",IF(D6="Ⅰ",'③太陽光（余剰）'!L13,MIN('③太陽光（余剰）'!K13,'③太陽光（余剰）'!L13))) ->  | L28: =IF(D6="","",IF(D6="Ⅰ",'③太陽光（余剰）'!M13,MIN('③太陽光（余剰）'!L13,'③太陽光（余剰）'!M13))) ->  | M28: =IF(D6="","",IF(D6="Ⅰ",'③太陽光（余剰）'!N13,MIN('③太陽光（余剰）'!M13,'③太陽光（余剰）'!N13))) ->  | N28: =IF(D6="","",IF(D6="Ⅰ",'③太陽光（余剰）'!O13,MIN('③太陽光（余剰）'!N13,'③太陽光（余剰）'!O13))) ->  | O28: =IF(D6="","",IF(D6="Ⅰ",'③太陽光（余剰）'!P13,MIN('③太陽光（余剰）'!O13,'③太陽光（余剰）'!P13))) ->  | P28: =IF(D6="","",IF(D6="Ⅰ",'③太陽光（余剰）'!Q13,MIN('③太陽光（余剰）'!P13,'③太陽光（余剰）'!Q13))) ->  | Q28: =IF(D6="","",IF(D6="Ⅰ",'③太陽光（余剰）'!R13,MIN('③太陽光（余剰）'!Q13,'③太陽光（余剰）'!R13))) ->  | R28: =IF(D6="","",IF(D6="Ⅰ",'③太陽光（余剰）'!S13,MIN('③太陽光（余剰）'!R13,'③太陽光（余剰）'!S13))) ->  | S28: =IF(D6="","",IF(D6="Ⅰ",'③太陽光（余剰）'!H14,MIN('③太陽光（余剰）'!S13,'③太陽光（余剰）'!H14))) ->  | T28: =IF(D6="","",IF(D6="Ⅰ",'③太陽光（余剰）'!I14,MIN('③太陽光（余剰）'!H14,'③太陽光（余剰）'!I14))) ->  | U28: =IF(D6="","",IF(D6="Ⅰ",'③太陽光（余剰）'!J14,MIN('③太陽光（余剰）'!I14,'③太陽光（余剰）'!J14))) ->  | V28: =IF(D6="","",IF(D6="Ⅰ",'③太陽光（余剰）'!K14,MIN('③太陽光（余剰）'!J14,'③太陽光（余剰）'!K14))) ->  | W28: =IF(D6="","",IF(D6="Ⅰ",'③太陽光（余剰）'!L14,MIN('③太陽光（余剰）'!K14,'③太陽光（余剰）'!L14))) ->  | X28: =IF(D6="","",IF(D6="Ⅰ",'③太陽光（余剰）'!M14,MIN('③太陽光（余剰）'!L14,'③太陽光（余剰）'!M14))) ->  | Y28: =IF(D6="","",IF(D6="Ⅰ",'③太陽光（余剰）'!N14,MIN('③太陽光（余剰）'!M14,'③太陽光（余剰）'!N14))) ->  | Z28: =IF(D6="","",IF(D6="Ⅰ",'③太陽光（余剰）'!O14,MIN('③太陽光（余剰）'!N14,'③太陽光（余剰）'!O14))) ->  | AA28: =IF(D6="","",IF(D6="Ⅰ",'③太陽光（余剰）'!P14,MIN('③太陽光（余剰）'!O14,'③太陽光（余剰）'!P14))) ->  | AB28: =IF(D6="","",IF(D6="Ⅰ",'③太陽光（余剰）'!Q14,MIN('③太陽光（余剰）'!P14,'③太陽光（余剰）'!Q14))) ->  | AC28: =IF(D6="","",IF(D6="Ⅰ",'③太陽光（余剰）'!R14,MIN('③太陽光（余剰）'!Q14,'③太陽光（余剰）'!R14))) ->  | AD28: =IF(D6="","",IF(D6="Ⅰ",'③太陽光（余剰）'!S14,MIN('③太陽光（余剰）'!R14,'③太陽光（余剰）'!S14))) ->  | AH28: =IF(D6="","",IF(D6="Ⅰ",'③太陽光（余剰）'!L15,MIN('③太陽光（余剰）'!K15,'③太陽光（余剰）'!L15))) ->  | AI28: =IF(D6="","",IF(D6="Ⅰ",'③太陽光（余剰）'!L16,MIN('③太陽光（余剰）'!K16,'③太陽光（余剰）'!L16))) ->  | AJ28: =IF(D6="","",IF(D6="Ⅰ",'③太陽光（余剰）'!L17,MIN('③太陽光（余剰）'!K17,'③太陽光（余剰）'!L17))) ->  | AK28: =IF(D6="","",IF(D6="Ⅰ",'③太陽光（余剰）'!L18,MIN('③太陽光（余剰）'!K18,'③太陽光（余剰）'!L18))) ->  | AL28: =IF(D6="","",IF(D6="Ⅰ",'③太陽光（余剰）'!L19,MIN('③太陽光（余剰）'!K19,'③太陽光（余剰）'!L19))) ->  | AM28: =IF(D6="","",IF(D6="Ⅰ",'③太陽光（余剰）'!L20,MIN('③太陽光（余剰）'!K20,'③太陽光（余剰）'!L20))) ->  | AN28: =IF(D6="","",IF(D6="Ⅰ",'③太陽光（余剰）'!L21,MIN('③太陽光（余剰）'!K21,'③太陽光（余剰）'!L21))) ->  | AO28: =IF(D6="","",IF(D6="Ⅰ",'③太陽光（余剰）'!L22,MIN('③太陽光（余剰）'!K22,'③太陽光（余剰）'!L22))) ->  | AS28: 8 | AT28: 四国 | AU28: =IFERROR(AU14*(1-AU103),AU14) -> 7.830221579 | AV28: 18.9746127 | AW28: 22.10326583 | AX28: 30.61769473 | AY28: 31.12703922 | AZ28: 21.19236029 | BA28: 14.05472574 | BB28: 0.7314944143 | BC28: 2.276411882 | BD28: 4.706600337 | BE28: 5.478234767 | BF28: 5.239254233 | BH28: 8 | BI28: 四国 | BJ28: 8.059492535 | BK28: 18.38781061 | BL28: 21.49545278 | BM28: 30.01957905 | BN28: 30.2836978 | BO28: 20.81637608 | BP28: 13.0735786 | BQ28: 1.024204613 | BR28: 1.934886447 | BS28: 4.494924668 | BT28: 5.575082347 | BU28: 4.377262006 | BW28: 8 | BX28: 四国 | BY28: 15.82363883 | CA28: 8 | CB28: 四国 | CC28: 14.69072206 | CE28: 8 | CF28: 四国 | CG28: 13.90633247 | CI28: 8 | CJ28: 四国 | CK28: 13.66888614 | CM28: 8 | CN28: 四国 | CO28: 13.30732108 | CQ28: 8 | CR28: 四国 | CS28: 13.89125028 | CU28: 8 | CV28: 四国 | CW28: 13.64497999 | CY28: 8 | CZ28: 四国 | DA28: 13.64497999
D29: 供給電力 （調整係数） | E29: 合計 | G29: =IF(COUNT(G30:G31)=0,"",SUM(G30:G31)) ->  | H29: =IF(COUNT(H30:H31)=0,"",SUM(H30:H31)) ->  | AH29: =IF(COUNT(AH30:AH31)=0,"",SUM(AH30:AH31)) ->  | AI29: =IF(COUNT(AI30:AI31)=0,"",SUM(AI30:AI31)) ->  | AS29: 9 | AT29: 九州 | AU29: =IFERROR(AU15*(1-AU104),AU15) -> 1.075651963 | AV29: 4.515723855 | AW29: 9.815201755 | AX29: 11.48071418 | AY29: 11.64438342 | AZ29: 9.849938259 | BA29: 6.043088418 | BB29: 0.2364640355 | BC29: 0.9615996186 | BD29: 1.64457012 | BE29: 1.318318415 | BF29: 0.7483061172 | BH29: 9 | BI29: 九州 | BJ29: 0.7503033213 | BK29: 4.664175523 | BL29: 9.395721942 | BM29: 10.83319015 | BN29: 10.63656123 | BO29: 9.101302067 | BP29: 5.575618247 | BQ29: 0.1916266646 | BR29: 0.8041009753 | BS29: 1.392852236 | BT29: 1.204602946 | BU29: 0.6594357098 | BW29: 9 | BX29: 九州 | BY29: 5.344472555 | CA29: 9 | CB29: 九州 | CC29: 4.765632572 | CE29: 9 | CF29: 九州 | CG29: 4.468473764 | CI29: 9 | CJ29: 九州 | CK29: 4.372485595 | CM29: 9 | CN29: 九州 | CO29: 4.217990648 | CQ29: 9 | CR29: 九州 | CS29: 4.248687738 | CU29: 9 | CV29: 九州 | CW29: 4.038791083 | CY29: 9 | CZ29: 九州 | DA29: 4.038791083
F30: 全量 | G30: =IF(G27="","",IF(G24=0,0,IF(G24="","",ROUNDDOWN(SUM(G27)*SUM(G$24)/100,2)))) ->  | AH30: =IF(AH27="","",IF(AH24=0,0,IF(AH24="","",ROUNDDOWN(SUM(AH27)*SUM(AH$24)/100,2)))) ->  | AS30: 10 | AT30: 沖縄 | AU30: =IFERROR(AU16*(1-AU105),AU16) -> 10.87939586 | AV30: 16.68585561 | AW30: 20.23243105 | AX30: 19.21783885 | AY30: 20.48153571 | AZ30: 19.96202045 | BA30: 16.6830861 | BB30: 10.65342359 | BC30: 5.427057915 | BD30: 4.706225435 | BE30: 5.757627356 | BF30: 8.053643695 | BH30: 10 | BI30: 沖縄 | BJ30: 10.75991615 | BK30: 16.3655257 | BL30: 19.99342225 | BM30: 18.94802071 | BN30: 19.94370186 | BO30: 19.63499733 | BP30: 16.73493383 | BQ30: 10.75022269 | BR30: 5.342356477 | BS30: 4.654589341 | BT30: 5.696677111 | BU30: 8.081786543 | BW30: 10 | BX30: 沖縄 | BY30: 16.80455215 | CA30: 10 | CB30: 沖縄 | CC30: 16.66047393 | CE30: 10 | CF30: 沖縄 | CG30: 16.52563767 | CI30: 10 | CJ30: 沖縄 | CK30: 16.3852961 | CM30: 10 | CN30: 沖縄 | CO30: 16.3099356 | CQ30: 10 | CR30: 沖縄 | CS30: 16.20138629 | CU30: 10 | CV30: 沖縄 | CW30: 16.23793701 | CY30: 10 | CZ30: 沖縄 | DA30: 16.23793701
F31: 余剰 | G31: =IF(G28="","",IF(G25=0,0,IF(G25="","",ROUNDDOWN(SUM(G28)*SUM(G$25)/100,2)))) ->  | AH31: =IF(AH28="","",IF(AH25=0,0,IF(AH25="","",ROUNDDOWN(SUM(AH28)*SUM(AH$25)/100,2)))) ->  | AU31: 3 | AV31: 4 | AW31: 5 | AX31: 6 | AY31: 7 | AZ31: 8 | BA31: 9 | BB31: 10 | BC31: 11 | BD31: 12 | BE31: 13 | BF31: 14 | BJ31: 3 | BK31: 4 | BL31: 5 | BM31: 6 | BN31: 7 | BO31: 8 | BP31: 9 | BQ31: 10 | BR31: 11 | BS31: 12 | BT31: 13 | BU31: 14 | BY31: 3 | CC31: 3 | CG31: 3 | CK31: 3 | CO31: 3 | CS31: 3 | CW31: 3 | DA31: 3
D32: 設備量 | E32: 合計 | G32: =IF(COUNT(G33:G34)=0,"",SUM(G33:G34)) ->  | H32: =IF(COUNT(H33:H34)=0,"",SUM(H33:H34)) ->  | AH32: =IF(COUNT(AH33:AH34)=0,"",SUM(AH33:AH34)) ->  | AI32: =IF(COUNT(AI33:AI34)=0,"",SUM(AI33:AI34)) -> 
F33: 全量 | G33: =IF(AND(G42="",G48=""),"",SUM(G39,G45)) ->  | H33: =IF(AND(H42="",H48=""),"",SUM(H39,H45)) ->  | R33: =IF(AND(R42="",R48=""),"",SUM(R39,R45)) ->  | AH33: =IF(AND(AH42="",AH48=""),"",SUM(AH39,AH45)) ->  | AI33: =IF(AND(AI42="",AI48=""),"",SUM(AI39,AI45)) ->  | BX33: ※該当エリアの自家消費率分を減じた値
F34: 余剰 | G34: =IF(AND(G43="",G49=""),"",SUM(G40,G46)) ->  | H34: =IF(AND(H43="",H49=""),"",SUM(H40,H46)) ->  | R34: =IF(AND(R43="",R49=""),"",SUM(R40,R46)) ->  | AH34: =IF(AND(AH43="",AH49=""),"",SUM(AH40,AH46)) ->  | AI34: =IF(AND(AI43="",AI49=""),"",SUM(AI40,AI46)) -> 
D35: 供給電力 （調整係数） | E35: 合計 | G35: =IF(COUNT(G36:G37)=0,"",SUM(G36:G37)) ->  | H35: =IF(COUNT(H36:H37)=0,"",SUM(H36:H37)) ->  | AH35: =IF(COUNT(AH36:AH37)=0,"",SUM(AH36:AH37)) ->  | AI35: =IF(COUNT(AI36:AI37)=0,"",SUM(AI36:AI37)) -> 
F36: 全量 | G36: =IF(AND(G42="",G48=""),"",SUM(G42,G48)) ->  | H36: =IF(AND(H42="",H48=""),"",SUM(H42,H48)) ->  | R36: =IF(AND(R42="",R48=""),"",SUM(R42,R48)) ->  | AH36: =IF(AND(AH42="",AH48=""),"",SUM(AH42,AH48)) ->  | AI36: =IF(AND(AI42="",AI48=""),"",SUM(AI42,AI48)) -> 
F37: 余剰 | G37: =IF(AND(G43="",G49=""),"",SUM(G43,G49)) ->  | H37: =IF(AND(H43="",H49=""),"",SUM(H43,H49)) ->  | R37: =IF(AND(R43="",R49=""),"",SUM(R43,R49)) ->  | AH37: =IF(AND(AH43="",AH49=""),"",SUM(AH43,AH49)) ->  | AI37: =IF(AND(AI43="",AI49=""),"",SUM(AI43,AI49)) -> 
D38: 設備量 | E38: 合計 | G38: =IF(COUNT(G39:G40)=0,"",SUM(G39:G40)) ->  | H38: =IF(COUNT(H39:H40)=0,"",SUM(H39:H40)) ->  | AH38: =IF(COUNT(AH39:AH40)=0,"",SUM(AH39:AH40)) ->  | AI38: =IF(COUNT(AI39:AI40)=0,"",SUM(AI39:AI40)) -> 
F39: 全量 | G39: =IF(G42="","",IF(G24=0,0,IF(G24="","",ROUNDDOWN(G42/(G$24/100),2)))) ->  | AH39: =IF(AH42="","",IF(AH24=0,0,IF(AH24="","",ROUNDDOWN(AH42/(AH$24/100),2)))) -> 
F40: 余剰 | G40: =IF(G43="","",IF(G25=0,0,IF(G25="","",ROUNDDOWN(G43/(G$25/100),2)))) ->  | AH40: =IF(AH43="","",IF(AH25=0,0,IF(AH25="","",ROUNDDOWN(AH43/(AH$25/100),2)))) -> 
D41: 供給電力 （調整係数） | E41: 合計 | G41: =IF(COUNT(G42:G43)=0,"",SUM(G42:G43)) ->  | H41: =IF(COUNT(H42:H43)=0,"",SUM(H42:H43)) ->  | AH41: =IF(COUNT(AH42:AH43)=0,"",SUM(AH42:AH43)) ->  | AI41: =IF(COUNT(AI42:AI43)=0,"",SUM(AI42:AI43)) -> 
F42: 全量
F43: 余剰
D44: 設備量 | E44: 合計 | G44: =IF(COUNT(G45:G46)=0,"",SUM(G45:G46)) ->  | H44: =IF(COUNT(H45:H46)=0,"",SUM(H45:H46)) ->  | AH44: =IF(COUNT(AH45:AH46)=0,"",SUM(AH45:AH46)) ->  | AI44: =IF(COUNT(AI45:AI46)=0,"",SUM(AI45:AI46)) -> 
F45: 全量 | G45: =IF(G48="","",IF(G24=0,0,IF(G24="","",ROUNDDOWN(G48/(G$24/100),2)))) ->  | AH45: =IF(AH48="","",IF(AH24=0,0,IF(AH24="","",ROUNDDOWN(AH48/(AH$24/100),2)))) -> 
F46: 余剰 | G46: =IF(G49="","",IF(G25=0,0,IF(G25="","",ROUNDDOWN(G49/(G$25/100),2)))) ->  | AH46: =IF(AH49="","",IF(AH25=0,0,IF(AH25="","",ROUNDDOWN(AH49/(AH$25/100),2)))) -> 
D47: 供給電力 （調整係数） | E47: 合計 | G47: =IF(COUNT(G48:G49)=0,"",SUM(G48:G49)) ->  | H47: =IF(COUNT(H48:H49)=0,"",SUM(H48:H49)) ->  | AH47: =IF(COUNT(AH48:AH49)=0,"",SUM(AH48:AH49)) ->  | AI47: =IF(COUNT(AI48:AI49)=0,"",SUM(AI48:AI49)) -> 
F48: 全量
F49: 余剰
B50: 各電気事業者の エリア内保有分 | D50: 設備量 | E50: 合計 | G50: =IF(COUNT(G51:G52)=0,"",SUM(G51:G52)) ->  | H50: =IF(COUNT(H51:H52)=0,"",SUM(H51:H52)) ->  | AF50: =IF($D$3="","",K50) ->  | AG50: =IF($D$3="","",W50) ->  | AH50: =IF(COUNT(AH51:AH52)=0,"",SUM(AH51:AH52)) ->  | AS50: 供給力算定期間
F51: 全量 | G51: =IF(G54="","",IF(G24=0,0,IF(G24="","",ROUNDDOWN(G54/(G$24/100),2)))) ->  | AH51: =IF(AH54="","",IF(AH24=0,0,IF(AH24="","",ROUNDDOWN(AH54/(AH$24/100),2)))) ->  | AU51: 4月 | AV51: 5月 | AW51: 6月 | AX51: 7月 | AY51: 8月 | AZ51: 9月 | BA51: 10月 | BB51: 11月 | BC51: 12月 | BD51: 1月 | BE51: 2月 | BF51: 3月
F52: 余剰 | G52: =IF(G55="","",IF(G25=0,0,IF(G31="","",ROUNDDOWN(G55/(G$25/100),2)))) ->  | AH52: =IF(AH55="","",IF(AH25=0,0,IF(AH31="","",ROUNDDOWN(AH55/(AH$25/100),2)))) ->  | AT52: 北海道 | AU52: 月間 | AV52: 月間 | AW52: 後半 | AX52: 後半 | AY52: 月間 | AZ52: 前半 | BA52: 月間 | BB52: 月間 | BC52: 月間 | BD52: 月間 | BE52: 月間 | BF52: 前半
D53: 供給電力 （調整係数） | E53: 合計 | G53: =IF(COUNT(G54:G55)=0,"",SUM(G54:G55)) ->  | H53: =IF(COUNT(H54:H55)=0,"",SUM(H54:H55)) ->  | AH53: =IF(COUNT(AH54:AH55)=0,"",SUM(AH54:AH55)) ->  | AT53: 東北 | AU53: 月間 | AV53: 月間 | AW53: 月間 | AX53: 後半 | AY53: 月間 | AZ53: 前半 | BA53: 月間 | BB53: 月間 | BC53: 月間 | BD53: 月間 | BE53: 月間 | BF53: 前半
F54: 全量 | AT54: 東京 | AU54: 月間 | AV54: 月間 | AW54: 後半 | AX54: 後半 | AY54: 月間 | AZ54: 前半 | BA54: 月間 | BB54: 月間 | BC54: 月間 | BD54: 月間 | BE54: 月間 | BF54: 前半
F55: 余剰 | AT55: 中部 | AU55: 月間 | AV55: 月間 | AW55: 後半 | AX55: 後半 | AY55: 月間 | AZ55: 前半 | BA55: 月間 | BB55: 月間 | BC55: 月間 | BD55: 月間 | BE55: 月間 | BF55: 前半
B56: 各電気事業者の エリア内非電気事業者 からの調達分 | D56: 設備量 | E56: 合計 | G56: =IF(COUNT(G57:G58)=0,"",SUM(G57:G58)) ->  | H56: =IF(COUNT(H57:H58)=0,"",SUM(H57:H58)) ->  | AH56: =IF(COUNT(AH57:AH58)=0,"",SUM(AH57:AH58)) ->  | AI56: =IF(COUNT(AI57:AI58)=0,"",SUM(AI57:AI58)) ->  | AT56: 北陸 | AU56: 月間 | AV56: 月間 | AW56: 月間 | AX56: 後半 | AY56: 月間 | AZ56: 前半 | BA56: 月間 | BB56: 月間 | BC56: 月間 | BD56: 月間 | BE56: 月間 | BF56: 前半
F57: 全量 | G57: =IF(G60="","",IF(G24=0,0,IF(G24="","",ROUNDDOWN(G60/(G$24/100),2)))) ->  | AH57: =IF(AH60="","",IF(AH24=0,0,IF(AH24="","",ROUNDDOWN(AH60/(AH$24/100),2)))) ->  | AT57: 関西 | AU57: 月間 | AV57: 月間 | AW57: 後半 | AX57: 後半 | AY57: 月間 | AZ57: 前半 | BA57: 月間 | BB57: 月間 | BC57: 月間 | BD57: 月間 | BE57: 月間 | BF57: 前半
F58: 余剰 | G58: =IF(G61="","",IF(G25=0,0,IF(G25="","",ROUNDDOWN(G61/(G$25/100),2)))) ->  | AH58: =IF(AH61="","",IF(AH25=0,0,IF(AH25="","",ROUNDDOWN(AH61/(AH$25/100),2)))) ->  | AT58: 中国 | AU58: 月間 | AV58: 月間 | AW58: 後半 | AX58: 後半 | AY58: 月間 | AZ58: 前半 | BA58: 月間 | BB58: 月間 | BC58: 月間 | BD58: 月間 | BE58: 月間 | BF58: 前半
D59: 供給電力 （調整係数） | E59: 合計 | G59: =IF(COUNT(G60:G61)=0,"",SUM(G60:G61)) ->  | H59: =IF(COUNT(H60:H61)=0,"",SUM(H60:H61)) ->  | AH59: =IF(COUNT(AH60:AH61)=0,"",SUM(AH60:AH61)) ->  | AI59: =IF(COUNT(AI60:AI61)=0,"",SUM(AI60:AI61)) ->  | AT59: 四国 | AU59: 月間 | AV59: 月間 | AW59: 後半 | AX59: 後半 | AY59: 月間 | AZ59: 前半 | BA59: 月間 | BB59: 月間 | BC59: 月間 | BD59: 月間 | BE59: 月間 | BF59: 前半
F60: 全量 | AT60: 九州 | AU60: 月間 | AV60: 月間 | AW60: 後半 | AX60: 後半 | AY60: 月間 | AZ60: 前半 | BA60: 月間 | BB60: 月間 | BC60: 月間 | BD60: 月間 | BE60: 月間 | BF60: 前半
F61: 余剰 | AT61: 沖縄 | AU61: 月間 | AV61: 月間 | AW61: 月間 | AX61: 月間 | AY61: 月間 | AZ61: 月間 | BA61: 月間 | BB61: 月間 | BC61: 月間 | BD61: 月間 | BE61: 月間 | BF61: 月間
B62: 一般送配電想定との差分 | D62: 設備量 | E62: 合計 | G62: =IF(COUNT(G63:G64)=0,"",SUM(G63:G64)) ->  | H62: =IF(COUNT(H63:H64)=0,"",SUM(H63:H64)) ->  | AH62: =IF(COUNT(AH63:AH64)=0,"",SUM(AH63:AH64)) ->  | AI62: =IF(COUNT(AI63:AI64)=0,"",SUM(AI63:AI64)) -> 
F63: 全量 | G63: =IF(AND(G27="",G51="",G57=""),"",SUM(G27)-SUM(G51)-SUM(G57)) ->  | H63: =IF(AND(H27="",H51="",H57=""),"",SUM(H27)-SUM(H51)-SUM(H57)) ->  | AH63: =IF(AND(AH27="",AH51="",AH57=""),"",SUM(AH27)-SUM(AH51)-SUM(AH57)) ->  | AI63: =IF(AND(AI27="",AI51="",AI57=""),"",SUM(AI27)-SUM(AI51)-SUM(AI57)) -> 
F64: 余剰 | G64: =IF(AND(G28="",G52="",G58=""),"",SUM(G28)-SUM(G52)-SUM(G58)) ->  | H64: =IF(AND(H28="",H52="",H58=""),"",SUM(H28)-SUM(H52)-SUM(H58)) ->  | AH64: =IF(AND(AH28="",AH52="",AH58=""),"",SUM(AH28)-SUM(AH52)-SUM(AH58)) ->  | AI64: =IF(AND(AI28="",AI52="",AI58=""),"",SUM(AI28)-SUM(AI52)-SUM(AI58)) -> 
D65: 供給電力 （調整係数） | E65: 合計 | G65: =IF(COUNT(G66:G67)=0,"",SUM(G66:G67)) ->  | H65: =IF(COUNT(H66:H67)=0,"",SUM(H66:H67)) ->  | AH65: =IF(COUNT(AH66:AH67)=0,"",SUM(AH66:AH67)) -> 
F66: 全量 | G66: =IF(AND(G30="",G54="",G60=""),"",SUM(G30)-SUM(G54)-SUM(G60)) ->  | H66: =IF(AND(H30="",H54="",H60=""),"",SUM(H30)-SUM(H54)-SUM(H60)) ->  | AH66: =IF(AND(AH30="",AH54="",AH60=""),"",SUM(AH30)-SUM(AH54)-SUM(AH60)) ->  | AI66: =IF(AND(AI30="",AI54="",AI60=""),"",SUM(AI30)-SUM(AI54)-SUM(AI60)) -> 
F67: 余剰 | G67: =IF(AND(G31="",G55="",G61),"",SUM(G31)-SUM(G55)-SUM(G61)) ->  | H67: =IF(AND(H31="",H55="",H61),"",SUM(H31)-SUM(H55)-SUM(H61)) ->  | AH67: =IF(AND(AH31="",AH55="",AH61=""),"",SUM(AH31)-SUM(AH55)-SUM(AH61)) ->  | AI67: =IF(AND(AI31="",AI55="",AI61=""),"",SUM(AI31)-SUM(AI55)-SUM(AI61)) -> 
A68: ｋＷｈ | B68: エリア想定 | D68: 電力量 | E68: 合計 | G68: =IF(COUNT(G69:G70)=0,"",SUM(G69:G70)) ->  | H68: =IF(COUNT(H69:H70)=0,"",SUM(H69:H70)) ->  | AF68: =IF($D$3="","",SUM(G68:R68)) ->  | AG68: =IF(COUNT(AG69:AG70)=0,"",SUM(AG69:AG70)) ->  | AH68: =IF(COUNT(AH69:AH70)=0,"",SUM(AH69:AH70)) -> 
F69: 全量 | G69: =IF($D$6="","",'②太陽光（全量）'!H29) ->  | H69: =IF($D$6="","",'②太陽光（全量）'!I29) ->  | I69: =IF($D$6="","",'②太陽光（全量）'!J29) ->  | J69: =IF($D$6="","",'②太陽光（全量）'!K29) ->  | K69: =IF($D$6="","",'②太陽光（全量）'!L29) ->  | L69: =IF($D$6="","",'②太陽光（全量）'!M29) ->  | M69: =IF($D$6="","",'②太陽光（全量）'!N29) ->  | N69: =IF($D$6="","",'②太陽光（全量）'!O29) ->  | O69: =IF($D$6="","",'②太陽光（全量）'!P29) ->  | P69: =IF($D$6="","",'②太陽光（全量）'!Q29) ->  | Q69: =IF($D$6="","",'②太陽光（全量）'!R29) ->  | R69: =IF($D$6="","",'②太陽光（全量）'!S29) ->  | AF69: =IF($D$3="","",SUM(G69:R69)) ->  | AG69: =IF($D$6="","",SUM('②太陽光（全量）'!H30:S30)) ->  | AH69: =IF($D$6="","",SUM('②太陽光（全量）'!H31:S31)) ->  | AI69: =IF($D$6="","",SUM('②太陽光（全量）'!H32:S32)) ->  | AJ69: =IF($D$6="","",SUM('②太陽光（全量）'!H33:S33)) ->  | AK69: =IF($D$6="","",SUM('②太陽光（全量）'!H34:S34)) ->  | AL69: =IF($D$6="","",SUM('②太陽光（全量）'!H35:S35)) ->  | AM69: =IF($D$6="","",SUM('②太陽光（全量）'!H36:S36)) ->  | AN69: =IF($D$6="","",SUM('②太陽光（全量）'!H37:S37)) ->  | AO69: =IF($D$6="","",SUM('②太陽光（全量）'!H38:S38)) -> 
F70: 余剰 | G70: =IF($D$6="","",'③太陽光（余剰）'!H29) ->  | H70: =IF($D$6="","",'③太陽光（余剰）'!I29) ->  | I70: =IF($D$6="","",'③太陽光（余剰）'!J29) ->  | J70: =IF($D$6="","",'③太陽光（余剰）'!K29) ->  | K70: =IF($D$6="","",'③太陽光（余剰）'!L29) ->  | L70: =IF($D$6="","",'③太陽光（余剰）'!M29) ->  | M70: =IF($D$6="","",'③太陽光（余剰）'!N29) ->  | N70: =IF($D$6="","",'③太陽光（余剰）'!O29) ->  | O70: =IF($D$6="","",'③太陽光（余剰）'!P29) ->  | P70: =IF($D$6="","",'③太陽光（余剰）'!Q29) ->  | Q70: =IF($D$6="","",'③太陽光（余剰）'!R29) ->  | R70: =IF($D$6="","",'③太陽光（余剰）'!S29) ->  | AG70: =IF($D$6="","",SUM('③太陽光（余剰）'!H30:S30)) ->  | AH70: =IF($D$6="","",SUM('③太陽光（余剰）'!H31:S31)) ->  | AI70: =IF($D$6="","",SUM('③太陽光（余剰）'!H32:S32)) ->  | AJ70: =IF($D$6="","",SUM('③太陽光（余剰）'!H33:S33)) ->  | AK70: =IF($D$6="","",SUM('③太陽光（余剰）'!H34:S34)) ->  | AL70: =IF($D$6="","",SUM('③太陽光（余剰）'!H35:S35)) ->  | AM70: =IF($D$6="","",SUM('③太陽光（余剰）'!H36:S36)) ->  | AN70: =IF($D$6="","",SUM('③太陽光（余剰）'!H37:S37)) ->  | AO70: =IF($D$6="","",SUM('③太陽光（余剰）'!H38:S38)) -> 
D71: 電力量 | E71: 合計 | G71: =IF(COUNT(G72:G73)=0,"",SUM(G72:G73)) ->  | H71: =IF(COUNT(H72:H73)=0,"",SUM(H72:H73)) ->  | AG71: =IF(COUNT(AG72:AG73)=0,"",SUM(AG72:AG73)) ->  | AH71: =IF(COUNT(AH72:AH73)=0,"",SUM(AH72:AH73)) -> 
F72: 全量 | G72: =IF(AND(G75="",G78=""),"",SUM(G75,G78)) ->  | H72: =IF(AND(H75="",H78=""),"",SUM(H75,H78)) ->  | AG72: =IF(AND(AG75="",AG78=""),"",SUM(AG75,AG78)) ->  | AH72: =IF(AND(AH75="",AH78=""),"",SUM(AH75,AH78)) -> 
F73: 余剰 | G73: =IF(AND(G76="",G79=""),"",SUM(G76,G79)) ->  | H73: =IF(AND(H76="",H79=""),"",SUM(H76,H79)) ->  | AG73: =IF(AND(AG76="",AG79=""),"",SUM(AG76,AG79)) ->  | AH73: =IF(AND(AH76="",AH79=""),"",SUM(AH76,AH79)) -> 
D74: 電力量 | E74: 合計 | G74: =IF(COUNT(G75:G76)=0,"",SUM(G75:G76)) ->  | H74: =IF(COUNT(H75:H76)=0,"",SUM(H75:H76)) ->  | AG74: =IF(COUNT(AG75:AG76)=0,"",SUM(AG75:AG76)) ->  | AH74: =IF(COUNT(AH75:AH76)=0,"",SUM(AH75:AH76)) -> 
F75: 全量
F76: 余剰
D77: 電力量 | E77: 合計 | G77: =IF(COUNT(G78:G79)=0,"",SUM(G78:G79)) ->  | H77: =IF(COUNT(H78:H79)=0,"",SUM(H78:H79)) ->  | AG77: =IF(COUNT(AG78:AG79)=0,"",SUM(AG78:AG79)) ->  | AH77: =IF(COUNT(AH78:AH79)=0,"",SUM(AH78:AH79)) -> 
F78: 全量
F79: 余剰
B80: 各電気事業者の エリア内保有分 | D80: 電力量 | E80: 合計 | G80: =IF(COUNT(G81:G82)=0,"",SUM(G81:G82)) ->  | H80: =IF(COUNT(H81:H82)=0,"",SUM(H81:H82)) ->  | AF80: =IF($D$3="","",SUM(G80:R80)) ->  | AG80: =IF(COUNT(AG81:AG82)=0,"",SUM(AG81:AG82)) ->  | AH80: =IF(COUNT(AH81:AH82)=0,"",SUM(AH81:AH82)) ->  | AS80: 指定断面
F81: 全量 | AU81: 4月 | AV81: 5月 | AW81: 6月 | AX81: 7月 | AY81: 8月 | AZ81: 9月 | BA81: 10月 | BB81: 11月 | BC81: 12月 | BD81: 1月 | BE81: 2月 | BF81: 3月
F82: 余剰 | AT82: 北海道 | AU82: 19 | AV82: 12 | AW82: 12 | AX82: 17 | AY82: 15 | AZ82: 19 | BA82: 18 | BB82: 17 | BC82: 17 | BD82: 10 | BE82: 10 | BF82: 19
B83: 各電気事業者の エリア内非電気事業者 からの調達分 | D83: 電力量 | E83: 合計 | G83: =IF(COUNT(G84:G85)=0,"",SUM(G84:G85)) ->  | H83: =IF(COUNT(H84:H85)=0,"",SUM(H84:H85)) ->  | AG83: =IF(COUNT(AG84:AG85)=0,"",SUM(AG84:AG85)) ->  | AH83: =IF(COUNT(AH84:AH85)=0,"",SUM(AH84:AH85)) ->  | AT83: 東北 | AU83: 10 | AV83: 12 | AW83: 15 | AX83: 15 | AY83: 15 | AZ83: 15 | BA83: 18 | BB83: 18 | BC83: 18 | BD83: 10 | BE83: 10 | BF83: 10
F84: 全量 | AT84: 東京 | AU84: 19 | AV84: 15 | AW84: 15 | AX84: 15 | AY84: 15 | AZ84: 15 | BA84: 15 | BB84: 18 | BC84: 18 | BD84: 10 | BE84: 10 | BF84: 19
F85: 余剰 | AT85: 中部 | AU85: 10 | AV85: 15 | AW85: 15 | AX85: 15 | AY85: 15 | AZ85: 15 | BA85: 15 | BB85: 18 | BC85: 10 | BD85: 10 | BE85: 10 | BF85: 10
B86: 一般送配電想定との差分 | D86: 電力量 | E86: 合計 | G86: =IF(COUNT(G87:G88)=0,"",SUM(G87:G88)) ->  | H86: =IF(COUNT(H87:H88)=0,"",SUM(H87:H88)) ->  | AG86: =IF(COUNT(AG87:AG88)=0,"",SUM(AG87:AG88)) ->  | AH86: =IF(COUNT(AH87:AH88)=0,"",SUM(AH87:AH88)) ->  | AT86: 北陸 | AU86: 10 | AV86: 12 | AW86: 15 | AX86: 15 | AY86: 15 | AZ86: 15 | BA86: 15 | BB86: 10 | BC86: 10 | BD86: 10 | BE86: 10 | BF86: 10
F87: 全量 | G87: =IF(AND(G69="",G81="",G84=""),"",SUM(G69)-SUM(G81)-SUM(G84)) ->  | H87: =IF(AND(H69="",H81="",H84=""),"",SUM(H69)-SUM(H81)-SUM(H84)) ->  | AG87: =IF(AND(AG69="",AG81="",AG84=""),"",SUM(AG69)-SUM(AG81)-SUM(AG84)) ->  | AH87: =IF(AND(AH69="",AH81="",AH84=""),"",SUM(AH69)-SUM(AH81)-SUM(AH84)) ->  | AT87: 関西 | AU87: 10 | AV87: 15 | AW87: 15 | AX87: 15 | AY87: 15 | AZ87: 15 | BA87: 15 | BB87: 18 | BC87: 10 | BD87: 10 | BE87: 10 | BF87: 10
F88: 余剰 | G88: =IF(AND(G70="",G82="",G85=""),"",SUM(G70)-SUM(G82)-SUM(G85)) ->  | H88: =IF(AND(H70="",H82="",H85=""),"",SUM(H70)-SUM(H82)-SUM(H85)) ->  | AG88: =IF(AND(AG70="",AG82="",AG85=""),"",SUM(AG70)-SUM(AG82)-SUM(AG85)) ->  | AH88: =IF(AND(AH70="",AH82="",AH85=""),"",SUM(AH70)-SUM(AH82)-SUM(AH85)) ->  | AT88: 中国 | AU88: 10 | AV88: 15 | AW88: 15 | AX88: 15 | AY88: 15 | AZ88: 15 | BA88: 15 | BB88: 10 | BC88: 10 | BD88: 10 | BE88: 10 | BF88: 10
AT89: 四国 | AU89: 10 | AV89: 15 | AW89: 15 | AX89: 15 | AY89: 15 | AZ89: 15 | BA89: 15 | BB89: 19 | BC89: 10 | BD89: 10 | BE89: 10 | BF89: 10
AT90: 九州 | AU90: 19 | AV90: 14 | AW90: 15 | AX90: 15 | AY90: 15 | AZ90: 14 | BA90: 15 | BB90: 19 | BC90: 19 | BD90: 19 | BE90: 19 | BF90: 20
AT91: 沖縄 | AU91: 20 | AV91: 15 | AW91: 15 | AX91: 15 | AY91: 12 | AZ91: 15 | BA91: 15 | BB91: 19 | BC91: 19 | BD91: 20 | BE91: 20 | BF91: 20
AS94: 太陽光（余剰）自家消費率
AU95: 4月 | AV95: 5月 | AW95: 6月 | AX95: 7月 | AY95: 8月 | AZ95: 9月 | BA95: 10月 | BB95: 11月 | BC95: 12月 | BD95: 1月 | BE95: 2月 | BF95: 3月
AT96: 北海道 | AU96: =IFERROR(VLOOKUP($AT96,'③太陽光（余剰）'!$G$44:$S$44,2,FALSE),"") ->  | AV96: =IFERROR(VLOOKUP($AT96,'③太陽光（余剰）'!$G$44:$S$44,3,FALSE),"") ->  | AW96: =IFERROR(VLOOKUP($AT96,'③太陽光（余剰）'!$G$44:$S$44,4,FALSE),"") ->  | AX96: =IFERROR(VLOOKUP($AT96,'③太陽光（余剰）'!$G$44:$S$44,5,FALSE),"") ->  | AY96: =IFERROR(VLOOKUP($AT96,'③太陽光（余剰）'!$G$44:$S$44,6,FALSE),"") ->  | AZ96: =IFERROR(VLOOKUP($AT96,'③太陽光（余剰）'!$G$44:$S$44,7,FALSE),"") ->  | BA96: =IFERROR(VLOOKUP($AT96,'③太陽光（余剰）'!$G$44:$S$44,8,FALSE),"") ->  | BB96: =IFERROR(VLOOKUP($AT96,'③太陽光（余剰）'!$G$44:$S$44,9,FALSE),"") ->  | BC96: =IFERROR(VLOOKUP($AT96,'③太陽光（余剰）'!$G$44:$S$44,10,FALSE),"") ->  | BD96: =IFERROR(VLOOKUP($AT96,'③太陽光（余剰）'!$G$44:$S$44,11,FALSE),"") ->  | BE96: =IFERROR(VLOOKUP($AT96,'③太陽光（余剰）'!$G$44:$S$44,12,FALSE),"") ->  | BF96: =IFERROR(VLOOKUP($AT96,'③太陽光（余剰）'!$G$44:$S$44,13,FALSE),"") -> 
AT97: 東北 | AU97: =IFERROR(VLOOKUP($AT97,'③太陽光（余剰）'!$G$44:$S$44,2,FALSE),"") ->  | AV97: =IFERROR(VLOOKUP($AT97,'③太陽光（余剰）'!$G$44:$S$44,3,FALSE),"") ->  | AW97: =IFERROR(VLOOKUP($AT97,'③太陽光（余剰）'!$G$44:$S$44,4,FALSE),"") ->  | AX97: =IFERROR(VLOOKUP($AT97,'③太陽光（余剰）'!$G$44:$S$44,5,FALSE),"") ->  | AY97: =IFERROR(VLOOKUP($AT97,'③太陽光（余剰）'!$G$44:$S$44,6,FALSE),"") ->  | AZ97: =IFERROR(VLOOKUP($AT97,'③太陽光（余剰）'!$G$44:$S$44,7,FALSE),"") ->  | BA97: =IFERROR(VLOOKUP($AT97,'③太陽光（余剰）'!$G$44:$S$44,8,FALSE),"") ->  | BB97: =IFERROR(VLOOKUP($AT97,'③太陽光（余剰）'!$G$44:$S$44,9,FALSE),"") ->  | BC97: =IFERROR(VLOOKUP($AT97,'③太陽光（余剰）'!$G$44:$S$44,10,FALSE),"") ->  | BD97: =IFERROR(VLOOKUP($AT97,'③太陽光（余剰）'!$G$44:$S$44,11,FALSE),"") ->  | BE97: =IFERROR(VLOOKUP($AT97,'③太陽光（余剰）'!$G$44:$S$44,12,FALSE),"") ->  | BF97: =IFERROR(VLOOKUP($AT97,'③太陽光（余剰）'!$G$44:$S$44,13,FALSE),"") -> 
AT98: 東京 | AU98: =IFERROR(VLOOKUP($AT98,'③太陽光（余剰）'!$G$44:$S$44,2,FALSE),"") ->  | AV98: =IFERROR(VLOOKUP($AT98,'③太陽光（余剰）'!$G$44:$S$44,3,FALSE),"") ->  | AW98: =IFERROR(VLOOKUP($AT98,'③太陽光（余剰）'!$G$44:$S$44,4,FALSE),"") ->  | AX98: =IFERROR(VLOOKUP($AT98,'③太陽光（余剰）'!$G$44:$S$44,5,FALSE),"") ->  | AY98: =IFERROR(VLOOKUP($AT98,'③太陽光（余剰）'!$G$44:$S$44,6,FALSE),"") ->  | AZ98: =IFERROR(VLOOKUP($AT98,'③太陽光（余剰）'!$G$44:$S$44,7,FALSE),"") ->  | BA98: =IFERROR(VLOOKUP($AT98,'③太陽光（余剰）'!$G$44:$S$44,8,FALSE),"") ->  | BB98: =IFERROR(VLOOKUP($AT98,'③太陽光（余剰）'!$G$44:$S$44,9,FALSE),"") ->  | BC98: =IFERROR(VLOOKUP($AT98,'③太陽光（余剰）'!$G$44:$S$44,10,FALSE),"") ->  | BD98: =IFERROR(VLOOKUP($AT98,'③太陽光（余剰）'!$G$44:$S$44,11,FALSE),"") ->  | BE98: =IFERROR(VLOOKUP($AT98,'③太陽光（余剰）'!$G$44:$S$44,12,FALSE),"") ->  | BF98: =IFERROR(VLOOKUP($AT98,'③太陽光（余剰）'!$G$44:$S$44,13,FALSE),"") -> 
AT99: 中部 | AU99: =IFERROR(VLOOKUP($AT99,'③太陽光（余剰）'!$G$44:$S$44,2,FALSE),"") ->  | AV99: =IFERROR(VLOOKUP($AT99,'③太陽光（余剰）'!$G$44:$S$44,3,FALSE),"") ->  | AW99: =IFERROR(VLOOKUP($AT99,'③太陽光（余剰）'!$G$44:$S$44,4,FALSE),"") ->  | AX99: =IFERROR(VLOOKUP($AT99,'③太陽光（余剰）'!$G$44:$S$44,5,FALSE),"") ->  | AY99: =IFERROR(VLOOKUP($AT99,'③太陽光（余剰）'!$G$44:$S$44,6,FALSE),"") ->  | AZ99: =IFERROR(VLOOKUP($AT99,'③太陽光（余剰）'!$G$44:$S$44,7,FALSE),"") ->  | BA99: =IFERROR(VLOOKUP($AT99,'③太陽光（余剰）'!$G$44:$S$44,8,FALSE),"") ->  | BB99: =IFERROR(VLOOKUP($AT99,'③太陽光（余剰）'!$G$44:$S$44,9,FALSE),"") ->  | BC99: =IFERROR(VLOOKUP($AT99,'③太陽光（余剰）'!$G$44:$S$44,10,FALSE),"") ->  | BD99: =IFERROR(VLOOKUP($AT99,'③太陽光（余剰）'!$G$44:$S$44,11,FALSE),"") ->  | BE99: =IFERROR(VLOOKUP($AT99,'③太陽光（余剰）'!$G$44:$S$44,12,FALSE),"") ->  | BF99: =IFERROR(VLOOKUP($AT99,'③太陽光（余剰）'!$G$44:$S$44,13,FALSE),"") -> 
AT100: 北陸 | AU100: =IFERROR(VLOOKUP($AT100,'③太陽光（余剰）'!$G$44:$S$44,2,FALSE),"") ->  | AV100: =IFERROR(VLOOKUP($AT100,'③太陽光（余剰）'!$G$44:$S$44,3,FALSE),"") ->  | AW100: =IFERROR(VLOOKUP($AT100,'③太陽光（余剰）'!$G$44:$S$44,4,FALSE),"") ->  | AX100: =IFERROR(VLOOKUP($AT100,'③太陽光（余剰）'!$G$44:$S$44,5,FALSE),"") ->  | AY100: =IFERROR(VLOOKUP($AT100,'③太陽光（余剰）'!$G$44:$S$44,6,FALSE),"") ->  | AZ100: =IFERROR(VLOOKUP($AT100,'③太陽光（余剰）'!$G$44:$S$44,7,FALSE),"") ->  | BA100: =IFERROR(VLOOKUP($AT100,'③太陽光（余剰）'!$G$44:$S$44,8,FALSE),"") ->  | BB100: =IFERROR(VLOOKUP($AT100,'③太陽光（余剰）'!$G$44:$S$44,9,FALSE),"") ->  | BC100: =IFERROR(VLOOKUP($AT100,'③太陽光（余剰）'!$G$44:$S$44,10,FALSE),"") ->  | BD100: =IFERROR(VLOOKUP($AT100,'③太陽光（余剰）'!$G$44:$S$44,11,FALSE),"") ->  | BE100: =IFERROR(VLOOKUP($AT100,'③太陽光（余剰）'!$G$44:$S$44,12,FALSE),"") ->  | BF100: =IFERROR(VLOOKUP($AT100,'③太陽光（余剰）'!$G$44:$S$44,13,FALSE),"") -> 
AT101: 関西 | AU101: =IFERROR(VLOOKUP($AT101,'③太陽光（余剰）'!$G$44:$S$44,2,FALSE),"") ->  | AV101: =IFERROR(VLOOKUP($AT101,'③太陽光（余剰）'!$G$44:$S$44,3,FALSE),"") ->  | AW101: =IFERROR(VLOOKUP($AT101,'③太陽光（余剰）'!$G$44:$S$44,4,FALSE),"") ->  | AX101: =IFERROR(VLOOKUP($AT101,'③太陽光（余剰）'!$G$44:$S$44,5,FALSE),"") ->  | AY101: =IFERROR(VLOOKUP($AT101,'③太陽光（余剰）'!$G$44:$S$44,6,FALSE),"") ->  | AZ101: =IFERROR(VLOOKUP($AT101,'③太陽光（余剰）'!$G$44:$S$44,7,FALSE),"") ->  | BA101: =IFERROR(VLOOKUP($AT101,'③太陽光（余剰）'!$G$44:$S$44,8,FALSE),"") ->  | BB101: =IFERROR(VLOOKUP($AT101,'③太陽光（余剰）'!$G$44:$S$44,9,FALSE),"") ->  | BC101: =IFERROR(VLOOKUP($AT101,'③太陽光（余剰）'!$G$44:$S$44,10,FALSE),"") ->  | BD101: =IFERROR(VLOOKUP($AT101,'③太陽光（余剰）'!$G$44:$S$44,11,FALSE),"") ->  | BE101: =IFERROR(VLOOKUP($AT101,'③太陽光（余剰）'!$G$44:$S$44,12,FALSE),"") ->  | BF101: =IFERROR(VLOOKUP($AT101,'③太陽光（余剰）'!$G$44:$S$44,13,FALSE),"") -> 
AT102: 中国 | AU102: =IFERROR(VLOOKUP($AT102,'③太陽光（余剰）'!$G$44:$S$44,2,FALSE),"") ->  | AV102: =IFERROR(VLOOKUP($AT102,'③太陽光（余剰）'!$G$44:$S$44,3,FALSE),"") ->  | AW102: =IFERROR(VLOOKUP($AT102,'③太陽光（余剰）'!$G$44:$S$44,4,FALSE),"") ->  | AX102: =IFERROR(VLOOKUP($AT102,'③太陽光（余剰）'!$G$44:$S$44,5,FALSE),"") ->  | AY102: =IFERROR(VLOOKUP($AT102,'③太陽光（余剰）'!$G$44:$S$44,6,FALSE),"") ->  | AZ102: =IFERROR(VLOOKUP($AT102,'③太陽光（余剰）'!$G$44:$S$44,7,FALSE),"") ->  | BA102: =IFERROR(VLOOKUP($AT102,'③太陽光（余剰）'!$G$44:$S$44,8,FALSE),"") ->  | BB102: =IFERROR(VLOOKUP($AT102,'③太陽光（余剰）'!$G$44:$S$44,9,FALSE),"") ->  | BC102: =IFERROR(VLOOKUP($AT102,'③太陽光（余剰）'!$G$44:$S$44,10,FALSE),"") ->  | BD102: =IFERROR(VLOOKUP($AT102,'③太陽光（余剰）'!$G$44:$S$44,11,FALSE),"") ->  | BE102: =IFERROR(VLOOKUP($AT102,'③太陽光（余剰）'!$G$44:$S$44,12,FALSE),"") ->  | BF102: =IFERROR(VLOOKUP($AT102,'③太陽光（余剰）'!$G$44:$S$44,13,FALSE),"") -> 
AT103: 四国 | AU103: =IFERROR(VLOOKUP($AT103,'③太陽光（余剰）'!$G$44:$S$44,2,FALSE),"") ->  | AV103: =IFERROR(VLOOKUP($AT103,'③太陽光（余剰）'!$G$44:$S$44,3,FALSE),"") ->  | AW103: =IFERROR(VLOOKUP($AT103,'③太陽光（余剰）'!$G$44:$S$44,4,FALSE),"") ->  | AX103: =IFERROR(VLOOKUP($AT103,'③太陽光（余剰）'!$G$44:$S$44,5,FALSE),"") ->  | AY103: =IFERROR(VLOOKUP($AT103,'③太陽光（余剰）'!$G$44:$S$44,6,FALSE),"") ->  | AZ103: =IFERROR(VLOOKUP($AT103,'③太陽光（余剰）'!$G$44:$S$44,7,FALSE),"") ->  | BA103: =IFERROR(VLOOKUP($AT103,'③太陽光（余剰）'!$G$44:$S$44,8,FALSE),"") ->  | BB103: =IFERROR(VLOOKUP($AT103,'③太陽光（余剰）'!$G$44:$S$44,9,FALSE),"") ->  | BC103: =IFERROR(VLOOKUP($AT103,'③太陽光（余剰）'!$G$44:$S$44,10,FALSE),"") ->  | BD103: =IFERROR(VLOOKUP($AT103,'③太陽光（余剰）'!$G$44:$S$44,11,FALSE),"") ->  | BE103: =IFERROR(VLOOKUP($AT103,'③太陽光（余剰）'!$G$44:$S$44,12,FALSE),"") ->  | BF103: =IFERROR(VLOOKUP($AT103,'③太陽光（余剰）'!$G$44:$S$44,13,FALSE),"") -> 
AT104: 九州 | AU104: =IFERROR(VLOOKUP($AT104,'③太陽光（余剰）'!$G$44:$S$44,2,FALSE),"") ->  | AV104: =IFERROR(VLOOKUP($AT104,'③太陽光（余剰）'!$G$44:$S$44,3,FALSE),"") ->  | AW104: =IFERROR(VLOOKUP($AT104,'③太陽光（余剰）'!$G$44:$S$44,4,FALSE),"") ->  | AX104: =IFERROR(VLOOKUP($AT104,'③太陽光（余剰）'!$G$44:$S$44,5,FALSE),"") ->  | AY104: =IFERROR(VLOOKUP($AT104,'③太陽光（余剰）'!$G$44:$S$44,6,FALSE),"") ->  | AZ104: =IFERROR(VLOOKUP($AT104,'③太陽光（余剰）'!$G$44:$S$44,7,FALSE),"") ->  | BA104: =IFERROR(VLOOKUP($AT104,'③太陽光（余剰）'!$G$44:$S$44,8,FALSE),"") ->  | BB104: =IFERROR(VLOOKUP($AT104,'③太陽光（余剰）'!$G$44:$S$44,9,FALSE),"") ->  | BC104: =IFERROR(VLOOKUP($AT104,'③太陽光（余剰）'!$G$44:$S$44,10,FALSE),"") ->  | BD104: =IFERROR(VLOOKUP($AT104,'③太陽光（余剰）'!$G$44:$S$44,11,FALSE),"") ->  | BE104: =IFERROR(VLOOKUP($AT104,'③太陽光（余剰）'!$G$44:$S$44,12,FALSE),"") ->  | BF104: =IFERROR(VLOOKUP($AT104,'③太陽光（余剰）'!$G$44:$S$44,13,FALSE),"") -> 
AT105: 沖縄 | AU105: =IFERROR(VLOOKUP($AT105,'③太陽光（余剰）'!$G$44:$S$44,2,FALSE),"") ->  | AV105: =IFERROR(VLOOKUP($AT105,'③太陽光（余剰）'!$G$44:$S$44,3,FALSE),"") ->  | AW105: =IFERROR(VLOOKUP($AT105,'③太陽光（余剰）'!$G$44:$S$44,4,FALSE),"") ->  | AX105: =IFERROR(VLOOKUP($AT105,'③太陽光（余剰）'!$G$44:$S$44,5,FALSE),"") ->  | AY105: =IFERROR(VLOOKUP($AT105,'③太陽光（余剰）'!$G$44:$S$44,6,FALSE),"") ->  | AZ105: =IFERROR(VLOOKUP($AT105,'③太陽光（余剰）'!$G$44:$S$44,7,FALSE),"") ->  | BA105: =IFERROR(VLOOKUP($AT105,'③太陽光（余剰）'!$G$44:$S$44,8,FALSE),"") ->  | BB105: =IFERROR(VLOOKUP($AT105,'③太陽光（余剰）'!$G$44:$S$44,9,FALSE),"") ->  | BC105: =IFERROR(VLOOKUP($AT105,'③太陽光（余剰）'!$G$44:$S$44,10,FALSE),"") ->  | BD105: =IFERROR(VLOOKUP($AT105,'③太陽光（余剰）'!$G$44:$S$44,11,FALSE),"") ->  | BE105: =IFERROR(VLOOKUP($AT105,'③太陽光（余剰）'!$G$44:$S$44,12,FALSE),"") ->  | BF105: =IFERROR(VLOOKUP($AT105,'③太陽光（余剰）'!$G$44:$S$44,13,FALSE),"") -> 

Sheet 補正（太陽光）指定２
A1: 太陽光補正シート
N2: 記載要領
A3: 供給区域 | B3: =IF('補正（ｋW）指定１'!$C$2="","",'補正（ｋW）指定１'!$C$2) ->  | C3: エリア | D3: =IF(B3="北海道",1,IF(B3="東北",2,IF(B3="北陸",5,IF(B3="","","作成不要")))) ->  | H3: 入力箇所 | J3: リンク箇所 | L3: 自動計算 | N3: ・エリア想定欄には、エリア全体（発電・小売分を含む）の設備量想定値を記載。尚、マクロ想定を行っていない項目は個別積み上げ値を記載。 | AS3: 調整係数（%)
N4: ・各電気事業者のエリア内保有分欄には、広域機関より提供する値を記載。 | AS4: =G7 -> 2025-01-01 | BH4: =AS4+366 -> 2026-01-02 | BW4: =BH4+365 -> 2027-01-02 | CA4: =BW4+365 -> 2028-01-02 | CE4: =CA4+365 -> 2029-01-01 | CI4: =CE4+366 -> 2030-01-02 | CM4: =CI4+366 -> 2031-01-03 | CQ4: =CM4+366 -> 2032-01-04 | CU4: =CQ4+366 -> 2033-01-04 | CY4: =CU4+366 -> 2034-01-05
N5: ・各電気事業者のエリア内非電気事業者からの調達分欄には、整合性結果一覧より集約した値を記載。 | AS5: 全量 | BH5: 全量 | BW5: 全量 | CA5: 全量 | CE5: 全量 | CI5: 全量 | CM5: 全量 | CQ5: 全量 | CU5: 全量 | CY5: 全量
A6: 受電取引帳票転記フォーマット | D6: =IF('補正（太陽光）指定１'!D6="","",'補正（太陽光）指定１'!D6) ->  | E6: 方式選択 | G6: Ⅰ：各月の設備量を反映 Ⅱ：当月と前月を比較し、少ない月の設備量を反映 | AF6: ※補正（太陽光）指定１に自動転記 | AU6: 4月 | AV6: 5月 | AW6: 6月 | AX6: 7月 | AY6: 8月 | AZ6: 9月 | BA6: 10月 | BB6: 11月 | BC6: 12月 | BD6: 1月 | BE6: 2月 | BF6: 3月 | BJ6: 4月 | BK6: 5月 | BL6: 6月 | BM6: 7月 | BN6: 8月 | BO6: 9月 | BP6: 10月 | BQ6: 11月 | BR6: 12月 | BS6: 1月 | BT6: 2月 | BU6: 3月 | BY6: 1月 | CC6: 1月 | CG6: 1月 | CK6: 1月 | CO6: 1月 | CS6: 1月 | CW6: 1月 | DA6: 1月
A7: 項目 | G7: ='補正（ｋW）指定１'!E6 -> 2025-01-01 | S7: ='補正（ｋW）指定１'!Q6 -> 2026-01-02 | AE7: 項目 | AF7: =G7 -> 2025-01-01 | AG7: =S7 -> 2026-01-02 | AH7: ='補正（太陽光）指定１'!AH7:AH8 -> 2027-01-03 | AI7: ='補正（太陽光）指定１'!AI7:AI8 -> 2028-01-04 | AJ7: ='補正（太陽光）指定１'!AJ7:AJ8 -> 2029-01-04 | AK7: ='補正（太陽光）指定１'!AK7:AK8 -> 2030-01-05 | AL7: ='補正（太陽光）指定１'!AL7:AL8 -> 2031-01-06 | AM7: ='補正（太陽光）指定１'!AM7:AM8 -> 2032-01-07 | AN7: ='補正（太陽光）指定１'!AN7:AN8 -> 2033-01-07 | AO7: ='補正（太陽光）指定１'!AO7:AO8 -> 2034-01-08 | AP7: 備考 （上中段：種別、下段：備考） | AS7: 1 | AT7: 北海道 | AU7: ='補正（太陽光）指定１'!AU7 -> 1.641805785 | AV7: ='補正（太陽光）指定１'!AV7 -> 4.360931166 | AW7: ='補正（太陽光）指定１'!AW7 -> 6.527032271 | AX7: ='補正（太陽光）指定１'!AX7 -> 8.063174621 | AY7: ='補正（太陽光）指定１'!AY7 -> 9.071129921 | AZ7: ='補正（太陽光）指定１'!AZ7 -> 3.606336244 | BA7: ='補正（太陽光）指定１'!BA7 -> 0.9762521049 | BB7: ='補正（太陽光）指定１'!BB7 -> 0.62932143 | BC7: ='補正（太陽光）指定１'!BC7 -> 0.4825831842 | BD7: ='補正（太陽光）指定１'!BD7 -> 1.352636738 | BE7: ='補正（太陽光）指定１'!BE7 -> 1.233402092 | BF7: ='補正（太陽光）指定１'!BF7 -> 1.028232912 | BH7: 1 | BI7: 北海道 | BJ7: ='補正（太陽光）指定１'!BJ7 -> 1.339730295 | BK7: ='補正（太陽光）指定１'!BK7 -> 4.349284387 | BL7: ='補正（太陽光）指定１'!BL7 -> 6.399048994 | BM7: ='補正（太陽光）指定１'!BM7 -> 8.132542795 | BN7: ='補正（太陽光）指定１'!BN7 -> 8.435225593 | BO7: ='補正（太陽光）指定１'!BO7 -> 3.424732428 | BP7: ='補正（太陽光）指定１'!BP7 -> 0.8530909248 | BQ7: ='補正（太陽光）指定１'!BQ7 -> 0.4615039512 | BR7: ='補正（太陽光）指定１'!BR7 -> 0.2983061816 | BS7: ='補正（太陽光）指定１'!BS7 -> 1.215755893 | BT7: ='補正（太陽光）指定１'!BT7 -> 1.401405096 | BU7: ='補正（太陽光）指定１'!BU7 -> 1.117266588 | BW7: 1 | BX7: 北海道 | BY7: 3.5914743 | CA7: 1 | CB7: 北海道 | CC7: 4.963731986 | CE7: 1 | CF7: 北海道 | CG7: 4.785338452 | CI7: 1 | CJ7: 北海道 | CK7: 4.764387006 | CM7: 1 | CN7: 北海道 | CO7: 4.719329865 | CQ7: 1 | CR7: 北海道 | CS7: 4.692841236 | CU7: 1 | CV7: 北海道 | CW7: 4.545825326 | CY7: 1 | CZ7: 北海道 | DA7: 4.545825326
G8: 4月 | H8: 5月 | I8: 6月 | J8: 7月 | K8: 8月 | L8: 9月 | M8: 10月 | N8: 11月 | O8: 12月 | P8: 1月 | Q8: 2月 | R8: 3月 | S8: 4月 | T8: 5月 | U8: 6月 | V8: 7月 | W8: 8月 | X8: 9月 | Y8: 10月 | Z8: 11月 | AA8: 12月 | AB8: 1月 | AC8: 2月 | AD8: 3月 | AS8: 2 | AT8: 東北 | AU8: ='補正（太陽光）指定１'!AU8 -> 2.825569279 | AV8: ='補正（太陽光）指定１'!AV8 -> 15.84658105 | AW8: ='補正（太陽光）指定１'!AW8 -> 20.1709348 | AX8: ='補正（太陽光）指定１'!AX8 -> 20.25001404 | AY8: ='補正（太陽光）指定１'!AY8 -> 24.98470211 | AZ8: ='補正（太陽光）指定１'!AZ8 -> 16.5867384 | BA8: ='補正（太陽光）指定１'!BA8 -> 9.998059536 | BB8: ='補正（太陽光）指定１'!BB8 -> 2.304286422 | BC8: ='補正（太陽光）指定１'!BC8 -> 0.6546573139 | BD8: ='補正（太陽光）指定１'!BD8 -> 4.431558544 | BE8: ='補正（太陽光）指定１'!BE8 -> 1.851283017 | BF8: ='補正（太陽光）指定１'!BF8 -> 2.320377805 | BH8: 2 | BI8: 東北 | BJ8: ='補正（太陽光）指定１'!BJ8 -> 2.167820976 | BK8: ='補正（太陽光）指定１'!BK8 -> 14.82568907 | BL8: ='補正（太陽光）指定１'!BL8 -> 19.59551985 | BM8: ='補正（太陽光）指定１'!BM8 -> 19.42835177 | BN8: ='補正（太陽光）指定１'!BN8 -> 23.45400265 | BO8: ='補正（太陽光）指定１'!BO8 -> 15.59306797 | BP8: ='補正（太陽光）指定１'!BP8 -> 9.674042256 | BQ8: ='補正（太陽光）指定１'!BQ8 -> 1.650582089 | BR8: ='補正（太陽光）指定１'!BR8 -> 0.4418412247 | BS8: ='補正（太陽光）指定１'!BS8 -> 3.507428417 | BT8: ='補正（太陽光）指定１'!BT8 -> 1.952517426 | BU8: ='補正（太陽光）指定１'!BU8 -> 1.795770857 | BW8: 2 | BX8: 東北 | BY8: 11.23350029 | CA8: 2 | CB8: 東北 | CC8: 10.69159859 | CE8: 2 | CF8: 東北 | CG8: 10.1273531 | CI8: 2 | CJ8: 東北 | CK8: 9.992029438 | CM8: 2 | CN8: 東北 | CO8: 9.648278292 | CQ8: 2 | CR8: 東北 | CS8: 9.895921536 | CU8: 2 | CV8: 東北 | CW8: 9.285534879 | CY8: 2 | CZ8: 東北 | DA8: 9.285534879
A9: 全量 | B9: 調達電力（MW） | AE9: 8月電力 | AP9: 太陽光（全量） | AS9: 3 | AT9: 東京 | AU9: ='補正（太陽光）指定１'!AU9 -> 1.434109425 | AV9: ='補正（太陽光）指定１'!AV9 -> 9.858460355 | AW9: ='補正（太陽光）指定１'!AW9 -> 16.54361118 | AX9: ='補正（太陽光）指定１'!AX9 -> 22.10358793 | AY9: ='補正（太陽光）指定１'!AY9 -> 23.46443136 | AZ9: ='補正（太陽光）指定１'!AZ9 -> 15.48090178 | BA9: ='補正（太陽光）指定１'!BA9 -> 9.156907553 | BB9: ='補正（太陽光）指定１'!BB9 -> 0.9255452635 | BC9: ='補正（太陽光）指定１'!BC9 -> 0.3780698415 | BD9: ='補正（太陽光）指定１'!BD9 -> 2.779477257 | BE9: ='補正（太陽光）指定１'!BE9 -> 1.182380588 | BF9: ='補正（太陽光）指定１'!BF9 -> 1.135055521 | BH9: 3 | BI9: 東京 | BJ9: ='補正（太陽光）指定１'!BJ9 -> 1.322845525 | BK9: ='補正（太陽光）指定１'!BK9 -> 9.397091366 | BL9: ='補正（太陽光）指定１'!BL9 -> 15.98199301 | BM9: ='補正（太陽光）指定１'!BM9 -> 21.30684247 | BN9: ='補正（太陽光）指定１'!BN9 -> 22.3640677 | BO9: ='補正（太陽光）指定１'!BO9 -> 14.80262478 | BP9: ='補正（太陽光）指定１'!BP9 -> 8.574523296 | BQ9: ='補正（太陽光）指定１'!BQ9 -> 0.7406921548 | BR9: ='補正（太陽光）指定１'!BR9 -> 0.2851731918 | BS9: ='補正（太陽光）指定１'!BS9 -> 2.246541579 | BT9: ='補正（太陽光）指定１'!BT9 -> 1.215231275 | BU9: ='補正（太陽光）指定１'!BU9 -> 0.9011351245 | BW9: 3 | BX9: 東京 | BY9: 9.871401455 | CA9: 3 | CB9: 東京 | CC9: 9.601275482 | CE9: 3 | CF9: 東京 | CG9: 9.446304276 | CI9: 3 | CJ9: 東京 | CK9: 9.263489039 | CM9: 3 | CN9: 東京 | CO9: 9.169102427 | CQ9: 3 | CR9: 東京 | CS9: 9.097873151 | CU9: 3 | CV9: 東京 | CW9: 8.8468342 | CY9: 3 | CZ9: 東京 | DA9: 8.8468342
AE10: 1月電力 | AF10: =IF(AF66="","",AF66) ->  | AG10: =IF(AG66="","",AG66) ->  | AH10: =IF(AH66="","",ROUNDDOWN(AH66,1)) ->  | AP10: 太陽光（全量） | AS10: 4 | AT10: 中部 | AU10: ='補正（太陽光）指定１'!AU10 -> 4.079913438 | AV10: ='補正（太陽光）指定１'!AV10 -> 11.19008421 | AW10: ='補正（太陽光）指定１'!AW10 -> 18.72590806 | AX10: ='補正（太陽光）指定１'!AX10 -> 24.2926658 | AY10: ='補正（太陽光）指定１'!AY10 -> 22.59754388 | AZ10: ='補正（太陽光）指定１'!AZ10 -> 16.01295907 | BA10: ='補正（太陽光）指定１'!BA10 -> 7.700324975 | BB10: ='補正（太陽光）指定１'!BB10 -> 0.4651934791 | BC10: ='補正（太陽光）指定１'!BC10 -> 1.809133042 | BD10: ='補正（太陽光）指定１'!BD10 -> 6.508151056 | BE10: ='補正（太陽光）指定１'!BE10 -> 4.365344633 | BF10: ='補正（太陽光）指定１'!BF10 -> 2.764170702 | BH10: 4 | BI10: 中部 | BJ10: ='補正（太陽光）指定１'!BJ10 -> 4.326593113 | BK10: ='補正（太陽光）指定１'!BK10 -> 11.82311059 | BL10: ='補正（太陽光）指定１'!BL10 -> 18.82890893 | BM10: ='補正（太陽光）指定１'!BM10 -> 24.09689656 | BN10: ='補正（太陽光）指定１'!BN10 -> 22.34528227 | BO10: ='補正（太陽光）指定１'!BO10 -> 15.90166942 | BP10: ='補正（太陽光）指定１'!BP10 -> 8.091410439 | BQ10: ='補正（太陽光）指定１'!BQ10 -> 0.6575305492 | BR10: ='補正（太陽光）指定１'!BR10 -> 1.75014687 | BS10: ='補正（太陽光）指定１'!BS10 -> 5.466997809 | BT10: ='補正（太陽光）指定１'!BT10 -> 4.459395252 | BU10: ='補正（太陽光）指定１'!BU10 -> 2.271068906 | BW10: 4 | BX10: 中部 | BY10: 11.74468209 | CA10: 4 | CB10: 中部 | CC10: 11.30319986 | CE10: 4 | CF10: 中部 | CG10: 11.05043115 | CI10: 4 | CJ10: 中部 | CK10: 11.01211715 | CM10: 4 | CN10: 中部 | CO10: 10.82479499 | CQ10: 4 | CR10: 中部 | CS10: 10.58903029 | CU10: 4 | CV10: 中部 | CW10: 10.65103965 | CY10: 4 | CZ10: 中部 | DA10: 10.65103965
B11: 月間調達電力量（GWh） | AE11: 年間電力量 | AS11: 5 | AT11: 北陸 | AU11: ='補正（太陽光）指定１'!AU11 -> 7.642802794 | AV11: ='補正（太陽光）指定１'!AV11 -> 20.78350786 | AW11: ='補正（太陽光）指定１'!AW11 -> 25.49305411 | AX11: ='補正（太陽光）指定１'!AX11 -> 31.99603705 | AY11: ='補正（太陽光）指定１'!AY11 -> 31.20500111 | AZ11: ='補正（太陽光）指定１'!AZ11 -> 22.17049303 | BA11: ='補正（太陽光）指定１'!BA11 -> 12.26215506 | BB11: ='補正（太陽光）指定１'!BB11 -> 0.8460596171 | BC11: ='補正（太陽光）指定１'!BC11 -> 1.171425524 | BD11: ='補正（太陽光）指定１'!BD11 -> 2.14000691 | BE11: ='補正（太陽光）指定１'!BE11 -> 2.60960961 | BF11: ='補正（太陽光）指定１'!BF11 -> 6.772391338 | BH11: 5 | BI11: 北陸 | BJ11: ='補正（太陽光）指定１'!BJ11 -> 10.30123641 | BK11: ='補正（太陽光）指定１'!BK11 -> 24.66904604 | BL11: ='補正（太陽光）指定１'!BL11 -> 25.00518993 | BM11: ='補正（太陽光）指定１'!BM11 -> 31.33861019 | BN11: ='補正（太陽光）指定１'!BN11 -> 30.98528469 | BO11: ='補正（太陽光）指定１'!BO11 -> 21.76496591 | BP11: ='補正（太陽光）指定１'!BP11 -> 11.40968804 | BQ11: ='補正（太陽光）指定１'!BQ11 -> 0.959661995 | BR11: ='補正（太陽光）指定１'!BR11 -> 0.829111389 | BS11: ='補正（太陽光）指定１'!BS11 -> 2.74892694 | BT11: ='補正（太陽光）指定１'!BT11 -> 2.46679637 | BU11: ='補正（太陽光）指定１'!BU11 -> 5.501165355 | BW11: 5 | BX11: 北陸 | BY11: 16.85018401 | CA11: 5 | CB11: 北陸 | CC11: 15.84639493 | CE11: 5 | CF11: 北陸 | CG11: 14.90963232 | CI11: 5 | CJ11: 北陸 | CK11: 15.19087157 | CM11: 5 | CN11: 北陸 | CO11: 15.35066466 | CQ11: 5 | CR11: 北陸 | CS11: 14.90636268 | CU11: 5 | CV11: 北陸 | CW11: 14.7114966 | CY11: 5 | CZ11: 北陸 | DA11: 14.7114966
AS12: 6 | AT12: 関西 | AU12: ='補正（太陽光）指定１'!AU12 -> 4.939768725 | AV12: ='補正（太陽光）指定１'!AV12 -> 12.51054741 | AW12: ='補正（太陽光）指定１'!AW12 -> 19.4553279 | AX12: ='補正（太陽光）指定１'!AX12 -> 25.75101222 | AY12: ='補正（太陽光）指定１'!AY12 -> 25.00736475 | AZ12: ='補正（太陽光）指定１'!AZ12 -> 17.22867407 | BA12: ='補正（太陽光）指定１'!BA12 -> 10.16886337 | BB12: ='補正（太陽光）指定１'!BB12 -> 0.3906726484 | BC12: ='補正（太陽光）指定１'!BC12 -> 1.957801543 | BD12: ='補正（太陽光）指定１'!BD12 -> 3.001285685 | BE12: ='補正（太陽光）指定１'!BE12 -> 4.972589029 | BF12: ='補正（太陽光）指定１'!BF12 -> 3.40305782 | BH12: 6 | BI12: 関西 | BJ12: ='補正（太陽光）指定１'!BJ12 -> 5.494230148 | BK12: ='補正（太陽光）指定１'!BK12 -> 13.57612093 | BL12: ='補正（太陽光）指定１'!BL12 -> 19.35054604 | BM12: ='補正（太陽光）指定１'!BM12 -> 25.63683862 | BN12: ='補正（太陽光）指定１'!BN12 -> 24.95433715 | BO12: ='補正（太陽光）指定１'!BO12 -> 17.30427967 | BP12: ='補正（太陽光）指定１'!BP12 -> 9.883393163 | BQ12: ='補正（太陽光）指定１'!BQ12 -> 0.6150059813 | BR12: ='補正（太陽光）指定１'!BR12 -> 1.611319945 | BS12: ='補正（太陽光）指定１'!BS12 -> 3.10389257 | BT12: ='補正（太陽光）指定１'!BT12 -> 4.60622154 | BU12: ='補正（太陽光）指定１'!BU12 -> 3.017743778 | BW12: 6 | BX12: 関西 | BY12: 12.57075298 | CA12: 6 | CB12: 関西 | CC12: 11.60423959 | CE12: 6 | CF12: 関西 | CG12: 11.55337363 | CI12: 6 | CJ12: 関西 | CK12: 11.23965018 | CM12: 6 | CN12: 関西 | CO12: 10.95601382 | CQ12: 6 | CR12: 関西 | CS12: 10.98420803 | CU12: 6 | CV12: 関西 | CW12: 10.66720692 | CY12: 6 | CZ12: 関西 | DA12: 10.66720692
A13: 項目 | G13: =G7 -> 2025-01-01 | S13: =S7 -> 2026-01-02 | AE13: 項目 | AF13: =AF7 -> 2025-01-01 | AG13: =AG7 -> 2026-01-02 | AH13: =AH7 -> 2027-01-03 | AI13: =AI7 -> 2028-01-04 | AJ13: 2029-01-04 | AK13: 2030-01-05 | AL13: 2031-01-06 | AM13: 2032-01-07 | AN13: 2033-01-07 | AO13: 2034-01-08 | AP13: 備考 （上中段：種別、下段：備考） | AS13: 7 | AT13: 中国 | AU13: ='補正（太陽光）指定１'!AU13 -> 4.77224379 | AV13: ='補正（太陽光）指定１'!AV13 -> 13.89639687 | AW13: ='補正（太陽光）指定１'!AW13 -> 18.89658519 | AX13: ='補正（太陽光）指定１'!AX13 -> 28.5286854 | AY13: ='補正（太陽光）指定１'!AY13 -> 27.4336043 | AZ13: ='補正（太陽光）指定１'!AZ13 -> 17.3711504 | BA13: ='補正（太陽光）指定１'!BA13 -> 11.34321482 | BB13: ='補正（太陽光）指定１'!BB13 -> 0.4608252512 | BC13: ='補正（太陽光）指定１'!BC13 -> 1.911913194 | BD13: ='補正（太陽光）指定１'!BD13 -> 3.593346894 | BE13: ='補正（太陽光）指定１'!BE13 -> 3.689065457 | BF13: ='補正（太陽光）指定１'!BF13 -> 3.434747971 | BH13: 7 | BI13: 中国 | BJ13: ='補正（太陽光）指定１'!BJ13 -> 6.188751651 | BK13: ='補正（太陽光）指定１'!BK13 -> 15.8607896 | BL13: ='補正（太陽光）指定１'!BL13 -> 18.98002246 | BM13: ='補正（太陽光）指定１'!BM13 -> 28.09430857 | BN13: ='補正（太陽光）指定１'!BN13 -> 27.21051373 | BO13: ='補正（太陽光）指定１'!BO13 -> 17.30320609 | BP13: ='補正（太陽光）指定１'!BP13 -> 11.35245901 | BQ13: ='補正（太陽光）指定１'!BQ13 -> 0.5951103911 | BR13: ='補正（太陽光）指定１'!BR13 -> 1.656752618 | BS13: ='補正（太陽光）指定１'!BS13 -> 3.614878002 | BT13: ='補正（太陽光）指定１'!BT13 -> 3.687576441 | BU13: ='補正（太陽光）指定１'!BU13 -> 2.927548847 | BW13: 7 | BX13: 中国 | BY13: 13.4493399 | CA13: 7 | CB13: 中国 | CC13: 12.78091226 | CE13: 7 | CF13: 中国 | CG13: 12.46463059 | CI13: 7 | CJ13: 中国 | CK13: 12.68358728 | CM13: 7 | CN13: 中国 | CO13: 11.89964348 | CQ13: 7 | CR13: 中国 | CS13: 11.97965743 | CU13: 7 | CV13: 中国 | CW13: 11.5693983 | CY13: 7 | CZ13: 中国 | DA13: 11.5693983
G14: =G8 -> 4月 | H14: =H8 -> 5月 | I14: 6月 | J14: 7月 | K14: 8月 | L14: 9月 | M14: 10月 | N14: 11月 | O14: 12月 | P14: 1月 | Q14: 2月 | R14: 3月 | S14: =S8 -> 4月 | T14: =T8 -> 5月 | U14: 6月 | V14: 7月 | W14: 8月 | X14: 9月 | Y14: 10月 | Z14: 11月 | AA14: 12月 | AB14: 1月 | AC14: 2月 | AD14: 3月 | AS14: 8 | AT14: 四国 | AU14: ='補正（太陽光）指定１'!AU14 -> 7.830221579 | AV14: ='補正（太陽光）指定１'!AV14 -> 18.9746127 | AW14: ='補正（太陽光）指定１'!AW14 -> 22.10326583 | AX14: ='補正（太陽光）指定１'!AX14 -> 30.61769473 | AY14: ='補正（太陽光）指定１'!AY14 -> 31.12703922 | AZ14: ='補正（太陽光）指定１'!AZ14 -> 21.19236029 | BA14: ='補正（太陽光）指定１'!BA14 -> 14.05472574 | BB14: ='補正（太陽光）指定１'!BB14 -> 0.7314944143 | BC14: ='補正（太陽光）指定１'!BC14 -> 2.276411882 | BD14: ='補正（太陽光）指定１'!BD14 -> 4.706600337 | BE14: ='補正（太陽光）指定１'!BE14 -> 5.478234767 | BF14: ='補正（太陽光）指定１'!BF14 -> 5.239254233 | BH14: 8 | BI14: 四国 | BJ14: ='補正（太陽光）指定１'!BJ14 -> 8.059492535 | BK14: ='補正（太陽光）指定１'!BK14 -> 18.38781061 | BL14: ='補正（太陽光）指定１'!BL14 -> 21.49545278 | BM14: ='補正（太陽光）指定１'!BM14 -> 30.01957905 | BN14: ='補正（太陽光）指定１'!BN14 -> 30.2836978 | BO14: ='補正（太陽光）指定１'!BO14 -> 20.81637608 | BP14: ='補正（太陽光）指定１'!BP14 -> 13.0735786 | BQ14: ='補正（太陽光）指定１'!BQ14 -> 1.024204613 | BR14: ='補正（太陽光）指定１'!BR14 -> 1.934886447 | BS14: ='補正（太陽光）指定１'!BS14 -> 4.494924668 | BT14: ='補正（太陽光）指定１'!BT14 -> 5.575082347 | BU14: ='補正（太陽光）指定１'!BU14 -> 4.377262006 | BW14: 8 | BX14: 四国 | BY14: 15.82363883 | CA14: 8 | CB14: 四国 | CC14: 14.69072206 | CE14: 8 | CF14: 四国 | CG14: 13.90633247 | CI14: 8 | CJ14: 四国 | CK14: 13.66888614 | CM14: 8 | CN14: 四国 | CO14: 13.30732108 | CQ14: 8 | CR14: 四国 | CS14: 13.89125028 | CU14: 8 | CV14: 四国 | CW14: 13.64497999 | CY14: 8 | CZ14: 四国 | DA14: 13.64497999
A15: 余剰 | B15: 調達電力（MW） | AE15: 8月電力 | AP15: 太陽光（余剰） | AS15: 9 | AT15: 九州 | AU15: ='補正（太陽光）指定１'!AU15 -> 1.075651963 | AV15: ='補正（太陽光）指定１'!AV15 -> 4.515723855 | AW15: ='補正（太陽光）指定１'!AW15 -> 9.815201755 | AX15: ='補正（太陽光）指定１'!AX15 -> 11.48071418 | AY15: ='補正（太陽光）指定１'!AY15 -> 11.64438342 | AZ15: ='補正（太陽光）指定１'!AZ15 -> 9.849938259 | BA15: ='補正（太陽光）指定１'!BA15 -> 6.043088418 | BB15: ='補正（太陽光）指定１'!BB15 -> 0.2364640355 | BC15: ='補正（太陽光）指定１'!BC15 -> 0.9615996186 | BD15: ='補正（太陽光）指定１'!BD15 -> 1.64457012 | BE15: ='補正（太陽光）指定１'!BE15 -> 1.318318415 | BF15: ='補正（太陽光）指定１'!BF15 -> 0.7483061172 | BH15: 9 | BI15: 九州 | BJ15: ='補正（太陽光）指定１'!BJ15 -> 0.7503033213 | BK15: ='補正（太陽光）指定１'!BK15 -> 4.664175523 | BL15: ='補正（太陽光）指定１'!BL15 -> 9.395721942 | BM15: ='補正（太陽光）指定１'!BM15 -> 10.83319015 | BN15: ='補正（太陽光）指定１'!BN15 -> 10.63656123 | BO15: ='補正（太陽光）指定１'!BO15 -> 9.101302067 | BP15: ='補正（太陽光）指定１'!BP15 -> 5.575618247 | BQ15: ='補正（太陽光）指定１'!BQ15 -> 0.1916266646 | BR15: ='補正（太陽光）指定１'!BR15 -> 0.8041009753 | BS15: ='補正（太陽光）指定１'!BS15 -> 1.392852236 | BT15: ='補正（太陽光）指定１'!BT15 -> 1.204602946 | BU15: ='補正（太陽光）指定１'!BU15 -> 0.6594357098 | BW15: 9 | BX15: 九州 | BY15: 5.344472555 | CA15: 9 | CB15: 九州 | CC15: 4.765632572 | CE15: 9 | CF15: 九州 | CG15: 4.468473764 | CI15: 9 | CJ15: 九州 | CK15: 4.372485595 | CM15: 9 | CN15: 九州 | CO15: 4.217990648 | CQ15: 9 | CR15: 九州 | CS15: 4.248687738 | CU15: 9 | CV15: 九州 | CW15: 4.038791083 | CY15: 9 | CZ15: 九州 | DA15: 4.038791083
AE16: 1月電力 | AF16: =IF(AF67="","",AF67) ->  | AG16: =IF(AG67="","",AG67) ->  | AH16: =IF(AH67="","",ROUNDDOWN(AH67,1)) ->  | AP16: 太陽光（余剰） | AS16: 10 | AT16: 沖縄 | AU16: ='補正（太陽光）指定１'!AU16 -> 10.87939586 | AV16: ='補正（太陽光）指定１'!AV16 -> 16.68585561 | AW16: ='補正（太陽光）指定１'!AW16 -> 20.23243105 | AX16: ='補正（太陽光）指定１'!AX16 -> 19.21783885 | AY16: ='補正（太陽光）指定１'!AY16 -> 20.48153571 | AZ16: ='補正（太陽光）指定１'!AZ16 -> 19.96202045 | BA16: ='補正（太陽光）指定１'!BA16 -> 16.6830861 | BB16: ='補正（太陽光）指定１'!BB16 -> 10.65342359 | BC16: ='補正（太陽光）指定１'!BC16 -> 5.427057915 | BD16: ='補正（太陽光）指定１'!BD16 -> 4.706225435 | BE16: ='補正（太陽光）指定１'!BE16 -> 5.757627356 | BF16: ='補正（太陽光）指定１'!BF16 -> 8.053643695 | BH16: 10 | BI16: 沖縄 | BJ16: ='補正（太陽光）指定１'!BJ16 -> 10.75991615 | BK16: ='補正（太陽光）指定１'!BK16 -> 16.3655257 | BL16: ='補正（太陽光）指定１'!BL16 -> 19.99342225 | BM16: ='補正（太陽光）指定１'!BM16 -> 18.94802071 | BN16: ='補正（太陽光）指定１'!BN16 -> 19.94370186 | BO16: ='補正（太陽光）指定１'!BO16 -> 19.63499733 | BP16: ='補正（太陽光）指定１'!BP16 -> 16.73493383 | BQ16: ='補正（太陽光）指定１'!BQ16 -> 10.75022269 | BR16: ='補正（太陽光）指定１'!BR16 -> 5.342356477 | BS16: ='補正（太陽光）指定１'!BS16 -> 4.654589341 | BT16: ='補正（太陽光）指定１'!BT16 -> 5.696677111 | BU16: ='補正（太陽光）指定１'!BU16 -> 8.081786543 | BW16: 10 | BX16: 沖縄 | BY16: 16.80455215 | CA16: 10 | CB16: 沖縄 | CC16: 16.66047393 | CE16: 10 | CF16: 沖縄 | CG16: 16.52563767 | CI16: 10 | CJ16: 沖縄 | CK16: 16.3852961 | CM16: 10 | CN16: 沖縄 | CO16: 16.3099356 | CQ16: 10 | CR16: 沖縄 | CS16: 16.20138629 | CU16: 10 | CV16: 沖縄 | CW16: 16.23793701 | CY16: 10 | CZ16: 沖縄 | DA16: 16.23793701
B17: 月間調達電力量（GWh） | AE17: 年間電力量 | AU17: 3 | AV17: 4 | AW17: 5 | AX17: 6 | AY17: 7 | AZ17: 8 | BA17: 9 | BB17: 10 | BC17: 11 | BD17: 12 | BE17: 13 | BF17: 14 | BJ17: 3 | BK17: 4 | BL17: 5 | BM17: 6 | BN17: 7 | BO17: 8 | BP17: 9 | BQ17: 10 | BR17: 11 | BS17: 12 | BT17: 13 | BU17: 14 | BY17: 3 | CC17: 3 | CG17: 3 | CK17: 3 | CO17: 3 | CS17: 3 | CW17: 3 | DA17: 3
AS19: 余剰 ※該当エリアの自家消費率分を減じた値 | BH19: 余剰 ※該当エリアの自家消費率分を減じた値 | BW19: 余剰※ | CA19: 余剰※ | CE19: 余剰※ | CI19: 余剰※ | CM19: 余剰※ | CQ19: 余剰※ | CU19: 余剰※ | CY19: 余剰※
AU20: 4月 | AV20: 5月 | AW20: 6月 | AX20: 7月 | AY20: 8月 | AZ20: 9月 | BA20: 10月 | BB20: 11月 | BC20: 12月 | BD20: 1月 | BE20: 2月 | BF20: 3月 | BJ20: 4月 | BK20: 5月 | BL20: 6月 | BM20: 7月 | BN20: 8月 | BO20: 9月 | BP20: 10月 | BQ20: 11月 | BR20: 12月 | BS20: 1月 | BT20: 2月 | BU20: 3月 | BY20: 1月 | CC20: 1月 | CG20: 1月 | CK20: 1月 | CO20: 1月 | CS20: 1月 | CW20: 1月 | DA20: 1月
A21: 太陽光（指定２） | AS21: 1 | AT21: 北海道 | AU21: ='補正（太陽光）指定１'!AU21 -> 1.641805785 | AV21: ='補正（太陽光）指定１'!AV21 -> 4.360931166 | AW21: ='補正（太陽光）指定１'!AW21 -> 6.527032271 | AX21: ='補正（太陽光）指定１'!AX21 -> 8.063174621 | AY21: ='補正（太陽光）指定１'!AY21 -> 9.071129921 | AZ21: ='補正（太陽光）指定１'!AZ21 -> 3.606336244 | BA21: ='補正（太陽光）指定１'!BA21 -> 0.9762521049 | BB21: ='補正（太陽光）指定１'!BB21 -> 0.62932143 | BC21: ='補正（太陽光）指定１'!BC21 -> 0.4825831842 | BD21: ='補正（太陽光）指定１'!BD21 -> 1.352636738 | BE21: ='補正（太陽光）指定１'!BE21 -> 1.233402092 | BF21: ='補正（太陽光）指定１'!BF21 -> 1.028232912 | BH21: 1 | BI21: 北海道 | BJ21: ='補正（太陽光）指定１'!BJ21 -> 1.339730295 | BK21: ='補正（太陽光）指定１'!BK21 -> 4.349284387 | BL21: ='補正（太陽光）指定１'!BL21 -> 6.399048994 | BM21: ='補正（太陽光）指定１'!BM21 -> 8.132542795 | BN21: ='補正（太陽光）指定１'!BN21 -> 8.435225593 | BO21: ='補正（太陽光）指定１'!BO21 -> 3.424732428 | BP21: ='補正（太陽光）指定１'!BP21 -> 0.8530909248 | BQ21: ='補正（太陽光）指定１'!BQ21 -> 0.4615039512 | BR21: ='補正（太陽光）指定１'!BR21 -> 0.2983061816 | BS21: ='補正（太陽光）指定１'!BS21 -> 1.215755893 | BT21: ='補正（太陽光）指定１'!BT21 -> 1.401405096 | BU21: ='補正（太陽光）指定１'!BU21 -> 1.117266588 | BW21: 1 | BX21: 北海道 | BY21: =IFERROR(BY7*(1-BD64),BY7) -> 3.5914743 | CA21: 1 | CB21: 北海道 | CC21: =IFERROR(CC7*(1-BD64),CC7) -> 4.963731986 | CE21: 1 | CF21: 北海道 | CG21: =IFERROR(CG7*(1-BD64),CG7) -> 4.785338452 | CI21: 1 | CJ21: 北海道 | CK21: =IFERROR(CK7*(1-BD64),CK7) -> 4.764387006 | CM21: 1 | CN21: 北海道 | CO21: =IFERROR(CO7*(1-BD64),CO7) -> 4.719329865 | CQ21: 1 | CR21: 北海道 | CS21: =IFERROR(CS7*(1-BD64),CS7) -> 4.692841236 | CU21: 1 | CV21: 北海道 | CW21: =IFERROR(CW7*(1-BD64),CW7) -> 4.545825326 | CY21: 1 | CZ21: 北海道 | DA21: =IFERROR(DA7*(1-BD64),DA7) -> 4.545825326
A22: 項目 | G22: =G7 -> 2025-01-01 | S22: =S7 -> 2026-01-02 | AF22: =AF7 -> 2025-01-01 | AG22: =AG7 -> 2026-01-02 | AH22: =AH7 -> 2027-01-03 | AI22: 2028-01-04 | AJ22: 2029-01-04 | AK22: 2030-01-05 | AL22: 2031-01-06 | AM22: 2032-01-07 | AN22: 2033-01-07 | AO22: 2034-01-08 | AS22: 2 | AT22: 東北 | AU22: ='補正（太陽光）指定１'!AU22 -> 2.825569279 | AV22: ='補正（太陽光）指定１'!AV22 -> 15.84658105 | AW22: ='補正（太陽光）指定１'!AW22 -> 20.1709348 | AX22: ='補正（太陽光）指定１'!AX22 -> 20.25001404 | AY22: ='補正（太陽光）指定１'!AY22 -> 24.98470211 | AZ22: ='補正（太陽光）指定１'!AZ22 -> 16.5867384 | BA22: ='補正（太陽光）指定１'!BA22 -> 9.998059536 | BB22: ='補正（太陽光）指定１'!BB22 -> 2.304286422 | BC22: ='補正（太陽光）指定１'!BC22 -> 0.6546573139 | BD22: ='補正（太陽光）指定１'!BD22 -> 4.431558544 | BE22: ='補正（太陽光）指定１'!BE22 -> 1.851283017 | BF22: ='補正（太陽光）指定１'!BF22 -> 2.320377805 | BH22: 2 | BI22: 東北 | BJ22: ='補正（太陽光）指定１'!BJ22 -> 2.167820976 | BK22: ='補正（太陽光）指定１'!BK22 -> 14.82568907 | BL22: ='補正（太陽光）指定１'!BL22 -> 19.59551985 | BM22: ='補正（太陽光）指定１'!BM22 -> 19.42835177 | BN22: ='補正（太陽光）指定１'!BN22 -> 23.45400265 | BO22: ='補正（太陽光）指定１'!BO22 -> 15.59306797 | BP22: ='補正（太陽光）指定１'!BP22 -> 9.674042256 | BQ22: ='補正（太陽光）指定１'!BQ22 -> 1.650582089 | BR22: ='補正（太陽光）指定１'!BR22 -> 0.4418412247 | BS22: ='補正（太陽光）指定１'!BS22 -> 3.507428417 | BT22: ='補正（太陽光）指定１'!BT22 -> 1.952517426 | BU22: ='補正（太陽光）指定１'!BU22 -> 1.795770857 | BW22: 2 | BX22: 東北 | BY22: =IFERROR(BY8*(1-BD65),BY8) -> 11.23350029 | CA22: 2 | CB22: 東北 | CC22: =IFERROR(CC8*(1-BD65),CC8) -> 10.69159859 | CE22: 2 | CF22: 東北 | CG22: =IFERROR(CG8*(1-BD65),CG8) -> 10.1273531 | CI22: 2 | CJ22: 東北 | CK22: =IFERROR(CK8*(1-BD65),CK8) -> 9.992029438 | CM22: 2 | CN22: 東北 | CO22: =IFERROR(CO8*(1-BD65),CO8) -> 9.648278292 | CQ22: 2 | CR22: 東北 | CS22: =IFERROR(CS8*(1-BD65),CS8) -> 9.895921536 | CU22: 2 | CV22: 東北 | CW22: =IFERROR(CW8*(1-BD65),CW8) -> 9.285534879 | CY22: 2 | CZ22: 東北 | DA22: =IFERROR(DA8*(1-BD65),DA8) -> 9.285534879
G23: =G8 -> 4月 | H23: =H8 -> 5月 | I23: 6月 | J23: 7月 | K23: 8月 | L23: 9月 | M23: 10月 | N23: 11月 | O23: 12月 | P23: 1月 | Q23: 2月 | R23: 3月 | S23: =S8 -> 4月 | T23: =T8 -> 5月 | U23: 6月 | V23: 7月 | W23: 8月 | X23: 9月 | Y23: 10月 | Z23: 11月 | AA23: 12月 | AB23: 1月 | AC23: 2月 | AD23: 3月 | AS23: 3 | AT23: 東京 | AU23: ='補正（太陽光）指定１'!AU23 -> 1.434109425 | AV23: ='補正（太陽光）指定１'!AV23 -> 9.858460355 | AW23: ='補正（太陽光）指定１'!AW23 -> 16.54361118 | AX23: ='補正（太陽光）指定１'!AX23 -> 22.10358793 | AY23: ='補正（太陽光）指定１'!AY23 -> 23.46443136 | AZ23: ='補正（太陽光）指定１'!AZ23 -> 15.48090178 | BA23: ='補正（太陽光）指定１'!BA23 -> 9.156907553 | BB23: ='補正（太陽光）指定１'!BB23 -> 0.9255452635 | BC23: ='補正（太陽光）指定１'!BC23 -> 0.3780698415 | BD23: ='補正（太陽光）指定１'!BD23 -> 2.779477257 | BE23: ='補正（太陽光）指定１'!BE23 -> 1.182380588 | BF23: ='補正（太陽光）指定１'!BF23 -> 1.135055521 | BH23: 3 | BI23: 東京 | BJ23: ='補正（太陽光）指定１'!BJ23 -> 1.322845525 | BK23: ='補正（太陽光）指定１'!BK23 -> 9.397091366 | BL23: ='補正（太陽光）指定１'!BL23 -> 15.98199301 | BM23: ='補正（太陽光）指定１'!BM23 -> 21.30684247 | BN23: ='補正（太陽光）指定１'!BN23 -> 22.3640677 | BO23: ='補正（太陽光）指定１'!BO23 -> 14.80262478 | BP23: ='補正（太陽光）指定１'!BP23 -> 8.574523296 | BQ23: ='補正（太陽光）指定１'!BQ23 -> 0.7406921548 | BR23: ='補正（太陽光）指定１'!BR23 -> 0.2851731918 | BS23: ='補正（太陽光）指定１'!BS23 -> 2.246541579 | BT23: ='補正（太陽光）指定１'!BT23 -> 1.215231275 | BU23: ='補正（太陽光）指定１'!BU23 -> 0.9011351245 | BW23: 3 | BX23: 東京 | CA23: 3 | CB23: 東京 | CE23: 3 | CF23: 東京 | CI23: 3 | CJ23: 東京 | CM23: 3 | CN23: 東京 | CQ23: 3 | CR23: 東京 | CU23: 3 | CV23: 東京 | CY23: 3 | CZ23: 東京
A24: 調整係数出力比率 | E24: 全量 | G24: =IF($D$3="作成不要","",IF('補正（太陽光）指定１'!G24="","",'補正（太陽光）指定１'!G24)) ->  | H24: =IF($D$3="作成不要","",IF('補正（太陽光）指定１'!H24="","",'補正（太陽光）指定１'!H24)) ->  | I24: =IF($D$3="作成不要","",IF('補正（太陽光）指定１'!I24="","",'補正（太陽光）指定１'!I24)) ->  | J24: =IF($D$3="作成不要","",IF('補正（太陽光）指定１'!J24="","",'補正（太陽光）指定１'!J24)) ->  | K24: =IF($D$3="作成不要","",IF('補正（太陽光）指定１'!K24="","",'補正（太陽光）指定１'!K24)) ->  | L24: =IF($D$3="作成不要","",IF('補正（太陽光）指定１'!L24="","",'補正（太陽光）指定１'!L24)) ->  | M24: =IF($D$3="作成不要","",IF('補正（太陽光）指定１'!M24="","",'補正（太陽光）指定１'!M24)) ->  | N24: =IF($D$3="作成不要","",IF('補正（太陽光）指定１'!N24="","",'補正（太陽光）指定１'!N24)) ->  | O24: =IF($D$3="作成不要","",IF('補正（太陽光）指定１'!O24="","",'補正（太陽光）指定１'!O24)) ->  | P24: =IF($D$3="作成不要","",IF('補正（太陽光）指定１'!P24="","",'補正（太陽光）指定１'!P24)) ->  | Q24: =IF($D$3="作成不要","",IF('補正（太陽光）指定１'!Q24="","",'補正（太陽光）指定１'!Q24)) ->  | R24: =IF($D$3="作成不要","",IF('補正（太陽光）指定１'!R24="","",'補正（太陽光）指定１'!R24)) ->  | S24: =IF($D$3="作成不要","",IF('補正（太陽光）指定１'!S24="","",'補正（太陽光）指定１'!S24)) ->  | T24: =IF($D$3="作成不要","",IF('補正（太陽光）指定１'!T24="","",'補正（太陽光）指定１'!T24)) ->  | U24: =IF($D$3="作成不要","",IF('補正（太陽光）指定１'!U24="","",'補正（太陽光）指定１'!U24)) ->  | V24: =IF($D$3="作成不要","",IF('補正（太陽光）指定１'!V24="","",'補正（太陽光）指定１'!V24)) ->  | W24: =IF($D$3="作成不要","",IF('補正（太陽光）指定１'!W24="","",'補正（太陽光）指定１'!W24)) ->  | X24: =IF($D$3="作成不要","",IF('補正（太陽光）指定１'!X24="","",'補正（太陽光）指定１'!X24)) ->  | Y24: =IF($D$3="作成不要","",IF('補正（太陽光）指定１'!Y24="","",'補正（太陽光）指定１'!Y24)) ->  | Z24: =IF($D$3="作成不要","",IF('補正（太陽光）指定１'!Z24="","",'補正（太陽光）指定１'!Z24)) ->  | AA24: =IF($D$3="作成不要","",IF('補正（太陽光）指定１'!AA24="","",'補正（太陽光）指定１'!AA24)) ->  | AB24: =IF($D$3="作成不要","",IF('補正（太陽光）指定１'!AB24="","",'補正（太陽光）指定１'!AB24)) ->  | AC24: =IF($D$3="作成不要","",IF('補正（太陽光）指定１'!AC24="","",'補正（太陽光）指定１'!AC24)) ->  | AD24: =IF($D$3="作成不要","",IF('補正（太陽光）指定１'!AD24="","",'補正（太陽光）指定１'!AD24)) ->  | AF24: =IF($D$3="","",IF($D$3="作成不要","",P24)) ->  | AG24: =IF($D$3="","",IF($D$3="作成不要","",AB24)) ->  | AH24: =IF($D$3="","",IF($D$3="作成不要","",VLOOKUP($D$3,$BW$7:$BY$16,BY$17,TRUE))) ->  | AI24: =IF($D$3="","",IF($D$3="作成不要","",VLOOKUP($D$3,$CA$7:$CC$16,CC$17,TRUE))) ->  | AJ24: =IF($D$3="","",IF($D$3="作成不要","",VLOOKUP($D$3,$CE$7:$CG$16,CG$17,TRUE))) ->  | AK24: =IF($D$3="","",IF($D$3="作成不要","",VLOOKUP($D$3,$CI$7:$CK$16,CK$17,TRUE))) ->  | AL24: =IF($D$3="","",IF($D$3="作成不要","",VLOOKUP($D$3,$CM$7:$CO$16,CO$17,TRUE))) ->  | AM24: =IF($D$3="","",IF($D$3="作成不要","",VLOOKUP($D$3,$CQ$7:$CS$16,CS$17,TRUE))) ->  | AN24: =IF($D$3="","",IF($D$3="作成不要","",VLOOKUP($D$3,$CU$7:$CW$16,CW$17,TRUE))) ->  | AO24: =IF($D$3="","",IF($D$3="作成不要","",VLOOKUP($D$3,$CY$7:$DA$16,DA$17,TRUE))) ->  | AS24: 4 | AT24: 中部 | AU24: ='補正（太陽光）指定１'!AU24 -> 4.079913438 | AV24: ='補正（太陽光）指定１'!AV24 -> 11.19008421 | AW24: ='補正（太陽光）指定１'!AW24 -> 18.72590806 | AX24: ='補正（太陽光）指定１'!AX24 -> 24.2926658 | AY24: ='補正（太陽光）指定１'!AY24 -> 22.59754388 | AZ24: ='補正（太陽光）指定１'!AZ24 -> 16.01295907 | BA24: ='補正（太陽光）指定１'!BA24 -> 7.700324975 | BB24: ='補正（太陽光）指定１'!BB24 -> 0.4651934791 | BC24: ='補正（太陽光）指定１'!BC24 -> 1.809133042 | BD24: ='補正（太陽光）指定１'!BD24 -> 6.508151056 | BE24: ='補正（太陽光）指定１'!BE24 -> 4.365344633 | BF24: ='補正（太陽光）指定１'!BF24 -> 2.764170702 | BH24: 4 | BI24: 中部 | BJ24: ='補正（太陽光）指定１'!BJ24 -> 4.326593113 | BK24: ='補正（太陽光）指定１'!BK24 -> 11.82311059 | BL24: ='補正（太陽光）指定１'!BL24 -> 18.82890893 | BM24: ='補正（太陽光）指定１'!BM24 -> 24.09689656 | BN24: ='補正（太陽光）指定１'!BN24 -> 22.34528227 | BO24: ='補正（太陽光）指定１'!BO24 -> 15.90166942 | BP24: ='補正（太陽光）指定１'!BP24 -> 8.091410439 | BQ24: ='補正（太陽光）指定１'!BQ24 -> 0.6575305492 | BR24: ='補正（太陽光）指定１'!BR24 -> 1.75014687 | BS24: ='補正（太陽光）指定１'!BS24 -> 5.466997809 | BT24: ='補正（太陽光）指定１'!BT24 -> 4.459395252 | BU24: ='補正（太陽光）指定１'!BU24 -> 2.271068906 | BW24: 4 | BX24: 中部 | CA24: 4 | CB24: 中部 | CE24: 4 | CF24: 中部 | CI24: 4 | CJ24: 中部 | CM24: 4 | CN24: 中部 | CQ24: 4 | CR24: 中部 | CU24: 4 | CV24: 中部 | CY24: 4 | CZ24: 中部
E25: 余剰 | G25: =IF($D$3="作成不要","",IF('補正（太陽光）指定１'!G25="","",'補正（太陽光）指定１'!G25)) ->  | H25: =IF($D$3="作成不要","",IF('補正（太陽光）指定１'!H25="","",'補正（太陽光）指定１'!H25)) ->  | I25: =IF($D$3="作成不要","",IF('補正（太陽光）指定１'!I25="","",'補正（太陽光）指定１'!I25)) ->  | J25: =IF($D$3="作成不要","",IF('補正（太陽光）指定１'!J25="","",'補正（太陽光）指定１'!J25)) ->  | K25: =IF($D$3="作成不要","",IF('補正（太陽光）指定１'!K25="","",'補正（太陽光）指定１'!K25)) ->  | L25: =IF($D$3="作成不要","",IF('補正（太陽光）指定１'!L25="","",'補正（太陽光）指定１'!L25)) ->  | M25: =IF($D$3="作成不要","",IF('補正（太陽光）指定１'!M25="","",'補正（太陽光）指定１'!M25)) ->  | N25: =IF($D$3="作成不要","",IF('補正（太陽光）指定１'!N25="","",'補正（太陽光）指定１'!N25)) ->  | O25: =IF($D$3="作成不要","",IF('補正（太陽光）指定１'!O25="","",'補正（太陽光）指定１'!O25)) ->  | P25: =IF($D$3="作成不要","",IF('補正（太陽光）指定１'!P25="","",'補正（太陽光）指定１'!P25)) ->  | Q25: =IF($D$3="作成不要","",IF('補正（太陽光）指定１'!Q25="","",'補正（太陽光）指定１'!Q25)) ->  | R25: =IF($D$3="作成不要","",IF('補正（太陽光）指定１'!R25="","",'補正（太陽光）指定１'!R25)) ->  | S25: =IF($D$3="作成不要","",IF('補正（太陽光）指定１'!S25="","",'補正（太陽光）指定１'!S25)) ->  | T25: =IF($D$3="作成不要","",IF('補正（太陽光）指定１'!T25="","",'補正（太陽光）指定１'!T25)) ->  | U25: =IF($D$3="作成不要","",IF('補正（太陽光）指定１'!U25="","",'補正（太陽光）指定１'!U25)) ->  | V25: =IF($D$3="作成不要","",IF('補正（太陽光）指定１'!V25="","",'補正（太陽光）指定１'!V25)) ->  | W25: =IF($D$3="作成不要","",IF('補正（太陽光）指定１'!W25="","",'補正（太陽光）指定１'!W25)) ->  | X25: =IF($D$3="作成不要","",IF('補正（太陽光）指定１'!X25="","",'補正（太陽光）指定１'!X25)) ->  | Y25: =IF($D$3="作成不要","",IF('補正（太陽光）指定１'!Y25="","",'補正（太陽光）指定１'!Y25)) ->  | Z25: =IF($D$3="作成不要","",IF('補正（太陽光）指定１'!Z25="","",'補正（太陽光）指定１'!Z25)) ->  | AA25: =IF($D$3="作成不要","",IF('補正（太陽光）指定１'!AA25="","",'補正（太陽光）指定１'!AA25)) ->  | AB25: =IF($D$3="作成不要","",IF('補正（太陽光）指定１'!AB25="","",'補正（太陽光）指定１'!AB25)) ->  | AC25: =IF($D$3="作成不要","",IF('補正（太陽光）指定１'!AC25="","",'補正（太陽光）指定１'!AC25)) ->  | AD25: =IF($D$3="作成不要","",IF('補正（太陽光）指定１'!AD25="","",'補正（太陽光）指定１'!AD25)) ->  | AF25: =IF($D$3="","",IF($D$3="作成不要","",P25)) ->  | AG25: =IF($D$3="","",IF($D$3="作成不要","",AB25)) ->  | AH25: =IF($D$3="","",IF($D$3="作成不要","",VLOOKUP($D$3,$BW$21:$BY$30,BY$31,TRUE))) ->  | AI25: =IF($D$3="","",IF($D$3="作成不要","",VLOOKUP($D$3,$CA$21:$CC$30,CC$31,TRUE))) ->  | AJ25: =IF($D$3="","",IF($D$3="作成不要","",VLOOKUP($D$3,$CE$21:$CG$30,CG$31,TRUE))) ->  | AK25: =IF($D$3="","",IF($D$3="作成不要","",VLOOKUP($D$3,$CI$21:$CK$30,CK$31,TRUE))) ->  | AL25: =IF($D$3="","",IF($D$3="作成不要","",VLOOKUP($D$3,$CM$21:$CO$30,CO$31,TRUE))) ->  | AM25: =IF($D$3="","",IF($D$3="作成不要","",VLOOKUP($D$3,$CQ$21:$CS$30,CS$31,TRUE))) ->  | AN25: =IF($D$3="","",IF($D$3="作成不要","",VLOOKUP($D$3,$CU$21:$CW$30,CW$31,TRUE))) ->  | AO25: =IF($D$3="","",IF($D$3="作成不要","",VLOOKUP($D$3,$CY$21:$DA$30,DA$31,TRUE))) ->  | AS25: 5 | AT25: 北陸 | AU25: ='補正（太陽光）指定１'!AU25 -> 7.642802794 | AV25: ='補正（太陽光）指定１'!AV25 -> 20.78350786 | AW25: ='補正（太陽光）指定１'!AW25 -> 25.49305411 | AX25: ='補正（太陽光）指定１'!AX25 -> 31.99603705 | AY25: ='補正（太陽光）指定１'!AY25 -> 31.20500111 | AZ25: ='補正（太陽光）指定１'!AZ25 -> 22.17049303 | BA25: ='補正（太陽光）指定１'!BA25 -> 12.26215506 | BB25: ='補正（太陽光）指定１'!BB25 -> 0.8460596171 | BC25: ='補正（太陽光）指定１'!BC25 -> 1.171425524 | BD25: ='補正（太陽光）指定１'!BD25 -> 2.14000691 | BE25: ='補正（太陽光）指定１'!BE25 -> 2.60960961 | BF25: ='補正（太陽光）指定１'!BF25 -> 6.772391338 | BH25: 5 | BI25: 北陸 | BJ25: ='補正（太陽光）指定１'!BJ25 -> 10.30123641 | BK25: ='補正（太陽光）指定１'!BK25 -> 24.66904604 | BL25: ='補正（太陽光）指定１'!BL25 -> 25.00518993 | BM25: ='補正（太陽光）指定１'!BM25 -> 31.33861019 | BN25: ='補正（太陽光）指定１'!BN25 -> 30.98528469 | BO25: ='補正（太陽光）指定１'!BO25 -> 21.76496591 | BP25: ='補正（太陽光）指定１'!BP25 -> 11.40968804 | BQ25: ='補正（太陽光）指定１'!BQ25 -> 0.959661995 | BR25: ='補正（太陽光）指定１'!BR25 -> 0.829111389 | BS25: ='補正（太陽光）指定１'!BS25 -> 2.74892694 | BT25: ='補正（太陽光）指定１'!BT25 -> 2.46679637 | BU25: ='補正（太陽光）指定１'!BU25 -> 5.501165355 | BW25: 5 | BX25: 北陸 | BY25: =IFERROR(BY11*(1-BD68),BY11) -> 16.85018401 | CA25: 5 | CB25: 北陸 | CC25: =IFERROR(CC11*(1-BD68),CC11) -> 15.84639493 | CE25: 5 | CF25: 北陸 | CG25: =IFERROR(CG11*(1-BD68),CG11) -> 14.90963232 | CI25: 5 | CJ25: 北陸 | CK25: =IFERROR(CK11*(1-BD68),CK11) -> 15.19087157 | CM25: 5 | CN25: 北陸 | CO25: =IFERROR(CO11*(1-BD68),CO11) -> 15.35066466 | CQ25: 5 | CR25: 北陸 | CS25: =IFERROR(CS11*(1-BD68),CS11) -> 14.90636268 | CU25: 5 | CV25: 北陸 | CW25: =IFERROR(CW11*(1-BD68),CW11) -> 14.7114966 | CY25: 5 | CZ25: 北陸 | DA25: =IFERROR(DA11*(1-BD68),DA11) -> 14.7114966
A26: ｋＷ | B26: エリア想定 | D26: 設備量 | E26: 合計 | G26: =IF($D$3="作成不要","",IF('補正（太陽光）指定１'!G26="","",'補正（太陽光）指定１'!G26)) ->  | H26: =IF($D$3="作成不要","",IF('補正（太陽光）指定１'!H26="","",'補正（太陽光）指定１'!H26)) ->  | I26: =IF($D$3="作成不要","",IF('補正（太陽光）指定１'!I26="","",'補正（太陽光）指定１'!I26)) ->  | J26: =IF($D$3="作成不要","",IF('補正（太陽光）指定１'!J26="","",'補正（太陽光）指定１'!J26)) ->  | K26: =IF($D$3="作成不要","",IF('補正（太陽光）指定１'!K26="","",'補正（太陽光）指定１'!K26)) ->  | L26: =IF($D$3="作成不要","",IF('補正（太陽光）指定１'!L26="","",'補正（太陽光）指定１'!L26)) ->  | M26: =IF($D$3="作成不要","",IF('補正（太陽光）指定１'!M26="","",'補正（太陽光）指定１'!M26)) ->  | N26: =IF($D$3="作成不要","",IF('補正（太陽光）指定１'!N26="","",'補正（太陽光）指定１'!N26)) ->  | O26: =IF($D$3="作成不要","",IF('補正（太陽光）指定１'!O26="","",'補正（太陽光）指定１'!O26)) ->  | P26: =IF($D$3="作成不要","",IF('補正（太陽光）指定１'!P26="","",'補正（太陽光）指定１'!P26)) ->  | Q26: =IF($D$3="作成不要","",IF('補正（太陽光）指定１'!Q26="","",'補正（太陽光）指定１'!Q26)) ->  | R26: =IF($D$3="作成不要","",IF('補正（太陽光）指定１'!R26="","",'補正（太陽光）指定１'!R26)) ->  | S26: =IF($D$3="作成不要","",IF('補正（太陽光）指定１'!S26="","",'補正（太陽光）指定１'!S26)) ->  | T26: =IF($D$3="作成不要","",IF('補正（太陽光）指定１'!T26="","",'補正（太陽光）指定１'!T26)) ->  | U26: =IF($D$3="作成不要","",IF('補正（太陽光）指定１'!U26="","",'補正（太陽光）指定１'!U26)) ->  | V26: =IF($D$3="作成不要","",IF('補正（太陽光）指定１'!V26="","",'補正（太陽光）指定１'!V26)) ->  | W26: =IF($D$3="作成不要","",IF('補正（太陽光）指定１'!W26="","",'補正（太陽光）指定１'!W26)) ->  | X26: =IF($D$3="作成不要","",IF('補正（太陽光）指定１'!X26="","",'補正（太陽光）指定１'!X26)) ->  | Y26: =IF($D$3="作成不要","",IF('補正（太陽光）指定１'!Y26="","",'補正（太陽光）指定１'!Y26)) ->  | Z26: =IF($D$3="作成不要","",IF('補正（太陽光）指定１'!Z26="","",'補正（太陽光）指定１'!Z26)) ->  | AA26: =IF($D$3="作成不要","",IF('補正（太陽光）指定１'!AA26="","",'補正（太陽光）指定１'!AA26)) ->  | AB26: =IF($D$3="作成不要","",IF('補正（太陽光）指定１'!AB26="","",'補正（太陽光）指定１'!AB26)) ->  | AC26: =IF($D$3="作成不要","",IF('補正（太陽光）指定１'!AC26="","",'補正（太陽光）指定１'!AC26)) ->  | AD26: =IF($D$3="作成不要","",IF('補正（太陽光）指定１'!AD26="","",'補正（太陽光）指定１'!AD26)) ->  | AH26: =IF(COUNT(AH27:AH28)=0,"",SUM(AH27:AH28)) ->  | AI26: =IF(COUNT(AI27:AI28)=0,"",SUM(AI27:AI28)) ->  | AS26: 6 | AT26: 関西 | AU26: ='補正（太陽光）指定１'!AU26 -> 4.939768725 | AV26: ='補正（太陽光）指定１'!AV26 -> 12.51054741 | AW26: ='補正（太陽光）指定１'!AW26 -> 19.4553279 | AX26: ='補正（太陽光）指定１'!AX26 -> 25.75101222 | AY26: ='補正（太陽光）指定１'!AY26 -> 25.00736475 | AZ26: ='補正（太陽光）指定１'!AZ26 -> 17.22867407 | BA26: ='補正（太陽光）指定１'!BA26 -> 10.16886337 | BB26: ='補正（太陽光）指定１'!BB26 -> 0.3906726484 | BC26: ='補正（太陽光）指定１'!BC26 -> 1.957801543 | BD26: ='補正（太陽光）指定１'!BD26 -> 3.001285685 | BE26: ='補正（太陽光）指定１'!BE26 -> 4.972589029 | BF26: ='補正（太陽光）指定１'!BF26 -> 3.40305782 | BH26: 6 | BI26: 関西 | BJ26: ='補正（太陽光）指定１'!BJ26 -> 5.494230148 | BK26: ='補正（太陽光）指定１'!BK26 -> 13.57612093 | BL26: ='補正（太陽光）指定１'!BL26 -> 19.35054604 | BM26: ='補正（太陽光）指定１'!BM26 -> 25.63683862 | BN26: ='補正（太陽光）指定１'!BN26 -> 24.95433715 | BO26: ='補正（太陽光）指定１'!BO26 -> 17.30427967 | BP26: ='補正（太陽光）指定１'!BP26 -> 9.883393163 | BQ26: ='補正（太陽光）指定１'!BQ26 -> 0.6150059813 | BR26: ='補正（太陽光）指定１'!BR26 -> 1.611319945 | BS26: ='補正（太陽光）指定１'!BS26 -> 3.10389257 | BT26: ='補正（太陽光）指定１'!BT26 -> 4.60622154 | BU26: ='補正（太陽光）指定１'!BU26 -> 3.017743778 | BW26: 6 | BX26: 関西 | CA26: 6 | CB26: 関西 | CE26: 6 | CF26: 関西 | CI26: 6 | CJ26: 関西 | CM26: 6 | CN26: 関西 | CQ26: 6 | CR26: 関西 | CU26: 6 | CV26: 関西 | CY26: 6 | CZ26: 関西
F27: 全量 | G27: =IF($D$3="作成不要","",IF('補正（太陽光）指定１'!G27="","",'補正（太陽光）指定１'!G27)) ->  | H27: =IF($D$3="作成不要","",IF('補正（太陽光）指定１'!H27="","",'補正（太陽光）指定１'!H27)) ->  | I27: =IF($D$3="作成不要","",IF('補正（太陽光）指定１'!I27="","",'補正（太陽光）指定１'!I27)) ->  | J27: =IF($D$3="作成不要","",IF('補正（太陽光）指定１'!J27="","",'補正（太陽光）指定１'!J27)) ->  | K27: =IF($D$3="作成不要","",IF('補正（太陽光）指定１'!K27="","",'補正（太陽光）指定１'!K27)) ->  | L27: =IF($D$3="作成不要","",IF('補正（太陽光）指定１'!L27="","",'補正（太陽光）指定１'!L27)) ->  | M27: =IF($D$3="作成不要","",IF('補正（太陽光）指定１'!M27="","",'補正（太陽光）指定１'!M27)) ->  | N27: =IF($D$3="作成不要","",IF('補正（太陽光）指定１'!N27="","",'補正（太陽光）指定１'!N27)) ->  | O27: =IF($D$3="作成不要","",IF('補正（太陽光）指定１'!O27="","",'補正（太陽光）指定１'!O27)) ->  | P27: =IF($D$3="作成不要","",IF('補正（太陽光）指定１'!P27="","",'補正（太陽光）指定１'!P27)) ->  | Q27: =IF($D$3="作成不要","",IF('補正（太陽光）指定１'!Q27="","",'補正（太陽光）指定１'!Q27)) ->  | R27: =IF($D$3="作成不要","",IF('補正（太陽光）指定１'!R27="","",'補正（太陽光）指定１'!R27)) ->  | S27: =IF($D$3="作成不要","",IF('補正（太陽光）指定１'!S27="","",'補正（太陽光）指定１'!S27)) ->  | T27: =IF($D$3="作成不要","",IF('補正（太陽光）指定１'!T27="","",'補正（太陽光）指定１'!T27)) ->  | U27: =IF($D$3="作成不要","",IF('補正（太陽光）指定１'!U27="","",'補正（太陽光）指定１'!U27)) ->  | V27: =IF($D$3="作成不要","",IF('補正（太陽光）指定１'!V27="","",'補正（太陽光）指定１'!V27)) ->  | W27: =IF($D$3="作成不要","",IF('補正（太陽光）指定１'!W27="","",'補正（太陽光）指定１'!W27)) ->  | X27: =IF($D$3="作成不要","",IF('補正（太陽光）指定１'!X27="","",'補正（太陽光）指定１'!X27)) ->  | Y27: =IF($D$3="作成不要","",IF('補正（太陽光）指定１'!Y27="","",'補正（太陽光）指定１'!Y27)) ->  | Z27: =IF($D$3="作成不要","",IF('補正（太陽光）指定１'!Z27="","",'補正（太陽光）指定１'!Z27)) ->  | AA27: =IF($D$3="作成不要","",IF('補正（太陽光）指定１'!AA27="","",'補正（太陽光）指定１'!AA27)) ->  | AB27: =IF($D$3="作成不要","",IF('補正（太陽光）指定１'!AB27="","",'補正（太陽光）指定１'!AB27)) ->  | AC27: =IF($D$3="作成不要","",IF('補正（太陽光）指定１'!AC27="","",'補正（太陽光）指定１'!AC27)) ->  | AD27: =IF($D$3="作成不要","",IF('補正（太陽光）指定１'!AD27="","",'補正（太陽光）指定１'!AD27)) ->  | AH27: =IF($D$3="作成不要","",IF('補正（太陽光）指定１'!$D$6="","",IF('補正（太陽光）指定１'!$D$6="Ⅰ",'②太陽光（全量）'!Q15,MIN('②太陽光（全量）'!P15,'②太陽光（全量）'!Q15)))) ->  | AI27: =IF($D$3="作成不要","",IF('補正（太陽光）指定１'!$D$6="","",IF('補正（太陽光）指定１'!$D$6="Ⅰ",'②太陽光（全量）'!Q16,MIN('②太陽光（全量）'!P16,'②太陽光（全量）'!Q16)))) ->  | AJ27: =IF($D$3="作成不要","",IF('補正（太陽光）指定１'!$D$6="","",IF('補正（太陽光）指定１'!$D$6="Ⅰ",'②太陽光（全量）'!Q17,MIN('②太陽光（全量）'!P17,'②太陽光（全量）'!Q17)))) ->  | AK27: =IF($D$3="作成不要","",IF('補正（太陽光）指定１'!$D$6="","",IF('補正（太陽光）指定１'!$D$6="Ⅰ",'②太陽光（全量）'!Q18,MIN('②太陽光（全量）'!P18,'②太陽光（全量）'!Q18)))) ->  | AL27: =IF($D$3="作成不要","",IF('補正（太陽光）指定１'!$D$6="","",IF('補正（太陽光）指定１'!$D$6="Ⅰ",'②太陽光（全量）'!Q19,MIN('②太陽光（全量）'!P19,'②太陽光（全量）'!Q19)))) ->  | AM27: =IF($D$3="作成不要","",IF('補正（太陽光）指定１'!$D$6="","",IF('補正（太陽光）指定１'!$D$6="Ⅰ",'②太陽光（全量）'!Q20,MIN('②太陽光（全量）'!P20,'②太陽光（全量）'!Q20)))) ->  | AN27: =IF($D$3="作成不要","",IF('補正（太陽光）指定１'!$D$6="","",IF('補正（太陽光）指定１'!$D$6="Ⅰ",'②太陽光（全量）'!Q21,MIN('②太陽光（全量）'!P21,'②太陽光（全量）'!Q21)))) ->  | AO27: =IF($D$3="作成不要","",IF('補正（太陽光）指定１'!$D$6="","",IF('補正（太陽光）指定１'!$D$6="Ⅰ",'②太陽光（全量）'!Q22,MIN('②太陽光（全量）'!P22,'②太陽光（全量）'!Q22)))) ->  | AS27: 7 | AT27: 中国 | AU27: ='補正（太陽光）指定１'!AU27 -> 4.77224379 | AV27: ='補正（太陽光）指定１'!AV27 -> 13.89639687 | AW27: ='補正（太陽光）指定１'!AW27 -> 18.89658519 | AX27: ='補正（太陽光）指定１'!AX27 -> 28.5286854 | AY27: ='補正（太陽光）指定１'!AY27 -> 27.4336043 | AZ27: ='補正（太陽光）指定１'!AZ27 -> 17.3711504 | BA27: ='補正（太陽光）指定１'!BA27 -> 11.34321482 | BB27: ='補正（太陽光）指定１'!BB27 -> 0.4608252512 | BC27: ='補正（太陽光）指定１'!BC27 -> 1.911913194 | BD27: ='補正（太陽光）指定１'!BD27 -> 3.593346894 | BE27: ='補正（太陽光）指定１'!BE27 -> 3.689065457 | BF27: ='補正（太陽光）指定１'!BF27 -> 3.434747971 | BH27: 7 | BI27: 中国 | BJ27: ='補正（太陽光）指定１'!BJ27 -> 6.188751651 | BK27: ='補正（太陽光）指定１'!BK27 -> 15.8607896 | BL27: ='補正（太陽光）指定１'!BL27 -> 18.98002246 | BM27: ='補正（太陽光）指定１'!BM27 -> 28.09430857 | BN27: ='補正（太陽光）指定１'!BN27 -> 27.21051373 | BO27: ='補正（太陽光）指定１'!BO27 -> 17.30320609 | BP27: ='補正（太陽光）指定１'!BP27 -> 11.35245901 | BQ27: ='補正（太陽光）指定１'!BQ27 -> 0.5951103911 | BR27: ='補正（太陽光）指定１'!BR27 -> 1.656752618 | BS27: ='補正（太陽光）指定１'!BS27 -> 3.614878002 | BT27: ='補正（太陽光）指定１'!BT27 -> 3.687576441 | BU27: ='補正（太陽光）指定１'!BU27 -> 2.927548847 | BW27: 7 | BX27: 中国 | CA27: 7 | CB27: 中国 | CE27: 7 | CF27: 中国 | CI27: 7 | CJ27: 中国 | CM27: 7 | CN27: 中国 | CQ27: 7 | CR27: 中国 | CU27: 7 | CV27: 中国 | CY27: 7 | CZ27: 中国
F28: 余剰 | G28: =IF($D$3="作成不要","",IF('補正（太陽光）指定１'!G28="","",'補正（太陽光）指定１'!G28)) ->  | H28: =IF($D$3="作成不要","",IF('補正（太陽光）指定１'!H28="","",'補正（太陽光）指定１'!H28)) ->  | I28: =IF($D$3="作成不要","",IF('補正（太陽光）指定１'!I28="","",'補正（太陽光）指定１'!I28)) ->  | J28: =IF($D$3="作成不要","",IF('補正（太陽光）指定１'!J28="","",'補正（太陽光）指定１'!J28)) ->  | K28: =IF($D$3="作成不要","",IF('補正（太陽光）指定１'!K28="","",'補正（太陽光）指定１'!K28)) ->  | L28: =IF($D$3="作成不要","",IF('補正（太陽光）指定１'!L28="","",'補正（太陽光）指定１'!L28)) ->  | M28: =IF($D$3="作成不要","",IF('補正（太陽光）指定１'!M28="","",'補正（太陽光）指定１'!M28)) ->  | N28: =IF($D$3="作成不要","",IF('補正（太陽光）指定１'!N28="","",'補正（太陽光）指定１'!N28)) ->  | O28: =IF($D$3="作成不要","",IF('補正（太陽光）指定１'!O28="","",'補正（太陽光）指定１'!O28)) ->  | P28: =IF($D$3="作成不要","",IF('補正（太陽光）指定１'!P28="","",'補正（太陽光）指定１'!P28)) ->  | Q28: =IF($D$3="作成不要","",IF('補正（太陽光）指定１'!Q28="","",'補正（太陽光）指定１'!Q28)) ->  | R28: =IF($D$3="作成不要","",IF('補正（太陽光）指定１'!R28="","",'補正（太陽光）指定１'!R28)) ->  | S28: =IF($D$3="作成不要","",IF('補正（太陽光）指定１'!S28="","",'補正（太陽光）指定１'!S28)) ->  | T28: =IF($D$3="作成不要","",IF('補正（太陽光）指定１'!T28="","",'補正（太陽光）指定１'!T28)) ->  | U28: =IF($D$3="作成不要","",IF('補正（太陽光）指定１'!U28="","",'補正（太陽光）指定１'!U28)) ->  | V28: =IF($D$3="作成不要","",IF('補正（太陽光）指定１'!V28="","",'補正（太陽光）指定１'!V28)) ->  | W28: =IF($D$3="作成不要","",IF('補正（太陽光）指定１'!W28="","",'補正（太陽光）指定１'!W28)) ->  | X28: =IF($D$3="作成不要","",IF('補正（太陽光）指定１'!X28="","",'補正（太陽光）指定１'!X28)) ->  | Y28: =IF($D$3="作成不要","",IF('補正（太陽光）指定１'!Y28="","",'補正（太陽光）指定１'!Y28)) ->  | Z28: =IF($D$3="作成不要","",IF('補正（太陽光）指定１'!Z28="","",'補正（太陽光）指定１'!Z28)) ->  | AA28: =IF($D$3="作成不要","",IF('補正（太陽光）指定１'!AA28="","",'補正（太陽光）指定１'!AA28)) ->  | AB28: =IF($D$3="作成不要","",IF('補正（太陽光）指定１'!AB28="","",'補正（太陽光）指定１'!AB28)) ->  | AC28: =IF($D$3="作成不要","",IF('補正（太陽光）指定１'!AC28="","",'補正（太陽光）指定１'!AC28)) ->  | AD28: =IF($D$3="作成不要","",IF('補正（太陽光）指定１'!AD28="","",'補正（太陽光）指定１'!AD28)) ->  | AH28: =IF($D$3="作成不要","",IF('補正（太陽光）指定１'!$D$6="","",IF('補正（太陽光）指定１'!$D$6="Ⅰ",'③太陽光（余剰）'!Q15,MIN('③太陽光（余剰）'!P15,'③太陽光（余剰）'!Q15)))) ->  | AI28: =IF($D$3="作成不要","",IF('補正（太陽光）指定１'!$D$6="","",IF('補正（太陽光）指定１'!$D$6="Ⅰ",'③太陽光（余剰）'!Q16,MIN('③太陽光（余剰）'!P16,'③太陽光（余剰）'!Q16)))) ->  | AJ28: =IF($D$3="作成不要","",IF('補正（太陽光）指定１'!$D$6="","",IF('補正（太陽光）指定１'!$D$6="Ⅰ",'③太陽光（余剰）'!Q17,MIN('③太陽光（余剰）'!P17,'③太陽光（余剰）'!Q17)))) ->  | AK28: =IF($D$3="作成不要","",IF('補正（太陽光）指定１'!$D$6="","",IF('補正（太陽光）指定１'!$D$6="Ⅰ",'③太陽光（余剰）'!Q18,MIN('③太陽光（余剰）'!P18,'③太陽光（余剰）'!Q18)))) ->  | AL28: =IF($D$3="作成不要","",IF('補正（太陽光）指定１'!$D$6="","",IF('補正（太陽光）指定１'!$D$6="Ⅰ",'③太陽光（余剰）'!Q19,MIN('③太陽光（余剰）'!P19,'③太陽光（余剰）'!Q19)))) ->  | AM28: =IF($D$3="作成不要","",IF('補正（太陽光）指定１'!$D$6="","",IF('補正（太陽光）指定１'!$D$6="Ⅰ",'③太陽光（余剰）'!Q20,MIN('③太陽光（余剰）'!P20,'③太陽光（余剰）'!Q20)))) ->  | AN28: =IF($D$3="作成不要","",IF('補正（太陽光）指定１'!$D$6="","",IF('補正（太陽光）指定１'!$D$6="Ⅰ",'③太陽光（余剰）'!Q21,MIN('③太陽光（余剰）'!P21,'③太陽光（余剰）'!Q21)))) ->  | AO28: =IF($D$3="作成不要","",IF('補正（太陽光）指定１'!$D$6="","",IF('補正（太陽光）指定１'!$D$6="Ⅰ",'③太陽光（余剰）'!Q22,MIN('③太陽光（余剰）'!P22,'③太陽光（余剰）'!Q22)))) ->  | AS28: 8 | AT28: 四国 | AU28: ='補正（太陽光）指定１'!AU28 -> 7.830221579 | AV28: ='補正（太陽光）指定１'!AV28 -> 18.9746127 | AW28: ='補正（太陽光）指定１'!AW28 -> 22.10326583 | AX28: ='補正（太陽光）指定１'!AX28 -> 30.61769473 | AY28: ='補正（太陽光）指定１'!AY28 -> 31.12703922 | AZ28: ='補正（太陽光）指定１'!AZ28 -> 21.19236029 | BA28: ='補正（太陽光）指定１'!BA28 -> 14.05472574 | BB28: ='補正（太陽光）指定１'!BB28 -> 0.7314944143 | BC28: ='補正（太陽光）指定１'!BC28 -> 2.276411882 | BD28: ='補正（太陽光）指定１'!BD28 -> 4.706600337 | BE28: ='補正（太陽光）指定１'!BE28 -> 5.478234767 | BF28: ='補正（太陽光）指定１'!BF28 -> 5.239254233 | BH28: 8 | BI28: 四国 | BJ28: ='補正（太陽光）指定１'!BJ28 -> 8.059492535 | BK28: ='補正（太陽光）指定１'!BK28 -> 18.38781061 | BL28: ='補正（太陽光）指定１'!BL28 -> 21.49545278 | BM28: ='補正（太陽光）指定１'!BM28 -> 30.01957905 | BN28: ='補正（太陽光）指定１'!BN28 -> 30.2836978 | BO28: ='補正（太陽光）指定１'!BO28 -> 20.81637608 | BP28: ='補正（太陽光）指定１'!BP28 -> 13.0735786 | BQ28: ='補正（太陽光）指定１'!BQ28 -> 1.024204613 | BR28: ='補正（太陽光）指定１'!BR28 -> 1.934886447 | BS28: ='補正（太陽光）指定１'!BS28 -> 4.494924668 | BT28: ='補正（太陽光）指定１'!BT28 -> 5.575082347 | BU28: ='補正（太陽光）指定１'!BU28 -> 4.377262006 | BW28: 8 | BX28: 四国 | CA28: 8 | CB28: 四国 | CE28: 8 | CF28: 四国 | CI28: 8 | CJ28: 四国 | CM28: 8 | CN28: 四国 | CQ28: 8 | CR28: 四国 | CU28: 8 | CV28: 四国 | CY28: 8 | CZ28: 四国
D29: 供給電力 （調整係数） | E29: 合計 | G29: =IF($D$3="作成不要","",IF('補正（太陽光）指定１'!G29="","",'補正（太陽光）指定１'!G29)) ->  | H29: =IF($D$3="作成不要","",IF('補正（太陽光）指定１'!H29="","",'補正（太陽光）指定１'!H29)) ->  | I29: =IF($D$3="作成不要","",IF('補正（太陽光）指定１'!I29="","",'補正（太陽光）指定１'!I29)) ->  | J29: =IF($D$3="作成不要","",IF('補正（太陽光）指定１'!J29="","",'補正（太陽光）指定１'!J29)) ->  | K29: =IF($D$3="作成不要","",IF('補正（太陽光）指定１'!K29="","",'補正（太陽光）指定１'!K29)) ->  | L29: =IF($D$3="作成不要","",IF('補正（太陽光）指定１'!L29="","",'補正（太陽光）指定１'!L29)) ->  | M29: =IF($D$3="作成不要","",IF('補正（太陽光）指定１'!M29="","",'補正（太陽光）指定１'!M29)) ->  | N29: =IF($D$3="作成不要","",IF('補正（太陽光）指定１'!N29="","",'補正（太陽光）指定１'!N29)) ->  | O29: =IF($D$3="作成不要","",IF('補正（太陽光）指定１'!O29="","",'補正（太陽光）指定１'!O29)) ->  | P29: =IF($D$3="作成不要","",IF('補正（太陽光）指定１'!P29="","",'補正（太陽光）指定１'!P29)) ->  | Q29: =IF($D$3="作成不要","",IF('補正（太陽光）指定１'!Q29="","",'補正（太陽光）指定１'!Q29)) ->  | R29: =IF($D$3="作成不要","",IF('補正（太陽光）指定１'!R29="","",'補正（太陽光）指定１'!R29)) ->  | S29: =IF($D$3="作成不要","",IF('補正（太陽光）指定１'!S29="","",'補正（太陽光）指定１'!S29)) ->  | T29: =IF($D$3="作成不要","",IF('補正（太陽光）指定１'!T29="","",'補正（太陽光）指定１'!T29)) ->  | U29: =IF($D$3="作成不要","",IF('補正（太陽光）指定１'!U29="","",'補正（太陽光）指定１'!U29)) ->  | V29: =IF($D$3="作成不要","",IF('補正（太陽光）指定１'!V29="","",'補正（太陽光）指定１'!V29)) ->  | W29: =IF($D$3="作成不要","",IF('補正（太陽光）指定１'!W29="","",'補正（太陽光）指定１'!W29)) ->  | X29: =IF($D$3="作成不要","",IF('補正（太陽光）指定１'!X29="","",'補正（太陽光）指定１'!X29)) ->  | Y29: =IF($D$3="作成不要","",IF('補正（太陽光）指定１'!Y29="","",'補正（太陽光）指定１'!Y29)) ->  | Z29: =IF($D$3="作成不要","",IF('補正（太陽光）指定１'!Z29="","",'補正（太陽光）指定１'!Z29)) ->  | AA29: =IF($D$3="作成不要","",IF('補正（太陽光）指定１'!AA29="","",'補正（太陽光）指定１'!AA29)) ->  | AB29: =IF($D$3="作成不要","",IF('補正（太陽光）指定１'!AB29="","",'補正（太陽光）指定１'!AB29)) ->  | AC29: =IF($D$3="作成不要","",IF('補正（太陽光）指定１'!AC29="","",'補正（太陽光）指定１'!AC29)) ->  | AD29: =IF($D$3="作成不要","",IF('補正（太陽光）指定１'!AD29="","",'補正（太陽光）指定１'!AD29)) ->  | AH29: =IF(COUNT(AH30:AH31)=0,"",SUM(AH30:AH31)) ->  | AI29: =IF(COUNT(AI30:AI31)=0,"",SUM(AI30:AI31)) ->  | AS29: 9 | AT29: 九州 | AU29: ='補正（太陽光）指定１'!AU29 -> 1.075651963 | AV29: ='補正（太陽光）指定１'!AV29 -> 4.515723855 | AW29: ='補正（太陽光）指定１'!AW29 -> 9.815201755 | AX29: ='補正（太陽光）指定１'!AX29 -> 11.48071418 | AY29: ='補正（太陽光）指定１'!AY29 -> 11.64438342 | AZ29: ='補正（太陽光）指定１'!AZ29 -> 9.849938259 | BA29: ='補正（太陽光）指定１'!BA29 -> 6.043088418 | BB29: ='補正（太陽光）指定１'!BB29 -> 0.2364640355 | BC29: ='補正（太陽光）指定１'!BC29 -> 0.9615996186 | BD29: ='補正（太陽光）指定１'!BD29 -> 1.64457012 | BE29: ='補正（太陽光）指定１'!BE29 -> 1.318318415 | BF29: ='補正（太陽光）指定１'!BF29 -> 0.7483061172 | BH29: 9 | BI29: 九州 | BJ29: ='補正（太陽光）指定１'!BJ29 -> 0.7503033213 | BK29: ='補正（太陽光）指定１'!BK29 -> 4.664175523 | BL29: ='補正（太陽光）指定１'!BL29 -> 9.395721942 | BM29: ='補正（太陽光）指定１'!BM29 -> 10.83319015 | BN29: ='補正（太陽光）指定１'!BN29 -> 10.63656123 | BO29: ='補正（太陽光）指定１'!BO29 -> 9.101302067 | BP29: ='補正（太陽光）指定１'!BP29 -> 5.575618247 | BQ29: ='補正（太陽光）指定１'!BQ29 -> 0.1916266646 | BR29: ='補正（太陽光）指定１'!BR29 -> 0.8041009753 | BS29: ='補正（太陽光）指定１'!BS29 -> 1.392852236 | BT29: ='補正（太陽光）指定１'!BT29 -> 1.204602946 | BU29: ='補正（太陽光）指定１'!BU29 -> 0.6594357098 | BW29: 9 | BX29: 九州 | CA29: 9 | CB29: 九州 | CE29: 9 | CF29: 九州 | CI29: 9 | CJ29: 九州 | CM29: 9 | CN29: 九州 | CQ29: 9 | CR29: 九州 | CU29: 9 | CV29: 九州 | CY29: 9 | CZ29: 九州
F30: 全量 | G30: =IF($D$3="作成不要","",IF('補正（太陽光）指定１'!G30="","",'補正（太陽光）指定１'!G30)) ->  | H30: =IF($D$3="作成不要","",IF('補正（太陽光）指定１'!H30="","",'補正（太陽光）指定１'!H30)) ->  | I30: =IF($D$3="作成不要","",IF('補正（太陽光）指定１'!I30="","",'補正（太陽光）指定１'!I30)) ->  | J30: =IF($D$3="作成不要","",IF('補正（太陽光）指定１'!J30="","",'補正（太陽光）指定１'!J30)) ->  | K30: =IF($D$3="作成不要","",IF('補正（太陽光）指定１'!K30="","",'補正（太陽光）指定１'!K30)) ->  | L30: =IF($D$3="作成不要","",IF('補正（太陽光）指定１'!L30="","",'補正（太陽光）指定１'!L30)) ->  | M30: =IF($D$3="作成不要","",IF('補正（太陽光）指定１'!M30="","",'補正（太陽光）指定１'!M30)) ->  | N30: =IF($D$3="作成不要","",IF('補正（太陽光）指定１'!N30="","",'補正（太陽光）指定１'!N30)) ->  | O30: =IF($D$3="作成不要","",IF('補正（太陽光）指定１'!O30="","",'補正（太陽光）指定１'!O30)) ->  | P30: =IF($D$3="作成不要","",IF('補正（太陽光）指定１'!P30="","",'補正（太陽光）指定１'!P30)) ->  | Q30: =IF($D$3="作成不要","",IF('補正（太陽光）指定１'!Q30="","",'補正（太陽光）指定１'!Q30)) ->  | R30: =IF($D$3="作成不要","",IF('補正（太陽光）指定１'!R30="","",'補正（太陽光）指定１'!R30)) ->  | S30: =IF($D$3="作成不要","",IF('補正（太陽光）指定１'!S30="","",'補正（太陽光）指定１'!S30)) ->  | T30: =IF($D$3="作成不要","",IF('補正（太陽光）指定１'!T30="","",'補正（太陽光）指定１'!T30)) ->  | U30: =IF($D$3="作成不要","",IF('補正（太陽光）指定１'!U30="","",'補正（太陽光）指定１'!U30)) ->  | V30: =IF($D$3="作成不要","",IF('補正（太陽光）指定１'!V30="","",'補正（太陽光）指定１'!V30)) ->  | W30: =IF($D$3="作成不要","",IF('補正（太陽光）指定１'!W30="","",'補正（太陽光）指定１'!W30)) ->  | X30: =IF($D$3="作成不要","",IF('補正（太陽光）指定１'!X30="","",'補正（太陽光）指定１'!X30)) ->  | Y30: =IF($D$3="作成不要","",IF('補正（太陽光）指定１'!Y30="","",'補正（太陽光）指定１'!Y30)) ->  | Z30: =IF($D$3="作成不要","",IF('補正（太陽光）指定１'!Z30="","",'補正（太陽光）指定１'!Z30)) ->  | AA30: =IF($D$3="作成不要","",IF('補正（太陽光）指定１'!AA30="","",'補正（太陽光）指定１'!AA30)) ->  | AB30: =IF($D$3="作成不要","",IF('補正（太陽光）指定１'!AB30="","",'補正（太陽光）指定１'!AB30)) ->  | AC30: =IF($D$3="作成不要","",IF('補正（太陽光）指定１'!AC30="","",'補正（太陽光）指定１'!AC30)) ->  | AD30: =IF($D$3="作成不要","",IF('補正（太陽光）指定１'!AD30="","",'補正（太陽光）指定１'!AD30)) ->  | AH30: =IF(AH27="","",IF(AH24=0,0,IF(AH24="","",ROUNDDOWN(SUM(AH27)*SUM(AH$24)/100,2)))) ->  | AS30: 10 | AT30: 沖縄 | AU30: ='補正（太陽光）指定１'!AU30 -> 10.87939586 | AV30: ='補正（太陽光）指定１'!AV30 -> 16.68585561 | AW30: ='補正（太陽光）指定１'!AW30 -> 20.23243105 | AX30: ='補正（太陽光）指定１'!AX30 -> 19.21783885 | AY30: ='補正（太陽光）指定１'!AY30 -> 20.48153571 | AZ30: ='補正（太陽光）指定１'!AZ30 -> 19.96202045 | BA30: ='補正（太陽光）指定１'!BA30 -> 16.6830861 | BB30: ='補正（太陽光）指定１'!BB30 -> 10.65342359 | BC30: ='補正（太陽光）指定１'!BC30 -> 5.427057915 | BD30: ='補正（太陽光）指定１'!BD30 -> 4.706225435 | BE30: ='補正（太陽光）指定１'!BE30 -> 5.757627356 | BF30: ='補正（太陽光）指定１'!BF30 -> 8.053643695 | BH30: 10 | BI30: 沖縄 | BJ30: ='補正（太陽光）指定１'!BJ30 -> 10.75991615 | BK30: ='補正（太陽光）指定１'!BK30 -> 16.3655257 | BL30: ='補正（太陽光）指定１'!BL30 -> 19.99342225 | BM30: ='補正（太陽光）指定１'!BM30 -> 18.94802071 | BN30: ='補正（太陽光）指定１'!BN30 -> 19.94370186 | BO30: ='補正（太陽光）指定１'!BO30 -> 19.63499733 | BP30: ='補正（太陽光）指定１'!BP30 -> 16.73493383 | BQ30: ='補正（太陽光）指定１'!BQ30 -> 10.75022269 | BR30: ='補正（太陽光）指定１'!BR30 -> 5.342356477 | BS30: ='補正（太陽光）指定１'!BS30 -> 4.654589341 | BT30: ='補正（太陽光）指定１'!BT30 -> 5.696677111 | BU30: ='補正（太陽光）指定１'!BU30 -> 8.081786543 | BW30: 10 | BX30: 沖縄 | CA30: 10 | CB30: 沖縄 | CE30: 10 | CF30: 沖縄 | CI30: 10 | CJ30: 沖縄 | CM30: 10 | CN30: 沖縄 | CQ30: 10 | CR30: 沖縄 | CU30: 10 | CV30: 沖縄 | CY30: 10 | CZ30: 沖縄
F31: 余剰 | G31: =IF($D$3="作成不要","",IF('補正（太陽光）指定１'!G31="","",'補正（太陽光）指定１'!G31)) ->  | H31: =IF($D$3="作成不要","",IF('補正（太陽光）指定１'!H31="","",'補正（太陽光）指定１'!H31)) ->  | I31: =IF($D$3="作成不要","",IF('補正（太陽光）指定１'!I31="","",'補正（太陽光）指定１'!I31)) ->  | J31: =IF($D$3="作成不要","",IF('補正（太陽光）指定１'!J31="","",'補正（太陽光）指定１'!J31)) ->  | K31: =IF($D$3="作成不要","",IF('補正（太陽光）指定１'!K31="","",'補正（太陽光）指定１'!K31)) ->  | L31: =IF($D$3="作成不要","",IF('補正（太陽光）指定１'!L31="","",'補正（太陽光）指定１'!L31)) ->  | M31: =IF($D$3="作成不要","",IF('補正（太陽光）指定１'!M31="","",'補正（太陽光）指定１'!M31)) ->  | N31: =IF($D$3="作成不要","",IF('補正（太陽光）指定１'!N31="","",'補正（太陽光）指定１'!N31)) ->  | O31: =IF($D$3="作成不要","",IF('補正（太陽光）指定１'!O31="","",'補正（太陽光）指定１'!O31)) ->  | P31: =IF($D$3="作成不要","",IF('補正（太陽光）指定１'!P31="","",'補正（太陽光）指定１'!P31)) ->  | Q31: =IF($D$3="作成不要","",IF('補正（太陽光）指定１'!Q31="","",'補正（太陽光）指定１'!Q31)) ->  | R31: =IF($D$3="作成不要","",IF('補正（太陽光）指定１'!R31="","",'補正（太陽光）指定１'!R31)) ->  | S31: =IF($D$3="作成不要","",IF('補正（太陽光）指定１'!S31="","",'補正（太陽光）指定１'!S31)) ->  | T31: =IF($D$3="作成不要","",IF('補正（太陽光）指定１'!T31="","",'補正（太陽光）指定１'!T31)) ->  | U31: =IF($D$3="作成不要","",IF('補正（太陽光）指定１'!U31="","",'補正（太陽光）指定１'!U31)) ->  | V31: =IF($D$3="作成不要","",IF('補正（太陽光）指定１'!V31="","",'補正（太陽光）指定１'!V31)) ->  | W31: =IF($D$3="作成不要","",IF('補正（太陽光）指定１'!W31="","",'補正（太陽光）指定１'!W31)) ->  | X31: =IF($D$3="作成不要","",IF('補正（太陽光）指定１'!X31="","",'補正（太陽光）指定１'!X31)) ->  | Y31: =IF($D$3="作成不要","",IF('補正（太陽光）指定１'!Y31="","",'補正（太陽光）指定１'!Y31)) ->  | Z31: =IF($D$3="作成不要","",IF('補正（太陽光）指定１'!Z31="","",'補正（太陽光）指定１'!Z31)) ->  | AA31: =IF($D$3="作成不要","",IF('補正（太陽光）指定１'!AA31="","",'補正（太陽光）指定１'!AA31)) ->  | AB31: =IF($D$3="作成不要","",IF('補正（太陽光）指定１'!AB31="","",'補正（太陽光）指定１'!AB31)) ->  | AC31: =IF($D$3="作成不要","",IF('補正（太陽光）指定１'!AC31="","",'補正（太陽光）指定１'!AC31)) ->  | AD31: =IF($D$3="作成不要","",IF('補正（太陽光）指定１'!AD31="","",'補正（太陽光）指定１'!AD31)) ->  | AH31: =IF(AH28="","",IF(AH25=0,0,IF(AH25="","",ROUNDDOWN(SUM(AH28)*SUM(AH$25)/100,2)))) ->  | AU31: 3 | AV31: 4 | AW31: 5 | AX31: 6 | AY31: 7 | AZ31: 8 | BA31: 9 | BB31: 10 | BC31: 11 | BD31: 12 | BE31: 13 | BF31: 14 | BJ31: 3 | BK31: 4 | BL31: 5 | BM31: 6 | BN31: 7 | BO31: 8 | BP31: 9 | BQ31: 10 | BR31: 11 | BS31: 12 | BT31: 13 | BU31: 14 | BY31: 3 | CC31: 3 | CG31: 3 | CK31: 3 | CO31: 3 | CS31: 3 | CW31: 3 | DA31: 3
B32: 小売電気事業者の調達分 | D32: 設備量 | E32: 合計 | G32: =IF($D$3="作成不要","",IF('補正（太陽光）指定１'!G32="","",'補正（太陽光）指定１'!G32)) ->  | H32: =IF($D$3="作成不要","",IF('補正（太陽光）指定１'!H32="","",'補正（太陽光）指定１'!H32)) ->  | I32: =IF($D$3="作成不要","",IF('補正（太陽光）指定１'!I32="","",'補正（太陽光）指定１'!I32)) ->  | J32: =IF($D$3="作成不要","",IF('補正（太陽光）指定１'!J32="","",'補正（太陽光）指定１'!J32)) ->  | K32: =IF($D$3="作成不要","",IF('補正（太陽光）指定１'!K32="","",'補正（太陽光）指定１'!K32)) ->  | L32: =IF($D$3="作成不要","",IF('補正（太陽光）指定１'!L32="","",'補正（太陽光）指定１'!L32)) ->  | M32: =IF($D$3="作成不要","",IF('補正（太陽光）指定１'!M32="","",'補正（太陽光）指定１'!M32)) ->  | N32: =IF($D$3="作成不要","",IF('補正（太陽光）指定１'!N32="","",'補正（太陽光）指定１'!N32)) ->  | O32: =IF($D$3="作成不要","",IF('補正（太陽光）指定１'!O32="","",'補正（太陽光）指定１'!O32)) ->  | P32: =IF($D$3="作成不要","",IF('補正（太陽光）指定１'!P32="","",'補正（太陽光）指定１'!P32)) ->  | Q32: =IF($D$3="作成不要","",IF('補正（太陽光）指定１'!Q32="","",'補正（太陽光）指定１'!Q32)) ->  | R32: =IF($D$3="作成不要","",IF('補正（太陽光）指定１'!R32="","",'補正（太陽光）指定１'!R32)) ->  | S32: =IF($D$3="作成不要","",IF('補正（太陽光）指定１'!S32="","",'補正（太陽光）指定１'!S32)) ->  | T32: =IF($D$3="作成不要","",IF('補正（太陽光）指定１'!T32="","",'補正（太陽光）指定１'!T32)) ->  | U32: =IF($D$3="作成不要","",IF('補正（太陽光）指定１'!U32="","",'補正（太陽光）指定１'!U32)) ->  | V32: =IF($D$3="作成不要","",IF('補正（太陽光）指定１'!V32="","",'補正（太陽光）指定１'!V32)) ->  | W32: =IF($D$3="作成不要","",IF('補正（太陽光）指定１'!W32="","",'補正（太陽光）指定１'!W32)) ->  | X32: =IF($D$3="作成不要","",IF('補正（太陽光）指定１'!X32="","",'補正（太陽光）指定１'!X32)) ->  | Y32: =IF($D$3="作成不要","",IF('補正（太陽光）指定１'!Y32="","",'補正（太陽光）指定１'!Y32)) ->  | Z32: =IF($D$3="作成不要","",IF('補正（太陽光）指定１'!Z32="","",'補正（太陽光）指定１'!Z32)) ->  | AA32: =IF($D$3="作成不要","",IF('補正（太陽光）指定１'!AA32="","",'補正（太陽光）指定１'!AA32)) ->  | AB32: =IF($D$3="作成不要","",IF('補正（太陽光）指定１'!AB32="","",'補正（太陽光）指定１'!AB32)) ->  | AC32: =IF($D$3="作成不要","",IF('補正（太陽光）指定１'!AC32="","",'補正（太陽光）指定１'!AC32)) ->  | AD32: =IF($D$3="作成不要","",IF('補正（太陽光）指定１'!AD32="","",'補正（太陽光）指定１'!AD32)) ->  | AH32: =IF(COUNT(AH33:AH34)=0,"",SUM(AH33:AH34)) ->  | AI32: =IF(COUNT(AI33:AI34)=0,"",SUM(AI33:AI34)) -> 
F33: 全量 | G33: =IF($D$3="作成不要","",IF('補正（太陽光）指定１'!G33="","",'補正（太陽光）指定１'!G33)) ->  | H33: =IF($D$3="作成不要","",IF('補正（太陽光）指定１'!H33="","",'補正（太陽光）指定１'!H33)) ->  | I33: =IF($D$3="作成不要","",IF('補正（太陽光）指定１'!I33="","",'補正（太陽光）指定１'!I33)) ->  | J33: =IF($D$3="作成不要","",IF('補正（太陽光）指定１'!J33="","",'補正（太陽光）指定１'!J33)) ->  | K33: =IF($D$3="作成不要","",IF('補正（太陽光）指定１'!K33="","",'補正（太陽光）指定１'!K33)) ->  | L33: =IF($D$3="作成不要","",IF('補正（太陽光）指定１'!L33="","",'補正（太陽光）指定１'!L33)) ->  | M33: =IF($D$3="作成不要","",IF('補正（太陽光）指定１'!M33="","",'補正（太陽光）指定１'!M33)) ->  | N33: =IF($D$3="作成不要","",IF('補正（太陽光）指定１'!N33="","",'補正（太陽光）指定１'!N33)) ->  | O33: =IF($D$3="作成不要","",IF('補正（太陽光）指定１'!O33="","",'補正（太陽光）指定１'!O33)) ->  | P33: =IF($D$3="作成不要","",IF('補正（太陽光）指定１'!P33="","",'補正（太陽光）指定１'!P33)) ->  | Q33: =IF($D$3="作成不要","",IF('補正（太陽光）指定１'!Q33="","",'補正（太陽光）指定１'!Q33)) ->  | R33: =IF($D$3="作成不要","",IF('補正（太陽光）指定１'!R33="","",'補正（太陽光）指定１'!R33)) ->  | S33: =IF($D$3="作成不要","",IF('補正（太陽光）指定１'!S33="","",'補正（太陽光）指定１'!S33)) ->  | T33: =IF($D$3="作成不要","",IF('補正（太陽光）指定１'!T33="","",'補正（太陽光）指定１'!T33)) ->  | U33: =IF($D$3="作成不要","",IF('補正（太陽光）指定１'!U33="","",'補正（太陽光）指定１'!U33)) ->  | V33: =IF($D$3="作成不要","",IF('補正（太陽光）指定１'!V33="","",'補正（太陽光）指定１'!V33)) ->  | W33: =IF($D$3="作成不要","",IF('補正（太陽光）指定１'!W33="","",'補正（太陽光）指定１'!W33)) ->  | X33: =IF($D$3="作成不要","",IF('補正（太陽光）指定１'!X33="","",'補正（太陽光）指定１'!X33)) ->  | Y33: =IF($D$3="作成不要","",IF('補正（太陽光）指定１'!Y33="","",'補正（太陽光）指定１'!Y33)) ->  | Z33: =IF($D$3="作成不要","",IF('補正（太陽光）指定１'!Z33="","",'補正（太陽光）指定１'!Z33)) ->  | AA33: =IF($D$3="作成不要","",IF('補正（太陽光）指定１'!AA33="","",'補正（太陽光）指定１'!AA33)) ->  | AB33: =IF($D$3="作成不要","",IF('補正（太陽光）指定１'!AB33="","",'補正（太陽光）指定１'!AB33)) ->  | AC33: =IF($D$3="作成不要","",IF('補正（太陽光）指定１'!AC33="","",'補正（太陽光）指定１'!AC33)) ->  | AD33: =IF($D$3="作成不要","",IF('補正（太陽光）指定１'!AD33="","",'補正（太陽光）指定１'!AD33)) ->  | AH33: =IF(AND(AH42="",AH48=""),"",SUM(AH39,AH45)) ->  | AI33: =IF(AND(AI42="",AI48=""),"",SUM(AI39,AI45)) ->  | BY33: ※該当エリアの自家消費率分を減じた値
F34: 余剰 | G34: =IF($D$3="作成不要","",IF('補正（太陽光）指定１'!G34="","",'補正（太陽光）指定１'!G34)) ->  | H34: =IF($D$3="作成不要","",IF('補正（太陽光）指定１'!H34="","",'補正（太陽光）指定１'!H34)) ->  | I34: =IF($D$3="作成不要","",IF('補正（太陽光）指定１'!I34="","",'補正（太陽光）指定１'!I34)) ->  | J34: =IF($D$3="作成不要","",IF('補正（太陽光）指定１'!J34="","",'補正（太陽光）指定１'!J34)) ->  | K34: =IF($D$3="作成不要","",IF('補正（太陽光）指定１'!K34="","",'補正（太陽光）指定１'!K34)) ->  | L34: =IF($D$3="作成不要","",IF('補正（太陽光）指定１'!L34="","",'補正（太陽光）指定１'!L34)) ->  | M34: =IF($D$3="作成不要","",IF('補正（太陽光）指定１'!M34="","",'補正（太陽光）指定１'!M34)) ->  | N34: =IF($D$3="作成不要","",IF('補正（太陽光）指定１'!N34="","",'補正（太陽光）指定１'!N34)) ->  | O34: =IF($D$3="作成不要","",IF('補正（太陽光）指定１'!O34="","",'補正（太陽光）指定１'!O34)) ->  | P34: =IF($D$3="作成不要","",IF('補正（太陽光）指定１'!P34="","",'補正（太陽光）指定１'!P34)) ->  | Q34: =IF($D$3="作成不要","",IF('補正（太陽光）指定１'!Q34="","",'補正（太陽光）指定１'!Q34)) ->  | R34: =IF($D$3="作成不要","",IF('補正（太陽光）指定１'!R34="","",'補正（太陽光）指定１'!R34)) ->  | S34: =IF($D$3="作成不要","",IF('補正（太陽光）指定１'!S34="","",'補正（太陽光）指定１'!S34)) ->  | T34: =IF($D$3="作成不要","",IF('補正（太陽光）指定１'!T34="","",'補正（太陽光）指定１'!T34)) ->  | U34: =IF($D$3="作成不要","",IF('補正（太陽光）指定１'!U34="","",'補正（太陽光）指定１'!U34)) ->  | V34: =IF($D$3="作成不要","",IF('補正（太陽光）指定１'!V34="","",'補正（太陽光）指定１'!V34)) ->  | W34: =IF($D$3="作成不要","",IF('補正（太陽光）指定１'!W34="","",'補正（太陽光）指定１'!W34)) ->  | X34: =IF($D$3="作成不要","",IF('補正（太陽光）指定１'!X34="","",'補正（太陽光）指定１'!X34)) ->  | Y34: =IF($D$3="作成不要","",IF('補正（太陽光）指定１'!Y34="","",'補正（太陽光）指定１'!Y34)) ->  | Z34: =IF($D$3="作成不要","",IF('補正（太陽光）指定１'!Z34="","",'補正（太陽光）指定１'!Z34)) ->  | AA34: =IF($D$3="作成不要","",IF('補正（太陽光）指定１'!AA34="","",'補正（太陽光）指定１'!AA34)) ->  | AB34: =IF($D$3="作成不要","",IF('補正（太陽光）指定１'!AB34="","",'補正（太陽光）指定１'!AB34)) ->  | AC34: =IF($D$3="作成不要","",IF('補正（太陽光）指定１'!AC34="","",'補正（太陽光）指定１'!AC34)) ->  | AD34: =IF($D$3="作成不要","",IF('補正（太陽光）指定１'!AD34="","",'補正（太陽光）指定１'!AD34)) ->  | AH34: =IF(AND(AH43="",AH49=""),"",SUM(AH40,AH46)) -> 
D35: 供給電力 （調整係数） | E35: 合計 | G35: =IF($D$3="作成不要","",IF('補正（太陽光）指定１'!G35="","",'補正（太陽光）指定１'!G35)) ->  | H35: =IF($D$3="作成不要","",IF('補正（太陽光）指定１'!H35="","",'補正（太陽光）指定１'!H35)) ->  | I35: =IF($D$3="作成不要","",IF('補正（太陽光）指定１'!I35="","",'補正（太陽光）指定１'!I35)) ->  | J35: =IF($D$3="作成不要","",IF('補正（太陽光）指定１'!J35="","",'補正（太陽光）指定１'!J35)) ->  | K35: =IF($D$3="作成不要","",IF('補正（太陽光）指定１'!K35="","",'補正（太陽光）指定１'!K35)) ->  | L35: =IF($D$3="作成不要","",IF('補正（太陽光）指定１'!L35="","",'補正（太陽光）指定１'!L35)) ->  | M35: =IF($D$3="作成不要","",IF('補正（太陽光）指定１'!M35="","",'補正（太陽光）指定１'!M35)) ->  | N35: =IF($D$3="作成不要","",IF('補正（太陽光）指定１'!N35="","",'補正（太陽光）指定１'!N35)) ->  | O35: =IF($D$3="作成不要","",IF('補正（太陽光）指定１'!O35="","",'補正（太陽光）指定１'!O35)) ->  | P35: =IF($D$3="作成不要","",IF('補正（太陽光）指定１'!P35="","",'補正（太陽光）指定１'!P35)) ->  | Q35: =IF($D$3="作成不要","",IF('補正（太陽光）指定１'!Q35="","",'補正（太陽光）指定１'!Q35)) ->  | R35: =IF($D$3="作成不要","",IF('補正（太陽光）指定１'!R35="","",'補正（太陽光）指定１'!R35)) ->  | S35: =IF($D$3="作成不要","",IF('補正（太陽光）指定１'!S35="","",'補正（太陽光）指定１'!S35)) ->  | T35: =IF($D$3="作成不要","",IF('補正（太陽光）指定１'!T35="","",'補正（太陽光）指定１'!T35)) ->  | U35: =IF($D$3="作成不要","",IF('補正（太陽光）指定１'!U35="","",'補正（太陽光）指定１'!U35)) ->  | V35: =IF($D$3="作成不要","",IF('補正（太陽光）指定１'!V35="","",'補正（太陽光）指定１'!V35)) ->  | W35: =IF($D$3="作成不要","",IF('補正（太陽光）指定１'!W35="","",'補正（太陽光）指定１'!W35)) ->  | X35: =IF($D$3="作成不要","",IF('補正（太陽光）指定１'!X35="","",'補正（太陽光）指定１'!X35)) ->  | Y35: =IF($D$3="作成不要","",IF('補正（太陽光）指定１'!Y35="","",'補正（太陽光）指定１'!Y35)) ->  | Z35: =IF($D$3="作成不要","",IF('補正（太陽光）指定１'!Z35="","",'補正（太陽光）指定１'!Z35)) ->  | AA35: =IF($D$3="作成不要","",IF('補正（太陽光）指定１'!AA35="","",'補正（太陽光）指定１'!AA35)) ->  | AB35: =IF($D$3="作成不要","",IF('補正（太陽光）指定１'!AB35="","",'補正（太陽光）指定１'!AB35)) ->  | AC35: =IF($D$3="作成不要","",IF('補正（太陽光）指定１'!AC35="","",'補正（太陽光）指定１'!AC35)) ->  | AD35: =IF($D$3="作成不要","",IF('補正（太陽光）指定１'!AD35="","",'補正（太陽光）指定１'!AD35)) ->  | AH35: =IF(COUNT(AH36:AH37)=0,"",SUM(AH36:AH37)) ->  | AI35: =IF(COUNT(AI36:AI37)=0,"",SUM(AI36:AI37)) -> 
F36: 全量 | G36: =IF($D$3="作成不要","",IF('補正（太陽光）指定１'!G36="","",'補正（太陽光）指定１'!G36)) ->  | H36: =IF($D$3="作成不要","",IF('補正（太陽光）指定１'!H36="","",'補正（太陽光）指定１'!H36)) ->  | I36: =IF($D$3="作成不要","",IF('補正（太陽光）指定１'!I36="","",'補正（太陽光）指定１'!I36)) ->  | J36: =IF($D$3="作成不要","",IF('補正（太陽光）指定１'!J36="","",'補正（太陽光）指定１'!J36)) ->  | K36: =IF($D$3="作成不要","",IF('補正（太陽光）指定１'!K36="","",'補正（太陽光）指定１'!K36)) ->  | L36: =IF($D$3="作成不要","",IF('補正（太陽光）指定１'!L36="","",'補正（太陽光）指定１'!L36)) ->  | M36: =IF($D$3="作成不要","",IF('補正（太陽光）指定１'!M36="","",'補正（太陽光）指定１'!M36)) ->  | N36: =IF($D$3="作成不要","",IF('補正（太陽光）指定１'!N36="","",'補正（太陽光）指定１'!N36)) ->  | O36: =IF($D$3="作成不要","",IF('補正（太陽光）指定１'!O36="","",'補正（太陽光）指定１'!O36)) ->  | P36: =IF($D$3="作成不要","",IF('補正（太陽光）指定１'!P36="","",'補正（太陽光）指定１'!P36)) ->  | Q36: =IF($D$3="作成不要","",IF('補正（太陽光）指定１'!Q36="","",'補正（太陽光）指定１'!Q36)) ->  | R36: =IF($D$3="作成不要","",IF('補正（太陽光）指定１'!R36="","",'補正（太陽光）指定１'!R36)) ->  | S36: =IF($D$3="作成不要","",IF('補正（太陽光）指定１'!S36="","",'補正（太陽光）指定１'!S36)) ->  | T36: =IF($D$3="作成不要","",IF('補正（太陽光）指定１'!T36="","",'補正（太陽光）指定１'!T36)) ->  | U36: =IF($D$3="作成不要","",IF('補正（太陽光）指定１'!U36="","",'補正（太陽光）指定１'!U36)) ->  | V36: =IF($D$3="作成不要","",IF('補正（太陽光）指定１'!V36="","",'補正（太陽光）指定１'!V36)) ->  | W36: =IF($D$3="作成不要","",IF('補正（太陽光）指定１'!W36="","",'補正（太陽光）指定１'!W36)) ->  | X36: =IF($D$3="作成不要","",IF('補正（太陽光）指定１'!X36="","",'補正（太陽光）指定１'!X36)) ->  | Y36: =IF($D$3="作成不要","",IF('補正（太陽光）指定１'!Y36="","",'補正（太陽光）指定１'!Y36)) ->  | Z36: =IF($D$3="作成不要","",IF('補正（太陽光）指定１'!Z36="","",'補正（太陽光）指定１'!Z36)) ->  | AA36: =IF($D$3="作成不要","",IF('補正（太陽光）指定１'!AA36="","",'補正（太陽光）指定１'!AA36)) ->  | AB36: =IF($D$3="作成不要","",IF('補正（太陽光）指定１'!AB36="","",'補正（太陽光）指定１'!AB36)) ->  | AC36: =IF($D$3="作成不要","",IF('補正（太陽光）指定１'!AC36="","",'補正（太陽光）指定１'!AC36)) ->  | AD36: =IF($D$3="作成不要","",IF('補正（太陽光）指定１'!AD36="","",'補正（太陽光）指定１'!AD36)) ->  | AH36: =IF(AND(AH42="",AH48=""),"",SUM(AH42,AH48)) ->  | AI36: =IF(AND(AI42="",AI48=""),"",SUM(AI42,AI48)) -> 
F37: 余剰 | G37: =IF($D$3="作成不要","",IF('補正（太陽光）指定１'!G37="","",'補正（太陽光）指定１'!G37)) ->  | H37: =IF($D$3="作成不要","",IF('補正（太陽光）指定１'!H37="","",'補正（太陽光）指定１'!H37)) ->  | I37: =IF($D$3="作成不要","",IF('補正（太陽光）指定１'!I37="","",'補正（太陽光）指定１'!I37)) ->  | J37: =IF($D$3="作成不要","",IF('補正（太陽光）指定１'!J37="","",'補正（太陽光）指定１'!J37)) ->  | K37: =IF($D$3="作成不要","",IF('補正（太陽光）指定１'!K37="","",'補正（太陽光）指定１'!K37)) ->  | L37: =IF($D$3="作成不要","",IF('補正（太陽光）指定１'!L37="","",'補正（太陽光）指定１'!L37)) ->  | M37: =IF($D$3="作成不要","",IF('補正（太陽光）指定１'!M37="","",'補正（太陽光）指定１'!M37)) ->  | N37: =IF($D$3="作成不要","",IF('補正（太陽光）指定１'!N37="","",'補正（太陽光）指定１'!N37)) ->  | O37: =IF($D$3="作成不要","",IF('補正（太陽光）指定１'!O37="","",'補正（太陽光）指定１'!O37)) ->  | P37: =IF($D$3="作成不要","",IF('補正（太陽光）指定１'!P37="","",'補正（太陽光）指定１'!P37)) ->  | Q37: =IF($D$3="作成不要","",IF('補正（太陽光）指定１'!Q37="","",'補正（太陽光）指定１'!Q37)) ->  | R37: =IF($D$3="作成不要","",IF('補正（太陽光）指定１'!R37="","",'補正（太陽光）指定１'!R37)) ->  | S37: =IF($D$3="作成不要","",IF('補正（太陽光）指定１'!S37="","",'補正（太陽光）指定１'!S37)) ->  | T37: =IF($D$3="作成不要","",IF('補正（太陽光）指定１'!T37="","",'補正（太陽光）指定１'!T37)) ->  | U37: =IF($D$3="作成不要","",IF('補正（太陽光）指定１'!U37="","",'補正（太陽光）指定１'!U37)) ->  | V37: =IF($D$3="作成不要","",IF('補正（太陽光）指定１'!V37="","",'補正（太陽光）指定１'!V37)) ->  | W37: =IF($D$3="作成不要","",IF('補正（太陽光）指定１'!W37="","",'補正（太陽光）指定１'!W37)) ->  | X37: =IF($D$3="作成不要","",IF('補正（太陽光）指定１'!X37="","",'補正（太陽光）指定１'!X37)) ->  | Y37: =IF($D$3="作成不要","",IF('補正（太陽光）指定１'!Y37="","",'補正（太陽光）指定１'!Y37)) ->  | Z37: =IF($D$3="作成不要","",IF('補正（太陽光）指定１'!Z37="","",'補正（太陽光）指定１'!Z37)) ->  | AA37: =IF($D$3="作成不要","",IF('補正（太陽光）指定１'!AA37="","",'補正（太陽光）指定１'!AA37)) ->  | AB37: =IF($D$3="作成不要","",IF('補正（太陽光）指定１'!AB37="","",'補正（太陽光）指定１'!AB37)) ->  | AC37: =IF($D$3="作成不要","",IF('補正（太陽光）指定１'!AC37="","",'補正（太陽光）指定１'!AC37)) ->  | AD37: =IF($D$3="作成不要","",IF('補正（太陽光）指定１'!AD37="","",'補正（太陽光）指定１'!AD37)) ->  | AH37: =IF(AND(AH43="",AH49=""),"",SUM(AH43,AH49)) -> 
B38: 内訳 | C38: 非電気→小売 | D38: 設備量 | E38: 合計 | G38: =IF($D$3="作成不要","",IF('補正（太陽光）指定１'!G38="","",'補正（太陽光）指定１'!G38)) ->  | H38: =IF($D$3="作成不要","",IF('補正（太陽光）指定１'!H38="","",'補正（太陽光）指定１'!H38)) ->  | I38: =IF($D$3="作成不要","",IF('補正（太陽光）指定１'!I38="","",'補正（太陽光）指定１'!I38)) ->  | J38: =IF($D$3="作成不要","",IF('補正（太陽光）指定１'!J38="","",'補正（太陽光）指定１'!J38)) ->  | K38: =IF($D$3="作成不要","",IF('補正（太陽光）指定１'!K38="","",'補正（太陽光）指定１'!K38)) ->  | L38: =IF($D$3="作成不要","",IF('補正（太陽光）指定１'!L38="","",'補正（太陽光）指定１'!L38)) ->  | M38: =IF($D$3="作成不要","",IF('補正（太陽光）指定１'!M38="","",'補正（太陽光）指定１'!M38)) ->  | N38: =IF($D$3="作成不要","",IF('補正（太陽光）指定１'!N38="","",'補正（太陽光）指定１'!N38)) ->  | O38: =IF($D$3="作成不要","",IF('補正（太陽光）指定１'!O38="","",'補正（太陽光）指定１'!O38)) ->  | P38: =IF($D$3="作成不要","",IF('補正（太陽光）指定１'!P38="","",'補正（太陽光）指定１'!P38)) ->  | Q38: =IF($D$3="作成不要","",IF('補正（太陽光）指定１'!Q38="","",'補正（太陽光）指定１'!Q38)) ->  | R38: =IF($D$3="作成不要","",IF('補正（太陽光）指定１'!R38="","",'補正（太陽光）指定１'!R38)) ->  | S38: =IF($D$3="作成不要","",IF('補正（太陽光）指定１'!S38="","",'補正（太陽光）指定１'!S38)) ->  | T38: =IF($D$3="作成不要","",IF('補正（太陽光）指定１'!T38="","",'補正（太陽光）指定１'!T38)) ->  | U38: =IF($D$3="作成不要","",IF('補正（太陽光）指定１'!U38="","",'補正（太陽光）指定１'!U38)) ->  | V38: =IF($D$3="作成不要","",IF('補正（太陽光）指定１'!V38="","",'補正（太陽光）指定１'!V38)) ->  | W38: =IF($D$3="作成不要","",IF('補正（太陽光）指定１'!W38="","",'補正（太陽光）指定１'!W38)) ->  | X38: =IF($D$3="作成不要","",IF('補正（太陽光）指定１'!X38="","",'補正（太陽光）指定１'!X38)) ->  | Y38: =IF($D$3="作成不要","",IF('補正（太陽光）指定１'!Y38="","",'補正（太陽光）指定１'!Y38)) ->  | Z38: =IF($D$3="作成不要","",IF('補正（太陽光）指定１'!Z38="","",'補正（太陽光）指定１'!Z38)) ->  | AA38: =IF($D$3="作成不要","",IF('補正（太陽光）指定１'!AA38="","",'補正（太陽光）指定１'!AA38)) ->  | AB38: =IF($D$3="作成不要","",IF('補正（太陽光）指定１'!AB38="","",'補正（太陽光）指定１'!AB38)) ->  | AC38: =IF($D$3="作成不要","",IF('補正（太陽光）指定１'!AC38="","",'補正（太陽光）指定１'!AC38)) ->  | AD38: =IF($D$3="作成不要","",IF('補正（太陽光）指定１'!AD38="","",'補正（太陽光）指定１'!AD38)) ->  | AH38: =IF(COUNT(AH39:AH40)=0,"",SUM(AH39:AH40)) ->  | AI38: =IF(COUNT(AI39:AI40)=0,"",SUM(AI39:AI40)) -> 
F39: 全量 | G39: =IF($D$3="作成不要","",IF('補正（太陽光）指定１'!G39="","",'補正（太陽光）指定１'!G39)) ->  | H39: =IF($D$3="作成不要","",IF('補正（太陽光）指定１'!H39="","",'補正（太陽光）指定１'!H39)) ->  | I39: =IF($D$3="作成不要","",IF('補正（太陽光）指定１'!I39="","",'補正（太陽光）指定１'!I39)) ->  | J39: =IF($D$3="作成不要","",IF('補正（太陽光）指定１'!J39="","",'補正（太陽光）指定１'!J39)) ->  | K39: =IF($D$3="作成不要","",IF('補正（太陽光）指定１'!K39="","",'補正（太陽光）指定１'!K39)) ->  | L39: =IF($D$3="作成不要","",IF('補正（太陽光）指定１'!L39="","",'補正（太陽光）指定１'!L39)) ->  | M39: =IF($D$3="作成不要","",IF('補正（太陽光）指定１'!M39="","",'補正（太陽光）指定１'!M39)) ->  | N39: =IF($D$3="作成不要","",IF('補正（太陽光）指定１'!N39="","",'補正（太陽光）指定１'!N39)) ->  | O39: =IF($D$3="作成不要","",IF('補正（太陽光）指定１'!O39="","",'補正（太陽光）指定１'!O39)) ->  | P39: =IF($D$3="作成不要","",IF('補正（太陽光）指定１'!P39="","",'補正（太陽光）指定１'!P39)) ->  | Q39: =IF($D$3="作成不要","",IF('補正（太陽光）指定１'!Q39="","",'補正（太陽光）指定１'!Q39)) ->  | R39: =IF($D$3="作成不要","",IF('補正（太陽光）指定１'!R39="","",'補正（太陽光）指定１'!R39)) ->  | S39: =IF($D$3="作成不要","",IF('補正（太陽光）指定１'!S39="","",'補正（太陽光）指定１'!S39)) ->  | T39: =IF($D$3="作成不要","",IF('補正（太陽光）指定１'!T39="","",'補正（太陽光）指定１'!T39)) ->  | U39: =IF($D$3="作成不要","",IF('補正（太陽光）指定１'!U39="","",'補正（太陽光）指定１'!U39)) ->  | V39: =IF($D$3="作成不要","",IF('補正（太陽光）指定１'!V39="","",'補正（太陽光）指定１'!V39)) ->  | W39: =IF($D$3="作成不要","",IF('補正（太陽光）指定１'!W39="","",'補正（太陽光）指定１'!W39)) ->  | X39: =IF($D$3="作成不要","",IF('補正（太陽光）指定１'!X39="","",'補正（太陽光）指定１'!X39)) ->  | Y39: =IF($D$3="作成不要","",IF('補正（太陽光）指定１'!Y39="","",'補正（太陽光）指定１'!Y39)) ->  | Z39: =IF($D$3="作成不要","",IF('補正（太陽光）指定１'!Z39="","",'補正（太陽光）指定１'!Z39)) ->  | AA39: =IF($D$3="作成不要","",IF('補正（太陽光）指定１'!AA39="","",'補正（太陽光）指定１'!AA39)) ->  | AB39: =IF($D$3="作成不要","",IF('補正（太陽光）指定１'!AB39="","",'補正（太陽光）指定１'!AB39)) ->  | AC39: =IF($D$3="作成不要","",IF('補正（太陽光）指定１'!AC39="","",'補正（太陽光）指定１'!AC39)) ->  | AD39: =IF($D$3="作成不要","",IF('補正（太陽光）指定１'!AD39="","",'補正（太陽光）指定１'!AD39)) ->  | AH39: =IF(AH42="","",IF(AH24=0,0,IF(AH24="","",ROUNDDOWN(AH42/(AH$24/100),2)))) -> 
F40: 余剰 | G40: =IF($D$3="作成不要","",IF('補正（太陽光）指定１'!G40="","",'補正（太陽光）指定１'!G40)) ->  | H40: =IF($D$3="作成不要","",IF('補正（太陽光）指定１'!H40="","",'補正（太陽光）指定１'!H40)) ->  | I40: =IF($D$3="作成不要","",IF('補正（太陽光）指定１'!I40="","",'補正（太陽光）指定１'!I40)) ->  | J40: =IF($D$3="作成不要","",IF('補正（太陽光）指定１'!J40="","",'補正（太陽光）指定１'!J40)) ->  | K40: =IF($D$3="作成不要","",IF('補正（太陽光）指定１'!K40="","",'補正（太陽光）指定１'!K40)) ->  | L40: =IF($D$3="作成不要","",IF('補正（太陽光）指定１'!L40="","",'補正（太陽光）指定１'!L40)) ->  | M40: =IF($D$3="作成不要","",IF('補正（太陽光）指定１'!M40="","",'補正（太陽光）指定１'!M40)) ->  | N40: =IF($D$3="作成不要","",IF('補正（太陽光）指定１'!N40="","",'補正（太陽光）指定１'!N40)) ->  | O40: =IF($D$3="作成不要","",IF('補正（太陽光）指定１'!O40="","",'補正（太陽光）指定１'!O40)) ->  | P40: =IF($D$3="作成不要","",IF('補正（太陽光）指定１'!P40="","",'補正（太陽光）指定１'!P40)) ->  | Q40: =IF($D$3="作成不要","",IF('補正（太陽光）指定１'!Q40="","",'補正（太陽光）指定１'!Q40)) ->  | R40: =IF($D$3="作成不要","",IF('補正（太陽光）指定１'!R40="","",'補正（太陽光）指定１'!R40)) ->  | S40: =IF($D$3="作成不要","",IF('補正（太陽光）指定１'!S40="","",'補正（太陽光）指定１'!S40)) ->  | T40: =IF($D$3="作成不要","",IF('補正（太陽光）指定１'!T40="","",'補正（太陽光）指定１'!T40)) ->  | U40: =IF($D$3="作成不要","",IF('補正（太陽光）指定１'!U40="","",'補正（太陽光）指定１'!U40)) ->  | V40: =IF($D$3="作成不要","",IF('補正（太陽光）指定１'!V40="","",'補正（太陽光）指定１'!V40)) ->  | W40: =IF($D$3="作成不要","",IF('補正（太陽光）指定１'!W40="","",'補正（太陽光）指定１'!W40)) ->  | X40: =IF($D$3="作成不要","",IF('補正（太陽光）指定１'!X40="","",'補正（太陽光）指定１'!X40)) ->  | Y40: =IF($D$3="作成不要","",IF('補正（太陽光）指定１'!Y40="","",'補正（太陽光）指定１'!Y40)) ->  | Z40: =IF($D$3="作成不要","",IF('補正（太陽光）指定１'!Z40="","",'補正（太陽光）指定１'!Z40)) ->  | AA40: =IF($D$3="作成不要","",IF('補正（太陽光）指定１'!AA40="","",'補正（太陽光）指定１'!AA40)) ->  | AB40: =IF($D$3="作成不要","",IF('補正（太陽光）指定１'!AB40="","",'補正（太陽光）指定１'!AB40)) ->  | AC40: =IF($D$3="作成不要","",IF('補正（太陽光）指定１'!AC40="","",'補正（太陽光）指定１'!AC40)) ->  | AD40: =IF($D$3="作成不要","",IF('補正（太陽光）指定１'!AD40="","",'補正（太陽光）指定１'!AD40)) ->  | AH40: =IF(AH43="","",IF(AH25=0,0,IF(AH25="","",ROUNDDOWN(AH43/(AH$25/100),2)))) -> 
D41: 供給電力 （調整係数） | E41: 合計 | G41: =IF($D$3="作成不要","",IF('補正（太陽光）指定１'!G41="","",'補正（太陽光）指定１'!G41)) ->  | H41: =IF($D$3="作成不要","",IF('補正（太陽光）指定１'!H41="","",'補正（太陽光）指定１'!H41)) ->  | I41: =IF($D$3="作成不要","",IF('補正（太陽光）指定１'!I41="","",'補正（太陽光）指定１'!I41)) ->  | J41: =IF($D$3="作成不要","",IF('補正（太陽光）指定１'!J41="","",'補正（太陽光）指定１'!J41)) ->  | K41: =IF($D$3="作成不要","",IF('補正（太陽光）指定１'!K41="","",'補正（太陽光）指定１'!K41)) ->  | L41: =IF($D$3="作成不要","",IF('補正（太陽光）指定１'!L41="","",'補正（太陽光）指定１'!L41)) ->  | M41: =IF($D$3="作成不要","",IF('補正（太陽光）指定１'!M41="","",'補正（太陽光）指定１'!M41)) ->  | N41: =IF($D$3="作成不要","",IF('補正（太陽光）指定１'!N41="","",'補正（太陽光）指定１'!N41)) ->  | O41: =IF($D$3="作成不要","",IF('補正（太陽光）指定１'!O41="","",'補正（太陽光）指定１'!O41)) ->  | P41: =IF($D$3="作成不要","",IF('補正（太陽光）指定１'!P41="","",'補正（太陽光）指定１'!P41)) ->  | Q41: =IF($D$3="作成不要","",IF('補正（太陽光）指定１'!Q41="","",'補正（太陽光）指定１'!Q41)) ->  | R41: =IF($D$3="作成不要","",IF('補正（太陽光）指定１'!R41="","",'補正（太陽光）指定１'!R41)) ->  | S41: =IF($D$3="作成不要","",IF('補正（太陽光）指定１'!S41="","",'補正（太陽光）指定１'!S41)) ->  | T41: =IF($D$3="作成不要","",IF('補正（太陽光）指定１'!T41="","",'補正（太陽光）指定１'!T41)) ->  | U41: =IF($D$3="作成不要","",IF('補正（太陽光）指定１'!U41="","",'補正（太陽光）指定１'!U41)) ->  | V41: =IF($D$3="作成不要","",IF('補正（太陽光）指定１'!V41="","",'補正（太陽光）指定１'!V41)) ->  | W41: =IF($D$3="作成不要","",IF('補正（太陽光）指定１'!W41="","",'補正（太陽光）指定１'!W41)) ->  | X41: =IF($D$3="作成不要","",IF('補正（太陽光）指定１'!X41="","",'補正（太陽光）指定１'!X41)) ->  | Y41: =IF($D$3="作成不要","",IF('補正（太陽光）指定１'!Y41="","",'補正（太陽光）指定１'!Y41)) ->  | Z41: =IF($D$3="作成不要","",IF('補正（太陽光）指定１'!Z41="","",'補正（太陽光）指定１'!Z41)) ->  | AA41: =IF($D$3="作成不要","",IF('補正（太陽光）指定１'!AA41="","",'補正（太陽光）指定１'!AA41)) ->  | AB41: =IF($D$3="作成不要","",IF('補正（太陽光）指定１'!AB41="","",'補正（太陽光）指定１'!AB41)) ->  | AC41: =IF($D$3="作成不要","",IF('補正（太陽光）指定１'!AC41="","",'補正（太陽光）指定１'!AC41)) ->  | AD41: =IF($D$3="作成不要","",IF('補正（太陽光）指定１'!AD41="","",'補正（太陽光）指定１'!AD41)) ->  | AH41: =IF(COUNT(AH42:AH43)=0,"",SUM(AH42:AH43)) ->  | AI41: =IF(COUNT(AI42:AI43)=0,"",SUM(AI42:AI43)) -> 
F42: 全量 | G42: =IF($D$3="作成不要","",IF('補正（太陽光）指定１'!G42="","",'補正（太陽光）指定１'!G42)) ->  | H42: =IF($D$3="作成不要","",IF('補正（太陽光）指定１'!H42="","",'補正（太陽光）指定１'!H42)) ->  | I42: =IF($D$3="作成不要","",IF('補正（太陽光）指定１'!I42="","",'補正（太陽光）指定１'!I42)) ->  | J42: =IF($D$3="作成不要","",IF('補正（太陽光）指定１'!J42="","",'補正（太陽光）指定１'!J42)) ->  | K42: =IF($D$3="作成不要","",IF('補正（太陽光）指定１'!K42="","",'補正（太陽光）指定１'!K42)) ->  | L42: =IF($D$3="作成不要","",IF('補正（太陽光）指定１'!L42="","",'補正（太陽光）指定１'!L42)) ->  | M42: =IF($D$3="作成不要","",IF('補正（太陽光）指定１'!M42="","",'補正（太陽光）指定１'!M42)) ->  | N42: =IF($D$3="作成不要","",IF('補正（太陽光）指定１'!N42="","",'補正（太陽光）指定１'!N42)) ->  | O42: =IF($D$3="作成不要","",IF('補正（太陽光）指定１'!O42="","",'補正（太陽光）指定１'!O42)) ->  | P42: =IF($D$3="作成不要","",IF('補正（太陽光）指定１'!P42="","",'補正（太陽光）指定１'!P42)) ->  | Q42: =IF($D$3="作成不要","",IF('補正（太陽光）指定１'!Q42="","",'補正（太陽光）指定１'!Q42)) ->  | R42: =IF($D$3="作成不要","",IF('補正（太陽光）指定１'!R42="","",'補正（太陽光）指定１'!R42)) ->  | S42: =IF($D$3="作成不要","",IF('補正（太陽光）指定１'!S42="","",'補正（太陽光）指定１'!S42)) ->  | T42: =IF($D$3="作成不要","",IF('補正（太陽光）指定１'!T42="","",'補正（太陽光）指定１'!T42)) ->  | U42: =IF($D$3="作成不要","",IF('補正（太陽光）指定１'!U42="","",'補正（太陽光）指定１'!U42)) ->  | V42: =IF($D$3="作成不要","",IF('補正（太陽光）指定１'!V42="","",'補正（太陽光）指定１'!V42)) ->  | W42: =IF($D$3="作成不要","",IF('補正（太陽光）指定１'!W42="","",'補正（太陽光）指定１'!W42)) ->  | X42: =IF($D$3="作成不要","",IF('補正（太陽光）指定１'!X42="","",'補正（太陽光）指定１'!X42)) ->  | Y42: =IF($D$3="作成不要","",IF('補正（太陽光）指定１'!Y42="","",'補正（太陽光）指定１'!Y42)) ->  | Z42: =IF($D$3="作成不要","",IF('補正（太陽光）指定１'!Z42="","",'補正（太陽光）指定１'!Z42)) ->  | AA42: =IF($D$3="作成不要","",IF('補正（太陽光）指定１'!AA42="","",'補正（太陽光）指定１'!AA42)) ->  | AB42: =IF($D$3="作成不要","",IF('補正（太陽光）指定１'!AB42="","",'補正（太陽光）指定１'!AB42)) ->  | AC42: =IF($D$3="作成不要","",IF('補正（太陽光）指定１'!AC42="","",'補正（太陽光）指定１'!AC42)) ->  | AD42: =IF($D$3="作成不要","",IF('補正（太陽光）指定１'!AD42="","",'補正（太陽光）指定１'!AD42)) -> 
F43: 余剰 | G43: =IF($D$3="作成不要","",IF('補正（太陽光）指定１'!G43="","",'補正（太陽光）指定１'!G43)) ->  | H43: =IF($D$3="作成不要","",IF('補正（太陽光）指定１'!H43="","",'補正（太陽光）指定１'!H43)) ->  | I43: =IF($D$3="作成不要","",IF('補正（太陽光）指定１'!I43="","",'補正（太陽光）指定１'!I43)) ->  | J43: =IF($D$3="作成不要","",IF('補正（太陽光）指定１'!J43="","",'補正（太陽光）指定１'!J43)) ->  | K43: =IF($D$3="作成不要","",IF('補正（太陽光）指定１'!K43="","",'補正（太陽光）指定１'!K43)) ->  | L43: =IF($D$3="作成不要","",IF('補正（太陽光）指定１'!L43="","",'補正（太陽光）指定１'!L43)) ->  | M43: =IF($D$3="作成不要","",IF('補正（太陽光）指定１'!M43="","",'補正（太陽光）指定１'!M43)) ->  | N43: =IF($D$3="作成不要","",IF('補正（太陽光）指定１'!N43="","",'補正（太陽光）指定１'!N43)) ->  | O43: =IF($D$3="作成不要","",IF('補正（太陽光）指定１'!O43="","",'補正（太陽光）指定１'!O43)) ->  | P43: =IF($D$3="作成不要","",IF('補正（太陽光）指定１'!P43="","",'補正（太陽光）指定１'!P43)) ->  | Q43: =IF($D$3="作成不要","",IF('補正（太陽光）指定１'!Q43="","",'補正（太陽光）指定１'!Q43)) ->  | R43: =IF($D$3="作成不要","",IF('補正（太陽光）指定１'!R43="","",'補正（太陽光）指定１'!R43)) ->  | S43: =IF($D$3="作成不要","",IF('補正（太陽光）指定１'!S43="","",'補正（太陽光）指定１'!S43)) ->  | T43: =IF($D$3="作成不要","",IF('補正（太陽光）指定１'!T43="","",'補正（太陽光）指定１'!T43)) ->  | U43: =IF($D$3="作成不要","",IF('補正（太陽光）指定１'!U43="","",'補正（太陽光）指定１'!U43)) ->  | V43: =IF($D$3="作成不要","",IF('補正（太陽光）指定１'!V43="","",'補正（太陽光）指定１'!V43)) ->  | W43: =IF($D$3="作成不要","",IF('補正（太陽光）指定１'!W43="","",'補正（太陽光）指定１'!W43)) ->  | X43: =IF($D$3="作成不要","",IF('補正（太陽光）指定１'!X43="","",'補正（太陽光）指定１'!X43)) ->  | Y43: =IF($D$3="作成不要","",IF('補正（太陽光）指定１'!Y43="","",'補正（太陽光）指定１'!Y43)) ->  | Z43: =IF($D$3="作成不要","",IF('補正（太陽光）指定１'!Z43="","",'補正（太陽光）指定１'!Z43)) ->  | AA43: =IF($D$3="作成不要","",IF('補正（太陽光）指定１'!AA43="","",'補正（太陽光）指定１'!AA43)) ->  | AB43: =IF($D$3="作成不要","",IF('補正（太陽光）指定１'!AB43="","",'補正（太陽光）指定１'!AB43)) ->  | AC43: =IF($D$3="作成不要","",IF('補正（太陽光）指定１'!AC43="","",'補正（太陽光）指定１'!AC43)) ->  | AD43: =IF($D$3="作成不要","",IF('補正（太陽光）指定１'!AD43="","",'補正（太陽光）指定１'!AD43)) -> 
C44: 発電→小売 | D44: 設備量 | E44: 合計 | G44: =IF($D$3="作成不要","",IF('補正（太陽光）指定１'!G44="","",'補正（太陽光）指定１'!G44)) ->  | H44: =IF($D$3="作成不要","",IF('補正（太陽光）指定１'!H44="","",'補正（太陽光）指定１'!H44)) ->  | I44: =IF($D$3="作成不要","",IF('補正（太陽光）指定１'!I44="","",'補正（太陽光）指定１'!I44)) ->  | J44: =IF($D$3="作成不要","",IF('補正（太陽光）指定１'!J44="","",'補正（太陽光）指定１'!J44)) ->  | K44: =IF($D$3="作成不要","",IF('補正（太陽光）指定１'!K44="","",'補正（太陽光）指定１'!K44)) ->  | L44: =IF($D$3="作成不要","",IF('補正（太陽光）指定１'!L44="","",'補正（太陽光）指定１'!L44)) ->  | M44: =IF($D$3="作成不要","",IF('補正（太陽光）指定１'!M44="","",'補正（太陽光）指定１'!M44)) ->  | N44: =IF($D$3="作成不要","",IF('補正（太陽光）指定１'!N44="","",'補正（太陽光）指定１'!N44)) ->  | O44: =IF($D$3="作成不要","",IF('補正（太陽光）指定１'!O44="","",'補正（太陽光）指定１'!O44)) ->  | P44: =IF($D$3="作成不要","",IF('補正（太陽光）指定１'!P44="","",'補正（太陽光）指定１'!P44)) ->  | Q44: =IF($D$3="作成不要","",IF('補正（太陽光）指定１'!Q44="","",'補正（太陽光）指定１'!Q44)) ->  | R44: =IF($D$3="作成不要","",IF('補正（太陽光）指定１'!R44="","",'補正（太陽光）指定１'!R44)) ->  | S44: =IF($D$3="作成不要","",IF('補正（太陽光）指定１'!S44="","",'補正（太陽光）指定１'!S44)) ->  | T44: =IF($D$3="作成不要","",IF('補正（太陽光）指定１'!T44="","",'補正（太陽光）指定１'!T44)) ->  | U44: =IF($D$3="作成不要","",IF('補正（太陽光）指定１'!U44="","",'補正（太陽光）指定１'!U44)) ->  | V44: =IF($D$3="作成不要","",IF('補正（太陽光）指定１'!V44="","",'補正（太陽光）指定１'!V44)) ->  | W44: =IF($D$3="作成不要","",IF('補正（太陽光）指定１'!W44="","",'補正（太陽光）指定１'!W44)) ->  | X44: =IF($D$3="作成不要","",IF('補正（太陽光）指定１'!X44="","",'補正（太陽光）指定１'!X44)) ->  | Y44: =IF($D$3="作成不要","",IF('補正（太陽光）指定１'!Y44="","",'補正（太陽光）指定１'!Y44)) ->  | Z44: =IF($D$3="作成不要","",IF('補正（太陽光）指定１'!Z44="","",'補正（太陽光）指定１'!Z44)) ->  | AA44: =IF($D$3="作成不要","",IF('補正（太陽光）指定１'!AA44="","",'補正（太陽光）指定１'!AA44)) ->  | AB44: =IF($D$3="作成不要","",IF('補正（太陽光）指定１'!AB44="","",'補正（太陽光）指定１'!AB44)) ->  | AC44: =IF($D$3="作成不要","",IF('補正（太陽光）指定１'!AC44="","",'補正（太陽光）指定１'!AC44)) ->  | AD44: =IF($D$3="作成不要","",IF('補正（太陽光）指定１'!AD44="","",'補正（太陽光）指定１'!AD44)) ->  | AH44: =IF(COUNT(AH45:AH46)=0,"",SUM(AH45:AH46)) ->  | AI44: =IF(COUNT(AI45:AI46)=0,"",SUM(AI45:AI46)) -> 
F45: 全量 | G45: =IF($D$3="作成不要","",IF('補正（太陽光）指定１'!G45="","",'補正（太陽光）指定１'!G45)) ->  | H45: =IF($D$3="作成不要","",IF('補正（太陽光）指定１'!H45="","",'補正（太陽光）指定１'!H45)) ->  | I45: =IF($D$3="作成不要","",IF('補正（太陽光）指定１'!I45="","",'補正（太陽光）指定１'!I45)) ->  | J45: =IF($D$3="作成不要","",IF('補正（太陽光）指定１'!J45="","",'補正（太陽光）指定１'!J45)) ->  | K45: =IF($D$3="作成不要","",IF('補正（太陽光）指定１'!K45="","",'補正（太陽光）指定１'!K45)) ->  | L45: =IF($D$3="作成不要","",IF('補正（太陽光）指定１'!L45="","",'補正（太陽光）指定１'!L45)) ->  | M45: =IF($D$3="作成不要","",IF('補正（太陽光）指定１'!M45="","",'補正（太陽光）指定１'!M45)) ->  | N45: =IF($D$3="作成不要","",IF('補正（太陽光）指定１'!N45="","",'補正（太陽光）指定１'!N45)) ->  | O45: =IF($D$3="作成不要","",IF('補正（太陽光）指定１'!O45="","",'補正（太陽光）指定１'!O45)) ->  | P45: =IF($D$3="作成不要","",IF('補正（太陽光）指定１'!P45="","",'補正（太陽光）指定１'!P45)) ->  | Q45: =IF($D$3="作成不要","",IF('補正（太陽光）指定１'!Q45="","",'補正（太陽光）指定１'!Q45)) ->  | R45: =IF($D$3="作成不要","",IF('補正（太陽光）指定１'!R45="","",'補正（太陽光）指定１'!R45)) ->  | S45: =IF($D$3="作成不要","",IF('補正（太陽光）指定１'!S45="","",'補正（太陽光）指定１'!S45)) ->  | T45: =IF($D$3="作成不要","",IF('補正（太陽光）指定１'!T45="","",'補正（太陽光）指定１'!T45)) ->  | U45: =IF($D$3="作成不要","",IF('補正（太陽光）指定１'!U45="","",'補正（太陽光）指定１'!U45)) ->  | V45: =IF($D$3="作成不要","",IF('補正（太陽光）指定１'!V45="","",'補正（太陽光）指定１'!V45)) ->  | W45: =IF($D$3="作成不要","",IF('補正（太陽光）指定１'!W45="","",'補正（太陽光）指定１'!W45)) ->  | X45: =IF($D$3="作成不要","",IF('補正（太陽光）指定１'!X45="","",'補正（太陽光）指定１'!X45)) ->  | Y45: =IF($D$3="作成不要","",IF('補正（太陽光）指定１'!Y45="","",'補正（太陽光）指定１'!Y45)) ->  | Z45: =IF($D$3="作成不要","",IF('補正（太陽光）指定１'!Z45="","",'補正（太陽光）指定１'!Z45)) ->  | AA45: =IF($D$3="作成不要","",IF('補正（太陽光）指定１'!AA45="","",'補正（太陽光）指定１'!AA45)) ->  | AB45: =IF($D$3="作成不要","",IF('補正（太陽光）指定１'!AB45="","",'補正（太陽光）指定１'!AB45)) ->  | AC45: =IF($D$3="作成不要","",IF('補正（太陽光）指定１'!AC45="","",'補正（太陽光）指定１'!AC45)) ->  | AD45: =IF($D$3="作成不要","",IF('補正（太陽光）指定１'!AD45="","",'補正（太陽光）指定１'!AD45)) ->  | AH45: =IF(AH48="","",IF(AH24=0,0,IF(AH24="","",ROUNDDOWN(AH48/(AH$24/100),2)))) -> 
F46: 余剰 | G46: =IF($D$3="作成不要","",IF('補正（太陽光）指定１'!G46="","",'補正（太陽光）指定１'!G46)) ->  | H46: =IF($D$3="作成不要","",IF('補正（太陽光）指定１'!H46="","",'補正（太陽光）指定１'!H46)) ->  | I46: =IF($D$3="作成不要","",IF('補正（太陽光）指定１'!I46="","",'補正（太陽光）指定１'!I46)) ->  | J46: =IF($D$3="作成不要","",IF('補正（太陽光）指定１'!J46="","",'補正（太陽光）指定１'!J46)) ->  | K46: =IF($D$3="作成不要","",IF('補正（太陽光）指定１'!K46="","",'補正（太陽光）指定１'!K46)) ->  | L46: =IF($D$3="作成不要","",IF('補正（太陽光）指定１'!L46="","",'補正（太陽光）指定１'!L46)) ->  | M46: =IF($D$3="作成不要","",IF('補正（太陽光）指定１'!M46="","",'補正（太陽光）指定１'!M46)) ->  | N46: =IF($D$3="作成不要","",IF('補正（太陽光）指定１'!N46="","",'補正（太陽光）指定１'!N46)) ->  | O46: =IF($D$3="作成不要","",IF('補正（太陽光）指定１'!O46="","",'補正（太陽光）指定１'!O46)) ->  | P46: =IF($D$3="作成不要","",IF('補正（太陽光）指定１'!P46="","",'補正（太陽光）指定１'!P46)) ->  | Q46: =IF($D$3="作成不要","",IF('補正（太陽光）指定１'!Q46="","",'補正（太陽光）指定１'!Q46)) ->  | R46: =IF($D$3="作成不要","",IF('補正（太陽光）指定１'!R46="","",'補正（太陽光）指定１'!R46)) ->  | S46: =IF($D$3="作成不要","",IF('補正（太陽光）指定１'!S46="","",'補正（太陽光）指定１'!S46)) ->  | T46: =IF($D$3="作成不要","",IF('補正（太陽光）指定１'!T46="","",'補正（太陽光）指定１'!T46)) ->  | U46: =IF($D$3="作成不要","",IF('補正（太陽光）指定１'!U46="","",'補正（太陽光）指定１'!U46)) ->  | V46: =IF($D$3="作成不要","",IF('補正（太陽光）指定１'!V46="","",'補正（太陽光）指定１'!V46)) ->  | W46: =IF($D$3="作成不要","",IF('補正（太陽光）指定１'!W46="","",'補正（太陽光）指定１'!W46)) ->  | X46: =IF($D$3="作成不要","",IF('補正（太陽光）指定１'!X46="","",'補正（太陽光）指定１'!X46)) ->  | Y46: =IF($D$3="作成不要","",IF('補正（太陽光）指定１'!Y46="","",'補正（太陽光）指定１'!Y46)) ->  | Z46: =IF($D$3="作成不要","",IF('補正（太陽光）指定１'!Z46="","",'補正（太陽光）指定１'!Z46)) ->  | AA46: =IF($D$3="作成不要","",IF('補正（太陽光）指定１'!AA46="","",'補正（太陽光）指定１'!AA46)) ->  | AB46: =IF($D$3="作成不要","",IF('補正（太陽光）指定１'!AB46="","",'補正（太陽光）指定１'!AB46)) ->  | AC46: =IF($D$3="作成不要","",IF('補正（太陽光）指定１'!AC46="","",'補正（太陽光）指定１'!AC46)) ->  | AD46: =IF($D$3="作成不要","",IF('補正（太陽光）指定１'!AD46="","",'補正（太陽光）指定１'!AD46)) ->  | AH46: =IF(AH49="","",IF(AH25=0,0,IF(AH25="","",ROUNDDOWN(AH49/(AH$25/100),2)))) -> 
D47: 供給電力 （調整係数） | E47: 合計 | G47: =IF($D$3="作成不要","",IF('補正（太陽光）指定１'!G47="","",'補正（太陽光）指定１'!G47)) ->  | H47: =IF($D$3="作成不要","",IF('補正（太陽光）指定１'!H47="","",'補正（太陽光）指定１'!H47)) ->  | I47: =IF($D$3="作成不要","",IF('補正（太陽光）指定１'!I47="","",'補正（太陽光）指定１'!I47)) ->  | J47: =IF($D$3="作成不要","",IF('補正（太陽光）指定１'!J47="","",'補正（太陽光）指定１'!J47)) ->  | K47: =IF($D$3="作成不要","",IF('補正（太陽光）指定１'!K47="","",'補正（太陽光）指定１'!K47)) ->  | L47: =IF($D$3="作成不要","",IF('補正（太陽光）指定１'!L47="","",'補正（太陽光）指定１'!L47)) ->  | M47: =IF($D$3="作成不要","",IF('補正（太陽光）指定１'!M47="","",'補正（太陽光）指定１'!M47)) ->  | N47: =IF($D$3="作成不要","",IF('補正（太陽光）指定１'!N47="","",'補正（太陽光）指定１'!N47)) ->  | O47: =IF($D$3="作成不要","",IF('補正（太陽光）指定１'!O47="","",'補正（太陽光）指定１'!O47)) ->  | P47: =IF($D$3="作成不要","",IF('補正（太陽光）指定１'!P47="","",'補正（太陽光）指定１'!P47)) ->  | Q47: =IF($D$3="作成不要","",IF('補正（太陽光）指定１'!Q47="","",'補正（太陽光）指定１'!Q47)) ->  | R47: =IF($D$3="作成不要","",IF('補正（太陽光）指定１'!R47="","",'補正（太陽光）指定１'!R47)) ->  | S47: =IF($D$3="作成不要","",IF('補正（太陽光）指定１'!S47="","",'補正（太陽光）指定１'!S47)) ->  | T47: =IF($D$3="作成不要","",IF('補正（太陽光）指定１'!T47="","",'補正（太陽光）指定１'!T47)) ->  | U47: =IF($D$3="作成不要","",IF('補正（太陽光）指定１'!U47="","",'補正（太陽光）指定１'!U47)) ->  | V47: =IF($D$3="作成不要","",IF('補正（太陽光）指定１'!V47="","",'補正（太陽光）指定１'!V47)) ->  | W47: =IF($D$3="作成不要","",IF('補正（太陽光）指定１'!W47="","",'補正（太陽光）指定１'!W47)) ->  | X47: =IF($D$3="作成不要","",IF('補正（太陽光）指定１'!X47="","",'補正（太陽光）指定１'!X47)) ->  | Y47: =IF($D$3="作成不要","",IF('補正（太陽光）指定１'!Y47="","",'補正（太陽光）指定１'!Y47)) ->  | Z47: =IF($D$3="作成不要","",IF('補正（太陽光）指定１'!Z47="","",'補正（太陽光）指定１'!Z47)) ->  | AA47: =IF($D$3="作成不要","",IF('補正（太陽光）指定１'!AA47="","",'補正（太陽光）指定１'!AA47)) ->  | AB47: =IF($D$3="作成不要","",IF('補正（太陽光）指定１'!AB47="","",'補正（太陽光）指定１'!AB47)) ->  | AC47: =IF($D$3="作成不要","",IF('補正（太陽光）指定１'!AC47="","",'補正（太陽光）指定１'!AC47)) ->  | AD47: =IF($D$3="作成不要","",IF('補正（太陽光）指定１'!AD47="","",'補正（太陽光）指定１'!AD47)) ->  | AH47: =IF(COUNT(AH48:AH49)=0,"",SUM(AH48:AH49)) ->  | AI47: =IF(COUNT(AI48:AI49)=0,"",SUM(AI48:AI49)) -> 
F48: 全量 | G48: =IF($D$3="作成不要","",IF('補正（太陽光）指定１'!G48="","",'補正（太陽光）指定１'!G48)) ->  | H48: =IF($D$3="作成不要","",IF('補正（太陽光）指定１'!H48="","",'補正（太陽光）指定１'!H48)) ->  | I48: =IF($D$3="作成不要","",IF('補正（太陽光）指定１'!I48="","",'補正（太陽光）指定１'!I48)) ->  | J48: =IF($D$3="作成不要","",IF('補正（太陽光）指定１'!J48="","",'補正（太陽光）指定１'!J48)) ->  | K48: =IF($D$3="作成不要","",IF('補正（太陽光）指定１'!K48="","",'補正（太陽光）指定１'!K48)) ->  | L48: =IF($D$3="作成不要","",IF('補正（太陽光）指定１'!L48="","",'補正（太陽光）指定１'!L48)) ->  | M48: =IF($D$3="作成不要","",IF('補正（太陽光）指定１'!M48="","",'補正（太陽光）指定１'!M48)) ->  | N48: =IF($D$3="作成不要","",IF('補正（太陽光）指定１'!N48="","",'補正（太陽光）指定１'!N48)) ->  | O48: =IF($D$3="作成不要","",IF('補正（太陽光）指定１'!O48="","",'補正（太陽光）指定１'!O48)) ->  | P48: =IF($D$3="作成不要","",IF('補正（太陽光）指定１'!P48="","",'補正（太陽光）指定１'!P48)) ->  | Q48: =IF($D$3="作成不要","",IF('補正（太陽光）指定１'!Q48="","",'補正（太陽光）指定１'!Q48)) ->  | R48: =IF($D$3="作成不要","",IF('補正（太陽光）指定１'!R48="","",'補正（太陽光）指定１'!R48)) ->  | S48: =IF($D$3="作成不要","",IF('補正（太陽光）指定１'!S48="","",'補正（太陽光）指定１'!S48)) ->  | T48: =IF($D$3="作成不要","",IF('補正（太陽光）指定１'!T48="","",'補正（太陽光）指定１'!T48)) ->  | U48: =IF($D$3="作成不要","",IF('補正（太陽光）指定１'!U48="","",'補正（太陽光）指定１'!U48)) ->  | V48: =IF($D$3="作成不要","",IF('補正（太陽光）指定１'!V48="","",'補正（太陽光）指定１'!V48)) ->  | W48: =IF($D$3="作成不要","",IF('補正（太陽光）指定１'!W48="","",'補正（太陽光）指定１'!W48)) ->  | X48: =IF($D$3="作成不要","",IF('補正（太陽光）指定１'!X48="","",'補正（太陽光）指定１'!X48)) ->  | Y48: =IF($D$3="作成不要","",IF('補正（太陽光）指定１'!Y48="","",'補正（太陽光）指定１'!Y48)) ->  | Z48: =IF($D$3="作成不要","",IF('補正（太陽光）指定１'!Z48="","",'補正（太陽光）指定１'!Z48)) ->  | AA48: =IF($D$3="作成不要","",IF('補正（太陽光）指定１'!AA48="","",'補正（太陽光）指定１'!AA48)) ->  | AB48: =IF($D$3="作成不要","",IF('補正（太陽光）指定１'!AB48="","",'補正（太陽光）指定１'!AB48)) ->  | AC48: =IF($D$3="作成不要","",IF('補正（太陽光）指定１'!AC48="","",'補正（太陽光）指定１'!AC48)) ->  | AD48: =IF($D$3="作成不要","",IF('補正（太陽光）指定１'!AD48="","",'補正（太陽光）指定１'!AD48)) -> 
F49: 余剰 | G49: =IF($D$3="作成不要","",IF('補正（太陽光）指定１'!G49="","",'補正（太陽光）指定１'!G49)) ->  | H49: =IF($D$3="作成不要","",IF('補正（太陽光）指定１'!H49="","",'補正（太陽光）指定１'!H49)) ->  | I49: =IF($D$3="作成不要","",IF('補正（太陽光）指定１'!I49="","",'補正（太陽光）指定１'!I49)) ->  | J49: =IF($D$3="作成不要","",IF('補正（太陽光）指定１'!J49="","",'補正（太陽光）指定１'!J49)) ->  | K49: =IF($D$3="作成不要","",IF('補正（太陽光）指定１'!K49="","",'補正（太陽光）指定１'!K49)) ->  | L49: =IF($D$3="作成不要","",IF('補正（太陽光）指定１'!L49="","",'補正（太陽光）指定１'!L49)) ->  | M49: =IF($D$3="作成不要","",IF('補正（太陽光）指定１'!M49="","",'補正（太陽光）指定１'!M49)) ->  | N49: =IF($D$3="作成不要","",IF('補正（太陽光）指定１'!N49="","",'補正（太陽光）指定１'!N49)) ->  | O49: =IF($D$3="作成不要","",IF('補正（太陽光）指定１'!O49="","",'補正（太陽光）指定１'!O49)) ->  | P49: =IF($D$3="作成不要","",IF('補正（太陽光）指定１'!P49="","",'補正（太陽光）指定１'!P49)) ->  | Q49: =IF($D$3="作成不要","",IF('補正（太陽光）指定１'!Q49="","",'補正（太陽光）指定１'!Q49)) ->  | R49: =IF($D$3="作成不要","",IF('補正（太陽光）指定１'!R49="","",'補正（太陽光）指定１'!R49)) ->  | S49: =IF($D$3="作成不要","",IF('補正（太陽光）指定１'!S49="","",'補正（太陽光）指定１'!S49)) ->  | T49: =IF($D$3="作成不要","",IF('補正（太陽光）指定１'!T49="","",'補正（太陽光）指定１'!T49)) ->  | U49: =IF($D$3="作成不要","",IF('補正（太陽光）指定１'!U49="","",'補正（太陽光）指定１'!U49)) ->  | V49: =IF($D$3="作成不要","",IF('補正（太陽光）指定１'!V49="","",'補正（太陽光）指定１'!V49)) ->  | W49: =IF($D$3="作成不要","",IF('補正（太陽光）指定１'!W49="","",'補正（太陽光）指定１'!W49)) ->  | X49: =IF($D$3="作成不要","",IF('補正（太陽光）指定１'!X49="","",'補正（太陽光）指定１'!X49)) ->  | Y49: =IF($D$3="作成不要","",IF('補正（太陽光）指定１'!Y49="","",'補正（太陽光）指定１'!Y49)) ->  | Z49: =IF($D$3="作成不要","",IF('補正（太陽光）指定１'!Z49="","",'補正（太陽光）指定１'!Z49)) ->  | AA49: =IF($D$3="作成不要","",IF('補正（太陽光）指定１'!AA49="","",'補正（太陽光）指定１'!AA49)) ->  | AB49: =IF($D$3="作成不要","",IF('補正（太陽光）指定１'!AB49="","",'補正（太陽光）指定１'!AB49)) ->  | AC49: =IF($D$3="作成不要","",IF('補正（太陽光）指定１'!AC49="","",'補正（太陽光）指定１'!AC49)) ->  | AD49: =IF($D$3="作成不要","",IF('補正（太陽光）指定１'!AD49="","",'補正（太陽光）指定１'!AD49)) -> 
B50: 各電気事業者の エリア内保有分 | D50: 設備量 | E50: 合計 | G50: =IF($D$3="作成不要","",IF('補正（太陽光）指定１'!G50="","",'補正（太陽光）指定１'!G50)) ->  | H50: =IF($D$3="作成不要","",IF('補正（太陽光）指定１'!H50="","",'補正（太陽光）指定１'!H50)) ->  | I50: =IF($D$3="作成不要","",IF('補正（太陽光）指定１'!I50="","",'補正（太陽光）指定１'!I50)) ->  | J50: =IF($D$3="作成不要","",IF('補正（太陽光）指定１'!J50="","",'補正（太陽光）指定１'!J50)) ->  | K50: =IF($D$3="作成不要","",IF('補正（太陽光）指定１'!K50="","",'補正（太陽光）指定１'!K50)) ->  | L50: =IF($D$3="作成不要","",IF('補正（太陽光）指定１'!L50="","",'補正（太陽光）指定１'!L50)) ->  | M50: =IF($D$3="作成不要","",IF('補正（太陽光）指定１'!M50="","",'補正（太陽光）指定１'!M50)) ->  | N50: =IF($D$3="作成不要","",IF('補正（太陽光）指定１'!N50="","",'補正（太陽光）指定１'!N50)) ->  | O50: =IF($D$3="作成不要","",IF('補正（太陽光）指定１'!O50="","",'補正（太陽光）指定１'!O50)) ->  | P50: =IF($D$3="作成不要","",IF('補正（太陽光）指定１'!P50="","",'補正（太陽光）指定１'!P50)) ->  | Q50: =IF($D$3="作成不要","",IF('補正（太陽光）指定１'!Q50="","",'補正（太陽光）指定１'!Q50)) ->  | R50: =IF($D$3="作成不要","",IF('補正（太陽光）指定１'!R50="","",'補正（太陽光）指定１'!R50)) ->  | S50: =IF($D$3="作成不要","",IF('補正（太陽光）指定１'!S50="","",'補正（太陽光）指定１'!S50)) ->  | T50: =IF($D$3="作成不要","",IF('補正（太陽光）指定１'!T50="","",'補正（太陽光）指定１'!T50)) ->  | U50: =IF($D$3="作成不要","",IF('補正（太陽光）指定１'!U50="","",'補正（太陽光）指定１'!U50)) ->  | V50: =IF($D$3="作成不要","",IF('補正（太陽光）指定１'!V50="","",'補正（太陽光）指定１'!V50)) ->  | W50: =IF($D$3="作成不要","",IF('補正（太陽光）指定１'!W50="","",'補正（太陽光）指定１'!W50)) ->  | X50: =IF($D$3="作成不要","",IF('補正（太陽光）指定１'!X50="","",'補正（太陽光）指定１'!X50)) ->  | Y50: =IF($D$3="作成不要","",IF('補正（太陽光）指定１'!Y50="","",'補正（太陽光）指定１'!Y50)) ->  | Z50: =IF($D$3="作成不要","",IF('補正（太陽光）指定１'!Z50="","",'補正（太陽光）指定１'!Z50)) ->  | AA50: =IF($D$3="作成不要","",IF('補正（太陽光）指定１'!AA50="","",'補正（太陽光）指定１'!AA50)) ->  | AB50: =IF($D$3="作成不要","",IF('補正（太陽光）指定１'!AB50="","",'補正（太陽光）指定１'!AB50)) ->  | AC50: =IF($D$3="作成不要","",IF('補正（太陽光）指定１'!AC50="","",'補正（太陽光）指定１'!AC50)) ->  | AD50: =IF($D$3="作成不要","",IF('補正（太陽光）指定１'!AD50="","",'補正（太陽光）指定１'!AD50)) ->  | AF50: =IF($D$3="","",IF($D$3="作成不要","",P50)) ->  | AG50: =IF($D$3="","",IF($D$3="作成不要","",AB50)) ->  | AH50: =IF(COUNT(AH51:AH52)=0,"",SUM(AH51:AH52)) ->  | AI50: =IF(COUNT(AI51:AI52)=0,"",SUM(AI51:AI52)) -> 
F51: 全量 | G51: =IF($D$3="作成不要","",IF('補正（太陽光）指定１'!G51="","",'補正（太陽光）指定１'!G51)) ->  | H51: =IF($D$3="作成不要","",IF('補正（太陽光）指定１'!H51="","",'補正（太陽光）指定１'!H51)) ->  | I51: =IF($D$3="作成不要","",IF('補正（太陽光）指定１'!I51="","",'補正（太陽光）指定１'!I51)) ->  | J51: =IF($D$3="作成不要","",IF('補正（太陽光）指定１'!J51="","",'補正（太陽光）指定１'!J51)) ->  | K51: =IF($D$3="作成不要","",IF('補正（太陽光）指定１'!K51="","",'補正（太陽光）指定１'!K51)) ->  | L51: =IF($D$3="作成不要","",IF('補正（太陽光）指定１'!L51="","",'補正（太陽光）指定１'!L51)) ->  | M51: =IF($D$3="作成不要","",IF('補正（太陽光）指定１'!M51="","",'補正（太陽光）指定１'!M51)) ->  | N51: =IF($D$3="作成不要","",IF('補正（太陽光）指定１'!N51="","",'補正（太陽光）指定１'!N51)) ->  | O51: =IF($D$3="作成不要","",IF('補正（太陽光）指定１'!O51="","",'補正（太陽光）指定１'!O51)) ->  | P51: =IF($D$3="作成不要","",IF('補正（太陽光）指定１'!P51="","",'補正（太陽光）指定１'!P51)) ->  | Q51: =IF($D$3="作成不要","",IF('補正（太陽光）指定１'!Q51="","",'補正（太陽光）指定１'!Q51)) ->  | R51: =IF($D$3="作成不要","",IF('補正（太陽光）指定１'!R51="","",'補正（太陽光）指定１'!R51)) ->  | S51: =IF($D$3="作成不要","",IF('補正（太陽光）指定１'!S51="","",'補正（太陽光）指定１'!S51)) ->  | T51: =IF($D$3="作成不要","",IF('補正（太陽光）指定１'!T51="","",'補正（太陽光）指定１'!T51)) ->  | U51: =IF($D$3="作成不要","",IF('補正（太陽光）指定１'!U51="","",'補正（太陽光）指定１'!U51)) ->  | V51: =IF($D$3="作成不要","",IF('補正（太陽光）指定１'!V51="","",'補正（太陽光）指定１'!V51)) ->  | W51: =IF($D$3="作成不要","",IF('補正（太陽光）指定１'!W51="","",'補正（太陽光）指定１'!W51)) ->  | X51: =IF($D$3="作成不要","",IF('補正（太陽光）指定１'!X51="","",'補正（太陽光）指定１'!X51)) ->  | Y51: =IF($D$3="作成不要","",IF('補正（太陽光）指定１'!Y51="","",'補正（太陽光）指定１'!Y51)) ->  | Z51: =IF($D$3="作成不要","",IF('補正（太陽光）指定１'!Z51="","",'補正（太陽光）指定１'!Z51)) ->  | AA51: =IF($D$3="作成不要","",IF('補正（太陽光）指定１'!AA51="","",'補正（太陽光）指定１'!AA51)) ->  | AB51: =IF($D$3="作成不要","",IF('補正（太陽光）指定１'!AB51="","",'補正（太陽光）指定１'!AB51)) ->  | AC51: =IF($D$3="作成不要","",IF('補正（太陽光）指定１'!AC51="","",'補正（太陽光）指定１'!AC51)) ->  | AD51: =IF($D$3="作成不要","",IF('補正（太陽光）指定１'!AD51="","",'補正（太陽光）指定１'!AD51)) ->  | AH51: =IF(AH54="","",IF(AH24=0,0,IF(AH24="","",ROUNDDOWN(AH54/(AH$24/100),2)))) -> 
F52: 余剰 | G52: =IF($D$3="作成不要","",IF('補正（太陽光）指定１'!G52="","",'補正（太陽光）指定１'!G52)) ->  | H52: =IF($D$3="作成不要","",IF('補正（太陽光）指定１'!H52="","",'補正（太陽光）指定１'!H52)) ->  | I52: =IF($D$3="作成不要","",IF('補正（太陽光）指定１'!I52="","",'補正（太陽光）指定１'!I52)) ->  | J52: =IF($D$3="作成不要","",IF('補正（太陽光）指定１'!J52="","",'補正（太陽光）指定１'!J52)) ->  | K52: =IF($D$3="作成不要","",IF('補正（太陽光）指定１'!K52="","",'補正（太陽光）指定１'!K52)) ->  | L52: =IF($D$3="作成不要","",IF('補正（太陽光）指定１'!L52="","",'補正（太陽光）指定１'!L52)) ->  | M52: =IF($D$3="作成不要","",IF('補正（太陽光）指定１'!M52="","",'補正（太陽光）指定１'!M52)) ->  | N52: =IF($D$3="作成不要","",IF('補正（太陽光）指定１'!N52="","",'補正（太陽光）指定１'!N52)) ->  | O52: =IF($D$3="作成不要","",IF('補正（太陽光）指定１'!O52="","",'補正（太陽光）指定１'!O52)) ->  | P52: =IF($D$3="作成不要","",IF('補正（太陽光）指定１'!P52="","",'補正（太陽光）指定１'!P52)) ->  | Q52: =IF($D$3="作成不要","",IF('補正（太陽光）指定１'!Q52="","",'補正（太陽光）指定１'!Q52)) ->  | R52: =IF($D$3="作成不要","",IF('補正（太陽光）指定１'!R52="","",'補正（太陽光）指定１'!R52)) ->  | S52: =IF($D$3="作成不要","",IF('補正（太陽光）指定１'!S52="","",'補正（太陽光）指定１'!S52)) ->  | T52: =IF($D$3="作成不要","",IF('補正（太陽光）指定１'!T52="","",'補正（太陽光）指定１'!T52)) ->  | U52: =IF($D$3="作成不要","",IF('補正（太陽光）指定１'!U52="","",'補正（太陽光）指定１'!U52)) ->  | V52: =IF($D$3="作成不要","",IF('補正（太陽光）指定１'!V52="","",'補正（太陽光）指定１'!V52)) ->  | W52: =IF($D$3="作成不要","",IF('補正（太陽光）指定１'!W52="","",'補正（太陽光）指定１'!W52)) ->  | X52: =IF($D$3="作成不要","",IF('補正（太陽光）指定１'!X52="","",'補正（太陽光）指定１'!X52)) ->  | Y52: =IF($D$3="作成不要","",IF('補正（太陽光）指定１'!Y52="","",'補正（太陽光）指定１'!Y52)) ->  | Z52: =IF($D$3="作成不要","",IF('補正（太陽光）指定１'!Z52="","",'補正（太陽光）指定１'!Z52)) ->  | AA52: =IF($D$3="作成不要","",IF('補正（太陽光）指定１'!AA52="","",'補正（太陽光）指定１'!AA52)) ->  | AB52: =IF($D$3="作成不要","",IF('補正（太陽光）指定１'!AB52="","",'補正（太陽光）指定１'!AB52)) ->  | AC52: =IF($D$3="作成不要","",IF('補正（太陽光）指定１'!AC52="","",'補正（太陽光）指定１'!AC52)) ->  | AD52: =IF($D$3="作成不要","",IF('補正（太陽光）指定１'!AD52="","",'補正（太陽光）指定１'!AD52)) ->  | AH52: =IF(AH55="","",IF(AH25=0,0,IF(AH25="","",ROUNDDOWN(AH55/(AH$25/100),2)))) -> 
D53: 供給電力 （調整係数） | E53: 合計 | G53: =IF($D$3="作成不要","",IF('補正（太陽光）指定１'!G53="","",'補正（太陽光）指定１'!G53)) ->  | H53: =IF($D$3="作成不要","",IF('補正（太陽光）指定１'!H53="","",'補正（太陽光）指定１'!H53)) ->  | I53: =IF($D$3="作成不要","",IF('補正（太陽光）指定１'!I53="","",'補正（太陽光）指定１'!I53)) ->  | J53: =IF($D$3="作成不要","",IF('補正（太陽光）指定１'!J53="","",'補正（太陽光）指定１'!J53)) ->  | K53: =IF($D$3="作成不要","",IF('補正（太陽光）指定１'!K53="","",'補正（太陽光）指定１'!K53)) ->  | L53: =IF($D$3="作成不要","",IF('補正（太陽光）指定１'!L53="","",'補正（太陽光）指定１'!L53)) ->  | M53: =IF($D$3="作成不要","",IF('補正（太陽光）指定１'!M53="","",'補正（太陽光）指定１'!M53)) ->  | N53: =IF($D$3="作成不要","",IF('補正（太陽光）指定１'!N53="","",'補正（太陽光）指定１'!N53)) ->  | O53: =IF($D$3="作成不要","",IF('補正（太陽光）指定１'!O53="","",'補正（太陽光）指定１'!O53)) ->  | P53: =IF($D$3="作成不要","",IF('補正（太陽光）指定１'!P53="","",'補正（太陽光）指定１'!P53)) ->  | Q53: =IF($D$3="作成不要","",IF('補正（太陽光）指定１'!Q53="","",'補正（太陽光）指定１'!Q53)) ->  | R53: =IF($D$3="作成不要","",IF('補正（太陽光）指定１'!R53="","",'補正（太陽光）指定１'!R53)) ->  | S53: =IF($D$3="作成不要","",IF('補正（太陽光）指定１'!S53="","",'補正（太陽光）指定１'!S53)) ->  | T53: =IF($D$3="作成不要","",IF('補正（太陽光）指定１'!T53="","",'補正（太陽光）指定１'!T53)) ->  | U53: =IF($D$3="作成不要","",IF('補正（太陽光）指定１'!U53="","",'補正（太陽光）指定１'!U53)) ->  | V53: =IF($D$3="作成不要","",IF('補正（太陽光）指定１'!V53="","",'補正（太陽光）指定１'!V53)) ->  | W53: =IF($D$3="作成不要","",IF('補正（太陽光）指定１'!W53="","",'補正（太陽光）指定１'!W53)) ->  | X53: =IF($D$3="作成不要","",IF('補正（太陽光）指定１'!X53="","",'補正（太陽光）指定１'!X53)) ->  | Y53: =IF($D$3="作成不要","",IF('補正（太陽光）指定１'!Y53="","",'補正（太陽光）指定１'!Y53)) ->  | Z53: =IF($D$3="作成不要","",IF('補正（太陽光）指定１'!Z53="","",'補正（太陽光）指定１'!Z53)) ->  | AA53: =IF($D$3="作成不要","",IF('補正（太陽光）指定１'!AA53="","",'補正（太陽光）指定１'!AA53)) ->  | AB53: =IF($D$3="作成不要","",IF('補正（太陽光）指定１'!AB53="","",'補正（太陽光）指定１'!AB53)) ->  | AC53: =IF($D$3="作成不要","",IF('補正（太陽光）指定１'!AC53="","",'補正（太陽光）指定１'!AC53)) ->  | AD53: =IF($D$3="作成不要","",IF('補正（太陽光）指定１'!AD53="","",'補正（太陽光）指定１'!AD53)) ->  | AH53: =IF(COUNT(AH54:AH55)=0,"",SUM(AH54:AH55)) ->  | AI53: =IF(COUNT(AI54:AI55)=0,"",SUM(AI54:AI55)) -> 
F54: 全量 | G54: =IF($D$3="作成不要","",IF('補正（太陽光）指定１'!G54="","",'補正（太陽光）指定１'!G54)) ->  | H54: =IF($D$3="作成不要","",IF('補正（太陽光）指定１'!H54="","",'補正（太陽光）指定１'!H54)) ->  | I54: =IF($D$3="作成不要","",IF('補正（太陽光）指定１'!I54="","",'補正（太陽光）指定１'!I54)) ->  | J54: =IF($D$3="作成不要","",IF('補正（太陽光）指定１'!J54="","",'補正（太陽光）指定１'!J54)) ->  | K54: =IF($D$3="作成不要","",IF('補正（太陽光）指定１'!K54="","",'補正（太陽光）指定１'!K54)) ->  | L54: =IF($D$3="作成不要","",IF('補正（太陽光）指定１'!L54="","",'補正（太陽光）指定１'!L54)) ->  | M54: =IF($D$3="作成不要","",IF('補正（太陽光）指定１'!M54="","",'補正（太陽光）指定１'!M54)) ->  | N54: =IF($D$3="作成不要","",IF('補正（太陽光）指定１'!N54="","",'補正（太陽光）指定１'!N54)) ->  | O54: =IF($D$3="作成不要","",IF('補正（太陽光）指定１'!O54="","",'補正（太陽光）指定１'!O54)) ->  | P54: =IF($D$3="作成不要","",IF('補正（太陽光）指定１'!P54="","",'補正（太陽光）指定１'!P54)) ->  | Q54: =IF($D$3="作成不要","",IF('補正（太陽光）指定１'!Q54="","",'補正（太陽光）指定１'!Q54)) ->  | R54: =IF($D$3="作成不要","",IF('補正（太陽光）指定１'!R54="","",'補正（太陽光）指定１'!R54)) ->  | S54: =IF($D$3="作成不要","",IF('補正（太陽光）指定１'!S54="","",'補正（太陽光）指定１'!S54)) ->  | T54: =IF($D$3="作成不要","",IF('補正（太陽光）指定１'!T54="","",'補正（太陽光）指定１'!T54)) ->  | U54: =IF($D$3="作成不要","",IF('補正（太陽光）指定１'!U54="","",'補正（太陽光）指定１'!U54)) ->  | V54: =IF($D$3="作成不要","",IF('補正（太陽光）指定１'!V54="","",'補正（太陽光）指定１'!V54)) ->  | W54: =IF($D$3="作成不要","",IF('補正（太陽光）指定１'!W54="","",'補正（太陽光）指定１'!W54)) ->  | X54: =IF($D$3="作成不要","",IF('補正（太陽光）指定１'!X54="","",'補正（太陽光）指定１'!X54)) ->  | Y54: =IF($D$3="作成不要","",IF('補正（太陽光）指定１'!Y54="","",'補正（太陽光）指定１'!Y54)) ->  | Z54: =IF($D$3="作成不要","",IF('補正（太陽光）指定１'!Z54="","",'補正（太陽光）指定１'!Z54)) ->  | AA54: =IF($D$3="作成不要","",IF('補正（太陽光）指定１'!AA54="","",'補正（太陽光）指定１'!AA54)) ->  | AB54: =IF($D$3="作成不要","",IF('補正（太陽光）指定１'!AB54="","",'補正（太陽光）指定１'!AB54)) ->  | AC54: =IF($D$3="作成不要","",IF('補正（太陽光）指定１'!AC54="","",'補正（太陽光）指定１'!AC54)) ->  | AD54: =IF($D$3="作成不要","",IF('補正（太陽光）指定１'!AD54="","",'補正（太陽光）指定１'!AD54)) -> 
F55: 余剰 | G55: =IF($D$3="作成不要","",IF('補正（太陽光）指定１'!G55="","",'補正（太陽光）指定１'!G55)) ->  | H55: =IF($D$3="作成不要","",IF('補正（太陽光）指定１'!H55="","",'補正（太陽光）指定１'!H55)) ->  | I55: =IF($D$3="作成不要","",IF('補正（太陽光）指定１'!I55="","",'補正（太陽光）指定１'!I55)) ->  | J55: =IF($D$3="作成不要","",IF('補正（太陽光）指定１'!J55="","",'補正（太陽光）指定１'!J55)) ->  | K55: =IF($D$3="作成不要","",IF('補正（太陽光）指定１'!K55="","",'補正（太陽光）指定１'!K55)) ->  | L55: =IF($D$3="作成不要","",IF('補正（太陽光）指定１'!L55="","",'補正（太陽光）指定１'!L55)) ->  | M55: =IF($D$3="作成不要","",IF('補正（太陽光）指定１'!M55="","",'補正（太陽光）指定１'!M55)) ->  | N55: =IF($D$3="作成不要","",IF('補正（太陽光）指定１'!N55="","",'補正（太陽光）指定１'!N55)) ->  | O55: =IF($D$3="作成不要","",IF('補正（太陽光）指定１'!O55="","",'補正（太陽光）指定１'!O55)) ->  | P55: =IF($D$3="作成不要","",IF('補正（太陽光）指定１'!P55="","",'補正（太陽光）指定１'!P55)) ->  | Q55: =IF($D$3="作成不要","",IF('補正（太陽光）指定１'!Q55="","",'補正（太陽光）指定１'!Q55)) ->  | R55: =IF($D$3="作成不要","",IF('補正（太陽光）指定１'!R55="","",'補正（太陽光）指定１'!R55)) ->  | S55: =IF($D$3="作成不要","",IF('補正（太陽光）指定１'!S55="","",'補正（太陽光）指定１'!S55)) ->  | T55: =IF($D$3="作成不要","",IF('補正（太陽光）指定１'!T55="","",'補正（太陽光）指定１'!T55)) ->  | U55: =IF($D$3="作成不要","",IF('補正（太陽光）指定１'!U55="","",'補正（太陽光）指定１'!U55)) ->  | V55: =IF($D$3="作成不要","",IF('補正（太陽光）指定１'!V55="","",'補正（太陽光）指定１'!V55)) ->  | W55: =IF($D$3="作成不要","",IF('補正（太陽光）指定１'!W55="","",'補正（太陽光）指定１'!W55)) ->  | X55: =IF($D$3="作成不要","",IF('補正（太陽光）指定１'!X55="","",'補正（太陽光）指定１'!X55)) ->  | Y55: =IF($D$3="作成不要","",IF('補正（太陽光）指定１'!Y55="","",'補正（太陽光）指定１'!Y55)) ->  | Z55: =IF($D$3="作成不要","",IF('補正（太陽光）指定１'!Z55="","",'補正（太陽光）指定１'!Z55)) ->  | AA55: =IF($D$3="作成不要","",IF('補正（太陽光）指定１'!AA55="","",'補正（太陽光）指定１'!AA55)) ->  | AB55: =IF($D$3="作成不要","",IF('補正（太陽光）指定１'!AB55="","",'補正（太陽光）指定１'!AB55)) ->  | AC55: =IF($D$3="作成不要","",IF('補正（太陽光）指定１'!AC55="","",'補正（太陽光）指定１'!AC55)) ->  | AD55: =IF($D$3="作成不要","",IF('補正（太陽光）指定１'!AD55="","",'補正（太陽光）指定１'!AD55)) -> 
B56: 各電気事業者の エリア内非電気事業者 からの調達分 | D56: 設備量 | E56: 合計 | G56: =IF($D$3="作成不要","",IF('補正（太陽光）指定１'!G56="","",'補正（太陽光）指定１'!G56)) ->  | H56: =IF($D$3="作成不要","",IF('補正（太陽光）指定１'!H56="","",'補正（太陽光）指定１'!H56)) ->  | I56: =IF($D$3="作成不要","",IF('補正（太陽光）指定１'!I56="","",'補正（太陽光）指定１'!I56)) ->  | J56: =IF($D$3="作成不要","",IF('補正（太陽光）指定１'!J56="","",'補正（太陽光）指定１'!J56)) ->  | K56: =IF($D$3="作成不要","",IF('補正（太陽光）指定１'!K56="","",'補正（太陽光）指定１'!K56)) ->  | L56: =IF($D$3="作成不要","",IF('補正（太陽光）指定１'!L56="","",'補正（太陽光）指定１'!L56)) ->  | M56: =IF($D$3="作成不要","",IF('補正（太陽光）指定１'!M56="","",'補正（太陽光）指定１'!M56)) ->  | N56: =IF($D$3="作成不要","",IF('補正（太陽光）指定１'!N56="","",'補正（太陽光）指定１'!N56)) ->  | O56: =IF($D$3="作成不要","",IF('補正（太陽光）指定１'!O56="","",'補正（太陽光）指定１'!O56)) ->  | P56: =IF($D$3="作成不要","",IF('補正（太陽光）指定１'!P56="","",'補正（太陽光）指定１'!P56)) ->  | Q56: =IF($D$3="作成不要","",IF('補正（太陽光）指定１'!Q56="","",'補正（太陽光）指定１'!Q56)) ->  | R56: =IF($D$3="作成不要","",IF('補正（太陽光）指定１'!R56="","",'補正（太陽光）指定１'!R56)) ->  | S56: =IF($D$3="作成不要","",IF('補正（太陽光）指定１'!S56="","",'補正（太陽光）指定１'!S56)) ->  | T56: =IF($D$3="作成不要","",IF('補正（太陽光）指定１'!T56="","",'補正（太陽光）指定１'!T56)) ->  | U56: =IF($D$3="作成不要","",IF('補正（太陽光）指定１'!U56="","",'補正（太陽光）指定１'!U56)) ->  | V56: =IF($D$3="作成不要","",IF('補正（太陽光）指定１'!V56="","",'補正（太陽光）指定１'!V56)) ->  | W56: =IF($D$3="作成不要","",IF('補正（太陽光）指定１'!W56="","",'補正（太陽光）指定１'!W56)) ->  | X56: =IF($D$3="作成不要","",IF('補正（太陽光）指定１'!X56="","",'補正（太陽光）指定１'!X56)) ->  | Y56: =IF($D$3="作成不要","",IF('補正（太陽光）指定１'!Y56="","",'補正（太陽光）指定１'!Y56)) ->  | Z56: =IF($D$3="作成不要","",IF('補正（太陽光）指定１'!Z56="","",'補正（太陽光）指定１'!Z56)) ->  | AA56: =IF($D$3="作成不要","",IF('補正（太陽光）指定１'!AA56="","",'補正（太陽光）指定１'!AA56)) ->  | AB56: =IF($D$3="作成不要","",IF('補正（太陽光）指定１'!AB56="","",'補正（太陽光）指定１'!AB56)) ->  | AC56: =IF($D$3="作成不要","",IF('補正（太陽光）指定１'!AC56="","",'補正（太陽光）指定１'!AC56)) ->  | AD56: =IF($D$3="作成不要","",IF('補正（太陽光）指定１'!AD56="","",'補正（太陽光）指定１'!AD56)) ->  | AH56: =IF(COUNT(AH57:AH58)=0,"",SUM(AH57:AH58)) ->  | AI56: =IF(COUNT(AI57:AI58)=0,"",SUM(AI57:AI58)) -> 
F57: 全量 | G57: =IF($D$3="作成不要","",IF('補正（太陽光）指定１'!G57="","",'補正（太陽光）指定１'!G57)) ->  | H57: =IF($D$3="作成不要","",IF('補正（太陽光）指定１'!H57="","",'補正（太陽光）指定１'!H57)) ->  | I57: =IF($D$3="作成不要","",IF('補正（太陽光）指定１'!I57="","",'補正（太陽光）指定１'!I57)) ->  | J57: =IF($D$3="作成不要","",IF('補正（太陽光）指定１'!J57="","",'補正（太陽光）指定１'!J57)) ->  | K57: =IF($D$3="作成不要","",IF('補正（太陽光）指定１'!K57="","",'補正（太陽光）指定１'!K57)) ->  | L57: =IF($D$3="作成不要","",IF('補正（太陽光）指定１'!L57="","",'補正（太陽光）指定１'!L57)) ->  | M57: =IF($D$3="作成不要","",IF('補正（太陽光）指定１'!M57="","",'補正（太陽光）指定１'!M57)) ->  | N57: =IF($D$3="作成不要","",IF('補正（太陽光）指定１'!N57="","",'補正（太陽光）指定１'!N57)) ->  | O57: =IF($D$3="作成不要","",IF('補正（太陽光）指定１'!O57="","",'補正（太陽光）指定１'!O57)) ->  | P57: =IF($D$3="作成不要","",IF('補正（太陽光）指定１'!P57="","",'補正（太陽光）指定１'!P57)) ->  | Q57: =IF($D$3="作成不要","",IF('補正（太陽光）指定１'!Q57="","",'補正（太陽光）指定１'!Q57)) ->  | R57: =IF($D$3="作成不要","",IF('補正（太陽光）指定１'!R57="","",'補正（太陽光）指定１'!R57)) ->  | S57: =IF($D$3="作成不要","",IF('補正（太陽光）指定１'!S57="","",'補正（太陽光）指定１'!S57)) ->  | T57: =IF($D$3="作成不要","",IF('補正（太陽光）指定１'!T57="","",'補正（太陽光）指定１'!T57)) ->  | U57: =IF($D$3="作成不要","",IF('補正（太陽光）指定１'!U57="","",'補正（太陽光）指定１'!U57)) ->  | V57: =IF($D$3="作成不要","",IF('補正（太陽光）指定１'!V57="","",'補正（太陽光）指定１'!V57)) ->  | W57: =IF($D$3="作成不要","",IF('補正（太陽光）指定１'!W57="","",'補正（太陽光）指定１'!W57)) ->  | X57: =IF($D$3="作成不要","",IF('補正（太陽光）指定１'!X57="","",'補正（太陽光）指定１'!X57)) ->  | Y57: =IF($D$3="作成不要","",IF('補正（太陽光）指定１'!Y57="","",'補正（太陽光）指定１'!Y57)) ->  | Z57: =IF($D$3="作成不要","",IF('補正（太陽光）指定１'!Z57="","",'補正（太陽光）指定１'!Z57)) ->  | AA57: =IF($D$3="作成不要","",IF('補正（太陽光）指定１'!AA57="","",'補正（太陽光）指定１'!AA57)) ->  | AB57: =IF($D$3="作成不要","",IF('補正（太陽光）指定１'!AB57="","",'補正（太陽光）指定１'!AB57)) ->  | AC57: =IF($D$3="作成不要","",IF('補正（太陽光）指定１'!AC57="","",'補正（太陽光）指定１'!AC57)) ->  | AD57: =IF($D$3="作成不要","",IF('補正（太陽光）指定１'!AD57="","",'補正（太陽光）指定１'!AD57)) ->  | AH57: =IF(AH60="","",IF(AH24=0,0,IF(AH24="","",ROUNDDOWN(AH60/(AH$24/100),2)))) ->  | AP57: =IF(AP60="","",IF(AP30=0,0,IF(AP30="","",ROUNDDOWN(AP60/(AP$24/100),2)))) ->  | AQ57: =IF(AQ60="","",IF(AQ30=0,0,IF(AQ30="","",ROUNDDOWN(AQ60/(AQ$24/100),2)))) ->  | AR57: =IF(AR60="","",IF(AR30=0,0,IF(AR30="","",ROUNDDOWN(AR60/(AR$24/100),2)))) -> 
F58: 余剰 | G58: =IF($D$3="作成不要","",IF('補正（太陽光）指定１'!G58="","",'補正（太陽光）指定１'!G58)) ->  | H58: =IF($D$3="作成不要","",IF('補正（太陽光）指定１'!H58="","",'補正（太陽光）指定１'!H58)) ->  | I58: =IF($D$3="作成不要","",IF('補正（太陽光）指定１'!I58="","",'補正（太陽光）指定１'!I58)) ->  | J58: =IF($D$3="作成不要","",IF('補正（太陽光）指定１'!J58="","",'補正（太陽光）指定１'!J58)) ->  | K58: =IF($D$3="作成不要","",IF('補正（太陽光）指定１'!K58="","",'補正（太陽光）指定１'!K58)) ->  | L58: =IF($D$3="作成不要","",IF('補正（太陽光）指定１'!L58="","",'補正（太陽光）指定１'!L58)) ->  | M58: =IF($D$3="作成不要","",IF('補正（太陽光）指定１'!M58="","",'補正（太陽光）指定１'!M58)) ->  | N58: =IF($D$3="作成不要","",IF('補正（太陽光）指定１'!N58="","",'補正（太陽光）指定１'!N58)) ->  | O58: =IF($D$3="作成不要","",IF('補正（太陽光）指定１'!O58="","",'補正（太陽光）指定１'!O58)) ->  | P58: =IF($D$3="作成不要","",IF('補正（太陽光）指定１'!P58="","",'補正（太陽光）指定１'!P58)) ->  | Q58: =IF($D$3="作成不要","",IF('補正（太陽光）指定１'!Q58="","",'補正（太陽光）指定１'!Q58)) ->  | R58: =IF($D$3="作成不要","",IF('補正（太陽光）指定１'!R58="","",'補正（太陽光）指定１'!R58)) ->  | S58: =IF($D$3="作成不要","",IF('補正（太陽光）指定１'!S58="","",'補正（太陽光）指定１'!S58)) ->  | T58: =IF($D$3="作成不要","",IF('補正（太陽光）指定１'!T58="","",'補正（太陽光）指定１'!T58)) ->  | U58: =IF($D$3="作成不要","",IF('補正（太陽光）指定１'!U58="","",'補正（太陽光）指定１'!U58)) ->  | V58: =IF($D$3="作成不要","",IF('補正（太陽光）指定１'!V58="","",'補正（太陽光）指定１'!V58)) ->  | W58: =IF($D$3="作成不要","",IF('補正（太陽光）指定１'!W58="","",'補正（太陽光）指定１'!W58)) ->  | X58: =IF($D$3="作成不要","",IF('補正（太陽光）指定１'!X58="","",'補正（太陽光）指定１'!X58)) ->  | Y58: =IF($D$3="作成不要","",IF('補正（太陽光）指定１'!Y58="","",'補正（太陽光）指定１'!Y58)) ->  | Z58: =IF($D$3="作成不要","",IF('補正（太陽光）指定１'!Z58="","",'補正（太陽光）指定１'!Z58)) ->  | AA58: =IF($D$3="作成不要","",IF('補正（太陽光）指定１'!AA58="","",'補正（太陽光）指定１'!AA58)) ->  | AB58: =IF($D$3="作成不要","",IF('補正（太陽光）指定１'!AB58="","",'補正（太陽光）指定１'!AB58)) ->  | AC58: =IF($D$3="作成不要","",IF('補正（太陽光）指定１'!AC58="","",'補正（太陽光）指定１'!AC58)) ->  | AD58: =IF($D$3="作成不要","",IF('補正（太陽光）指定１'!AD58="","",'補正（太陽光）指定１'!AD58)) ->  | AH58: =IF(AH61="","",IF(AH25=0,0,IF(AH25="","",ROUNDDOWN(AH61/(AH$25/100),2)))) ->  | AP58: =IF(AP61="","",IF(AP31=0,0,IF(AP31="","",ROUNDDOWN(AP61/(AP$25/100),2)))) ->  | AQ58: =IF(AQ61="","",IF(AQ31=0,0,IF(AQ31="","",ROUNDDOWN(AQ61/(AQ$25/100),2)))) ->  | AR58: =IF(AR61="","",IF(AR31=0,0,IF(AR31="","",ROUNDDOWN(AR61/(AR$25/100),2)))) -> 
D59: 供給電力 （調整係数） | E59: 合計 | G59: =IF($D$3="作成不要","",IF('補正（太陽光）指定１'!G59="","",'補正（太陽光）指定１'!G59)) ->  | H59: =IF($D$3="作成不要","",IF('補正（太陽光）指定１'!H59="","",'補正（太陽光）指定１'!H59)) ->  | I59: =IF($D$3="作成不要","",IF('補正（太陽光）指定１'!I59="","",'補正（太陽光）指定１'!I59)) ->  | J59: =IF($D$3="作成不要","",IF('補正（太陽光）指定１'!J59="","",'補正（太陽光）指定１'!J59)) ->  | K59: =IF($D$3="作成不要","",IF('補正（太陽光）指定１'!K59="","",'補正（太陽光）指定１'!K59)) ->  | L59: =IF($D$3="作成不要","",IF('補正（太陽光）指定１'!L59="","",'補正（太陽光）指定１'!L59)) ->  | M59: =IF($D$3="作成不要","",IF('補正（太陽光）指定１'!M59="","",'補正（太陽光）指定１'!M59)) ->  | N59: =IF($D$3="作成不要","",IF('補正（太陽光）指定１'!N59="","",'補正（太陽光）指定１'!N59)) ->  | O59: =IF($D$3="作成不要","",IF('補正（太陽光）指定１'!O59="","",'補正（太陽光）指定１'!O59)) ->  | P59: =IF($D$3="作成不要","",IF('補正（太陽光）指定１'!P59="","",'補正（太陽光）指定１'!P59)) ->  | Q59: =IF($D$3="作成不要","",IF('補正（太陽光）指定１'!Q59="","",'補正（太陽光）指定１'!Q59)) ->  | R59: =IF($D$3="作成不要","",IF('補正（太陽光）指定１'!R59="","",'補正（太陽光）指定１'!R59)) ->  | S59: =IF($D$3="作成不要","",IF('補正（太陽光）指定１'!S59="","",'補正（太陽光）指定１'!S59)) ->  | T59: =IF($D$3="作成不要","",IF('補正（太陽光）指定１'!T59="","",'補正（太陽光）指定１'!T59)) ->  | U59: =IF($D$3="作成不要","",IF('補正（太陽光）指定１'!U59="","",'補正（太陽光）指定１'!U59)) ->  | V59: =IF($D$3="作成不要","",IF('補正（太陽光）指定１'!V59="","",'補正（太陽光）指定１'!V59)) ->  | W59: =IF($D$3="作成不要","",IF('補正（太陽光）指定１'!W59="","",'補正（太陽光）指定１'!W59)) ->  | X59: =IF($D$3="作成不要","",IF('補正（太陽光）指定１'!X59="","",'補正（太陽光）指定１'!X59)) ->  | Y59: =IF($D$3="作成不要","",IF('補正（太陽光）指定１'!Y59="","",'補正（太陽光）指定１'!Y59)) ->  | Z59: =IF($D$3="作成不要","",IF('補正（太陽光）指定１'!Z59="","",'補正（太陽光）指定１'!Z59)) ->  | AA59: =IF($D$3="作成不要","",IF('補正（太陽光）指定１'!AA59="","",'補正（太陽光）指定１'!AA59)) ->  | AB59: =IF($D$3="作成不要","",IF('補正（太陽光）指定１'!AB59="","",'補正（太陽光）指定１'!AB59)) ->  | AC59: =IF($D$3="作成不要","",IF('補正（太陽光）指定１'!AC59="","",'補正（太陽光）指定１'!AC59)) ->  | AD59: =IF($D$3="作成不要","",IF('補正（太陽光）指定１'!AD59="","",'補正（太陽光）指定１'!AD59)) ->  | AH59: =IF(COUNT(AH60:AH61)=0,"",SUM(AH60:AH61)) ->  | AI59: =IF(COUNT(AI60:AI61)=0,"",SUM(AI60:AI61)) -> 
F60: 全量 | G60: =IF($D$3="作成不要","",IF('補正（太陽光）指定１'!G60="","",'補正（太陽光）指定１'!G60)) ->  | H60: =IF($D$3="作成不要","",IF('補正（太陽光）指定１'!H60="","",'補正（太陽光）指定１'!H60)) ->  | I60: =IF($D$3="作成不要","",IF('補正（太陽光）指定１'!I60="","",'補正（太陽光）指定１'!I60)) ->  | J60: =IF($D$3="作成不要","",IF('補正（太陽光）指定１'!J60="","",'補正（太陽光）指定１'!J60)) ->  | K60: =IF($D$3="作成不要","",IF('補正（太陽光）指定１'!K60="","",'補正（太陽光）指定１'!K60)) ->  | L60: =IF($D$3="作成不要","",IF('補正（太陽光）指定１'!L60="","",'補正（太陽光）指定１'!L60)) ->  | M60: =IF($D$3="作成不要","",IF('補正（太陽光）指定１'!M60="","",'補正（太陽光）指定１'!M60)) ->  | N60: =IF($D$3="作成不要","",IF('補正（太陽光）指定１'!N60="","",'補正（太陽光）指定１'!N60)) ->  | O60: =IF($D$3="作成不要","",IF('補正（太陽光）指定１'!O60="","",'補正（太陽光）指定１'!O60)) ->  | P60: =IF($D$3="作成不要","",IF('補正（太陽光）指定１'!P60="","",'補正（太陽光）指定１'!P60)) ->  | Q60: =IF($D$3="作成不要","",IF('補正（太陽光）指定１'!Q60="","",'補正（太陽光）指定１'!Q60)) ->  | R60: =IF($D$3="作成不要","",IF('補正（太陽光）指定１'!R60="","",'補正（太陽光）指定１'!R60)) ->  | S60: =IF($D$3="作成不要","",IF('補正（太陽光）指定１'!S60="","",'補正（太陽光）指定１'!S60)) ->  | T60: =IF($D$3="作成不要","",IF('補正（太陽光）指定１'!T60="","",'補正（太陽光）指定１'!T60)) ->  | U60: =IF($D$3="作成不要","",IF('補正（太陽光）指定１'!U60="","",'補正（太陽光）指定１'!U60)) ->  | V60: =IF($D$3="作成不要","",IF('補正（太陽光）指定１'!V60="","",'補正（太陽光）指定１'!V60)) ->  | W60: =IF($D$3="作成不要","",IF('補正（太陽光）指定１'!W60="","",'補正（太陽光）指定１'!W60)) ->  | X60: =IF($D$3="作成不要","",IF('補正（太陽光）指定１'!X60="","",'補正（太陽光）指定１'!X60)) ->  | Y60: =IF($D$3="作成不要","",IF('補正（太陽光）指定１'!Y60="","",'補正（太陽光）指定１'!Y60)) ->  | Z60: =IF($D$3="作成不要","",IF('補正（太陽光）指定１'!Z60="","",'補正（太陽光）指定１'!Z60)) ->  | AA60: =IF($D$3="作成不要","",IF('補正（太陽光）指定１'!AA60="","",'補正（太陽光）指定１'!AA60)) ->  | AB60: =IF($D$3="作成不要","",IF('補正（太陽光）指定１'!AB60="","",'補正（太陽光）指定１'!AB60)) ->  | AC60: =IF($D$3="作成不要","",IF('補正（太陽光）指定１'!AC60="","",'補正（太陽光）指定１'!AC60)) ->  | AD60: =IF($D$3="作成不要","",IF('補正（太陽光）指定１'!AD60="","",'補正（太陽光）指定１'!AD60)) -> 
F61: 余剰 | G61: =IF($D$3="作成不要","",IF('補正（太陽光）指定１'!G61="","",'補正（太陽光）指定１'!G61)) ->  | H61: =IF($D$3="作成不要","",IF('補正（太陽光）指定１'!H61="","",'補正（太陽光）指定１'!H61)) ->  | I61: =IF($D$3="作成不要","",IF('補正（太陽光）指定１'!I61="","",'補正（太陽光）指定１'!I61)) ->  | J61: =IF($D$3="作成不要","",IF('補正（太陽光）指定１'!J61="","",'補正（太陽光）指定１'!J61)) ->  | K61: =IF($D$3="作成不要","",IF('補正（太陽光）指定１'!K61="","",'補正（太陽光）指定１'!K61)) ->  | L61: =IF($D$3="作成不要","",IF('補正（太陽光）指定１'!L61="","",'補正（太陽光）指定１'!L61)) ->  | M61: =IF($D$3="作成不要","",IF('補正（太陽光）指定１'!M61="","",'補正（太陽光）指定１'!M61)) ->  | N61: =IF($D$3="作成不要","",IF('補正（太陽光）指定１'!N61="","",'補正（太陽光）指定１'!N61)) ->  | O61: =IF($D$3="作成不要","",IF('補正（太陽光）指定１'!O61="","",'補正（太陽光）指定１'!O61)) ->  | P61: =IF($D$3="作成不要","",IF('補正（太陽光）指定１'!P61="","",'補正（太陽光）指定１'!P61)) ->  | Q61: =IF($D$3="作成不要","",IF('補正（太陽光）指定１'!Q61="","",'補正（太陽光）指定１'!Q61)) ->  | R61: =IF($D$3="作成不要","",IF('補正（太陽光）指定１'!R61="","",'補正（太陽光）指定１'!R61)) ->  | S61: =IF($D$3="作成不要","",IF('補正（太陽光）指定１'!S61="","",'補正（太陽光）指定１'!S61)) ->  | T61: =IF($D$3="作成不要","",IF('補正（太陽光）指定１'!T61="","",'補正（太陽光）指定１'!T61)) ->  | U61: =IF($D$3="作成不要","",IF('補正（太陽光）指定１'!U61="","",'補正（太陽光）指定１'!U61)) ->  | V61: =IF($D$3="作成不要","",IF('補正（太陽光）指定１'!V61="","",'補正（太陽光）指定１'!V61)) ->  | W61: =IF($D$3="作成不要","",IF('補正（太陽光）指定１'!W61="","",'補正（太陽光）指定１'!W61)) ->  | X61: =IF($D$3="作成不要","",IF('補正（太陽光）指定１'!X61="","",'補正（太陽光）指定１'!X61)) ->  | Y61: =IF($D$3="作成不要","",IF('補正（太陽光）指定１'!Y61="","",'補正（太陽光）指定１'!Y61)) ->  | Z61: =IF($D$3="作成不要","",IF('補正（太陽光）指定１'!Z61="","",'補正（太陽光）指定１'!Z61)) ->  | AA61: =IF($D$3="作成不要","",IF('補正（太陽光）指定１'!AA61="","",'補正（太陽光）指定１'!AA61)) ->  | AB61: =IF($D$3="作成不要","",IF('補正（太陽光）指定１'!AB61="","",'補正（太陽光）指定１'!AB61)) ->  | AC61: =IF($D$3="作成不要","",IF('補正（太陽光）指定１'!AC61="","",'補正（太陽光）指定１'!AC61)) ->  | AD61: =IF($D$3="作成不要","",IF('補正（太陽光）指定１'!AD61="","",'補正（太陽光）指定１'!AD61)) ->  | AF61: =IF($D$3="","",IF($D$3="作成不要","",P61)) ->  | AG61: =IF($D$3="","",IF($D$3="作成不要","",AB61)) ->  | AS61: 太陽光（余剰）自家消費率
B62: 一般送配電想定との差分 | D62: 設備量 | E62: 合計 | G62: =IF($D$3="作成不要","",IF('補正（太陽光）指定１'!G62="","",'補正（太陽光）指定１'!G62)) ->  | H62: =IF($D$3="作成不要","",IF('補正（太陽光）指定１'!H62="","",'補正（太陽光）指定１'!H62)) ->  | I62: =IF($D$3="作成不要","",IF('補正（太陽光）指定１'!I62="","",'補正（太陽光）指定１'!I62)) ->  | J62: =IF($D$3="作成不要","",IF('補正（太陽光）指定１'!J62="","",'補正（太陽光）指定１'!J62)) ->  | K62: =IF($D$3="作成不要","",IF('補正（太陽光）指定１'!K62="","",'補正（太陽光）指定１'!K62)) ->  | L62: =IF($D$3="作成不要","",IF('補正（太陽光）指定１'!L62="","",'補正（太陽光）指定１'!L62)) ->  | M62: =IF($D$3="作成不要","",IF('補正（太陽光）指定１'!M62="","",'補正（太陽光）指定１'!M62)) ->  | N62: =IF($D$3="作成不要","",IF('補正（太陽光）指定１'!N62="","",'補正（太陽光）指定１'!N62)) ->  | O62: =IF($D$3="作成不要","",IF('補正（太陽光）指定１'!O62="","",'補正（太陽光）指定１'!O62)) ->  | P62: =IF($D$3="作成不要","",IF('補正（太陽光）指定１'!P62="","",'補正（太陽光）指定１'!P62)) ->  | Q62: =IF($D$3="作成不要","",IF('補正（太陽光）指定１'!Q62="","",'補正（太陽光）指定１'!Q62)) ->  | R62: =IF($D$3="作成不要","",IF('補正（太陽光）指定１'!R62="","",'補正（太陽光）指定１'!R62)) ->  | S62: =IF($D$3="作成不要","",IF('補正（太陽光）指定１'!S62="","",'補正（太陽光）指定１'!S62)) ->  | T62: =IF($D$3="作成不要","",IF('補正（太陽光）指定１'!T62="","",'補正（太陽光）指定１'!T62)) ->  | U62: =IF($D$3="作成不要","",IF('補正（太陽光）指定１'!U62="","",'補正（太陽光）指定１'!U62)) ->  | V62: =IF($D$3="作成不要","",IF('補正（太陽光）指定１'!V62="","",'補正（太陽光）指定１'!V62)) ->  | W62: =IF($D$3="作成不要","",IF('補正（太陽光）指定１'!W62="","",'補正（太陽光）指定１'!W62)) ->  | X62: =IF($D$3="作成不要","",IF('補正（太陽光）指定１'!X62="","",'補正（太陽光）指定１'!X62)) ->  | Y62: =IF($D$3="作成不要","",IF('補正（太陽光）指定１'!Y62="","",'補正（太陽光）指定１'!Y62)) ->  | Z62: =IF($D$3="作成不要","",IF('補正（太陽光）指定１'!Z62="","",'補正（太陽光）指定１'!Z62)) ->  | AA62: =IF($D$3="作成不要","",IF('補正（太陽光）指定１'!AA62="","",'補正（太陽光）指定１'!AA62)) ->  | AB62: =IF($D$3="作成不要","",IF('補正（太陽光）指定１'!AB62="","",'補正（太陽光）指定１'!AB62)) ->  | AC62: =IF($D$3="作成不要","",IF('補正（太陽光）指定１'!AC62="","",'補正（太陽光）指定１'!AC62)) ->  | AD62: =IF($D$3="作成不要","",IF('補正（太陽光）指定１'!AD62="","",'補正（太陽光）指定１'!AD62)) ->  | AH62: =IF(COUNT(AH63:AH64)=0,"",SUM(AH63:AH64)) ->  | AI62: =IF(COUNT(AI63:AI64)=0,"",SUM(AI63:AI64)) -> 
F63: 全量 | G63: =IF($D$3="作成不要","",IF('補正（太陽光）指定１'!G63="","",'補正（太陽光）指定１'!G63)) ->  | H63: =IF($D$3="作成不要","",IF('補正（太陽光）指定１'!H63="","",'補正（太陽光）指定１'!H63)) ->  | I63: =IF($D$3="作成不要","",IF('補正（太陽光）指定１'!I63="","",'補正（太陽光）指定１'!I63)) ->  | J63: =IF($D$3="作成不要","",IF('補正（太陽光）指定１'!J63="","",'補正（太陽光）指定１'!J63)) ->  | K63: =IF($D$3="作成不要","",IF('補正（太陽光）指定１'!K63="","",'補正（太陽光）指定１'!K63)) ->  | L63: =IF($D$3="作成不要","",IF('補正（太陽光）指定１'!L63="","",'補正（太陽光）指定１'!L63)) ->  | M63: =IF($D$3="作成不要","",IF('補正（太陽光）指定１'!M63="","",'補正（太陽光）指定１'!M63)) ->  | N63: =IF($D$3="作成不要","",IF('補正（太陽光）指定１'!N63="","",'補正（太陽光）指定１'!N63)) ->  | O63: =IF($D$3="作成不要","",IF('補正（太陽光）指定１'!O63="","",'補正（太陽光）指定１'!O63)) ->  | P63: =IF($D$3="作成不要","",IF('補正（太陽光）指定１'!P63="","",'補正（太陽光）指定１'!P63)) ->  | Q63: =IF($D$3="作成不要","",IF('補正（太陽光）指定１'!Q63="","",'補正（太陽光）指定１'!Q63)) ->  | R63: =IF($D$3="作成不要","",IF('補正（太陽光）指定１'!R63="","",'補正（太陽光）指定１'!R63)) ->  | S63: =IF($D$3="作成不要","",IF('補正（太陽光）指定１'!S63="","",'補正（太陽光）指定１'!S63)) ->  | T63: =IF($D$3="作成不要","",IF('補正（太陽光）指定１'!T63="","",'補正（太陽光）指定１'!T63)) ->  | U63: =IF($D$3="作成不要","",IF('補正（太陽光）指定１'!U63="","",'補正（太陽光）指定１'!U63)) ->  | V63: =IF($D$3="作成不要","",IF('補正（太陽光）指定１'!V63="","",'補正（太陽光）指定１'!V63)) ->  | W63: =IF($D$3="作成不要","",IF('補正（太陽光）指定１'!W63="","",'補正（太陽光）指定１'!W63)) ->  | X63: =IF($D$3="作成不要","",IF('補正（太陽光）指定１'!X63="","",'補正（太陽光）指定１'!X63)) ->  | Y63: =IF($D$3="作成不要","",IF('補正（太陽光）指定１'!Y63="","",'補正（太陽光）指定１'!Y63)) ->  | Z63: =IF($D$3="作成不要","",IF('補正（太陽光）指定１'!Z63="","",'補正（太陽光）指定１'!Z63)) ->  | AA63: =IF($D$3="作成不要","",IF('補正（太陽光）指定１'!AA63="","",'補正（太陽光）指定１'!AA63)) ->  | AB63: =IF($D$3="作成不要","",IF('補正（太陽光）指定１'!AB63="","",'補正（太陽光）指定１'!AB63)) ->  | AC63: =IF($D$3="作成不要","",IF('補正（太陽光）指定１'!AC63="","",'補正（太陽光）指定１'!AC63)) ->  | AD63: =IF($D$3="作成不要","",IF('補正（太陽光）指定１'!AD63="","",'補正（太陽光）指定１'!AD63)) ->  | AH63: =IF(AND(AH27="",AH51="",AH57=""),"",SUM(AH27)-SUM(AH51)-SUM(AH57)) ->  | AI63: =IF(AND(AI27="",AI51="",AI57=""),"",SUM(AI27)-SUM(AI51)-SUM(AI57)) ->  | AU63: 4月 | AV63: 5月 | AW63: 6月 | AX63: 7月 | AY63: 8月 | AZ63: 9月 | BA63: 10月 | BB63: 11月 | BC63: 12月 | BD63: 1月 | BE63: 2月 | BF63: 3月
F64: 余剰 | G64: =IF($D$3="作成不要","",IF('補正（太陽光）指定１'!G64="","",'補正（太陽光）指定１'!G64)) ->  | H64: =IF($D$3="作成不要","",IF('補正（太陽光）指定１'!H64="","",'補正（太陽光）指定１'!H64)) ->  | I64: =IF($D$3="作成不要","",IF('補正（太陽光）指定１'!I64="","",'補正（太陽光）指定１'!I64)) ->  | J64: =IF($D$3="作成不要","",IF('補正（太陽光）指定１'!J64="","",'補正（太陽光）指定１'!J64)) ->  | K64: =IF($D$3="作成不要","",IF('補正（太陽光）指定１'!K64="","",'補正（太陽光）指定１'!K64)) ->  | L64: =IF($D$3="作成不要","",IF('補正（太陽光）指定１'!L64="","",'補正（太陽光）指定１'!L64)) ->  | M64: =IF($D$3="作成不要","",IF('補正（太陽光）指定１'!M64="","",'補正（太陽光）指定１'!M64)) ->  | N64: =IF($D$3="作成不要","",IF('補正（太陽光）指定１'!N64="","",'補正（太陽光）指定１'!N64)) ->  | O64: =IF($D$3="作成不要","",IF('補正（太陽光）指定１'!O64="","",'補正（太陽光）指定１'!O64)) ->  | P64: =IF($D$3="作成不要","",IF('補正（太陽光）指定１'!P64="","",'補正（太陽光）指定１'!P64)) ->  | Q64: =IF($D$3="作成不要","",IF('補正（太陽光）指定１'!Q64="","",'補正（太陽光）指定１'!Q64)) ->  | R64: =IF($D$3="作成不要","",IF('補正（太陽光）指定１'!R64="","",'補正（太陽光）指定１'!R64)) ->  | S64: =IF($D$3="作成不要","",IF('補正（太陽光）指定１'!S64="","",'補正（太陽光）指定１'!S64)) ->  | T64: =IF($D$3="作成不要","",IF('補正（太陽光）指定１'!T64="","",'補正（太陽光）指定１'!T64)) ->  | U64: =IF($D$3="作成不要","",IF('補正（太陽光）指定１'!U64="","",'補正（太陽光）指定１'!U64)) ->  | V64: =IF($D$3="作成不要","",IF('補正（太陽光）指定１'!V64="","",'補正（太陽光）指定１'!V64)) ->  | W64: =IF($D$3="作成不要","",IF('補正（太陽光）指定１'!W64="","",'補正（太陽光）指定１'!W64)) ->  | X64: =IF($D$3="作成不要","",IF('補正（太陽光）指定１'!X64="","",'補正（太陽光）指定１'!X64)) ->  | Y64: =IF($D$3="作成不要","",IF('補正（太陽光）指定１'!Y64="","",'補正（太陽光）指定１'!Y64)) ->  | Z64: =IF($D$3="作成不要","",IF('補正（太陽光）指定１'!Z64="","",'補正（太陽光）指定１'!Z64)) ->  | AA64: =IF($D$3="作成不要","",IF('補正（太陽光）指定１'!AA64="","",'補正（太陽光）指定１'!AA64)) ->  | AB64: =IF($D$3="作成不要","",IF('補正（太陽光）指定１'!AB64="","",'補正（太陽光）指定１'!AB64)) ->  | AC64: =IF($D$3="作成不要","",IF('補正（太陽光）指定１'!AC64="","",'補正（太陽光）指定１'!AC64)) ->  | AD64: =IF($D$3="作成不要","",IF('補正（太陽光）指定１'!AD64="","",'補正（太陽光）指定１'!AD64)) ->  | AH64: =IF(AND(AH28="",AH52="",AH58=""),"",SUM(AH28)-SUM(AH52)-SUM(AH58)) ->  | AI64: =IF(AND(AI28="",AI52="",AI58=""),"",SUM(AI28)-SUM(AI52)-SUM(AI58)) ->  | AT64: 北海道 | AU64: =IFERROR(VLOOKUP($AT64,'③太陽光（余剰）'!$G$44:$S$44,2,FALSE),"") ->  | AV64: =IFERROR(VLOOKUP($AT64,'③太陽光（余剰）'!$G$44:$S$44,3,FALSE),"") ->  | AW64: =IFERROR(VLOOKUP($AT64,'③太陽光（余剰）'!$G$44:$S$44,4,FALSE),"") ->  | AX64: =IFERROR(VLOOKUP($AT64,'③太陽光（余剰）'!$G$44:$S$44,5,FALSE),"") ->  | AY64: =IFERROR(VLOOKUP($AT64,'③太陽光（余剰）'!$G$44:$S$44,6,FALSE),"") ->  | AZ64: =IFERROR(VLOOKUP($AT64,'③太陽光（余剰）'!$G$44:$S$44,7,FALSE),"") ->  | BA64: =IFERROR(VLOOKUP($AT64,'③太陽光（余剰）'!$G$44:$S$44,8,FALSE),"") ->  | BB64: =IFERROR(VLOOKUP($AT64,'③太陽光（余剰）'!$G$44:$S$44,9,FALSE),"") ->  | BC64: =IFERROR(VLOOKUP($AT64,'③太陽光（余剰）'!$G$44:$S$44,10,FALSE),"") ->  | BD64: =IFERROR(VLOOKUP($AT64,'③太陽光（余剰）'!$G$44:$S$44,11,FALSE),"") ->  | BE64: =IFERROR(VLOOKUP($AT64,'③太陽光（余剰）'!$G$44:$S$44,12,FALSE),"") ->  | BF64: =IFERROR(VLOOKUP($AT64,'③太陽光（余剰）'!$G$44:$S$44,13,FALSE),"") -> 
D65: 供給電力 （調整係数） | E65: 合計 | G65: =IF($D$3="作成不要","",IF('補正（太陽光）指定１'!G65="","",'補正（太陽光）指定１'!G65)) ->  | H65: =IF($D$3="作成不要","",IF('補正（太陽光）指定１'!H65="","",'補正（太陽光）指定１'!H65)) ->  | I65: =IF($D$3="作成不要","",IF('補正（太陽光）指定１'!I65="","",'補正（太陽光）指定１'!I65)) ->  | J65: =IF($D$3="作成不要","",IF('補正（太陽光）指定１'!J65="","",'補正（太陽光）指定１'!J65)) ->  | K65: =IF($D$3="作成不要","",IF('補正（太陽光）指定１'!K65="","",'補正（太陽光）指定１'!K65)) ->  | L65: =IF($D$3="作成不要","",IF('補正（太陽光）指定１'!L65="","",'補正（太陽光）指定１'!L65)) ->  | M65: =IF($D$3="作成不要","",IF('補正（太陽光）指定１'!M65="","",'補正（太陽光）指定１'!M65)) ->  | N65: =IF($D$3="作成不要","",IF('補正（太陽光）指定１'!N65="","",'補正（太陽光）指定１'!N65)) ->  | O65: =IF($D$3="作成不要","",IF('補正（太陽光）指定１'!O65="","",'補正（太陽光）指定１'!O65)) ->  | P65: =IF($D$3="作成不要","",IF('補正（太陽光）指定１'!P65="","",'補正（太陽光）指定１'!P65)) ->  | Q65: =IF($D$3="作成不要","",IF('補正（太陽光）指定１'!Q65="","",'補正（太陽光）指定１'!Q65)) ->  | R65: =IF($D$3="作成不要","",IF('補正（太陽光）指定１'!R65="","",'補正（太陽光）指定１'!R65)) ->  | S65: =IF($D$3="作成不要","",IF('補正（太陽光）指定１'!S65="","",'補正（太陽光）指定１'!S65)) ->  | T65: =IF($D$3="作成不要","",IF('補正（太陽光）指定１'!T65="","",'補正（太陽光）指定１'!T65)) ->  | U65: =IF($D$3="作成不要","",IF('補正（太陽光）指定１'!U65="","",'補正（太陽光）指定１'!U65)) ->  | V65: =IF($D$3="作成不要","",IF('補正（太陽光）指定１'!V65="","",'補正（太陽光）指定１'!V65)) ->  | W65: =IF($D$3="作成不要","",IF('補正（太陽光）指定１'!W65="","",'補正（太陽光）指定１'!W65)) ->  | X65: =IF($D$3="作成不要","",IF('補正（太陽光）指定１'!X65="","",'補正（太陽光）指定１'!X65)) ->  | Y65: =IF($D$3="作成不要","",IF('補正（太陽光）指定１'!Y65="","",'補正（太陽光）指定１'!Y65)) ->  | Z65: =IF($D$3="作成不要","",IF('補正（太陽光）指定１'!Z65="","",'補正（太陽光）指定１'!Z65)) ->  | AA65: =IF($D$3="作成不要","",IF('補正（太陽光）指定１'!AA65="","",'補正（太陽光）指定１'!AA65)) ->  | AB65: =IF($D$3="作成不要","",IF('補正（太陽光）指定１'!AB65="","",'補正（太陽光）指定１'!AB65)) ->  | AC65: =IF($D$3="作成不要","",IF('補正（太陽光）指定１'!AC65="","",'補正（太陽光）指定１'!AC65)) ->  | AD65: =IF($D$3="作成不要","",IF('補正（太陽光）指定１'!AD65="","",'補正（太陽光）指定１'!AD65)) ->  | AH65: =IF(COUNT(AH66:AH67)=0,"",SUM(AH66:AH67)) ->  | AI65: =IF(COUNT(AI66:AI67)=0,"",SUM(AI66:AI67)) ->  | AT65: 東北 | AU65: =IFERROR(VLOOKUP($AT65,'③太陽光（余剰）'!$G$44:$S$44,2,FALSE),"") ->  | AV65: =IFERROR(VLOOKUP($AT65,'③太陽光（余剰）'!$G$44:$S$44,3,FALSE),"") ->  | AW65: =IFERROR(VLOOKUP($AT65,'③太陽光（余剰）'!$G$44:$S$44,4,FALSE),"") ->  | AX65: =IFERROR(VLOOKUP($AT65,'③太陽光（余剰）'!$G$44:$S$44,5,FALSE),"") ->  | AY65: =IFERROR(VLOOKUP($AT65,'③太陽光（余剰）'!$G$44:$S$44,6,FALSE),"") ->  | AZ65: =IFERROR(VLOOKUP($AT65,'③太陽光（余剰）'!$G$44:$S$44,7,FALSE),"") ->  | BA65: =IFERROR(VLOOKUP($AT65,'③太陽光（余剰）'!$G$44:$S$44,8,FALSE),"") ->  | BB65: =IFERROR(VLOOKUP($AT65,'③太陽光（余剰）'!$G$44:$S$44,9,FALSE),"") ->  | BC65: =IFERROR(VLOOKUP($AT65,'③太陽光（余剰）'!$G$44:$S$44,10,FALSE),"") ->  | BD65: =IFERROR(VLOOKUP($AT65,'③太陽光（余剰）'!$G$44:$S$44,11,FALSE),"") ->  | BE65: =IFERROR(VLOOKUP($AT65,'③太陽光（余剰）'!$G$44:$S$44,12,FALSE),"") ->  | BF65: =IFERROR(VLOOKUP($AT65,'③太陽光（余剰）'!$G$44:$S$44,13,FALSE),"") -> 
F66: 全量 | G66: =IF($D$3="作成不要","",IF('補正（太陽光）指定１'!G66="","",'補正（太陽光）指定１'!G66)) ->  | H66: =IF($D$3="作成不要","",IF('補正（太陽光）指定１'!H66="","",'補正（太陽光）指定１'!H66)) ->  | I66: =IF($D$3="作成不要","",IF('補正（太陽光）指定１'!I66="","",'補正（太陽光）指定１'!I66)) ->  | J66: =IF($D$3="作成不要","",IF('補正（太陽光）指定１'!J66="","",'補正（太陽光）指定１'!J66)) ->  | K66: =IF($D$3="作成不要","",IF('補正（太陽光）指定１'!K66="","",'補正（太陽光）指定１'!K66)) ->  | L66: =IF($D$3="作成不要","",IF('補正（太陽光）指定１'!L66="","",'補正（太陽光）指定１'!L66)) ->  | M66: =IF($D$3="作成不要","",IF('補正（太陽光）指定１'!M66="","",'補正（太陽光）指定１'!M66)) ->  | N66: =IF($D$3="作成不要","",IF('補正（太陽光）指定１'!N66="","",'補正（太陽光）指定１'!N66)) ->  | O66: =IF($D$3="作成不要","",IF('補正（太陽光）指定１'!O66="","",'補正（太陽光）指定１'!O66)) ->  | P66: =IF($D$3="作成不要","",IF('補正（太陽光）指定１'!P66="","",'補正（太陽光）指定１'!P66)) ->  | Q66: =IF($D$3="作成不要","",IF('補正（太陽光）指定１'!Q66="","",'補正（太陽光）指定１'!Q66)) ->  | R66: =IF($D$3="作成不要","",IF('補正（太陽光）指定１'!R66="","",'補正（太陽光）指定１'!R66)) ->  | S66: =IF($D$3="作成不要","",IF('補正（太陽光）指定１'!S66="","",'補正（太陽光）指定１'!S66)) ->  | T66: =IF($D$3="作成不要","",IF('補正（太陽光）指定１'!T66="","",'補正（太陽光）指定１'!T66)) ->  | U66: =IF($D$3="作成不要","",IF('補正（太陽光）指定１'!U66="","",'補正（太陽光）指定１'!U66)) ->  | V66: =IF($D$3="作成不要","",IF('補正（太陽光）指定１'!V66="","",'補正（太陽光）指定１'!V66)) ->  | W66: =IF($D$3="作成不要","",IF('補正（太陽光）指定１'!W66="","",'補正（太陽光）指定１'!W66)) ->  | X66: =IF($D$3="作成不要","",IF('補正（太陽光）指定１'!X66="","",'補正（太陽光）指定１'!X66)) ->  | Y66: =IF($D$3="作成不要","",IF('補正（太陽光）指定１'!Y66="","",'補正（太陽光）指定１'!Y66)) ->  | Z66: =IF($D$3="作成不要","",IF('補正（太陽光）指定１'!Z66="","",'補正（太陽光）指定１'!Z66)) ->  | AA66: =IF($D$3="作成不要","",IF('補正（太陽光）指定１'!AA66="","",'補正（太陽光）指定１'!AA66)) ->  | AB66: =IF($D$3="作成不要","",IF('補正（太陽光）指定１'!AB66="","",'補正（太陽光）指定１'!AB66)) ->  | AC66: =IF($D$3="作成不要","",IF('補正（太陽光）指定１'!AC66="","",'補正（太陽光）指定１'!AC66)) ->  | AD66: =IF($D$3="作成不要","",IF('補正（太陽光）指定１'!AD66="","",'補正（太陽光）指定１'!AD66)) ->  | AH66: =IF(AND(AH30="",AH54="",AH60=""),"",SUM(AH30)-SUM(AH54)-SUM(AH60)) ->  | AI66: =IF(AND(AI30="",AI54="",AI60=""),"",SUM(AI30)-SUM(AI54)-SUM(AI60)) ->  | AT66: 東京 | AU66: =IFERROR(VLOOKUP($AT66,'③太陽光（余剰）'!$G$44:$S$44,2,FALSE),"") ->  | AV66: =IFERROR(VLOOKUP($AT66,'③太陽光（余剰）'!$G$44:$S$44,3,FALSE),"") ->  | AW66: =IFERROR(VLOOKUP($AT66,'③太陽光（余剰）'!$G$44:$S$44,4,FALSE),"") ->  | AX66: =IFERROR(VLOOKUP($AT66,'③太陽光（余剰）'!$G$44:$S$44,5,FALSE),"") ->  | AY66: =IFERROR(VLOOKUP($AT66,'③太陽光（余剰）'!$G$44:$S$44,6,FALSE),"") ->  | AZ66: =IFERROR(VLOOKUP($AT66,'③太陽光（余剰）'!$G$44:$S$44,7,FALSE),"") ->  | BA66: =IFERROR(VLOOKUP($AT66,'③太陽光（余剰）'!$G$44:$S$44,8,FALSE),"") ->  | BB66: =IFERROR(VLOOKUP($AT66,'③太陽光（余剰）'!$G$44:$S$44,9,FALSE),"") ->  | BC66: =IFERROR(VLOOKUP($AT66,'③太陽光（余剰）'!$G$44:$S$44,10,FALSE),"") ->  | BD66: =IFERROR(VLOOKUP($AT66,'③太陽光（余剰）'!$G$44:$S$44,11,FALSE),"") ->  | BE66: =IFERROR(VLOOKUP($AT66,'③太陽光（余剰）'!$G$44:$S$44,12,FALSE),"") ->  | BF66: =IFERROR(VLOOKUP($AT66,'③太陽光（余剰）'!$G$44:$S$44,13,FALSE),"") -> 
F67: 余剰 | G67: =IF($D$3="作成不要","",IF('補正（太陽光）指定１'!G67="","",'補正（太陽光）指定１'!G67)) ->  | H67: =IF($D$3="作成不要","",IF('補正（太陽光）指定１'!H67="","",'補正（太陽光）指定１'!H67)) ->  | I67: =IF($D$3="作成不要","",IF('補正（太陽光）指定１'!I67="","",'補正（太陽光）指定１'!I67)) ->  | J67: =IF($D$3="作成不要","",IF('補正（太陽光）指定１'!J67="","",'補正（太陽光）指定１'!J67)) ->  | K67: =IF($D$3="作成不要","",IF('補正（太陽光）指定１'!K67="","",'補正（太陽光）指定１'!K67)) ->  | L67: =IF($D$3="作成不要","",IF('補正（太陽光）指定１'!L67="","",'補正（太陽光）指定１'!L67)) ->  | M67: =IF($D$3="作成不要","",IF('補正（太陽光）指定１'!M67="","",'補正（太陽光）指定１'!M67)) ->  | N67: =IF($D$3="作成不要","",IF('補正（太陽光）指定１'!N67="","",'補正（太陽光）指定１'!N67)) ->  | O67: =IF($D$3="作成不要","",IF('補正（太陽光）指定１'!O67="","",'補正（太陽光）指定１'!O67)) ->  | P67: =IF($D$3="作成不要","",IF('補正（太陽光）指定１'!P67="","",'補正（太陽光）指定１'!P67)) ->  | Q67: =IF($D$3="作成不要","",IF('補正（太陽光）指定１'!Q67="","",'補正（太陽光）指定１'!Q67)) ->  | R67: =IF($D$3="作成不要","",IF('補正（太陽光）指定１'!R67="","",'補正（太陽光）指定１'!R67)) ->  | S67: =IF($D$3="作成不要","",IF('補正（太陽光）指定１'!S67="","",'補正（太陽光）指定１'!S67)) ->  | T67: =IF($D$3="作成不要","",IF('補正（太陽光）指定１'!T67="","",'補正（太陽光）指定１'!T67)) ->  | U67: =IF($D$3="作成不要","",IF('補正（太陽光）指定１'!U67="","",'補正（太陽光）指定１'!U67)) ->  | V67: =IF($D$3="作成不要","",IF('補正（太陽光）指定１'!V67="","",'補正（太陽光）指定１'!V67)) ->  | W67: =IF($D$3="作成不要","",IF('補正（太陽光）指定１'!W67="","",'補正（太陽光）指定１'!W67)) ->  | X67: =IF($D$3="作成不要","",IF('補正（太陽光）指定１'!X67="","",'補正（太陽光）指定１'!X67)) ->  | Y67: =IF($D$3="作成不要","",IF('補正（太陽光）指定１'!Y67="","",'補正（太陽光）指定１'!Y67)) ->  | Z67: =IF($D$3="作成不要","",IF('補正（太陽光）指定１'!Z67="","",'補正（太陽光）指定１'!Z67)) ->  | AA67: =IF($D$3="作成不要","",IF('補正（太陽光）指定１'!AA67="","",'補正（太陽光）指定１'!AA67)) ->  | AB67: =IF($D$3="作成不要","",IF('補正（太陽光）指定１'!AB67="","",'補正（太陽光）指定１'!AB67)) ->  | AC67: =IF($D$3="作成不要","",IF('補正（太陽光）指定１'!AC67="","",'補正（太陽光）指定１'!AC67)) ->  | AD67: =IF($D$3="作成不要","",IF('補正（太陽光）指定１'!AD67="","",'補正（太陽光）指定１'!AD67)) ->  | AH67: =IF(AND(AH31="",AH55="",AH61),"",SUM(AH31)-SUM(AH55)-SUM(AH61)) ->  | AI67: =IF(AND(AI31="",AI55="",AI61),"",SUM(AI31)-SUM(AI55)-SUM(AI61)) ->  | AT67: 中部 | AU67: =IFERROR(VLOOKUP($AT67,'③太陽光（余剰）'!$G$44:$S$44,2,FALSE),"") ->  | AV67: =IFERROR(VLOOKUP($AT67,'③太陽光（余剰）'!$G$44:$S$44,3,FALSE),"") ->  | AW67: =IFERROR(VLOOKUP($AT67,'③太陽光（余剰）'!$G$44:$S$44,4,FALSE),"") ->  | AX67: =IFERROR(VLOOKUP($AT67,'③太陽光（余剰）'!$G$44:$S$44,5,FALSE),"") ->  | AY67: =IFERROR(VLOOKUP($AT67,'③太陽光（余剰）'!$G$44:$S$44,6,FALSE),"") ->  | AZ67: =IFERROR(VLOOKUP($AT67,'③太陽光（余剰）'!$G$44:$S$44,7,FALSE),"") ->  | BA67: =IFERROR(VLOOKUP($AT67,'③太陽光（余剰）'!$G$44:$S$44,8,FALSE),"") ->  | BB67: =IFERROR(VLOOKUP($AT67,'③太陽光（余剰）'!$G$44:$S$44,9,FALSE),"") ->  | BC67: =IFERROR(VLOOKUP($AT67,'③太陽光（余剰）'!$G$44:$S$44,10,FALSE),"") ->  | BD67: =IFERROR(VLOOKUP($AT67,'③太陽光（余剰）'!$G$44:$S$44,11,FALSE),"") ->  | BE67: =IFERROR(VLOOKUP($AT67,'③太陽光（余剰）'!$G$44:$S$44,12,FALSE),"") ->  | BF67: =IFERROR(VLOOKUP($AT67,'③太陽光（余剰）'!$G$44:$S$44,13,FALSE),"") -> 
A68: ｋＷｈ | B68: エリア想定 | D68: 電力量 | E68: 合計 | AT68: 北陸 | AU68: =IFERROR(VLOOKUP($AT68,'③太陽光（余剰）'!$G$44:$S$44,2,FALSE),"") ->  | AV68: =IFERROR(VLOOKUP($AT68,'③太陽光（余剰）'!$G$44:$S$44,3,FALSE),"") ->  | AW68: =IFERROR(VLOOKUP($AT68,'③太陽光（余剰）'!$G$44:$S$44,4,FALSE),"") ->  | AX68: =IFERROR(VLOOKUP($AT68,'③太陽光（余剰）'!$G$44:$S$44,5,FALSE),"") ->  | AY68: =IFERROR(VLOOKUP($AT68,'③太陽光（余剰）'!$G$44:$S$44,6,FALSE),"") ->  | AZ68: =IFERROR(VLOOKUP($AT68,'③太陽光（余剰）'!$G$44:$S$44,7,FALSE),"") ->  | BA68: =IFERROR(VLOOKUP($AT68,'③太陽光（余剰）'!$G$44:$S$44,8,FALSE),"") ->  | BB68: =IFERROR(VLOOKUP($AT68,'③太陽光（余剰）'!$G$44:$S$44,9,FALSE),"") ->  | BC68: =IFERROR(VLOOKUP($AT68,'③太陽光（余剰）'!$G$44:$S$44,10,FALSE),"") ->  | BD68: =IFERROR(VLOOKUP($AT68,'③太陽光（余剰）'!$G$44:$S$44,11,FALSE),"") ->  | BE68: =IFERROR(VLOOKUP($AT68,'③太陽光（余剰）'!$G$44:$S$44,12,FALSE),"") ->  | BF68: =IFERROR(VLOOKUP($AT68,'③太陽光（余剰）'!$G$44:$S$44,13,FALSE),"") -> 
F69: 全量 | AT69: 関西 | AU69: =IFERROR(VLOOKUP($AT69,'③太陽光（余剰）'!$G$44:$S$44,2,FALSE),"") ->  | AV69: =IFERROR(VLOOKUP($AT69,'③太陽光（余剰）'!$G$44:$S$44,3,FALSE),"") ->  | AW69: =IFERROR(VLOOKUP($AT69,'③太陽光（余剰）'!$G$44:$S$44,4,FALSE),"") ->  | AX69: =IFERROR(VLOOKUP($AT69,'③太陽光（余剰）'!$G$44:$S$44,5,FALSE),"") ->  | AY69: =IFERROR(VLOOKUP($AT69,'③太陽光（余剰）'!$G$44:$S$44,6,FALSE),"") ->  | AZ69: =IFERROR(VLOOKUP($AT69,'③太陽光（余剰）'!$G$44:$S$44,7,FALSE),"") ->  | BA69: =IFERROR(VLOOKUP($AT69,'③太陽光（余剰）'!$G$44:$S$44,8,FALSE),"") ->  | BB69: =IFERROR(VLOOKUP($AT69,'③太陽光（余剰）'!$G$44:$S$44,9,FALSE),"") ->  | BC69: =IFERROR(VLOOKUP($AT69,'③太陽光（余剰）'!$G$44:$S$44,10,FALSE),"") ->  | BD69: =IFERROR(VLOOKUP($AT69,'③太陽光（余剰）'!$G$44:$S$44,11,FALSE),"") ->  | BE69: =IFERROR(VLOOKUP($AT69,'③太陽光（余剰）'!$G$44:$S$44,12,FALSE),"") ->  | BF69: =IFERROR(VLOOKUP($AT69,'③太陽光（余剰）'!$G$44:$S$44,13,FALSE),"") -> 
F70: 余剰 | AT70: 中国 | AU70: =IFERROR(VLOOKUP($AT70,'③太陽光（余剰）'!$G$44:$S$44,2,FALSE),"") ->  | AV70: =IFERROR(VLOOKUP($AT70,'③太陽光（余剰）'!$G$44:$S$44,3,FALSE),"") ->  | AW70: =IFERROR(VLOOKUP($AT70,'③太陽光（余剰）'!$G$44:$S$44,4,FALSE),"") ->  | AX70: =IFERROR(VLOOKUP($AT70,'③太陽光（余剰）'!$G$44:$S$44,5,FALSE),"") ->  | AY70: =IFERROR(VLOOKUP($AT70,'③太陽光（余剰）'!$G$44:$S$44,6,FALSE),"") ->  | AZ70: =IFERROR(VLOOKUP($AT70,'③太陽光（余剰）'!$G$44:$S$44,7,FALSE),"") ->  | BA70: =IFERROR(VLOOKUP($AT70,'③太陽光（余剰）'!$G$44:$S$44,8,FALSE),"") ->  | BB70: =IFERROR(VLOOKUP($AT70,'③太陽光（余剰）'!$G$44:$S$44,9,FALSE),"") ->  | BC70: =IFERROR(VLOOKUP($AT70,'③太陽光（余剰）'!$G$44:$S$44,10,FALSE),"") ->  | BD70: =IFERROR(VLOOKUP($AT70,'③太陽光（余剰）'!$G$44:$S$44,11,FALSE),"") ->  | BE70: =IFERROR(VLOOKUP($AT70,'③太陽光（余剰）'!$G$44:$S$44,12,FALSE),"") ->  | BF70: =IFERROR(VLOOKUP($AT70,'③太陽光（余剰）'!$G$44:$S$44,13,FALSE),"") -> 
B71: 各電気事業者の エリア内保有分 | D71: 電力量 | E71: 合計 | AT71: 四国 | AU71: =IFERROR(VLOOKUP($AT71,'③太陽光（余剰）'!$G$44:$S$44,2,FALSE),"") ->  | AV71: =IFERROR(VLOOKUP($AT71,'③太陽光（余剰）'!$G$44:$S$44,3,FALSE),"") ->  | AW71: =IFERROR(VLOOKUP($AT71,'③太陽光（余剰）'!$G$44:$S$44,4,FALSE),"") ->  | AX71: =IFERROR(VLOOKUP($AT71,'③太陽光（余剰）'!$G$44:$S$44,5,FALSE),"") ->  | AY71: =IFERROR(VLOOKUP($AT71,'③太陽光（余剰）'!$G$44:$S$44,6,FALSE),"") ->  | AZ71: =IFERROR(VLOOKUP($AT71,'③太陽光（余剰）'!$G$44:$S$44,7,FALSE),"") ->  | BA71: =IFERROR(VLOOKUP($AT71,'③太陽光（余剰）'!$G$44:$S$44,8,FALSE),"") ->  | BB71: =IFERROR(VLOOKUP($AT71,'③太陽光（余剰）'!$G$44:$S$44,9,FALSE),"") ->  | BC71: =IFERROR(VLOOKUP($AT71,'③太陽光（余剰）'!$G$44:$S$44,10,FALSE),"") ->  | BD71: =IFERROR(VLOOKUP($AT71,'③太陽光（余剰）'!$G$44:$S$44,11,FALSE),"") ->  | BE71: =IFERROR(VLOOKUP($AT71,'③太陽光（余剰）'!$G$44:$S$44,12,FALSE),"") ->  | BF71: =IFERROR(VLOOKUP($AT71,'③太陽光（余剰）'!$G$44:$S$44,13,FALSE),"") -> 
F72: 全量 | AT72: 九州 | AU72: =IFERROR(VLOOKUP($AT72,'③太陽光（余剰）'!$G$44:$S$44,2,FALSE),"") ->  | AV72: =IFERROR(VLOOKUP($AT72,'③太陽光（余剰）'!$G$44:$S$44,3,FALSE),"") ->  | AW72: =IFERROR(VLOOKUP($AT72,'③太陽光（余剰）'!$G$44:$S$44,4,FALSE),"") ->  | AX72: =IFERROR(VLOOKUP($AT72,'③太陽光（余剰）'!$G$44:$S$44,5,FALSE),"") ->  | AY72: =IFERROR(VLOOKUP($AT72,'③太陽光（余剰）'!$G$44:$S$44,6,FALSE),"") ->  | AZ72: =IFERROR(VLOOKUP($AT72,'③太陽光（余剰）'!$G$44:$S$44,7,FALSE),"") ->  | BA72: =IFERROR(VLOOKUP($AT72,'③太陽光（余剰）'!$G$44:$S$44,8,FALSE),"") ->  | BB72: =IFERROR(VLOOKUP($AT72,'③太陽光（余剰）'!$G$44:$S$44,9,FALSE),"") ->  | BC72: =IFERROR(VLOOKUP($AT72,'③太陽光（余剰）'!$G$44:$S$44,10,FALSE),"") ->  | BD72: =IFERROR(VLOOKUP($AT72,'③太陽光（余剰）'!$G$44:$S$44,11,FALSE),"") ->  | BE72: =IFERROR(VLOOKUP($AT72,'③太陽光（余剰）'!$G$44:$S$44,12,FALSE),"") ->  | BF72: =IFERROR(VLOOKUP($AT72,'③太陽光（余剰）'!$G$44:$S$44,13,FALSE),"") -> 
F73: 余剰 | AT73: 沖縄 | AU73: =IFERROR(VLOOKUP($AT73,'③太陽光（余剰）'!$G$44:$S$44,2,FALSE),"") ->  | AV73: =IFERROR(VLOOKUP($AT73,'③太陽光（余剰）'!$G$44:$S$44,3,FALSE),"") ->  | AW73: =IFERROR(VLOOKUP($AT73,'③太陽光（余剰）'!$G$44:$S$44,4,FALSE),"") ->  | AX73: =IFERROR(VLOOKUP($AT73,'③太陽光（余剰）'!$G$44:$S$44,5,FALSE),"") ->  | AY73: =IFERROR(VLOOKUP($AT73,'③太陽光（余剰）'!$G$44:$S$44,6,FALSE),"") ->  | AZ73: =IFERROR(VLOOKUP($AT73,'③太陽光（余剰）'!$G$44:$S$44,7,FALSE),"") ->  | BA73: =IFERROR(VLOOKUP($AT73,'③太陽光（余剰）'!$G$44:$S$44,8,FALSE),"") ->  | BB73: =IFERROR(VLOOKUP($AT73,'③太陽光（余剰）'!$G$44:$S$44,9,FALSE),"") ->  | BC73: =IFERROR(VLOOKUP($AT73,'③太陽光（余剰）'!$G$44:$S$44,10,FALSE),"") ->  | BD73: =IFERROR(VLOOKUP($AT73,'③太陽光（余剰）'!$G$44:$S$44,11,FALSE),"") ->  | BE73: =IFERROR(VLOOKUP($AT73,'③太陽光（余剰）'!$G$44:$S$44,12,FALSE),"") ->  | BF73: =IFERROR(VLOOKUP($AT73,'③太陽光（余剰）'!$G$44:$S$44,13,FALSE),"") -> 
